Workbook

Sheet Age profile chart

Sheet Forecast Ch1

Sheet Age profile summary
A1: Asset calcs | R1: Remaining life | W1: RC ($ millions) | AB1: RC (%)
R2: Very old | S2: Old | T2: moderate | U2: young | V2: new | W2: =R2 -> Very old | X2: =S2 -> Old | Y2: moderate | Z2: young | AA2: new | AB2: Very old | AC2: Old | AD2: moderate | AE2: young | AF2: new
M3: WARL | O3: WAL | Q3: WAA | R3: > | S3: > | T3: > | U3: > | V3: <=0.2 | W3: =R3 -> > | X3: > | Y3: > | Z3: > | AA3: <=0.2 | AB3: > | AC3: > | AD3: > | AE3: > | AF3: <=0.2
F4: Quantity | G4: Unit | H4: RC | I4: prop total | J4: Rank | K4: prop cat | L4: RC / unit | M4: (Rep life) | O4: Rep life | Q4: % Rep life | R4: =W4 -> 0.9 | S4: =X4 -> 0.8 | T4: =Y4 -> 0.4 | U4: =Z4 -> 0.2 | W4: 0.9 | X4: 0.8 | Y4: 0.4 | Z4: 0.2 | AA4: 0 | AB4: 0.9 | AC4: 0.8 | AD4: 0.4 | AE4: 0.2 | AF4: 0 | AG4: Std life | AH4: Std life | AI4: rep life
G5: Cost | H5: $ millions | I5: % | J5: total | K5: % | L5: $ ('000) | AG5: max | AH5: min
A6: 1 | D6: =VLOOKUP(A6,IDtable,2) -> POLES | F6: =SUMIF($A$21:$A$205,$A6,F$21:F$205) -> 959977.0106 | H6: =SUMIF($A$21:$A$205,$A6,H$21:H$205)/1000 -> 4916.931189 | I6: =H6/($H$18) -> 0.1477203493 | J6: =RANK(I6,I$6:I$17) -> 2 | L6: =H6*1000/(F6+0.001) -> 5.121925973 | M6: =SUMIF($A$21:$A$205,$A6,N$21:N$205)/(H6*1000+0.000001) -> 30.75854407 | O6: =SUMIF($A$21:$A$205,$A6,P$21:P$205)/(H6*1000+0.000001) -> 54.91137766 | Q6: =(O6-M6)/(O6+0.000001) -> 0.4398511599 | R6: =$O6-R$4*$O6 -> 5.491137766 | S6: =$O6-S$4*$O6 -> 10.98227553 | T6: =$O6-T$4*$O6 -> 32.9468266 | U6: =$O6-U$4*$O6 -> 43.92910213 | V6: =$O6-V$4*$O6 -> 54.91137766 | W6: =SUMIF($A$21:$A$205,$A6,W$21:W$205)/1000 -> 198.6652406 | X6: 192.0598766 | Y6: 2237.760209 | Z6: 1269.889733 | AA6: 1018.556131 | AB6: =IF($H6=0,0,W6/$H6) -> 0.04040431582 | AC6: =IF($H6=0,0,X6/$H6) -> 0.03906092422 | AD6: =IF($H6=0,0,Y6/$H6) -> 0.4551131839 | AE6: =IF($H6=0,0,Z6/$H6) -> 0.2582687624 | AF6: =IF($H6=0,0,AA6/$H6) -> 0.2071528137 | AG6: =MAX(IF($A$21:$A$205=$A6,$O$21:$O$205)) -> 66.14904108 | AH6: =MIN(IF($A$21:$A$205=$A6,$O$21:$O$205)) -> 21.36668972 | AI6: =IF(H6=0,0,SUMIF($A$21:$A$205,$A6,$AJ$21:$AJ$205)/(H6*1000)) -> 54.91137766
A7: 2 | D7: OVERHEAD CONDUCTORS | F7: =SUMIF($A$21:$A$205,$A7,F$21:F$205) -> 154712.942 | H7: =SUMIF($A$21:$A$205,$A7,H$21:H$205)/1000 -> 22388.39712 | I7: =H7/($H$18) -> 0.6726191024 | J7: 1 | L7: 144.7092705 | M7: 38.97582906 | O7: 75.22675314 | Q7: 0.4818887176 | R7: =$O7-R$4*$O7 -> 7.522675314 | S7: 15.04535063 | T7: 45.13605188 | U7: 60.18140251 | V7: 75.22675314 | W7: 130.7140158 | X7: 2047.229265 | Y7: 11872.3787 | Z7: 5567.077316 | AA7: 2770.997822 | AB7: =IF($H7=0,0,W7/$H7) -> 0.005838471381 | AC7: =IF($H7=0,0,X7/$H7) -> 0.09144152904 | AD7: =IF($H7=0,0,Y7/$H7) -> 0.5302915897 | AE7: =IF($H7=0,0,Z7/$H7) -> 0.2486590392 | AF7: =IF($H7=0,0,AA7/$H7) -> 0.1237693707 | AG7: =MAX(IF($A$21:$A$205=$A7,$O$21:$O$205)) -> 79.46105827 | AH7: =MIN(IF($A$21:$A$205=$A7,$O$21:$O$205)) -> 61.36183761 | AI7: =IF(H7=0,0,SUMIF($A$21:$A$205,$A7,$AJ$21:$AJ$205)/(H7*1000)) -> 75.22675314
A8: 3 | D8: UNDERGROUND CABLES | F8: 8503.553004 | H8: 974.0864346 | I8: 0.02926467401 | J8: 5 | L8: 114.5505084 | M8: 32.84216606 | O8: 42.20819967 | Q8: 0.2219008027 | R8: 4.220819967 | S8: 8.441639934 | T8: 25.3249198 | U8: 33.76655973 | V8: 42.20819967 | W8: 4.15319365 | X8: 5.444290659 | Y8: 101.4750993 | Z8: 371.2285359 | AA8: 491.785315 | AB8: 0.004263680821 | AC8: 0.00558912481 | AD8: 0.1041746356 | AE8: 0.3811043073 | AF8: 0.5048682515 | AG8: =MAX(IF($A$21:$A$205=$A8,$O$21:$O$205)) -> 58.18632642 | AH8: =MIN(IF($A$21:$A$205=$A8,$O$21:$O$205)) -> 28.1313608 | AI8: 42.20819967
A9: 4 | D9: SERVICE LINES | F9: 403053 | H9: 532.7774453 | I9: 0.01600633958 | J9: 6 | L9: 1.321854555 | M9: 28.108475 | O9: 57.95811526 | Q9: 0.5150208838 | R9: 5.795811526 | S9: 11.59162305 | T9: 34.77486915 | U9: 46.3664922 | V9: 57.95811526 | W9: 46.64716323 | X9: 36.53144292 | Y9: 255.8744496 | Z9: 110.8846264 | AA9: 82.83976314 | AB9: 0.08755468844 | AC9: 0.06856792314 | AD9: 0.4802651685 | AE9: 0.2081256018 | AF9: 0.155486618 | AG9: =MAX(IF($A$21:$A$205=$A9,$O$21:$O$205)) -> 58.91389824 | AH9: =MIN(IF($A$21:$A$205=$A9,$O$21:$O$205)) -> 57.79204421 | AI9: 57.95811526
A10: 5 | D10: TRANSFORMERS | F10: 98822 | H10: 3057.35559 | I10: 0.09185274683 | J10: 3 | L10: 30.93800529 | M10: 32.92197299 | O10: 51.65507141 | Q10: 0.3626574805 | R10: 5.165507141 | S10: 10.33101428 | T10: 30.99304284 | U10: 41.32405713 | V10: 51.65507141 | W10: 178.3395213 | X10: 89.27822987 | Y10: 855.7645259 | Z10: 702.4913924 | AA10: 1231.48192 | AB10: 0.05833129842 | AC10: 0.02920112733 | AD10: 0.2799034986 | AE10: 0.2297709153 | AF10: 0.4027931604 | AG10: =MAX(IF($A$21:$A$205=$A10,$O$21:$O$205)) -> 68.72168771 | AH10: =MIN(IF($A$21:$A$205=$A10,$O$21:$O$205)) -> 26.46552833 | AI10: 51.65507141
A11: 6 | D11: SWITCHGEAR | F11: 157513 | H11: 1415.854078 | I11: 0.04253678788 | J11: 4 | L11: 8.988807711 | M11: 37.11632021 | O11: 53.28869418 | Q11: 0.3034860192 | R11: 5.328869418 | S11: 10.65773884 | T11: 31.97321651 | U11: 42.63095534 | V11: 53.28869418 | W11: 63.05715858 | X11: 53.18274031 | Y11: 308.1760523 | Z11: 226.5958004 | AA11: 764.8423265 | AB11: 0.04453648124 | AC11: 0.0375623033 | AD11: 0.2176608854 | AE11: 0.1600417754 | AF11: 0.5401985546 | AG11: =MAX(IF($A$21:$A$205=$A11,$O$21:$O$205)) -> 60.48358669 | AH11: =MIN(IF($A$21:$A$205=$A11,$O$21:$O$205)) -> 41.30033048 | AI11: 53.28869418
A12: 7 | D12: PUBLIC LIGHTING | F12: 0 | H12: 0 | I12: 0 | J12: 7 | L12: 0 | M12: 0 | O12: 0 | Q12: 0 | R12: 0 | S12: 0 | T12: 0 | U12: 0 | V12: 0 | W12: 0 | X12: 0 | Y12: 0 | Z12: 0 | AA12: 0 | AB12: 0 | AC12: 0 | AD12: 0 | AE12: 0 | AF12: 0 | AG12: =MAX(IF($A$21:$A$205=$A12,$O$21:$O$205)) -> 0 | AH12: =MIN(IF($A$21:$A$205=$A12,$O$21:$O$205)) -> 0 | AI12: 0
A13: 8 | D13: SCADA, NETWORK CONTROL AND PROTECTION | F13: 0 | H13: 0 | I13: 0 | J13: 7 | L13: 0 | M13: 0 | O13: 0 | Q13: 0 | R13: 0 | S13: 0 | T13: 0 | U13: 0 | V13: 0 | W13: 0 | X13: 0 | Y13: 0 | Z13: 0 | AA13: 0 | AB13: 0 | AC13: 0 | AD13: 0 | AE13: 0 | AF13: 0 | AG13: =MAX(IF($A$21:$A$205=$A13,$O$21:$O$205)) -> 0 | AH13: =MIN(IF($A$21:$A$205=$A13,$O$21:$O$205)) -> 0 | AI13: 0
A14: 9 | D14: =VLOOKUP(A14,IDtable,2) -> OTHER | F14: =SUMIF($A$21:$A$205,$A14,F$21:F$205) -> 0 | H14: =SUMIF($A$21:$A$205,$A14,H$21:H$205)/1000 -> 0 | I14: =H14/($H$18) -> 0 | J14: 7 | L14: 0 | M14: 0 | O14: 0 | Q14: 0 | R14: =$O14-R$4*$O14 -> 0 | S14: 0 | T14: 0 | U14: 0 | V14: 0 | W14: 0 | X14: 0 | Y14: 0 | Z14: 0 | AA14: 0 | AB14: 0 | AC14: 0 | AD14: 0 | AE14: 0 | AF14: 0 | AG14: =MAX(IF($A$21:$A$205=$A14,$O$21:$O$205)) -> 0 | AH14: =MIN(IF($A$21:$A$205=$A14,$O$21:$O$205)) -> 0 | AI14: 0
A15: 10 | D15: =VLOOKUP(A15,IDtable,2) -> unused | F15: =SUMIF($A$21:$A$205,$A15,F$21:F$205) -> 0 | H15: =SUMIF($A$21:$A$205,$A15,H$21:H$205)/1000 -> 0 | I15: =H15/($H$18) -> 0 | J15: 7 | L15: 0 | M15: 0 | O15: 0 | Q15: 0 | R15: 0 | S15: 0 | T15: 0 | U15: 0 | V15: 0 | W15: 0 | X15: 0 | Y15: 0 | Z15: 0 | AA15: 0 | AB15: 0 | AC15: 0 | AD15: 0 | AE15: 0 | AF15: 0 | AG15: =MAX(IF($A$21:$A$205=$A15,$O$21:$O$205)) -> 0 | AH15: =MIN(IF($A$21:$A$205=$A15,$O$21:$O$205)) -> 0 | AI15: 0
A16: 11 | D16: =VLOOKUP(A16,IDtable,2) -> unused | F16: =SUMIF($A$21:$A$205,$A16,F$21:F$205) -> 0 | H16: =SUMIF($A$21:$A$205,$A16,H$21:H$205)/1000 -> 0 | I16: =H16/($H$18) -> 0 | J16: 7 | L16: 0 | M16: 0 | O16: 0 | Q16: 0 | R16: 0 | S16: 0 | T16: 0 | U16: 0 | V16: 0 | W16: 0 | X16: 0 | Y16: 0 | Z16: 0 | AA16: 0 | AB16: 0 | AC16: 0 | AD16: 0 | AE16: 0 | AF16: 0 | AG16: =MAX(IF($A$21:$A$205=$A16,$O$21:$O$205)) -> 0 | AH16: =MIN(IF($A$21:$A$205=$A16,$O$21:$O$205)) -> 0 | AI16: 0
A17: 12 | D17: =VLOOKUP(A17,IDtable,2) -> unused | F17: =SUMIF($A$21:$A$205,$A17,F$21:F$205) -> 0 | H17: =SUMIF($A$21:$A$205,$A17,H$21:H$205)/1000 -> 0 | I17: =H17/($H$18) -> 0 | J17: =RANK(I17,I$6:I$17) -> 7 | L17: =H17*1000/(F17+0.001) -> 0 | M17: =SUMIF($A$21:$A$205,$A17,N$21:N$205)/(H17*1000+0.000001) -> 0 | O17: =SUMIF($A$21:$A$205,$A17,P$21:P$205)/(H17*1000+0.000001) -> 0 | Q17: =(O17-M17)/(O17+0.000001) -> 0 | R17: 0 | S17: 0 | T17: 0 | U17: 0 | V17: 0 | W17: 0 | X17: 0 | Y17: 0 | Z17: 0 | AA17: 0 | AB17: 0 | AC17: 0 | AD17: 0 | AE17: 0 | AF17: 0 | AG17: =MAX(IF($A$21:$A$205=$A17,$O$21:$O$205)) -> 0 | AH17: =MIN(IF($A$21:$A$205=$A17,$O$21:$O$205)) -> 0 | AI17: 0
D18: Total | H18: =SUM(H6:H17) -> 33285.40185 | M18: =SUMPRODUCT(M6:M17,$H6:$H17)/$H18 -> 36.7733618 | O18: =SUMPRODUCT(O6:O17,$H6:$H17)/$H18 -> 67.88477562 | Q18: =SUMPRODUCT(Q6:Q17,$H6:$H17)/$H18 -> 0.4500603836 | W18: =SUM(W6:W17) -> 621.5762932 | X18: =SUM(X6:X17) -> 2423.725845 | Y18: =SUM(Y6:Y17) -> 15631.42903 | Z18: =SUM(Z6:Z17) -> 8248.167404 | AA18: =SUM(AA6:AA17) -> 6360.503278 | AB18: =W18/$H18 -> 0.01867414117 | AC18: =X18/$H18 -> 0.07281648141 | AD18: =Y18/$H18 -> 0.4696181558 | AE18: =Z18/$H18 -> 0.2478013467 | AF18: =AA18/$H18 -> 0.1910898749
D20: EDB categories
A21: ='Asset data'!A21 -> 1 | B21: ='Asset data'!B21 -> 0 | C21: ='Asset data'!C21 -> 0 | D21: ='Asset data'!E21 -> Staking of a wooden pole | E21: =IF(A21>0,VLOOKUP(A21,IDtable,2),0) -> POLES | F21: =IF(A21>0,SUM('Asset data'!J21:CV21),0) -> 45890 | G21: =IF(A21>0,'Asset data'!F21,0) -> 5.231996692 | H21: =IF(A21>0,SUM('Asset data'!CX21:GJ21),0) -> 240096.3282 | I21: =H21/$H$18/1000 -> 0.007213262116 | J21: =IF(RANK(0,I$21:I$205)=RANK(I21,I$21:I$205),0,RANK(I21,I$21:I$205)) -> 24 | K21: =IF(A21>0,H21/(VLOOKUP(A21,$A$6:$H$17,8)*1000),0) -> 0.04883052436 | L21: =IF($A21>0,H21/F21,0) -> 5.231996692 | M21: =IF($A21>0,SUMPRODUCT('Age profile (years)'!$CT21:$GF21,'Asset data'!$CX21:$GJ21)/H21-0.5,0) -> 12.17781652 | N21: =IF($A21>0,M21*H21,0) -> 2923849.032 | O21: =IF($A21>0,'Asset data'!G21,0) -> 21.36668972 | P21: =IF($A21>0,H21*O21,0) -> 5130063.748 | Q21: =IF($A21>0,(O21-M21)/O21,0) -> 0.4300560042 | R21: =IF($A21>0,$O21-R$4*$O21,0) -> 2.136668972 | S21: 4.273337944 | T21: 12.82001383 | U21: 17.09335178 | W21: =IF($A21>0,SUMIF('Age profile (years)'!$CT21:$GF21,"<" & R21+0.5,'Asset data'!$CX21:$GJ21),0) -> 21451.18644 | X21: =IF($A21>0,SUMIF('Age profile (years)'!$CT21:$GF21,"<" & S21+0.5,'Asset data'!$CX21:$GJ21)-W21,0) -> 8371.194708 | Y21: =IF($A21>0,SUMIF('Age profile (years)'!$CT21:$GF21,"<" & T21+0.5,'Asset data'!$CX21:$GJ21)-X21-W21,0) -> 89964.18313 | Z21: =IF($A21>0,SUMIF('Age profile (years)'!$CT21:$GF21,"<" & U21+0.5,'Asset data'!$CX21:$GJ21)-Y21-X21-W21,0) -> 56144.55651 | AA21: =IF($A21>0,H21-Z21-Y21-X21-W21,0) -> 64165.20744 | AB21: =IF($A21>0,W21/$H21,0) -> 0.08934408368 | AC21: 0.03486598387 | AD21: 0.3747003705 | AE21: 0.2338417956 | AF21: 0.2672477664 | AI21: =IF($A21>0,'RRR hist-forc'!K21,0) -> 21.36668972 | AJ21: =IF($A21>0,AI21*H21,0) -> 5130063.748
A22: ='Asset data'!A22 -> 1 | B22: ='Asset data'!B22 -> 0 | C22: ='Asset data'!C22 -> 0 | D22: ='Asset data'!E22 -> ˂ = 1 kV; Wood | E22: POLES | F22: =IF(A22>0,SUM('Asset data'!J22:CV22),0) -> 217723.1605 | G22: =IF(A22>0,'Asset data'!F22,0) -> 2.500555929 | H22: =IF(A22>0,SUM('Asset data'!CX22:GJ22),0) -> 544428.9398 | I22: 0.01635638777 | J22: 14 | K22: =IF(A22>0,H22/(VLOOKUP(A22,$A$6:$H$17,8)*1000),0) -> 0.1107253526 | L22: =IF($A22>0,H22/F22,0) -> 2.500555929 | M22: =IF($A22>0,SUMPRODUCT('Age profile (years)'!$CT22:$GF22,'Asset data'!$CX22:$GJ22)/H22-0.5,0) -> 32.2560367 | N22: =IF($A22>0,M22*H22,0) -> 17561119.86 | O22: =IF($A22>0,'Asset data'!G22,0) -> 61.03244009 | P22: =IF($A22>0,H22*O22,0) -> 33227826.65 | Q22: =IF($A22>0,(O22-M22)/O22,0) -> 0.4714935754 | R22: 6.103244009 | S22: 12.20648802 | T22: 36.61946405 | U22: 48.82595207 | W22: =IF($A22>0,SUMIF('Age profile (years)'!$CT22:$GF22,"<" & R22+0.5,'Asset data'!$CX22:$GJ22),0) -> 39073.45203 | X22: =IF($A22>0,SUMIF('Age profile (years)'!$CT22:$GF22,"<" & S22+0.5,'Asset data'!$CX22:$GJ22)-W22,0) -> 28767.97188 | Y22: =IF($A22>0,SUMIF('Age profile (years)'!$CT22:$GF22,"<" & T22+0.5,'Asset data'!$CX22:$GJ22)-X22-W22,0) -> 238612.1087 | Z22: =IF($A22>0,SUMIF('Age profile (years)'!$CT22:$GF22,"<" & U22+0.5,'Asset data'!$CX22:$GJ22)-Y22-X22-W22,0) -> 147967.8965 | AA22: =IF($A22>0,H22-Z22-Y22-X22-W22,0) -> 90007.51066 | AB22: 0.07176960881 | AC22: 0.05284063681 | AD22: 0.4382796197 | AE22: 0.271785509 | AF22: 0.1653246256 | AI22: =IF($A22>0,'RRR hist-forc'!K22,0) -> 61.03244009 | AJ22: =IF($A22>0,AI22*H22,0) -> 33227826.65
A23: ='Asset data'!A23 -> 1 | B23: ='Asset data'!B23 -> 0 | C23: ='Asset data'!C23 -> 0 | D23: ='Asset data'!E23 -> > 1 kV & < = 11 kV; Wood | E23: =IF(A23>0,VLOOKUP(A23,IDtable,2),0) -> POLES | F23: =IF(A23>0,SUM('Asset data'!J23:CV23),0) -> 249707.7451 | G23: =IF(A23>0,'Asset data'!F23,0) -> 3.071247212 | H23: =IF(A23>0,SUM('Asset data'!CX23:GJ23),0) -> 766914.216 | I23: =H23/$H$18/1000 -> 0.02304055752 | J23: =IF(RANK(0,I$21:I$205)=RANK(I23,I$21:I$205),0,RANK(I23,I$21:I$205)) -> 9 | K23: =IF(A23>0,H23/(VLOOKUP(A23,$A$6:$H$17,8)*1000),0) -> 0.1559741608 | L23: =IF($A23>0,H23/F23,0) -> 3.071247212 | M23: =IF($A23>0,SUMPRODUCT('Age profile (years)'!$CT23:$GF23,'Asset data'!$CX23:$GJ23)/H23-0.5,0) -> 37.52177265 | N23: =IF($A23>0,M23*H23,0) -> 28775980.86 | O23: =IF($A23>0,'Asset data'!G23,0) -> 66.14904108 | P23: =IF($A23>0,H23*O23,0) -> 50730639.98 | Q23: =IF($A23>0,(O23-M23)/O23,0) -> 0.4327692127 | R23: 6.614904108 | S23: 13.22980822 | T23: 39.68942465 | U23: 52.91923287 | W23: =IF($A23>0,SUMIF('Age profile (years)'!$CT23:$GF23,"<" & R23+0.5,'Asset data'!$CX23:$GJ23),0) -> 38184.24346 | X23: =IF($A23>0,SUMIF('Age profile (years)'!$CT23:$GF23,"<" & S23+0.5,'Asset data'!$CX23:$GJ23)-W23,0) -> 38429.13772 | Y23: =IF($A23>0,SUMIF('Age profile (years)'!$CT23:$GF23,"<" & T23+0.5,'Asset data'!$CX23:$GJ23)-X23-W23,0) -> 316717.3951 | Z23: =IF($A23>0,SUMIF('Age profile (years)'!$CT23:$GF23,"<" & U23+0.5,'Asset data'!$CX23:$GJ23)-Y23-X23-W23,0) -> 201857.723 | AA23: =IF($A23>0,H23-Z23-Y23-X23-W23,0) -> 171725.7166 | AB23: =IF($A23>0,W23/$H23,0) -> 0.04978945841 | AC23: =IF($A23>0,X23/$H23,0) -> 0.0501087826 | AD23: =IF($A23>0,Y23/$H23,0) -> 0.4129762998 | AE23: =IF($A23>0,Z23/$H23,0) -> 0.263207695 | AF23: =IF($A23>0,AA23/$H23,0) -> 0.2239177643 | AI23: =IF($A23>0,'RRR hist-forc'!K23,0) -> 66.14904108 | AJ23: =IF($A23>0,AI23*H23,0) -> 50730639.98
A24: ='Asset data'!A24 -> 1 | B24: ='Asset data'!B24 -> 0 | C24: ='Asset data'!C24 -> 0 | D24: ='Asset data'!E24 -> ˃ 11 kV & < = 22 kV; Wood | E24: POLES | F24: =IF(A24>0,SUM('Asset data'!J24:CV24),0) -> 293351.501 | G24: =IF(A24>0,'Asset data'!F24,0) -> 3.071176952 | H24: =IF(A24>0,SUM('Asset data'!CX24:GJ24),0) -> 900934.3688 | I24: 0.02706695183 | J24: 8 | K24: 0.1832310305 | L24: 3.071176952 | M24: =IF($A24>0,SUMPRODUCT('Age profile (years)'!$CT24:$GF24,'Asset data'!$CX24:$GJ24)/H24-0.5,0) -> 28.34887837 | N24: 25540478.84 | O24: =IF($A24>0,'Asset data'!G24,0) -> 56.80853947 | P24: 51180765.64 | Q24: 0.5009750534 | R24: 5.680853947 | S24: 11.36170789 | T24: 34.08512368 | U24: 45.44683157 | W24: =IF($A24>0,SUMIF('Age profile (years)'!$CT24:$GF24,"<" & R24+0.5,'Asset data'!$CX24:$GJ24),0) -> 48124.74888 | X24: =IF($A24>0,SUMIF('Age profile (years)'!$CT24:$GF24,"<" & S24+0.5,'Asset data'!$CX24:$GJ24)-W24,0) -> 57573.59894 | Y24: =IF($A24>0,SUMIF('Age profile (years)'!$CT24:$GF24,"<" & T24+0.5,'Asset data'!$CX24:$GJ24)-X24-W24,0) -> 498019.8002 | Z24: =IF($A24>0,SUMIF('Age profile (years)'!$CT24:$GF24,"<" & U24+0.5,'Asset data'!$CX24:$GJ24)-Y24-X24-W24,0) -> 156743.6581 | AA24: 140472.5626 | AB24: 0.05341648687 | AC24: 0.06390432082 | AD24: 0.5527814428 | AE24: 0.1739789973 | AF24: 0.1559187522 | AI24: =IF($A24>0,'RRR hist-forc'!K24,0) -> 56.80853947 | AJ24: 51180765.64
A25: ='Asset data'!A25 -> 1 | B25: ='Asset data'!B25 -> 0 | C25: ='Asset data'!C25 -> 0 | D25: ='Asset data'!E25 -> > 22 kV & < = 66 kV; Wood | E25: POLES | F25: =IF(A25>0,SUM('Asset data'!J25:CV25),0) -> 50149.60402 | G25: =IF(A25>0,'Asset data'!F25,0) -> 8.310233366 | H25: =IF(A25>0,SUM('Asset data'!CX25:GJ25),0) -> 416754.9126 | I25: 0.01252065138 | J25: 17 | K25: 0.0847591509 | L25: 8.310233366 | M25: =IF($A25>0,SUMPRODUCT('Age profile (years)'!$CT25:$GF25,'Asset data'!$CX25:$GJ25)/H25-0.5,0) -> 30.35677747 | N25: 12651336.14 | O25: =IF($A25>0,'Asset data'!G25,0) -> 63.05710976 | P25: 26279360.27 | Q25: 0.518582796 | R25: 6.305710976 | S25: 12.61142195 | T25: 37.83426586 | U25: 50.44568781 | W25: =IF($A25>0,SUMIF('Age profile (years)'!$CT25:$GF25,"<" & R25+0.5,'Asset data'!$CX25:$GJ25),0) -> 24316.62106 | X25: =IF($A25>0,SUMIF('Age profile (years)'!$CT25:$GF25,"<" & S25+0.5,'Asset data'!$CX25:$GJ25)-W25,0) -> 37807.65516 | Y25: =IF($A25>0,SUMIF('Age profile (years)'!$CT25:$GF25,"<" & T25+0.5,'Asset data'!$CX25:$GJ25)-X25-W25,0) -> 206608.7597 | Z25: =IF($A25>0,SUMIF('Age profile (years)'!$CT25:$GF25,"<" & U25+0.5,'Asset data'!$CX25:$GJ25)-Y25-X25-W25,0) -> 86285.15304 | AA25: 61736.72368 | AB25: 0.0583475331 | AC25: 0.09071915894 | AD25: 0.4957560269 | AE25: 0.2070405181 | AF25: 0.1481367629 | AI25: =IF($A25>0,'RRR hist-forc'!K25,0) -> 63.05710976 | AJ25: 26279360.27
A26: ='Asset data'!A26 -> 1 | B26: ='Asset data'!B26 -> 0 | C26: ='Asset data'!C26 -> 0 | D26: ='Asset data'!E26 -> > 66 kV & < = 132 kV; Wood | E26: POLES | F26: =IF(A26>0,SUM('Asset data'!J26:CV26),0) -> 4615 | G26: =IF(A26>0,'Asset data'!F26,0) -> 10.32864054 | H26: =IF(A26>0,SUM('Asset data'!CX26:GJ26),0) -> 47666.6761 | I26: 0.001432059505 | J26: 38 | K26: 0.009694395603 | L26: 10.32864054 | M26: =IF($A26>0,SUMPRODUCT('Age profile (years)'!$CT26:$GF26,'Asset data'!$CX26:$GJ26)/H26-0.5,0) -> 16.41614301 | N26: 782502.9718 | O26: =IF($A26>0,'Asset data'!G26,0) -> 56.6 | P26: 2697933.867 | Q26: 0.7099621376 | R26: 5.66 | S26: 11.32 | T26: 33.96 | U26: 45.28 | W26: =IF($A26>0,SUMIF('Age profile (years)'!$CT26:$GF26,"<" & R26+0.5,'Asset data'!$CX26:$GJ26),0) -> 2737.089744 | X26: =IF($A26>0,SUMIF('Age profile (years)'!$CT26:$GF26,"<" & S26+0.5,'Asset data'!$CX26:$GJ26)-W26,0) -> 17816.90493 | Y26: =IF($A26>0,SUMIF('Age profile (years)'!$CT26:$GF26,"<" & T26+0.5,'Asset data'!$CX26:$GJ26)-X26-W26,0) -> 21287.32816 | Z26: =IF($A26>0,SUMIF('Age profile (years)'!$CT26:$GF26,"<" & U26+0.5,'Asset data'!$CX26:$GJ26)-Y26-X26-W26,0) -> 3790.611079 | AA26: 2034.742187 | AB26: 0.05742145179 | AC26: 0.3737811484 | AD26: 0.4465872156 | AE26: 0.07952329361 | AF26: 0.04268689057 | AI26: =IF($A26>0,'RRR hist-forc'!K26,0) -> 56.6 | AJ26: 2697933.867
A27: ='Asset data'!A27 -> 1 | B27: ='Asset data'!B27 -> 0 | C27: ='Asset data'!C27 -> 0 | D27: ='Asset data'!E27 -> ˂ = 1 kV; Concrete | E27: POLES | F27: =IF(A27>0,SUM('Asset data'!J27:CV27),0) -> 3165 | G27: =IF(A27>0,'Asset data'!F27,0) -> 10.21225459 | H27: =IF(A27>0,SUM('Asset data'!CX27:GJ27),0) -> 32321.78578 | I27: 0.000971049889 | J27: 44 | K27: 0.006573568865 | L27: 10.21225459 | M27: =IF($A27>0,SUMPRODUCT('Age profile (years)'!$CT27:$GF27,'Asset data'!$CX27:$GJ27)/H27-0.5,0) -> 37.91105845 | N27: 1225353.11 | O27: =IF($A27>0,'Asset data'!G27,0) -> 56.6 | P27: 1829413.075 | Q27: 0.3301933136 | R27: 5.66 | S27: 11.32 | T27: 33.96 | U27: 45.28 | W27: =IF($A27>0,SUMIF('Age profile (years)'!$CT27:$GF27,"<" & R27+0.5,'Asset data'!$CX27:$GJ27),0) -> 0 | X27: =IF($A27>0,SUMIF('Age profile (years)'!$CT27:$GF27,"<" & S27+0.5,'Asset data'!$CX27:$GJ27)-W27,0) -> 183.8205826 | Y27: =IF($A27>0,SUMIF('Age profile (years)'!$CT27:$GF27,"<" & T27+0.5,'Asset data'!$CX27:$GJ27)-X27-W27,0) -> 10222.46684 | Z27: =IF($A27>0,SUMIF('Age profile (years)'!$CT27:$GF27,"<" & U27+0.5,'Asset data'!$CX27:$GJ27)-Y27-X27-W27,0) -> 15083.50003 | AA27: 6831.998321 | AB27: 0 | AC27: 0.005687203791 | AD27: 0.316271722 | AE27: 0.4666666667 | AF27: 0.2113744076 | AI27: =IF($A27>0,'RRR hist-forc'!K27,0) -> 56.6 | AJ27: 1829413.075
A28: ='Asset data'!A28 -> 1 | B28: ='Asset data'!B28 -> 0 | C28: ='Asset data'!C28 -> 0 | D28: ='Asset data'!E28 -> > 1 kV & < = 11 kV; Concrete | E28: POLES | F28: =IF(A28>0,SUM('Asset data'!J28:CV28),0) -> 1298 | G28: =IF(A28>0,'Asset data'!F28,0) -> 12.23133165 | H28: =IF(A28>0,SUM('Asset data'!CX28:GJ28),0) -> 15876.26848 | I28: 0.0004769739165 | J28: 49 | K28: 0.003228897838 | L28: 12.23133165 | M28: =IF($A28>0,SUMPRODUCT('Age profile (years)'!$CT28:$GF28,'Asset data'!$CX28:$GJ28)/H28-0.5,0) -> 37.04930663 | N28: 588204.7391 | O28: =IF($A28>0,'Asset data'!G28,0) -> 56.6 | P28: 898596.7962 | Q28: 0.3454186109 | R28: 5.66 | S28: 11.32 | T28: 33.96 | U28: 45.28 | W28: =IF($A28>0,SUMIF('Age profile (years)'!$CT28:$GF28,"<" & R28+0.5,'Asset data'!$CX28:$GJ28),0) -> 0 | X28: =IF($A28>0,SUMIF('Age profile (years)'!$CT28:$GF28,"<" & S28+0.5,'Asset data'!$CX28:$GJ28)-W28,0) -> 73.38798991 | Y28: =IF($A28>0,SUMIF('Age profile (years)'!$CT28:$GF28,"<" & T28+0.5,'Asset data'!$CX28:$GJ28)-X28-W28,0) -> 5883.270525 | Z28: =IF($A28>0,SUMIF('Age profile (years)'!$CT28:$GF28,"<" & U28+0.5,'Asset data'!$CX28:$GJ28)-Y28-X28-W28,0) -> 7057.478363 | AA28: 2862.131607 | AB28: 0 | AC28: 0.004622496148 | AD28: 0.3705701079 | AE28: 0.4445300462 | AF28: 0.1802773498 | AI28: =IF($A28>0,'RRR hist-forc'!K28,0) -> 56.6 | AJ28: 898596.7962
A29: ='Asset data'!A29 -> 1 | B29: ='Asset data'!B29 -> 0 | C29: ='Asset data'!C29 -> 0 | D29: ='Asset data'!E29 -> ˃ 11 kV & < = 22 kV; Concrete | E29: POLES | F29: =IF(A29>0,SUM('Asset data'!J29:CV29),0) -> 8201 | G29: =IF(A29>0,'Asset data'!F29,0) -> 9.150274642 | H29: =IF(A29>0,SUM('Asset data'!CX29:GJ29),0) -> 75041.40234 | I29: 0.002254483893 | J29: 35 | K29: 0.015261837 | L29: 9.150274642 | M29: =IF($A29>0,SUMPRODUCT('Age profile (years)'!$CT29:$GF29,'Asset data'!$CX29:$GJ29)/H29-0.5,0) -> 32.5781612 | N29: 2444710.902 | O29: =IF($A29>0,'Asset data'!G29,0) -> 50.14231294 | P29: 3762749.479 | Q29: 0.3502860301 | R29: 5.014231294 | S29: 10.02846259 | T29: 30.08538776 | U29: 40.11385035 | W29: =IF($A29>0,SUMIF('Age profile (years)'!$CT29:$GF29,"<" & R29+0.5,'Asset data'!$CX29:$GJ29),0) -> 54.90164785 | X29: =IF($A29>0,SUMIF('Age profile (years)'!$CT29:$GF29,"<" & S29+0.5,'Asset data'!$CX29:$GJ29)-W29,0) -> 36.60109857 | Y29: =IF($A29>0,SUMIF('Age profile (years)'!$CT29:$GF29,"<" & T29+0.5,'Asset data'!$CX29:$GJ29)-X29-W29,0) -> 18465.25423 | Z29: =IF($A29>0,SUMIF('Age profile (years)'!$CT29:$GF29,"<" & U29+0.5,'Asset data'!$CX29:$GJ29)-Y29-X29-W29,0) -> 55807.52504 | AA29: 677.1203235 | AB29: 0.0007316180954 | AC29: 0.0004877453969 | AD29: 0.2460675527 | AE29: 0.7436897939 | AF29: 0.009023289843 | AI29: =IF($A29>0,'RRR hist-forc'!K29,0) -> 50.14231294 | AJ29: 3762749.479
A30: ='Asset data'!A30 -> 1 | B30: ='Asset data'!B30 -> 0 | C30: ='Asset data'!C30 -> 0 | D30: ='Asset data'!E30 -> > 22 kV & < = 66 kV; Concrete | E30: POLES | F30: =IF(A30>0,SUM('Asset data'!J30:CV30),0) -> 13371 | G30: =IF(A30>0,'Asset data'!F30,0) -> 83.69078669 | H30: =IF(A30>0,SUM('Asset data'!CX30:GJ30),0) -> 1119029.509 | I30: 0.03361922784 | J30: 7 | K30: 0.2275869777 | L30: 83.69078669 | M30: =IF($A30>0,SUMPRODUCT('Age profile (years)'!$CT30:$GF30,'Asset data'!$CX30:$GJ30)/H30-0.5,0) -> 23.91889163 | N30: 26765945.55 | O30: =IF($A30>0,'Asset data'!G30,0) -> 45.91412114 | P30: 51379256.43 | Q30: 0.4790515197 | R30: 4.591412114 | S30: 9.182824228 | T30: 27.54847269 | U30: 36.73129691 | W30: =IF($A30>0,SUMIF('Age profile (years)'!$CT30:$GF30,"<" & R30+0.5,'Asset data'!$CX30:$GJ30),0) -> 836.9078669 | X30: =IF($A30>0,SUMIF('Age profile (years)'!$CT30:$GF30,"<" & S30+0.5,'Asset data'!$CX30:$GJ30)-W30,0) -> 502.1447201 | Y30: =IF($A30>0,SUMIF('Age profile (years)'!$CT30:$GF30,"<" & T30+0.5,'Asset data'!$CX30:$GJ30)-X30-W30,0) -> 722753.6338 | Z30: =IF($A30>0,SUMIF('Age profile (years)'!$CT30:$GF30,"<" & U30+0.5,'Asset data'!$CX30:$GJ30)-Y30-X30-W30,0) -> 316518.5553 | AA30: 78418.26713 | AB30: 0.0007478872186 | AC30: 0.0004487323312 | AD30: 0.645875402 | AE30: 0.2828509461 | AF30: 0.07007703238 | AI30: =IF($A30>0,'RRR hist-forc'!K30,0) -> 45.91412114 | AJ30: 51379256.43
A31: ='Asset data'!A31 -> 1 | B31: ='Asset data'!B31 -> 0 | C31: ='Asset data'!C31 -> 0 | D31: ='Asset data'!E31 -> > 66 kV & < = 132 kV; Concrete | E31: POLES | F31: =IF(A31>0,SUM('Asset data'!J31:CV31),0) -> 4862 | G31: =IF(A31>0,'Asset data'!F31,0) -> 21.21201926 | H31: =IF(A31>0,SUM('Asset data'!CX31:GJ31),0) -> 103132.8376 | I31: 0.003098440514 | J31: 29 | K31: 0.02097504188 | L31: 21.21201926 | M31: =IF($A31>0,SUMPRODUCT('Age profile (years)'!$CT31:$GF31,'Asset data'!$CX31:$GJ31)/H31-0.5,0) -> 36.44529 | N31: 3758706.176 | O31: =IF($A31>0,'Asset data'!G31,0) -> 56.6 | P31: 5837318.61 | Q31: 0.3560902826 | R31: 5.66 | S31: 11.32 | T31: 33.96 | U31: 45.28 | W31: =IF($A31>0,SUMIF('Age profile (years)'!$CT31:$GF31,"<" & R31+0.5,'Asset data'!$CX31:$GJ31),0) -> 0 | X31: =IF($A31>0,SUMIF('Age profile (years)'!$CT31:$GF31,"<" & S31+0.5,'Asset data'!$CX31:$GJ31)-W31,0) -> 0 | Y31: =IF($A31>0,SUMIF('Age profile (years)'!$CT31:$GF31,"<" & T31+0.5,'Asset data'!$CX31:$GJ31)-X31-W31,0) -> 56933.05969 | Z31: =IF($A31>0,SUMIF('Age profile (years)'!$CT31:$GF31,"<" & U31+0.5,'Asset data'!$CX31:$GJ31)-Y31-X31-W31,0) -> 14996.89762 | AA31: 31202.88033 | AB31: 0 | AC31: 0 | AD31: 0.5520361991 | AE31: 0.1454134101 | AF31: 0.3025503908 | AI31: =IF($A31>0,'RRR hist-forc'!K31,0) -> 56.6 | AJ31: 5837318.61
A32: ='Asset data'!A32 -> 1 | B32: ='Asset data'!B32 -> 0 | C32: ='Asset data'!C32 -> 0 | D32: ='Asset data'!E32 -> ˂ = 1 kV; Steel | E32: POLES | F32: =IF(A32>0,SUM('Asset data'!J32:CV32),0) -> 63247 | G32: =IF(A32>0,'Asset data'!F32,0) -> 9.233864229 | H32: =IF(A32>0,SUM('Asset data'!CX32:GJ32),0) -> 584014.2109 | I32: 0.017545656 | J32: 13 | K32: 0.1187761611 | L32: 9.233864229 | M32: =IF($A32>0,SUMPRODUCT('Age profile (years)'!$CT32:$GF32,'Asset data'!$CX32:$GJ32)/H32-0.5,0) -> 45.44708049 | N32: 26541740.85 | O32: =IF($A32>0,'Asset data'!G32,0) -> 56.6 | P32: 33055204.34 | Q32: 0.1970480478 | R32: 5.66 | S32: 11.32 | T32: 33.96 | U32: 45.28 | W32: =IF($A32>0,SUMIF('Age profile (years)'!$CT32:$GF32,"<" & R32+0.5,'Asset data'!$CX32:$GJ32),0) -> 175.4434204 | X32: =IF($A32>0,SUMIF('Age profile (years)'!$CT32:$GF32,"<" & S32+0.5,'Asset data'!$CX32:$GJ32)-W32,0) -> 1163.466893 | Y32: =IF($A32>0,SUMIF('Age profile (years)'!$CT32:$GF32,"<" & T32+0.5,'Asset data'!$CX32:$GJ32)-X32-W32,0) -> 35153.32112 | Z32: =IF($A32>0,SUMIF('Age profile (years)'!$CT32:$GF32,"<" & U32+0.5,'Asset data'!$CX32:$GJ32)-Y32-X32-W32,0) -> 192784.6174 | AA32: 354737.3621 | AB32: 0.0003004095056 | AC32: 0.001992189353 | AD32: 0.0601925783 | AE32: 0.3301026136 | AF32: 0.6074122093 | AI32: =IF($A32>0,'RRR hist-forc'!K32,0) -> 56.6 | AJ32: 33055204.34
A33: ='Asset data'!A33 -> 1 | B33: ='Asset data'!B33 -> 0 | C33: ='Asset data'!C33 -> 0 | D33: ='Asset data'!E33 -> > 1 kV & < = 11 kV; Steel | E33: POLES | F33: =IF(A33>0,SUM('Asset data'!J33:CV33),0) -> 1361 | G33: =IF(A33>0,'Asset data'!F33,0) -> 9.221057903 | H33: =IF(A33>0,SUM('Asset data'!CX33:GJ33),0) -> 12549.85981 | I33: 0.0003770379538 | J33: 51 | K33: 0.002552376538 | L33: 9.221057903 | M33: =IF($A33>0,SUMPRODUCT('Age profile (years)'!$CT33:$GF33,'Asset data'!$CX33:$GJ33)/H33-0.5,0) -> 38.18772961 | N33: 479250.6529 | O33: =IF($A33>0,'Asset data'!G33,0) -> 56.6 | P33: 710322.065 | Q33: 0.3253051306 | R33: 5.66 | S33: 11.32 | T33: 33.96 | U33: 45.28 | W33: =IF($A33>0,SUMIF('Age profile (years)'!$CT33:$GF33,"<" & R33+0.5,'Asset data'!$CX33:$GJ33),0) -> 0 | X33: =IF($A33>0,SUMIF('Age profile (years)'!$CT33:$GF33,"<" & S33+0.5,'Asset data'!$CX33:$GJ33)-W33,0) -> 359.6212582 | Y33: =IF($A33>0,SUMIF('Age profile (years)'!$CT33:$GF33,"<" & T33+0.5,'Asset data'!$CX33:$GJ33)-X33-W33,0) -> 3245.812382 | Z33: =IF($A33>0,SUMIF('Age profile (years)'!$CT33:$GF33,"<" & U33+0.5,'Asset data'!$CX33:$GJ33)-Y33-X33-W33,0) -> 4407.665678 | AA33: 4536.760488 | AB33: 0 | AC33: 0.02865540044 | AD33: 0.2586333578 | AE33: 0.3512123439 | AF33: 0.3614988979 | AI33: =IF($A33>0,'RRR hist-forc'!K33,0) -> 56.6 | AJ33: 710322.065
A34: ='Asset data'!A34 -> 1 | B34: ='Asset data'!B34 -> 0 | C34: ='Asset data'!C34 -> 0 | D34: ='Asset data'!E34 -> ˃ 11 kV & < = 22 kV; Steel | E34: POLES | F34: =IF(A34>0,SUM('Asset data'!J34:CV34),0) -> 170 | G34: =IF(A34>0,'Asset data'!F34,0) -> 8.519680476 | H34: =IF(A34>0,SUM('Asset data'!CX34:GJ34),0) -> 1448.345681 | I34: 4.351293961e-05 | J34: 60 | K34: 0.0002945629347 | L34: 8.519680476 | M34: =IF($A34>0,SUMPRODUCT('Age profile (years)'!$CT34:$GF34,'Asset data'!$CX34:$GJ34)/H34-0.5,0) -> 29.87647059 | N34: 43271.45714 | O34: =IF($A34>0,'Asset data'!G34,0) -> 45.2765 | P34: 65576.02322 | Q34: 0.3401329478 | R34: 4.52765 | S34: 9.0553 | T34: 27.1659 | U34: 36.2212 | W34: =IF($A34>0,SUMIF('Age profile (years)'!$CT34:$GF34,"<" & R34+0.5,'Asset data'!$CX34:$GJ34),0) -> 85.19680476 | X34: =IF($A34>0,SUMIF('Age profile (years)'!$CT34:$GF34,"<" & S34+0.5,'Asset data'!$CX34:$GJ34)-W34,0) -> 68.15744381 | Y34: =IF($A34>0,SUMIF('Age profile (years)'!$CT34:$GF34,"<" & T34+0.5,'Asset data'!$CX34:$GJ34)-X34-W34,0) -> 306.7084971 | Z34: =IF($A34>0,SUMIF('Age profile (years)'!$CT34:$GF34,"<" & U34+0.5,'Asset data'!$CX34:$GJ34)-Y34-X34-W34,0) -> 315.2281776 | AA34: 673.0547576 | AB34: 0.05882352941 | AC34: 0.04705882353 | AD34: 0.2117647059 | AE34: 0.2176470588 | AF34: 0.4647058824 | AI34: =IF($A34>0,'RRR hist-forc'!K34,0) -> 45.2765 | AJ34: 65576.02322
A35: ='Asset data'!A35 -> 1 | B35: ='Asset data'!B35 -> 0 | C35: ='Asset data'!C35 -> 0 | D35: ='Asset data'!E35 -> > 22 kV & < = 66 kV; Steel | E35: POLES | F35: =IF(A35>0,SUM('Asset data'!J35:CV35),0) -> 2061 | G35: =IF(A35>0,'Asset data'!F35,0) -> 20.83372953 | H35: =IF(A35>0,SUM('Asset data'!CX35:GJ35),0) -> 42938.31657 | I35: 0.001290004452 | J35: 41 | K35: 0.008732747097 | L35: 20.83372953 | M35: =IF($A35>0,SUMPRODUCT('Age profile (years)'!$CT35:$GF35,'Asset data'!$CX35:$GJ35)/H35-0.5,0) -> 17.62130034 | N35: 756628.9724 | O35: =IF($A35>0,'Asset data'!G35,0) -> 56.6 | P35: 2430308.718 | Q35: 0.6886696053 | R35: 5.66 | S35: 11.32 | T35: 33.96 | U35: 45.28 | W35: =IF($A35>0,SUMIF('Age profile (years)'!$CT35:$GF35,"<" & R35+0.5,'Asset data'!$CX35:$GJ35),0) -> 23625.44929 | X35: =IF($A35>0,SUMIF('Age profile (years)'!$CT35:$GF35,"<" & S35+0.5,'Asset data'!$CX35:$GJ35)-W35,0) -> 83.33491814 | Y35: =IF($A35>0,SUMIF('Age profile (years)'!$CT35:$GF35,"<" & T35+0.5,'Asset data'!$CX35:$GJ35)-X35-W35,0) -> 4312.582014 | Z35: =IF($A35>0,SUMIF('Age profile (years)'!$CT35:$GF35,"<" & U35+0.5,'Asset data'!$CX35:$GJ35)-Y35-X35-W35,0) -> 6854.297017 | AA35: 8062.65333 | AB35: 0.5502183406 | AC35: 0.001940805434 | AD35: 0.1004366812 | AE35: 0.159631247 | AF35: 0.1877729258 | AI35: =IF($A35>0,'RRR hist-forc'!K35,0) -> 56.6 | AJ35: 2430308.718
A36: ='Asset data'!A36 -> 1 | B36: ='Asset data'!B36 -> 0 | C36: ='Asset data'!C36 -> 0 | D36: ='Asset data'!E36 -> > 66 kV & < = 132 kV; Steel | E36: POLES | F36: =IF(A36>0,SUM('Asset data'!J36:CV36),0) -> 804 | G36: =IF(A36>0,'Asset data'!F36,0) -> 17.14329826 | H36: =IF(A36>0,SUM('Asset data'!CX36:GJ36),0) -> 13783.2118 | I36: 0.0004140917951 | J36: 50 | K36: 0.002803214296 | L36: 17.14329826 | M36: =IF($A36>0,SUMPRODUCT('Age profile (years)'!$CT36:$GF36,'Asset data'!$CX36:$GJ36)/H36-0.5,0) -> 28.91666667 | N36: 398564.5413 | O36: =IF($A36>0,'Asset data'!G36,0) -> 56.6 | P36: 780129.788 | Q36: 0.4891048292 | R36: 5.66 | S36: 11.32 | T36: 33.96 | U36: 45.28 | W36: =IF($A36>0,SUMIF('Age profile (years)'!$CT36:$GF36,"<" & R36+0.5,'Asset data'!$CX36:$GJ36),0) -> 0 | X36: =IF($A36>0,SUMIF('Age profile (years)'!$CT36:$GF36,"<" & S36+0.5,'Asset data'!$CX36:$GJ36)-W36,0) -> 822.8783166 | Y36: =IF($A36>0,SUMIF('Age profile (years)'!$CT36:$GF36,"<" & T36+0.5,'Asset data'!$CX36:$GJ36)-X36-W36,0) -> 9274.52436 | Z36: =IF($A36>0,SUMIF('Age profile (years)'!$CT36:$GF36,"<" & U36+0.5,'Asset data'!$CX36:$GJ36)-Y36-X36-W36,0) -> 3274.369968 | AA36: 411.4391583 | AB36: 0 | AC36: 0.05970149254 | AD36: 0.6728855721 | AE36: 0.2375621891 | AF36: 0.02985074627 | AI36: =IF($A36>0,'RRR hist-forc'!K36,0) -> 56.6 | AJ36: 780129.788
A37: ='Asset data'!A37 -> 0 | B37: ='Asset data'!B37 -> 0 | C37: ='Asset data'!C37 -> 0 | D37: ='Asset data'!E37 -> ˂ = 1 kV | E37: 0 | F37: =IF(A37>0,SUM('Asset data'!J37:CV37),0) -> 0 | G37: =IF(A37>0,'Asset data'!F37,0) -> 0 | H37: =IF(A37>0,SUM('Asset data'!CX37:GJ37),0) -> 0 | I37: 0 | J37: 0 | K37: 0 | L37: 0 | M37: =IF($A37>0,SUMPRODUCT('Age profile (years)'!$CT37:$GF37,'Asset data'!$CX37:$GJ37)/H37-0.5,0) -> 0 | N37: 0 | O37: =IF($A37>0,'Asset data'!G37,0) -> 0 | P37: 0 | Q37: 0 | R37: =IF($A37>0,$O37-R$4*$O37,0) -> 0 | S37: 0 | T37: 0 | U37: 0 | W37: =IF($A37>0,SUMIF('Age profile (years)'!$CT37:$GF37,"<" & R37+0.5,'Asset data'!$CX37:$GJ37),0) -> 0 | X37: =IF($A37>0,SUMIF('Age profile (years)'!$CT37:$GF37,"<" & S37+0.5,'Asset data'!$CX37:$GJ37)-W37,0) -> 0 | Y37: =IF($A37>0,SUMIF('Age profile (years)'!$CT37:$GF37,"<" & T37+0.5,'Asset data'!$CX37:$GJ37)-X37-W37,0) -> 0 | Z37: =IF($A37>0,SUMIF('Age profile (years)'!$CT37:$GF37,"<" & U37+0.5,'Asset data'!$CX37:$GJ37)-Y37-X37-W37,0) -> 0 | AA37: 0 | AB37: 0 | AC37: 0 | AD37: 0 | AE37: 0 | AF37: 0 | AI37: =IF($A37>0,'RRR hist-forc'!K37,0) -> 0 | AJ37: 0
A38: ='Asset data'!A38 -> 0 | B38: ='Asset data'!B38 -> 0 | C38: ='Asset data'!C38 -> 0 | D38: ='Asset data'!E38 -> > 1 kV & < = 11 kV | E38: 0 | F38: =IF(A38>0,SUM('Asset data'!J38:CV38),0) -> 0 | G38: =IF(A38>0,'Asset data'!F38,0) -> 0 | H38: =IF(A38>0,SUM('Asset data'!CX38:GJ38),0) -> 0 | I38: 0 | J38: 0 | K38: 0 | L38: 0 | M38: =IF($A38>0,SUMPRODUCT('Age profile (years)'!$CT38:$GF38,'Asset data'!$CX38:$GJ38)/H38-0.5,0) -> 0 | N38: 0 | O38: =IF($A38>0,'Asset data'!G38,0) -> 0 | P38: 0 | Q38: 0 | R38: 0 | S38: 0 | T38: 0 | U38: 0 | W38: =IF($A38>0,SUMIF('Age profile (years)'!$CT38:$GF38,"<" & R38+0.5,'Asset data'!$CX38:$GJ38),0) -> 0 | X38: =IF($A38>0,SUMIF('Age profile (years)'!$CT38:$GF38,"<" & S38+0.5,'Asset data'!$CX38:$GJ38)-W38,0) -> 0 | Y38: =IF($A38>0,SUMIF('Age profile (years)'!$CT38:$GF38,"<" & T38+0.5,'Asset data'!$CX38:$GJ38)-X38-W38,0) -> 0 | Z38: =IF($A38>0,SUMIF('Age profile (years)'!$CT38:$GF38,"<" & U38+0.5,'Asset data'!$CX38:$GJ38)-Y38-X38-W38,0) -> 0 | AA38: 0 | AB38: 0 | AC38: 0 | AD38: 0 | AE38: 0 | AF38: 0 | AI38: =IF($A38>0,'RRR hist-forc'!K38,0) -> 0 | AJ38: 0
A39: ='Asset data'!A39 -> 0 | B39: ='Asset data'!B39 -> 0 | C39: ='Asset data'!C39 -> 0 | D39: ='Asset data'!E39 -> ˃ 11 kV & < = 22 kV | E39: 0 | F39: =IF(A39>0,SUM('Asset data'!J39:CV39),0) -> 0 | G39: =IF(A39>0,'Asset data'!F39,0) -> 0 | H39: =IF(A39>0,SUM('Asset data'!CX39:GJ39),0) -> 0 | I39: 0 | J39: 0 | K39: 0 | L39: 0 | M39: =IF($A39>0,SUMPRODUCT('Age profile (years)'!$CT39:$GF39,'Asset data'!$CX39:$GJ39)/H39-0.5,0) -> 0 | N39: 0 | O39: =IF($A39>0,'Asset data'!G39,0) -> 0 | P39: 0 | Q39: 0 | R39: 0 | S39: 0 | T39: 0 | U39: 0 | W39: =IF($A39>0,SUMIF('Age profile (years)'!$CT39:$GF39,"<" & R39+0.5,'Asset data'!$CX39:$GJ39),0) -> 0 | X39: =IF($A39>0,SUMIF('Age profile (years)'!$CT39:$GF39,"<" & S39+0.5,'Asset data'!$CX39:$GJ39)-W39,0) -> 0 | Y39: =IF($A39>0,SUMIF('Age profile (years)'!$CT39:$GF39,"<" & T39+0.5,'Asset data'!$CX39:$GJ39)-X39-W39,0) -> 0 | Z39: =IF($A39>0,SUMIF('Age profile (years)'!$CT39:$GF39,"<" & U39+0.5,'Asset data'!$CX39:$GJ39)-Y39-X39-W39,0) -> 0 | AA39: 0 | AB39: 0 | AC39: 0 | AD39: 0 | AE39: 0 | AF39: 0 | AI39: =IF($A39>0,'RRR hist-forc'!K39,0) -> 0 | AJ39: 0
A40: ='Asset data'!A40 -> 0 | B40: ='Asset data'!B40 -> 0 | C40: ='Asset data'!C40 -> 0 | D40: ='Asset data'!E40 -> > 22 kV & < = 66 kV | E40: 0 | F40: =IF(A40>0,SUM('Asset data'!J40:CV40),0) -> 0 | G40: =IF(A40>0,'Asset data'!F40,0) -> 0 | H40: =IF(A40>0,SUM('Asset data'!CX40:GJ40),0) -> 0 | I40: 0 | J40: 0 | K40: 0 | L40: 0 | M40: =IF($A40>0,SUMPRODUCT('Age profile (years)'!$CT40:$GF40,'Asset data'!$CX40:$GJ40)/H40-0.5,0) -> 0 | N40: 0 | O40: =IF($A40>0,'Asset data'!G40,0) -> 0 | P40: 0 | Q40: 0 | R40: 0 | S40: 0 | T40: 0 | U40: 0 | W40: =IF($A40>0,SUMIF('Age profile (years)'!$CT40:$GF40,"<" & R40+0.5,'Asset data'!$CX40:$GJ40),0) -> 0 | X40: =IF($A40>0,SUMIF('Age profile (years)'!$CT40:$GF40,"<" & S40+0.5,'Asset data'!$CX40:$GJ40)-W40,0) -> 0 | Y40: =IF($A40>0,SUMIF('Age profile (years)'!$CT40:$GF40,"<" & T40+0.5,'Asset data'!$CX40:$GJ40)-X40-W40,0) -> 0 | Z40: =IF($A40>0,SUMIF('Age profile (years)'!$CT40:$GF40,"<" & U40+0.5,'Asset data'!$CX40:$GJ40)-Y40-X40-W40,0) -> 0 | AA40: 0 | AB40: 0 | AC40: 0 | AD40: 0 | AE40: 0 | AF40: 0 | AI40: =IF($A40>0,'RRR hist-forc'!K40,0) -> 0 | AJ40: 0
A41: ='Asset data'!A41 -> 0 | B41: ='Asset data'!B41 -> 0 | C41: ='Asset data'!C41 -> 0 | D41: ='Asset data'!E41 -> > 66 kV & < = 132 kV | E41: 0 | F41: =IF(A41>0,SUM('Asset data'!J41:CV41),0) -> 0 | G41: =IF(A41>0,'Asset data'!F41,0) -> 0 | H41: =IF(A41>0,SUM('Asset data'!CX41:GJ41),0) -> 0 | I41: 0 | J41: 0 | K41: 0 | L41: 0 | M41: =IF($A41>0,SUMPRODUCT('Age profile (years)'!$CT41:$GF41,'Asset data'!$CX41:$GJ41)/H41-0.5,0) -> 0 | N41: 0 | O41: =IF($A41>0,'Asset data'!G41,0) -> 0 | P41: 0 | Q41: 0 | R41: 0 | S41: 0 | T41: 0 | U41: 0 | W41: =IF($A41>0,SUMIF('Age profile (years)'!$CT41:$GF41,"<" & R41+0.5,'Asset data'!$CX41:$GJ41),0) -> 0 | X41: =IF($A41>0,SUMIF('Age profile (years)'!$CT41:$GF41,"<" & S41+0.5,'Asset data'!$CX41:$GJ41)-W41,0) -> 0 | Y41: =IF($A41>0,SUMIF('Age profile (years)'!$CT41:$GF41,"<" & T41+0.5,'Asset data'!$CX41:$GJ41)-X41-W41,0) -> 0 | Z41: =IF($A41>0,SUMIF('Age profile (years)'!$CT41:$GF41,"<" & U41+0.5,'Asset data'!$CX41:$GJ41)-Y41-X41-W41,0) -> 0 | AA41: 0 | AB41: 0 | AC41: 0 | AD41: 0 | AE41: 0 | AF41: 0 | AI41: =IF($A41>0,'RRR hist-forc'!K41,0) -> 0 | AJ41: 0
A42: ='Asset data'!A42 -> 2 | B42: ='Asset data'!B42 -> 0 | C42: ='Asset data'!C42 -> 0 | D42: ='Asset data'!E42 -> ˂ = 1 kV | E42: OVERHEAD CONDUCTORS | F42: =IF(A42>0,SUM('Asset data'!J42:CV42),0) -> 22090.25555 | G42: =IF(A42>0,'Asset data'!F42,0) -> 83.0112849 | H42: =IF(A42>0,SUM('Asset data'!CX42:GJ42),0) -> 1833740.497 | I42: 0.05509143333 | J42: 5 | K42: 0.08190584112 | L42: 83.0112849 | M42: =IF($A42>0,SUMPRODUCT('Age profile (years)'!$CT42:$GF42,'Asset data'!$CX42:$GJ42)/H42-0.5,0) -> 41.44186031 | N42: 75993617.54 | O42: =IF($A42>0,'Asset data'!G42,0) -> 76.62577745 | P42: 140511791.2 | Q42: 0.4591655485 | R42: 7.662577745 | S42: 15.32515549 | T42: 45.97546647 | U42: 61.30062196 | W42: =IF($A42>0,SUMIF('Age profile (years)'!$CT42:$GF42,"<" & R42+0.5,'Asset data'!$CX42:$GJ42),0) -> 0 | X42: =IF($A42>0,SUMIF('Age profile (years)'!$CT42:$GF42,"<" & S42+0.5,'Asset data'!$CX42:$GJ42)-W42,0) -> 113601.6077 | Y42: =IF($A42>0,SUMIF('Age profile (years)'!$CT42:$GF42,"<" & T42+0.5,'Asset data'!$CX42:$GJ42)-X42-W42,0) -> 1015026.918 | Z42: =IF($A42>0,SUMIF('Age profile (years)'!$CT42:$GF42,"<" & U42+0.5,'Asset data'!$CX42:$GJ42)-Y42-X42-W42,0) -> 396597.5426 | AA42: 308514.4289 | AB42: 0 | AC42: 0.06195075471 | AD42: 0.5535281134 | AE42: 0.2162778993 | AF42: 0.1682432325 | AI42: =IF($A42>0,'RRR hist-forc'!K42,0) -> 76.62577745 | AJ42: 140511791.2
A43: ='Asset data'!A43 -> 2 | B43: ='Asset data'!B43 -> 0 | C43: ='Asset data'!C43 -> 0 | D43: ='Asset data'!E43 -> > 1 kV & < = 11 kV | E43: OVERHEAD CONDUCTORS | F43: =IF(A43>0,SUM('Asset data'!J43:CV43),0) -> 36236.95136 | G43: =IF(A43>0,'Asset data'!F43,0) -> 127.6894551 | H43: =IF(A43>0,SUM('Asset data'!CX43:GJ43),0) -> 4627076.574 | I43: 0.139012189 | J43: 2 | K43: 0.2066729722 | L43: 127.6894551 | M43: =IF($A43>0,SUMPRODUCT('Age profile (years)'!$CT43:$GF43,'Asset data'!$CX43:$GJ43)/H43-0.5,0) -> 34.18704177 | N43: 158186060.1 | O43: =IF($A43>0,'Asset data'!G43,0) -> 71.71194847 | P43: 331816676.9 | Q43: 0.5232727252 | R43: 7.171194847 | S43: 14.34238969 | T43: 43.02716908 | U43: 57.36955878 | W43: =IF($A43>0,SUMIF('Age profile (years)'!$CT43:$GF43,"<" & R43+0.5,'Asset data'!$CX43:$GJ43),0) -> 2901.202225 | X43: =IF($A43>0,SUMIF('Age profile (years)'!$CT43:$GF43,"<" & S43+0.5,'Asset data'!$CX43:$GJ43)-W43,0) -> 844483.7077 | Y43: =IF($A43>0,SUMIF('Age profile (years)'!$CT43:$GF43,"<" & T43+0.5,'Asset data'!$CX43:$GJ43)-X43-W43,0) -> 2352527.385 | Z43: =IF($A43>0,SUMIF('Age profile (years)'!$CT43:$GF43,"<" & U43+0.5,'Asset data'!$CX43:$GJ43)-Y43-X43-W43,0) -> 749662.15 | AA43: 677502.1288 | AB43: 0.000627005449 | AC43: 0.1825091273 | AD43: 0.508426292 | AE43: 0.16201637 | AF43: 0.1464212053 | AI43: =IF($A43>0,'RRR hist-forc'!K43,0) -> 71.71194847 | AJ43: 331816676.9
A44: ='Asset data'!A44 -> 2 | B44: ='Asset data'!B44 -> 0 | C44: ='Asset data'!C44 -> 0 | D44: ='Asset data'!E44 -> ˃ 11 kV & < = 22 kV ; SWER | E44: OVERHEAD CONDUCTORS | F44: =IF(A44>0,SUM('Asset data'!J44:CV44),0) -> 65741.78947 | G44: =IF(A44>0,'Asset data'!F44,0) -> 63.83741915 | H44: =IF(A44>0,SUM('Asset data'!CX44:GJ44),0) -> 4196786.17 | I44: 0.1260848881 | J44: 3 | K44: 0.1874536237 | L44: 63.83741915 | M44: =IF($A44>0,SUMPRODUCT('Age profile (years)'!$CT44:$GF44,'Asset data'!$CX44:$GJ44)/H44-0.5,0) -> 38.19989822 | N44: 160316804.5 | O44: =IF($A44>0,'Asset data'!G44,0) -> 74.14030744 | P44: 311151016.9 | Q44: 0.4847620743 | R44: 7.414030744 | S44: 14.82806149 | T44: 44.48418446 | U44: 59.31224595 | W44: =IF($A44>0,SUMIF('Age profile (years)'!$CT44:$GF44,"<" & R44+0.5,'Asset data'!$CX44:$GJ44),0) -> 0 | X44: =IF($A44>0,SUMIF('Age profile (years)'!$CT44:$GF44,"<" & S44+0.5,'Asset data'!$CX44:$GJ44)-W44,0) -> 192932.404 | Y44: =IF($A44>0,SUMIF('Age profile (years)'!$CT44:$GF44,"<" & T44+0.5,'Asset data'!$CX44:$GJ44)-X44-W44,0) -> 2775955.589 | Z44: =IF($A44>0,SUMIF('Age profile (years)'!$CT44:$GF44,"<" & U44+0.5,'Asset data'!$CX44:$GJ44)-Y44-X44-W44,0) -> 989066.6281 | AA44: 238831.5487 | AB44: 0 | AC44: 0.04597146392 | AD44: 0.6614479453 | AE44: 0.2356723903 | AF44: 0.05690820047 | AI44: =IF($A44>0,'RRR hist-forc'!K44,0) -> 74.14030744 | AJ44: 311151016.9
A45: ='Asset data'!A45 -> 2 | B45: ='Asset data'!B45 -> 0 | C45: ='Asset data'!C45 -> 0 | D45: ='Asset data'!E45 -> ˃ 11 kV & < = 22 kV ; Single-Phase | E45: OVERHEAD CONDUCTORS | F45: =IF(A45>0,SUM('Asset data'!J45:CV45),0) -> 2824.689397 | G45: =IF(A45>0,'Asset data'!F45,0) -> 93.93375718 | H45: =IF(A45>0,SUM('Asset data'!CX45:GJ45),0) -> 265333.6879 | I45: 0.007971473172 | J45: 22 | K45: 0.01185139278 | L45: 93.93375718 | M45: =IF($A45>0,SUMPRODUCT('Age profile (years)'!$CT45:$GF45,'Asset data'!$CX45:$GJ45)/H45-0.5,0) -> 30.06623504 | N45: 7977585.025 | O45: =IF($A45>0,'Asset data'!G45,0) -> 61.36183761 | P45: 16281362.67 | Q45: 0.5100173624 | R45: 6.136183761 | S45: 12.27236752 | T45: 36.81710257 | U45: 49.08947009 | W45: =IF($A45>0,SUMIF('Age profile (years)'!$CT45:$GF45,"<" & R45+0.5,'Asset data'!$CX45:$GJ45),0) -> 18279.52903 | X45: =IF($A45>0,SUMIF('Age profile (years)'!$CT45:$GF45,"<" & S45+0.5,'Asset data'!$CX45:$GJ45)-W45,0) -> 16467.2823 | Y45: =IF($A45>0,SUMIF('Age profile (years)'!$CT45:$GF45,"<" & T45+0.5,'Asset data'!$CX45:$GJ45)-X45-W45,0) -> 148583.26 | Z45: =IF($A45>0,SUMIF('Age profile (years)'!$CT45:$GF45,"<" & U45+0.5,'Asset data'!$CX45:$GJ45)-Y45-X45-W45,0) -> 35608.66389 | AA45: 46394.95272 | AB45: 0.06889260528 | AC45: 0.0620625388 | AD45: 0.5599864124 | AE45: 0.1342033278 | AF45: 0.1748551158 | AI45: =IF($A45>0,'RRR hist-forc'!K45,0) -> 61.36183761 | AJ45: 16281362.67
A46: ='Asset data'!A46 -> 2 | B46: ='Asset data'!B46 -> 0 | C46: ='Asset data'!C46 -> 0 | D46: ='Asset data'!E46 -> ˃ 11 kV & < = 22 kV ; Multiple-Phase | E46: OVERHEAD CONDUCTORS | F46: =IF(A46>0,SUM('Asset data'!J46:CV46),0) -> 12280.63743 | G46: =IF(A46>0,'Asset data'!F46,0) -> 127.7161904 | H46: =IF(A46>0,SUM('Asset data'!CX46:GJ46),0) -> 1568436.229 | I46: 0.04712084401 | J46: 6 | K46: 0.07005576238 | L46: 127.7161904 | M46: =IF($A46>0,SUMPRODUCT('Age profile (years)'!$CT46:$GF46,'Asset data'!$CX46:$GJ46)/H46-0.5,0) -> 32.88144982 | N46: 51572457.14 | O46: =IF($A46>0,'Asset data'!G46,0) -> 69.31534221 | P46: 108716693.9 | Q46: 0.5256252257 | R46: 6.931534221 | S46: 13.86306844 | T46: 41.58920533 | U46: 55.45227377 | W46: =IF($A46>0,SUMIF('Age profile (years)'!$CT46:$GF46,"<" & R46+0.5,'Asset data'!$CX46:$GJ46),0) -> 109533.2846 | X46: =IF($A46>0,SUMIF('Age profile (years)'!$CT46:$GF46,"<" & S46+0.5,'Asset data'!$CX46:$GJ46)-W46,0) -> 107941.2935 | Y46: =IF($A46>0,SUMIF('Age profile (years)'!$CT46:$GF46,"<" & T46+0.5,'Asset data'!$CX46:$GJ46)-X46-W46,0) -> 889934.4112 | Z46: =IF($A46>0,SUMIF('Age profile (years)'!$CT46:$GF46,"<" & U46+0.5,'Asset data'!$CX46:$GJ46)-Y46-X46-W46,0) -> 266883.7435 | AA46: 194143.4957 | AB46: 0.06983598223 | AC46: 0.0688209642 | AD46: 0.567402356 | AE46: 0.1701591296 | AF46: 0.123781568 | AI46: =IF($A46>0,'RRR hist-forc'!K46,0) -> 69.31534221 | AJ46: 108716693.9
A47: ='Asset data'!A47 -> 2 | B47: ='Asset data'!B47 -> 0 | C47: ='Asset data'!C47 -> 0 | D47: ='Asset data'!E47 -> > 22 kV & < = 66 kV | E47: OVERHEAD CONDUCTORS | F47: =IF(A47>0,SUM('Asset data'!J47:CV47),0) -> 12484.40111 | G47: =IF(A47>0,'Asset data'!F47,0) -> 612.8392238 | H47: =IF(A47>0,SUM('Asset data'!CX47:GJ47),0) -> 7650930.688 | I47: 0.2298584443 | J47: 1 | K47: 0.3417364203 | L47: 612.8392238 | M47: =IF($A47>0,SUMPRODUCT('Age profile (years)'!$CT47:$GF47,'Asset data'!$CX47:$GJ47)/H47-0.5,0) -> 41.5415988 | N47: 317831893.1 | O47: =IF($A47>0,'Asset data'!G47,0) -> 79.46105827 | P47: 607951049.2 | Q47: 0.4772080853 | R47: 7.946105827 | S47: 15.89221165 | T47: 47.67663496 | U47: 63.56884662 | W47: =IF($A47>0,SUMIF('Age profile (years)'!$CT47:$GF47,"<" & R47+0.5,'Asset data'!$CX47:$GJ47),0) -> 0 | X47: =IF($A47>0,SUMIF('Age profile (years)'!$CT47:$GF47,"<" & S47+0.5,'Asset data'!$CX47:$GJ47)-W47,0) -> 682102.6713 | Y47: =IF($A47>0,SUMIF('Age profile (years)'!$CT47:$GF47,"<" & T47+0.5,'Asset data'!$CX47:$GJ47)-X47-W47,0) -> 3809818.399 | Z47: =IF($A47>0,SUMIF('Age profile (years)'!$CT47:$GF47,"<" & U47+0.5,'Asset data'!$CX47:$GJ47)-Y47-X47-W47,0) -> 2336262.499 | AA47: 822747.118 | AB47: 0 | AC47: 0.08915290167 | AD47: 0.4979548966 | AE47: 0.3053566415 | AF47: 0.1075355603 | AI47: =IF($A47>0,'RRR hist-forc'!K47,0) -> 79.46105827 | AJ47: 607951049.2
A48: ='Asset data'!A48 -> 2 | B48: ='Asset data'!B48 -> 0 | C48: ='Asset data'!C48 -> 0 | D48: ='Asset data'!E48 -> > 66 kV & < = 132 kV | E48: OVERHEAD CONDUCTORS | F48: =IF(A48>0,SUM('Asset data'!J48:CV48),0) -> 3054.217682 | G48: =IF(A48>0,'Asset data'!F48,0) -> 735.4070686 | H48: =IF(A48>0,SUM('Asset data'!CX48:GJ48),0) -> 2246093.272 | I48: 0.06747983041 | J48: 4 | K48: 0.1003239875 | L48: 735.4070686 | M48: =IF($A48>0,SUMPRODUCT('Age profile (years)'!$CT48:$GF48,'Asset data'!$CX48:$GJ48)/H48-0.5,0) -> 44.84583203 | N48: 100727921.6 | O48: =IF($A48>0,'Asset data'!G48,0) -> 74.69762473 | P48: 167777832.3 | Q48: 0.3996350996 | R48: 7.469762473 | S48: 14.93952495 | T48: 44.81857484 | U48: 59.75809978 | W48: =IF($A48>0,SUMIF('Age profile (years)'!$CT48:$GF48,"<" & R48+0.5,'Asset data'!$CX48:$GJ48),0) -> 0 | X48: =IF($A48>0,SUMIF('Age profile (years)'!$CT48:$GF48,"<" & S48+0.5,'Asset data'!$CX48:$GJ48)-W48,0) -> 89700.2985 | Y48: =IF($A48>0,SUMIF('Age profile (years)'!$CT48:$GF48,"<" & T48+0.5,'Asset data'!$CX48:$GJ48)-X48-W48,0) -> 880532.7357 | Z48: =IF($A48>0,SUMIF('Age profile (years)'!$CT48:$GF48,"<" & U48+0.5,'Asset data'!$CX48:$GJ48)-Y48-X48-W48,0) -> 792996.0887 | AA48: 482864.1493 | AB48: 0 | AC48: 0.03993614139 | AD48: 0.3920285709 | AE48: 0.353055725 | AF48: 0.2149795626 | AI48: =IF($A48>0,'RRR hist-forc'!K48,0) -> 74.69762473 | AJ48: 167777832.3
A49: ='Asset data'!A49 -> 3 | B49: ='Asset data'!B49 -> 0 | C49: ='Asset data'!C49 -> 0 | D49: ='Asset data'!E49 -> ˂ = 1 kV | E49: UNDERGROUND CABLES | F49: =IF(A49>0,SUM('Asset data'!J49:CV49),0) -> 6101.488166 | G49: =IF(A49>0,'Asset data'!F49,0) -> 58.29882665 | H49: =IF(A49>0,SUM('Asset data'!CX49:GJ49),0) -> 355709.6009 | I49: 0.01068665484 | J49: 19 | K49: 0.3651725229 | L49: 58.29882665 | M49: =IF($A49>0,SUMPRODUCT('Age profile (years)'!$CT49:$GF49,'Asset data'!$CX49:$GJ49)/H49-0.5,0) -> 22.11708001 | N49: 7867257.703 | O49: =IF($A49>0,'Asset data'!G49,0) -> 28.1313608 | P49: 10006595.12 | Q49: 0.2137927431 | R49: 2.81313608 | S49: 5.626272161 | T49: 16.87881648 | U49: 22.50508864 | W49: =IF($A49>0,SUMIF('Age profile (years)'!$CT49:$GF49,"<" & R49+0.5,'Asset data'!$CX49:$GJ49),0) -> 259.8410565 | X49: =IF($A49>0,SUMIF('Age profile (years)'!$CT49:$GF49,"<" & S49+0.5,'Asset data'!$CX49:$GJ49)-W49,0) -> 430.3492377 | Y49: =IF($A49>0,SUMIF('Age profile (years)'!$CT49:$GF49,"<" & T49+0.5,'Asset data'!$CX49:$GJ49)-X49-W49,0) -> 4418.454494 | Z49: =IF($A49>0,SUMIF('Age profile (years)'!$CT49:$GF49,"<" & U49+0.5,'Asset data'!$CX49:$GJ49)-Y49-X49-W49,0) -> 243729.4699 | AA49: 106871.4862 | AB49: 0.0007304864864 | AC49: 0.001209833068 | AD49: 0.01242152161 | AE49: 0.6851922729 | AF49: 0.3004458859 | AI49: =IF($A49>0,'RRR hist-forc'!K49,0) -> 28.1313608 | AJ49: 10006595.12
A50: ='Asset data'!A50 -> 3 | B50: ='Asset data'!B50 -> 0 | C50: ='Asset data'!C50 -> 0 | D50: ='Asset data'!E50 -> > 1 kV & < = 11 kV | E50: UNDERGROUND CABLES | F50: =IF(A50>0,SUM('Asset data'!J50:CV50),0) -> 1651.634696 | G50: =IF(A50>0,'Asset data'!F50,0) -> 277.4190141 | H50: =IF(A50>0,SUM('Asset data'!CX50:GJ50),0) -> 458194.8689 | I50: 0.01376564029 | J50: 15 | K50: 0.4703842007 | L50: 277.4190141 | M50: =IF($A50>0,SUMPRODUCT('Age profile (years)'!$CT50:$GF50,'Asset data'!$CX50:$GJ50)/H50-0.5,0) -> 38.75616861 | N50: 17757877.59 | O50: =IF($A50>0,'Asset data'!G50,0) -> 49.52408792 | P50: 22691682.97 | Q50: 0.2174279178 | R50: 4.952408792 | S50: 9.904817584 | T50: 29.71445275 | U50: 39.61927034 | W50: =IF($A50>0,SUMIF('Age profile (years)'!$CT50:$GF50,"<" & R50+0.5,'Asset data'!$CX50:$GJ50),0) -> 3022.382446 | X50: =IF($A50>0,SUMIF('Age profile (years)'!$CT50:$GF50,"<" & S50+0.5,'Asset data'!$CX50:$GJ50)-W50,0) -> 2583.25383 | Y50: =IF($A50>0,SUMIF('Age profile (years)'!$CT50:$GF50,"<" & T50+0.5,'Asset data'!$CX50:$GJ50)-X50-W50,0) -> 67231.65759 | Z50: =IF($A50>0,SUMIF('Age profile (years)'!$CT50:$GF50,"<" & U50+0.5,'Asset data'!$CX50:$GJ50)-Y50-X50-W50,0) -> 105493.0085 | AA50: 279864.5665 | AB50: 0.006596281738 | AC50: 0.005637893406 | AD50: 0.1467315811 | AE50: 0.2302361194 | AF50: 0.6107981243 | AI50: =IF($A50>0,'RRR hist-forc'!K50,0) -> 49.52408792 | AJ50: 22691682.97
A51: ='Asset data'!A51 -> 3 | B51: ='Asset data'!B51 -> 0 | C51: ='Asset data'!C51 -> 0 | D51: ='Asset data'!E51 -> > 11 kV & < = 22 kV | E51: UNDERGROUND CABLES | F51: =IF(A51>0,SUM('Asset data'!J51:CV51),0) -> 671.527487 | G51: =IF(A51>0,'Asset data'!F51,0) -> 123.8597309 | H51: =IF(A51>0,SUM('Asset data'!CX51:GJ51),0) -> 83175.21387 | I51: 0.002498849623 | J51: 32 | K51: 0.0853879193 | L51: 123.8597309 | M51: =IF($A51>0,SUMPRODUCT('Age profile (years)'!$CT51:$GF51,'Asset data'!$CX51:$GJ51)/H51-0.5,0) -> 39.03619879 | N51: 3246844.183 | O51: =IF($A51>0,'Asset data'!G51,0) -> 53.17108608 | P51: 4422516.456 | Q51: 0.2658378517 | R51: 5.317108608 | S51: 10.63421722 | T51: 31.90265165 | U51: 42.53686887 | W51: =IF($A51>0,SUMIF('Age profile (years)'!$CT51:$GF51,"<" & R51+0.5,'Asset data'!$CX51:$GJ51),0) -> 706.0767172 | X51: =IF($A51>0,SUMIF('Age profile (years)'!$CT51:$GF51,"<" & S51+0.5,'Asset data'!$CX51:$GJ51)-W51,0) -> 630.7435096 | Y51: =IF($A51>0,SUMIF('Age profile (years)'!$CT51:$GF51,"<" & T51+0.5,'Asset data'!$CX51:$GJ51)-X51-W51,0) -> 19926.26929 | Z51: =IF($A51>0,SUMIF('Age profile (years)'!$CT51:$GF51,"<" & U51+0.5,'Asset data'!$CX51:$GJ51)-Y51-X51-W51,0) -> 17122.92408 | AA51: 44789.20026 | AB51: 0.008489027973 | AC51: 0.007583310945 | AD51: 0.2395697993 | AE51: 0.2058657055 | AF51: 0.5384921562 | AI51: =IF($A51>0,'RRR hist-forc'!K51,0) -> 53.17108608 | AJ51: 4422516.456
A52: ='Asset data'!A52 -> 3 | B52: ='Asset data'!B52 -> 0 | C52: ='Asset data'!C52 -> 0 | D52: ='Asset data'!E52 -> > 22 kV & < = 33 kV | E52: UNDERGROUND CABLES | F52: =IF(A52>0,SUM('Asset data'!J52:CV52),0) -> 52.03876514 | G52: =IF(A52>0,'Asset data'!F52,0) -> 894.2751723 | H52: =IF(A52>0,SUM('Asset data'!CX52:GJ52),0) -> 46536.97566 | I52: 0.001398119688 | J52: 39 | K52: 0.04777499615 | L52: 894.2751723 | M52: =IF($A52>0,SUMPRODUCT('Age profile (years)'!$CT52:$GF52,'Asset data'!$CX52:$GJ52)/H52-0.5,0) -> 43.45472544 | N52: 2022251.5 | O52: =IF($A52>0,'Asset data'!G52,0) -> 58.18632642 | P52: 2707815.656 | Q52: 0.2531797741 | R52: 5.818632642 | S52: 11.63726528 | T52: 34.91179585 | U52: 46.54906113 | W52: =IF($A52>0,SUMIF('Age profile (years)'!$CT52:$GF52,"<" & R52+0.5,'Asset data'!$CX52:$GJ52),0) -> 45.69625608 | X52: =IF($A52>0,SUMIF('Age profile (years)'!$CT52:$GF52,"<" & S52+0.5,'Asset data'!$CX52:$GJ52)-W52,0) -> 1799.944081 | Y52: =IF($A52>0,SUMIF('Age profile (years)'!$CT52:$GF52,"<" & T52+0.5,'Asset data'!$CX52:$GJ52)-X52-W52,0) -> 9604.945925 | Z52: =IF($A52>0,SUMIF('Age profile (years)'!$CT52:$GF52,"<" & U52+0.5,'Asset data'!$CX52:$GJ52)-Y52-X52-W52,0) -> 4452.065341 | AA52: 30634.32405 | AB52: 0.0009819343743 | AC52: 0.03867771929 | AD52: 0.2063938576 | AE52: 0.09566726841 | AF52: 0.6582792204 | AI52: =IF($A52>0,'RRR hist-forc'!K52,0) -> 58.18632642 | AJ52: 2707815.656
A53: ='Asset data'!A53 -> 3 | B53: ='Asset data'!B53 -> 0 | C53: ='Asset data'!C53 -> 0 | D53: ='Asset data'!E53 -> > 33 kV & < = 66 kV | E53: UNDERGROUND CABLES | F53: =IF(A53>0,SUM('Asset data'!J53:CV53),0) -> 17.69287209 | G53: =IF(A53>0,'Asset data'!F53,0) -> 156.9692204 | H53: =IF(A53>0,SUM('Asset data'!CX53:GJ53),0) -> 2777.236337 | I53: 8.343706798e-05 | J53: 58 | K53: 0.002851118996 | L53: 156.9692204 | M53: =IF($A53>0,SUMPRODUCT('Age profile (years)'!$CT53:$GF53,'Asset data'!$CX53:$GJ53)/H53-0.5,0) -> 31.0504537 | N53: 86234.4483 | O53: =IF($A53>0,'Asset data'!G53,0) -> 42.2 | P53: 117199.3734 | Q53: 0.2642072584 | R53: 4.22 | S53: 8.44 | T53: 25.32 | U53: 33.76 | W53: =IF($A53>0,SUMIF('Age profile (years)'!$CT53:$GF53,"<" & R53+0.5,'Asset data'!$CX53:$GJ53),0) -> 119.1971737 | X53: =IF($A53>0,SUMIF('Age profile (years)'!$CT53:$GF53,"<" & S53+0.5,'Asset data'!$CX53:$GJ53)-W53,0) -> 0 | Y53: =IF($A53>0,SUMIF('Age profile (years)'!$CT53:$GF53,"<" & T53+0.5,'Asset data'!$CX53:$GJ53)-X53-W53,0) -> 293.7720312 | Z53: =IF($A53>0,SUMIF('Age profile (years)'!$CT53:$GF53,"<" & U53+0.5,'Asset data'!$CX53:$GJ53)-Y53-X53-W53,0) -> 431.0680506 | AA53: 1933.199082 | AB53: 0.0429193483 | AC53: 0 | AD53: 0.1057785494 | AE53: 0.1552147524 | AF53: 0.6960873498 | AI53: =IF($A53>0,'RRR hist-forc'!K53,0) -> 42.2 | AJ53: 117199.3734
A54: ='Asset data'!A54 -> 3 | B54: ='Asset data'!B54 -> 0 | C54: ='Asset data'!C54 -> 0 | D54: ='Asset data'!E54 -> > 66 kV & < = 132 kV | E54: UNDERGROUND CABLES | F54: =IF(A54>0,SUM('Asset data'!J54:CV54),0) -> 9.171018911 | G54: =IF(A54>0,'Asset data'!F54,0) -> 3019.570588 | H54: =IF(A54>0,SUM('Asset data'!CX54:GJ54),0) -> 27692.53897 | I54: 0.0008319724992 | J54: 46 | K54: 0.02842924199 | L54: 3019.570588 | M54: =IF($A54>0,SUMPRODUCT('Age profile (years)'!$CT54:$GF54,'Asset data'!$CX54:$GJ54)/H54-0.5,0) -> 36.49513744 | N54: 1010643.016 | O54: =IF($A54>0,'Asset data'!G54,0) -> 42.2 | P54: 1168625.144 | Q54: 0.1351863166 | R54: 4.22 | S54: 8.44 | T54: 25.32 | U54: 33.76 | W54: =IF($A54>0,SUMIF('Age profile (years)'!$CT54:$GF54,"<" & R54+0.5,'Asset data'!$CX54:$GJ54),0) -> 0 | X54: =IF($A54>0,SUMIF('Age profile (years)'!$CT54:$GF54,"<" & S54+0.5,'Asset data'!$CX54:$GJ54)-W54,0) -> 0 | Y54: =IF($A54>0,SUMIF('Age profile (years)'!$CT54:$GF54,"<" & T54+0.5,'Asset data'!$CX54:$GJ54)-X54-W54,0) -> 0 | Z54: =IF($A54>0,SUMIF('Age profile (years)'!$CT54:$GF54,"<" & U54+0.5,'Asset data'!$CX54:$GJ54)-Y54-X54-W54,0) -> 0 | AA54: 27692.53897 | AB54: 0 | AC54: 0 | AD54: 0 | AE54: 0 | AF54: 1 | AI54: =IF($A54>0,'RRR hist-forc'!K54,0) -> 42.2 | AJ54: 1168625.144
A55: ='Asset data'!A55 -> 4 | B55: ='Asset data'!B55 -> 0 | C55: ='Asset data'!C55 -> 0 | D55: ='Asset data'!E55 -> ˂ = 11 kV ; Residential ; Simple Type | E55: SERVICE LINES | F55: =IF(A55>0,SUM('Asset data'!J55:CV55),0) -> 362130 | G55: =IF(A55>0,'Asset data'!F55,0) -> 1.253442072 | H55: =IF(A55>0,SUM('Asset data'!CX55:GJ55),0) -> 453908.9776 | I55: 0.0136368784 | J55: 16 | K55: 0.85196733 | L55: 1.253442072 | M55: =IF($A55>0,SUMPRODUCT('Age profile (years)'!$CT55:$GF55,'Asset data'!$CX55:$GJ55)/H55-0.5,0) -> 27.5375075 | N55: 12499521.88 | O55: =IF($A55>0,'Asset data'!G55,0) -> 57.79204421 | P55: 26232327.7 | Q55: 0.5235069484 | R55: 5.779204421 | S55: 11.55840884 | T55: 34.67522653 | U55: 46.23363537 | W55: =IF($A55>0,SUMIF('Age profile (years)'!$CT55:$GF55,"<" & R55+0.5,'Asset data'!$CX55:$GJ55),0) -> 41141.74389 | X55: =IF($A55>0,SUMIF('Age profile (years)'!$CT55:$GF55,"<" & S55+0.5,'Asset data'!$CX55:$GJ55)-W55,0) -> 32344.84901 | Y55: =IF($A55>0,SUMIF('Age profile (years)'!$CT55:$GF55,"<" & T55+0.5,'Asset data'!$CX55:$GJ55)-X55-W55,0) -> 222615.6834 | Z55: =IF($A55>0,SUMIF('Age profile (years)'!$CT55:$GF55,"<" & U55+0.5,'Asset data'!$CX55:$GJ55)-Y55-X55-W55,0) -> 89876.24019 | AA55: 67930.46104 | AB55: 0.09063875342 | AC55: 0.07125844742 | AD55: 0.4904412436 | AE55: 0.1980049848 | AF55: 0.1496565708 | AI55: =IF($A55>0,'RRR hist-forc'!K55,0) -> 57.79204421 | AJ55: 26232327.7
A56: ='Asset data'!A56 -> 4 | B56: ='Asset data'!B56 -> 0 | C56: ='Asset data'!C56 -> 0 | D56: ='Asset data'!E56 -> ˂ = 11 kV ; Commercial & Industrial ; Simple Type | E56: SERVICE LINES | F56: =IF(A56>0,SUM('Asset data'!J56:CV56),0) -> 40923 | G56: =IF(A56>0,'Asset data'!F56,0) -> 1.927240616 | H56: =IF(A56>0,SUM('Asset data'!CX56:GJ56),0) -> 78868.46774 | I56: 0.002369461186 | J56: 33 | K56: 0.14803267 | L56: 1.927240616 | M56: =IF($A56>0,SUMPRODUCT('Age profile (years)'!$CT56:$GF56,'Asset data'!$CX56:$GJ56)/H56-0.5,0) -> 31.39454456 | N56: 2476039.625 | O56: =IF($A56>0,'Asset data'!G56,0) -> 58.91389824 | P56: 4646448.883 | Q56: 0.4671114032 | R56: 5.891389824 | S56: 11.78277965 | T56: 35.34833894 | U56: 47.13111859 | W56: =IF($A56>0,SUMIF('Age profile (years)'!$CT56:$GF56,"<" & R56+0.5,'Asset data'!$CX56:$GJ56),0) -> 5505.419337 | X56: =IF($A56>0,SUMIF('Age profile (years)'!$CT56:$GF56,"<" & S56+0.5,'Asset data'!$CX56:$GJ56)-W56,0) -> 4186.593911 | Y56: =IF($A56>0,SUMIF('Age profile (years)'!$CT56:$GF56,"<" & T56+0.5,'Asset data'!$CX56:$GJ56)-X56-W56,0) -> 33258.76613 | Z56: =IF($A56>0,SUMIF('Age profile (years)'!$CT56:$GF56,"<" & U56+0.5,'Asset data'!$CX56:$GJ56)-Y56-X56-W56,0) -> 21008.38626 | AA56: 14909.3021 | AB56: 0.0698050754 | AC56: 0.05308324139 | AD56: 0.4216991541 | AE56: 0.2663724408 | AF56: 0.1890400883 | AI56: =IF($A56>0,'RRR hist-forc'!K56,0) -> 58.91389824 | AJ56: 4646448.883
A57: ='Asset data'!A57 -> 5 | B57: ='Asset data'!B57 -> 0 | C57: ='Asset data'!C57 -> 0 | D57: ='Asset data'!E57 -> Pole Mounted ; < = 22kV ; < = 60 kVA ; Single Phase | E57: TRANSFORMERS | F57: =IF(A57>0,SUM('Asset data'!J57:CV57),0) -> 46105 | G57: =IF(A57>0,'Asset data'!F57,0) -> 7.782952483 | H57: =IF(A57>0,SUM('Asset data'!CX57:GJ57),0) -> 358833.0242 | I57: 0.01078049248 | J57: 18 | K57: 0.1173671213 | L57: 7.782952483 | M57: =IF($A57>0,SUMPRODUCT('Age profile (years)'!$CT57:$GF57,'Asset data'!$CX57:$GJ57)/H57-0.5,0) -> 24.59760236 | N57: 8826432.044 | O57: =IF($A57>0,'Asset data'!G57,0) -> 47.26484236 | P57: 16960186.32 | Q57: 0.4795792997 | R57: 4.726484236 | S57: 9.452968472 | T57: 28.35890542 | U57: 37.81187389 | W57: =IF($A57>0,SUMIF('Age profile (years)'!$CT57:$GF57,"<" & R57+0.5,'Asset data'!$CX57:$GJ57),0) -> 37205.46033 | X57: =IF($A57>0,SUMIF('Age profile (years)'!$CT57:$GF57,"<" & S57+0.5,'Asset data'!$CX57:$GJ57)-W57,0) -> 17562.87511 | Y57: =IF($A57>0,SUMIF('Age profile (years)'!$CT57:$GF57,"<" & T57+0.5,'Asset data'!$CX57:$GJ57)-X57-W57,0) -> 148465.9974 | Z57: =IF($A57>0,SUMIF('Age profile (years)'!$CT57:$GF57,"<" & U57+0.5,'Asset data'!$CX57:$GJ57)-Y57-X57-W57,0) -> 73651.78694 | AA57: 81946.90445 | AB57: 0.1036846049 | AC57: 0.04894442241 | AD57: 0.4137467495 | AE57: 0.2052536471 | AF57: 0.2283705761 | AI57: =IF($A57>0,'RRR hist-forc'!K57,0) -> 47.26484236 | AJ57: 16960186.32
A58: ='Asset data'!A58 -> 5 | B58: ='Asset data'!B58 -> 0 | C58: ='Asset data'!C58 -> 0 | D58: ='Asset data'!E58 -> Pole Mounted ; < = 22kV ; > 60 kVA and < = 600 kVA ; Single Phase | E58: TRANSFORMERS | F58: =IF(A58>0,SUM('Asset data'!J58:CV58),0) -> 349 | G58: =IF(A58>0,'Asset data'!F58,0) -> 48.05741322 | H58: =IF(A58>0,SUM('Asset data'!CX58:GJ58),0) -> 16772.03721 | I58: 0.000503885676 | J58: 48 | K58: 0.005485798666 | L58: 48.05741322 | M58: =IF($A58>0,SUMPRODUCT('Age profile (years)'!$CT58:$GF58,'Asset data'!$CX58:$GJ58)/H58-0.5,0) -> 27.29130435 | N58: 457730.7722 | O58: =IF($A58>0,'Asset data'!G58,0) -> 37.49693173 | P58: 628899.9345 | Q58: 0.2721723329 | R58: 3.749693173 | S58: 7.499386347 | T58: 22.49815904 | U58: 29.99754539 | W58: =IF($A58>0,SUMIF('Age profile (years)'!$CT58:$GF58,"<" & R58+0.5,'Asset data'!$CX58:$GJ58),0) -> 1166.750415 | X58: =IF($A58>0,SUMIF('Age profile (years)'!$CT58:$GF58,"<" & S58+0.5,'Asset data'!$CX58:$GJ58)-W58,0) -> 194.4584025 | Y58: =IF($A58>0,SUMIF('Age profile (years)'!$CT58:$GF58,"<" & T58+0.5,'Asset data'!$CX58:$GJ58)-X58-W58,0) -> 1312.594217 | Z58: =IF($A58>0,SUMIF('Age profile (years)'!$CT58:$GF58,"<" & U58+0.5,'Asset data'!$CX58:$GJ58)-Y58-X58-W58,0) -> 4180.855653 | AA58: 9917.378527 | AB58: 0.06956521739 | AC58: 0.0115942029 | AD58: 0.07826086957 | AE58: 0.2492753623 | AF58: 0.5913043478 | AI58: =IF($A58>0,'RRR hist-forc'!K58,0) -> 37.49693173 | AJ58: 628899.9345
A59: ='Asset data'!A59 -> 5 | B59: ='Asset data'!B59 -> 0 | C59: ='Asset data'!C59 -> 0 | D59: ='Asset data'!E59 -> Pole Mounted ; < = 22kV ; > 600 kVA ; Single Phase | E59: TRANSFORMERS | F59: =IF(A59>0,SUM('Asset data'!J59:CV59),0) -> 2 | G59: =IF(A59>0,'Asset data'!F59,0) -> 48.05741322 | H59: =IF(A59>0,SUM('Asset data'!CX59:GJ59),0) -> 96.11482644 | I59: 2.887596997e-06 | J59: 63 | K59: 3.143724164e-05 | L59: 48.05741322 | M59: =IF($A59>0,SUMPRODUCT('Age profile (years)'!$CT59:$GF59,'Asset data'!$CX59:$GJ59)/H59-0.5,0) -> 44.5 | N59: 4277.109777 | O59: =IF($A59>0,'Asset data'!G59,0) -> 51.7 | P59: 4969.136527 | Q59: 0.1392649903 | R59: 5.17 | S59: 10.34 | T59: 31.02 | U59: 41.36 | W59: =IF($A59>0,SUMIF('Age profile (years)'!$CT59:$GF59,"<" & R59+0.5,'Asset data'!$CX59:$GJ59),0) -> 0 | X59: =IF($A59>0,SUMIF('Age profile (years)'!$CT59:$GF59,"<" & S59+0.5,'Asset data'!$CX59:$GJ59)-W59,0) -> 0 | Y59: =IF($A59>0,SUMIF('Age profile (years)'!$CT59:$GF59,"<" & T59+0.5,'Asset data'!$CX59:$GJ59)-X59-W59,0) -> 0 | Z59: =IF($A59>0,SUMIF('Age profile (years)'!$CT59:$GF59,"<" & U59+0.5,'Asset data'!$CX59:$GJ59)-Y59-X59-W59,0) -> 0 | AA59: 96.11482644 | AB59: 0 | AC59: 0 | AD59: 0 | AE59: 0 | AF59: 1 | AI59: =IF($A59>0,'RRR hist-forc'!K59,0) -> 51.7 | AJ59: 4969.136527
A60: ='Asset data'!A60 -> 5 | B60: ='Asset data'!B60 -> 0 | C60: ='Asset data'!C60 -> 0 | D60: ='Asset data'!E60 -> Pole Mounted ; < = 22kV ; < = 60 kVA ; Multiple Phase | E60: TRANSFORMERS | F60: =IF(A60>0,SUM('Asset data'!J60:CV60),0) -> 19824 | G60: =IF(A60>0,'Asset data'!F60,0) -> 11.31890206 | H60: =IF(A60>0,SUM('Asset data'!CX60:GJ60),0) -> 224385.9145 | I60: 0.006741271007 | J60: 25 | K60: 0.07339215472 | L60: 11.31890206 | M60: =IF($A60>0,SUMPRODUCT('Age profile (years)'!$CT60:$GF60,'Asset data'!$CX60:$GJ60)/H60-0.5,0) -> 27.3050196 | N60: 6126861.793 | O60: =IF($A60>0,'Asset data'!G60,0) -> 50.36054511 | P60: 11300196.97 | Q60: 0.4578092921 | R60: 5.036054511 | S60: 10.07210902 | T60: 30.21632706 | U60: 40.28843609 | W60: =IF($A60>0,SUMIF('Age profile (years)'!$CT60:$GF60,"<" & R60+0.5,'Asset data'!$CX60:$GJ60),0) -> 16666.44857 | X60: =IF($A60>0,SUMIF('Age profile (years)'!$CT60:$GF60,"<" & S60+0.5,'Asset data'!$CX60:$GJ60)-W60,0) -> 10932.00225 | Y60: =IF($A60>0,SUMIF('Age profile (years)'!$CT60:$GF60,"<" & T60+0.5,'Asset data'!$CX60:$GJ60)-X60-W60,0) -> 97611.24264 | Z60: =IF($A60>0,SUMIF('Age profile (years)'!$CT60:$GF60,"<" & U60+0.5,'Asset data'!$CX60:$GJ60)-Y60-X60-W60,0) -> 44767.52018 | AA60: 54408.70084 | AB60: 0.07427582345 | AC60: 0.04871964568 | AD60: 0.4350150181 | AE60: 0.1995112763 | AF60: 0.2424782365 | AI60: =IF($A60>0,'RRR hist-forc'!K60,0) -> 50.36054511 | AJ60: 11300196.97
A61: ='Asset data'!A61 -> 5 | B61: ='Asset data'!B61 -> 0 | C61: ='Asset data'!C61 -> 0 | D61: ='Asset data'!E61 -> Pole Mounted ; < = 22kV ; > 60 kVA and < = 600 kVA ; Multiple Phase | E61: TRANSFORMERS | F61: =IF(A61>0,SUM('Asset data'!J61:CV61),0) -> 24378 | G61: =IF(A61>0,'Asset data'!F61,0) -> 24.89337577 | H61: =IF(A61>0,SUM('Asset data'!CX61:GJ61),0) -> 606850.7146 | I61: 0.01823173766 | J61: 11 | K61: 0.1984887583 | L61: 24.89337577 | M61: =IF($A61>0,SUMPRODUCT('Age profile (years)'!$CT61:$GF61,'Asset data'!$CX61:$GJ61)/H61-0.5,0) -> 28.45035285 | N61: 17265116.96 | O61: =IF($A61>0,'Asset data'!G61,0) -> 45.51751334 | P61: 27622335.49 | Q61: 0.3749581036 | R61: 4.551751334 | S61: 9.103502667 | T61: 27.310508 | U61: 36.41401067 | W61: =IF($A61>0,SUMIF('Age profile (years)'!$CT61:$GF61,"<" & R61+0.5,'Asset data'!$CX61:$GJ61),0) -> 47509.2157 | X61: =IF($A61>0,SUMIF('Age profile (years)'!$CT61:$GF61,"<" & S61+0.5,'Asset data'!$CX61:$GJ61)-W61,0) -> 23316.33095 | Y61: =IF($A61>0,SUMIF('Age profile (years)'!$CT61:$GF61,"<" & T61+0.5,'Asset data'!$CX61:$GJ61)-X61-W61,0) -> 163815.3821 | Z61: =IF($A61>0,SUMIF('Age profile (years)'!$CT61:$GF61,"<" & U61+0.5,'Asset data'!$CX61:$GJ61)-Y61-X61-W61,0) -> 112674.7293 | AA61: 259535.0566 | AB61: 0.07828814329 | AC61: 0.0384218563 | AD61: 0.2699434609 | AE61: 0.1856712476 | AF61: 0.427675292 | AI61: =IF($A61>0,'RRR hist-forc'!K61,0) -> 45.51751334 | AJ61: 27622335.49
A62: ='Asset data'!A62 -> 5 | B62: ='Asset data'!B62 -> 0 | C62: ='Asset data'!C62 -> 0 | D62: ='Asset data'!E62 -> Pole Mounted ; < = 22kV ; > 600 kVA ; Multiple Phase | E62: TRANSFORMERS | F62: =IF(A62>0,SUM('Asset data'!J62:CV62),0) -> 51 | G62: =IF(A62>0,'Asset data'!F62,0) -> 58.52225014 | H62: =IF(A62>0,SUM('Asset data'!CX62:GJ62),0) -> 2984.634757 | I62: 8.966798028e-05 | J62: 57 | K62: 0.0009762144668 | L62: 58.52225014 | M62: =IF($A62>0,SUMPRODUCT('Age profile (years)'!$CT62:$GF62,'Asset data'!$CX62:$GJ62)/H62-0.5,0) -> 32.02 | N62: 95568.00492 | O62: =IF($A62>0,'Asset data'!G62,0) -> 51.7 | P62: 154305.6169 | Q62: 0.3806576402 | R62: 5.17 | S62: 10.34 | T62: 31.02 | U62: 41.36 | W62: =IF($A62>0,SUMIF('Age profile (years)'!$CT62:$GF62,"<" & R62+0.5,'Asset data'!$CX62:$GJ62),0) -> 59.69269514 | X62: =IF($A62>0,SUMIF('Age profile (years)'!$CT62:$GF62,"<" & S62+0.5,'Asset data'!$CX62:$GJ62)-W62,0) -> 179.0780854 | Y62: =IF($A62>0,SUMIF('Age profile (years)'!$CT62:$GF62,"<" & T62+0.5,'Asset data'!$CX62:$GJ62)-X62-W62,0) -> 776.0050368 | Z62: =IF($A62>0,SUMIF('Age profile (years)'!$CT62:$GF62,"<" & U62+0.5,'Asset data'!$CX62:$GJ62)-Y62-X62-W62,0) -> 1552.010074 | AA62: 417.848866 | AB62: 0.02 | AC62: 0.06 | AD62: 0.26 | AE62: 0.52 | AF62: 0.14 | AI62: =IF($A62>0,'RRR hist-forc'!K62,0) -> 51.7 | AJ62: 154305.6169
A63: ='Asset data'!A63 -> 5 | B63: ='Asset data'!B63 -> 0 | C63: ='Asset data'!C63 -> 0 | D63: ='Asset data'!E63 -> Kiosk Mounted ; < = 22kV ; < = 60 kVA ; Single Phase | E63: TRANSFORMERS | F63: =IF(A63>0,SUM('Asset data'!J63:CV63),0) -> 186 | G63: =IF(A63>0,'Asset data'!F63,0) -> 30.08150727 | H63: =IF(A63>0,SUM('Asset data'!CX63:GJ63),0) -> 5595.160352 | I63: 0.000168096524 | J63: 55 | K63: 0.001830065293 | L63: 30.08150727 | M63: =IF($A63>0,SUMPRODUCT('Age profile (years)'!$CT63:$GF63,'Asset data'!$CX63:$GJ63)/H63-0.5,0) -> 35.25280899 | N63: 197245.1191 | O63: =IF($A63>0,'Asset data'!G63,0) -> 51.7 | P63: 289269.7902 | Q63: 0.3181274857 | R63: 5.17 | S63: 10.34 | T63: 31.02 | U63: 41.36 | W63: =IF($A63>0,SUMIF('Age profile (years)'!$CT63:$GF63,"<" & R63+0.5,'Asset data'!$CX63:$GJ63),0) -> 251.467881 | X63: =IF($A63>0,SUMIF('Age profile (years)'!$CT63:$GF63,"<" & S63+0.5,'Asset data'!$CX63:$GJ63)-W63,0) -> 125.7339405 | Y63: =IF($A63>0,SUMIF('Age profile (years)'!$CT63:$GF63,"<" & T63+0.5,'Asset data'!$CX63:$GJ63)-X63-W63,0) -> 1445.940316 | Z63: =IF($A63>0,SUMIF('Age profile (years)'!$CT63:$GF63,"<" & U63+0.5,'Asset data'!$CX63:$GJ63)-Y63-X63-W63,0) -> 1257.339405 | AA63: 2514.67881 | AB63: 0.04494382022 | AC63: 0.02247191011 | AD63: 0.2584269663 | AE63: 0.2247191011 | AF63: 0.4494382022 | AI63: =IF($A63>0,'RRR hist-forc'!K63,0) -> 51.7 | AJ63: 289269.7902
A64: ='Asset data'!A64 -> 5 | B64: ='Asset data'!B64 -> 0 | C64: ='Asset data'!C64 -> 0 | D64: ='Asset data'!E64 -> Kiosk Mounted ; < = 22kV ; < = 60 kVA ; Multiple Phase | E64: TRANSFORMERS | F64: =IF(A64>0,SUM('Asset data'!J64:CV64),0) -> 690 | G64: =IF(A64>0,'Asset data'!F64,0) -> 61.27796189 | H64: =IF(A64>0,SUM('Asset data'!CX64:GJ64),0) -> 42281.7937 | I64: 0.001270280404 | J64: 42 | K64: 0.01382953093 | L64: 61.27796189 | M64: =IF($A64>0,SUMPRODUCT('Age profile (years)'!$CT64:$GF64,'Asset data'!$CX64:$GJ64)/H64-0.5,0) -> 36.36186186 | N64: 1537444.742 | O64: =IF($A64>0,'Asset data'!G64,0) -> 51.7 | P64: 2185968.734 | Q64: 0.296675786 | R64: 5.17 | S64: 10.34 | T64: 31.02 | U64: 41.36 | W64: =IF($A64>0,SUMIF('Age profile (years)'!$CT64:$GF64,"<" & R64+0.5,'Asset data'!$CX64:$GJ64),0) -> 2412.474716 | X64: =IF($A64>0,SUMIF('Age profile (years)'!$CT64:$GF64,"<" & S64+0.5,'Asset data'!$CX64:$GJ64)-W64,0) -> 1396.695888 | Y64: =IF($A64>0,SUMIF('Age profile (years)'!$CT64:$GF64,"<" & T64+0.5,'Asset data'!$CX64:$GJ64)-X64-W64,0) -> 7999.258268 | Z64: =IF($A64>0,SUMIF('Age profile (years)'!$CT64:$GF64,"<" & U64+0.5,'Asset data'!$CX64:$GJ64)-Y64-X64-W64,0) -> 6602.56238 | AA64: 23870.80245 | AB64: 0.05705705706 | AC64: 0.03303303303 | AD64: 0.1891891892 | AE64: 0.1561561562 | AF64: 0.5645645646 | AI64: =IF($A64>0,'RRR hist-forc'!K64,0) -> 51.7 | AJ64: 2185968.734
A65: ='Asset data'!A65 -> 5 | B65: ='Asset data'!B65 -> 0 | C65: ='Asset data'!C65 -> 0 | D65: ='Asset data'!E65 -> Kiosk Mounted ; < = 22kV ; > 60 kVA and < = 600 kVA ; Multiple Phase | E65: TRANSFORMERS | F65: =IF(A65>0,SUM('Asset data'!J65:CV65),0) -> 5030 | G65: =IF(A65>0,'Asset data'!F65,0) -> 143.1256354 | H65: =IF(A65>0,SUM('Asset data'!CX65:GJ65),0) -> 719921.9463 | I65: 0.02162875934 | J65: 10 | K65: 0.2354721017 | L65: 143.1256354 | M65: =IF($A65>0,SUMPRODUCT('Age profile (years)'!$CT65:$GF65,'Asset data'!$CX65:$GJ65)/H65-0.5,0) -> 39.80905077 | N65: 28659409.31 | O65: =IF($A65>0,'Asset data'!G65,0) -> 52.1709366 | P65: 37559002.22 | Q65: 0.2369496627 | R65: 5.21709366 | S65: 10.43418732 | T65: 31.30256196 | U65: 41.73674928 | W65: =IF($A65>0,SUMIF('Age profile (years)'!$CT65:$GF65,"<" & R65+0.5,'Asset data'!$CX65:$GJ65),0) -> 8957.487591 | X65: =IF($A65>0,SUMIF('Age profile (years)'!$CT65:$GF65,"<" & S65+0.5,'Asset data'!$CX65:$GJ65)-W65,0) -> 4623.219402 | Y65: =IF($A65>0,SUMIF('Age profile (years)'!$CT65:$GF65,"<" & T65+0.5,'Asset data'!$CX65:$GJ65)-X65-W65,0) -> 103877.9609 | Z65: =IF($A65>0,SUMIF('Age profile (years)'!$CT65:$GF65,"<" & U65+0.5,'Asset data'!$CX65:$GJ65)-Y65-X65-W65,0) -> 193019.41 | AA65: 409443.8683 | AB65: 0.01244230383 | AC65: 0.006421834236 | AD65: 0.144290588 | AE65: 0.2681115794 | AF65: 0.5687336946 | AI65: =IF($A65>0,'RRR hist-forc'!K65,0) -> 52.1709366 | AJ65: 37559002.22
A66: ='Asset data'!A66 -> 5 | B66: ='Asset data'!B66 -> 0 | C66: ='Asset data'!C66 -> 0 | D66: ='Asset data'!E66 -> Kiosk Mounted ; < = 22kV ; > 600 kVA ; Multiple Phase | E66: TRANSFORMERS | F66: =IF(A66>0,SUM('Asset data'!J66:CV66),0) -> 1604 | G66: =IF(A66>0,'Asset data'!F66,0) -> 172.3904439 | H66: =IF(A66>0,SUM('Asset data'!CX66:GJ66),0) -> 276514.272 | I66: 0.0083073737 | J66: 20 | K66: 0.09044230017 | L66: 172.3904439 | M66: =IF($A66>0,SUMPRODUCT('Age profile (years)'!$CT66:$GF66,'Asset data'!$CX66:$GJ66)/H66-0.5,0) -> 35.43863494 | N66: 9799288.34 | O66: =IF($A66>0,'Asset data'!G66,0) -> 46.94607589 | P66: 12981260 | Q66: 0.2451204011 | R66: 4.694607589 | S66: 9.389215178 | T66: 28.16764554 | U66: 37.55686071 | W66: =IF($A66>0,SUMIF('Age profile (years)'!$CT66:$GF66,"<" & R66+0.5,'Asset data'!$CX66:$GJ66),0) -> 5367.528135 | X66: =IF($A66>0,SUMIF('Age profile (years)'!$CT66:$GF66,"<" & S66+0.5,'Asset data'!$CX66:$GJ66)-W66,0) -> 1385.168551 | Y66: =IF($A66>0,SUMIF('Age profile (years)'!$CT66:$GF66,"<" & T66+0.5,'Asset data'!$CX66:$GJ66)-X66-W66,0) -> 37745.84301 | Z66: =IF($A66>0,SUMIF('Age profile (years)'!$CT66:$GF66,"<" & U66+0.5,'Asset data'!$CX66:$GJ66)-Y66-X66-W66,0) -> 83629.55126 | AA66: 148386.181 | AB66: 0.01941139637 | AC66: 0.005009392611 | AD66: 0.1365059487 | AE66: 0.3024420789 | AF66: 0.5366311835 | AI66: =IF($A66>0,'RRR hist-forc'!K66,0) -> 46.94607589 | AJ66: 12981260
A67: ='Asset data'!A67 -> 5 | B67: ='Asset data'!B67 -> 0 | C67: ='Asset data'!C67 -> 0 | D67: ='Asset data'!E67 -> Ground Outdoor / Indoor Chamber Mounted; ˂ 22 kV ; > 60 kVA and < = 600 kVA ; Multiple Phase | E67: TRANSFORMERS | F67: =IF(A67>0,SUM('Asset data'!J67:CV67),0) -> 4 | G67: =IF(A67>0,'Asset data'!F67,0) -> 92.91749803 | H67: =IF(A67>0,SUM('Asset data'!CX67:GJ67),0) -> 371.6699921 | I67: 1.116615607e-05 | J67: 62 | K67: 0.0001215658373 | L67: 92.91749803 | M67: =IF($A67>0,SUMPRODUCT('Age profile (years)'!$CT67:$GF67,'Asset data'!$CX67:$GJ67)/H67-0.5,0) -> 5.75 | N67: 2137.102455 | O67: =IF($A67>0,'Asset data'!G67,0) -> 26.46552833 | P67: 9836.442707 | Q67: 0.7827362474 | R67: 2.646552833 | S67: 5.293105667 | T67: 15.879317 | U67: 21.17242267 | W67: =IF($A67>0,SUMIF('Age profile (years)'!$CT67:$GF67,"<" & R67+0.5,'Asset data'!$CX67:$GJ67),0) -> 185.8349961 | X67: =IF($A67>0,SUMIF('Age profile (years)'!$CT67:$GF67,"<" & S67+0.5,'Asset data'!$CX67:$GJ67)-W67,0) -> 0 | Y67: =IF($A67>0,SUMIF('Age profile (years)'!$CT67:$GF67,"<" & T67+0.5,'Asset data'!$CX67:$GJ67)-X67-W67,0) -> 92.91749803 | Z67: =IF($A67>0,SUMIF('Age profile (years)'!$CT67:$GF67,"<" & U67+0.5,'Asset data'!$CX67:$GJ67)-Y67-X67-W67,0) -> 92.91749803 | AA67: 0 | AB67: 0.5 | AC67: 0 | AD67: 0.25 | AE67: 0.25 | AF67: 0 | AI67: =IF($A67>0,'RRR hist-forc'!K67,0) -> 26.46552833 | AJ67: 9836.442707
A68: ='Asset data'!A68 -> 5 | B68: ='Asset data'!B68 -> 0 | C68: ='Asset data'!C68 -> 0 | D68: ='Asset data'!E68 -> Ground Outdoor / Indoor Chamber Mounted; ˂ 22 kV ; > 600 kVA ; Multiple Phase | E68: TRANSFORMERS | F68: =IF(A68>0,SUM('Asset data'!J68:CV68),0) -> 36 | G68: =IF(A68>0,'Asset data'!F68,0) -> 334.286789 | H68: =IF(A68>0,SUM('Asset data'!CX68:GJ68),0) -> 12034.3244 | I68: 0.0003615496203 | J68: 52 | K68: 0.003936187352 | L68: 334.286789 | M68: =IF($A68>0,SUMPRODUCT('Age profile (years)'!$CT68:$GF68,'Asset data'!$CX68:$GJ68)/H68-0.5,0) -> 23.86363636 | N68: 287182.7414 | O68: =IF($A68>0,'Asset data'!G68,0) -> 55.4493988 | P68: 667296.053 | Q68: 0.5696321893 | R68: 5.54493988 | S68: 11.08987976 | T68: 33.26963928 | U68: 44.35951904 | W68: =IF($A68>0,SUMIF('Age profile (years)'!$CT68:$GF68,"<" & R68+0.5,'Asset data'!$CX68:$GJ68),0) -> 2188.058982 | X68: =IF($A68>0,SUMIF('Age profile (years)'!$CT68:$GF68,"<" & S68+0.5,'Asset data'!$CX68:$GJ68)-W68,0) -> 364.676497 | Y68: =IF($A68>0,SUMIF('Age profile (years)'!$CT68:$GF68,"<" & T68+0.5,'Asset data'!$CX68:$GJ68)-X68-W68,0) -> 5834.823953 | Z68: =IF($A68>0,SUMIF('Age profile (years)'!$CT68:$GF68,"<" & U68+0.5,'Asset data'!$CX68:$GJ68)-Y68-X68-W68,0) -> 1094.029491 | AA68: 2552.735479 | AB68: 0.1818181818 | AC68: 0.0303030303 | AD68: 0.4848484848 | AE68: 0.09090909091 | AF68: 0.2121212121 | AI68: =IF($A68>0,'RRR hist-forc'!K68,0) -> 55.4493988 | AJ68: 667296.053
A69: ='Asset data'!A69 -> 5 | B69: ='Asset data'!B69 -> 0 | C69: ='Asset data'!C69 -> 0 | D69: ='Asset data'!E69 -> Ground Outdoor / Indoor Chamber Mounted; > = 22 kV & < = 33 kV ; < = 15 MVA | E69: TRANSFORMERS | F69: =IF(A69>0,SUM('Asset data'!J69:CV69),0) -> 131 | G69: =IF(A69>0,'Asset data'!F69,0) -> 584.351626 | H69: =IF(A69>0,SUM('Asset data'!CX69:GJ69),0) -> 76550.063 | I69: 0.002299808887 | J69: 34 | K69: 0.02503799795 | L69: 584.351626 | M69: =IF($A69>0,SUMPRODUCT('Age profile (years)'!$CT69:$GF69,'Asset data'!$CX69:$GJ69)/H69-0.5,0) -> 27.02293578 | N69: 2068607.436 | O69: =IF($A69>0,'Asset data'!G69,0) -> 62.88410233 | P69: 4813781.995 | Q69: 0.5702739679 | R69: 6.288410233 | S69: 12.57682047 | T69: 37.7304614 | U69: 50.30728187 | W69: =IF($A69>0,SUMIF('Age profile (years)'!$CT69:$GF69,"<" & R69+0.5,'Asset data'!$CX69:$GJ69),0) -> 9129.824028 | X69: =IF($A69>0,SUMIF('Age profile (years)'!$CT69:$GF69,"<" & S69+0.5,'Asset data'!$CX69:$GJ69)-W69,0) -> 6320.647404 | Y69: =IF($A69>0,SUMIF('Age profile (years)'!$CT69:$GF69,"<" & T69+0.5,'Asset data'!$CX69:$GJ69)-X69-W69,0) -> 40030.76689 | Z69: =IF($A69>0,SUMIF('Age profile (years)'!$CT69:$GF69,"<" & U69+0.5,'Asset data'!$CX69:$GJ69)-Y69-X69-W69,0) -> 10534.41234 | AA69: 10534.41234 | AB69: 0.119266055 | AC69: 0.08256880734 | AD69: 0.5229357798 | AE69: 0.1376146789 | AF69: 0.1376146789 | AI69: =IF($A69>0,'RRR hist-forc'!K69,0) -> 62.88410233 | AJ69: 4813781.995
A70: ='Asset data'!A70 -> 5 | B70: ='Asset data'!B70 -> 0 | C70: ='Asset data'!C70 -> 0 | D70: ='Asset data'!E70 -> Ground Outdoor / Indoor Chamber Mounted; > = 22 kV & < = 33 kV ; > 15 MVA and < = 40 MVA | E70: TRANSFORMERS | F70: =IF(A70>0,SUM('Asset data'!J70:CV70),0) -> 22 | G70: =IF(A70>0,'Asset data'!F70,0) -> 1844.005796 | H70: =IF(A70>0,SUM('Asset data'!CX70:GJ70),0) -> 40568.12752 | I70: 0.001218796387 | J70: 43 | K70: 0.01326902492 | L70: 1844.005796 | M70: =IF($A70>0,SUMPRODUCT('Age profile (years)'!$CT70:$GF70,'Asset data'!$CX70:$GJ70)/H70-0.5,0) -> 28.5 | N70: 1156191.634 | O70: =IF($A70>0,'Asset data'!G70,0) -> 51.7 | P70: 2097372.193 | Q70: 0.4487427466 | R70: 5.17 | S70: 10.34 | T70: 31.02 | U70: 41.36 | W70: =IF($A70>0,SUMIF('Age profile (years)'!$CT70:$GF70,"<" & R70+0.5,'Asset data'!$CX70:$GJ70),0) -> 8540.658426 | X70: =IF($A70>0,SUMIF('Age profile (years)'!$CT70:$GF70,"<" & S70+0.5,'Asset data'!$CX70:$GJ70)-W70,0) -> 0 | Y70: =IF($A70>0,SUMIF('Age profile (years)'!$CT70:$GF70,"<" & T70+0.5,'Asset data'!$CX70:$GJ70)-X70-W70,0) -> 6405.493819 | Z70: =IF($A70>0,SUMIF('Age profile (years)'!$CT70:$GF70,"<" & U70+0.5,'Asset data'!$CX70:$GJ70)-Y70-X70-W70,0) -> 6405.493819 | AA70: 19216.48146 | AB70: 0.2105263158 | AC70: 0 | AD70: 0.1578947368 | AE70: 0.1578947368 | AF70: 0.4736842105 | AI70: =IF($A70>0,'RRR hist-forc'!K70,0) -> 51.7 | AJ70: 2097372.193
A71: ='Asset data'!A71 -> 5 | B71: ='Asset data'!B71 -> 0 | C71: ='Asset data'!C71 -> 0 | D71: ='Asset data'!E71 -> Ground Outdoor / Indoor Chamber Mounted; > 33 kV & < = 66 kV ; < = 15 MVA | E71: TRANSFORMERS | F71: =IF(A71>0,SUM('Asset data'!J71:CV71),0) -> 227 | G71: =IF(A71>0,'Asset data'!F71,0) -> 1203.446247 | H71: =IF(A71>0,SUM('Asset data'!CX71:GJ71),0) -> 273182.298 | I71: 0.008207270539 | J71: 21 | K71: 0.08935247798 | L71: 1203.446247 | M71: =IF($A71>0,SUMPRODUCT('Age profile (years)'!$CT71:$GF71,'Asset data'!$CX71:$GJ71)/H71-0.5,0) -> 39.64438503 | N71: 10830144.2 | O71: =IF($A71>0,'Asset data'!G71,0) -> 68.72168771 | P71: 18773548.57 | Q71: 0.4231168304 | R71: 6.872168771 | S71: 13.74433754 | T71: 41.23301263 | U71: 54.97735017 | W71: =IF($A71>0,SUMIF('Age profile (years)'!$CT71:$GF71,"<" & R71+0.5,'Asset data'!$CX71:$GJ71),0) -> 13147.81113 | X71: =IF($A71>0,SUMIF('Age profile (years)'!$CT71:$GF71,"<" & S71+0.5,'Asset data'!$CX71:$GJ71)-W71,0) -> 5843.471615 | Y71: =IF($A71>0,SUMIF('Age profile (years)'!$CT71:$GF71,"<" & T71+0.5,'Asset data'!$CX71:$GJ71)-X71-W71,0) -> 127095.5076 | Z71: =IF($A71>0,SUMIF('Age profile (years)'!$CT71:$GF71,"<" & U71+0.5,'Asset data'!$CX71:$GJ71)-Y71-X71-W71,0) -> 86191.20633 | AA71: 40904.30131 | AB71: 0.04812834225 | AC71: 0.02139037433 | AD71: 0.4652406417 | AE71: 0.3155080214 | AF71: 0.1497326203 | AI71: =IF($A71>0,'RRR hist-forc'!K71,0) -> 68.72168771 | AJ71: 18773548.57
A72: ='Asset data'!A72 -> 5 | B72: ='Asset data'!B72 -> 0 | C72: ='Asset data'!C72 -> 0 | D72: ='Asset data'!E72 -> Ground Outdoor / Indoor Chamber Mounted; > 33 kV & < = 66 kV ; > 15 MVA and < = 40 MVA | E72: TRANSFORMERS | F72: =IF(A72>0,SUM('Asset data'!J72:CV72),0) -> 105 | G72: =IF(A72>0,'Asset data'!F72,0) -> 1837.039708 | H72: =IF(A72>0,SUM('Asset data'!CX72:GJ72),0) -> 192889.1693 | I72: 0.005795007979 | J72: 27 | K72: 0.06309019795 | L72: 1837.039708 | M72: =IF($A72>0,SUMPRODUCT('Age profile (years)'!$CT72:$GF72,'Asset data'!$CX72:$GJ72)/H72-0.5,0) -> 29.11111111 | N72: 5615218.041 | O72: =IF($A72>0,'Asset data'!G72,0) -> 48.93472998 | P72: 9438979.418 | Q72: 0.4051032646 | R72: 4.893472998 | S72: 9.786945996 | T72: 29.36083799 | U72: 39.14778398 | W72: =IF($A72>0,SUMIF('Age profile (years)'!$CT72:$GF72,"<" & R72+0.5,'Asset data'!$CX72:$GJ72),0) -> 6429.638978 | X72: =IF($A72>0,SUMIF('Age profile (years)'!$CT72:$GF72,"<" & S72+0.5,'Asset data'!$CX72:$GJ72)-W72,0) -> 4286.425985 | Y72: =IF($A72>0,SUMIF('Age profile (years)'!$CT72:$GF72,"<" & T72+0.5,'Asset data'!$CX72:$GJ72)-X72-W72,0) -> 75012.45475 | Z72: =IF($A72>0,SUMIF('Age profile (years)'!$CT72:$GF72,"<" & U72+0.5,'Asset data'!$CX72:$GJ72)-Y72-X72-W72,0) -> 36434.62088 | AA72: 70726.02876 | AB72: 0.03333333333 | AC72: 0.02222222222 | AD72: 0.3888888889 | AE72: 0.1888888889 | AF72: 0.3666666667 | AI72: =IF($A72>0,'RRR hist-forc'!K72,0) -> 48.93472998 | AJ72: 9438979.418
A73: ='Asset data'!A73 -> 5 | B73: ='Asset data'!B73 -> 0 | C73: ='Asset data'!C73 -> 0 | D73: ='Asset data'!E73 -> Ground Outdoor / Indoor Chamber Mounted; > 33 kV & < = 66 kV ; > 40 MVA | E73: TRANSFORMERS | F73: =IF(A73>0,SUM('Asset data'!J73:CV73),0) -> 4 | G73: =IF(A73>0,'Asset data'!F73,0) -> 351.1457261 | H73: =IF(A73>0,SUM('Asset data'!CX73:GJ73),0) -> 1404.582904 | I73: 4.219816574e-05 | J73: 61 | K73: 0.0004594110378 | L73: 351.1457261 | M73: =IF($A73>0,SUMPRODUCT('Age profile (years)'!$CT73:$GF73,'Asset data'!$CX73:$GJ73)/H73-0.5,0) -> 47.83333333 | N73: 67185.88225 | O73: =IF($A73>0,'Asset data'!G73,0) -> 51.7 | P73: 72616.93615 | Q73: 0.07479045777 | R73: 5.17 | S73: 10.34 | T73: 31.02 | U73: 41.36 | W73: =IF($A73>0,SUMIF('Age profile (years)'!$CT73:$GF73,"<" & R73+0.5,'Asset data'!$CX73:$GJ73),0) -> 0 | X73: =IF($A73>0,SUMIF('Age profile (years)'!$CT73:$GF73,"<" & S73+0.5,'Asset data'!$CX73:$GJ73)-W73,0) -> 0 | Y73: =IF($A73>0,SUMIF('Age profile (years)'!$CT73:$GF73,"<" & T73+0.5,'Asset data'!$CX73:$GJ73)-X73-W73,0) -> 0 | Z73: =IF($A73>0,SUMIF('Age profile (years)'!$CT73:$GF73,"<" & U73+0.5,'Asset data'!$CX73:$GJ73)-Y73-X73-W73,0) -> 0 | AA73: 1404.582904 | AB73: 0 | AC73: 0 | AD73: 0 | AE73: 0 | AF73: 1 | AI73: =IF($A73>0,'RRR hist-forc'!K73,0) -> 51.7 | AJ73: 72616.93615
A74: ='Asset data'!A74 -> 5 | B74: ='Asset data'!B74 -> 0 | C74: ='Asset data'!C74 -> 0 | D74: ='Asset data'!E74 -> Ground Outdoor / Indoor Chamber Mounted; > 66 kV & < = 132 kV ; < = 100 MVA | E74: TRANSFORMERS | F74: =IF(A74>0,SUM('Asset data'!J74:CV74),0) -> 72 | G74: =IF(A74>0,'Asset data'!F74,0) -> 2744.241802 | H74: =IF(A74>0,SUM('Asset data'!CX74:GJ74),0) -> 197585.4098 | I74: 0.005936098071 | J74: 26 | K74: 0.06462624447 | L74: 2744.241802 | M74: =IF($A74>0,SUMPRODUCT('Age profile (years)'!$CT74:$GF74,'Asset data'!$CX74:$GJ74)/H74-0.5,0) -> 37.35483871 | N74: 7380771.113 | O74: =IF($A74>0,'Asset data'!G74,0) -> 60.3631134 | P74: 11926870.5 | Q74: 0.3811644794 | R74: 6.03631134 | S74: 12.07262268 | T74: 36.21786804 | U74: 48.29049072 | W74: =IF($A74>0,SUMIF('Age profile (years)'!$CT74:$GF74,"<" & R74+0.5,'Asset data'!$CX74:$GJ74),0) -> 19121.16869 | X74: =IF($A74>0,SUMIF('Age profile (years)'!$CT74:$GF74,"<" & S74+0.5,'Asset data'!$CX74:$GJ74)-W74,0) -> 12747.44579 | Y74: =IF($A74>0,SUMIF('Age profile (years)'!$CT74:$GF74,"<" & T74+0.5,'Asset data'!$CX74:$GJ74)-X74-W74,0) -> 38242.33737 | Z74: =IF($A74>0,SUMIF('Age profile (years)'!$CT74:$GF74,"<" & U74+0.5,'Asset data'!$CX74:$GJ74)-Y74-X74-W74,0) -> 31868.61448 | AA74: 95605.84343 | AB74: 0.09677419355 | AC74: 0.06451612903 | AD74: 0.1935483871 | AE74: 0.1612903226 | AF74: 0.4838709677 | AI74: =IF($A74>0,'RRR hist-forc'!K74,0) -> 60.3631134 | AJ74: 11926870.5
A75: ='Asset data'!A75 -> 5 | B75: ='Asset data'!B75 -> 0 | C75: ='Asset data'!C75 -> 0 | D75: ='Asset data'!E75 -> Ground Outdoor / Indoor Chamber Mounted; > 66 kV & < = 132 kV ; > 100 MVA | E75: TRANSFORMERS | F75: =IF(A75>0,SUM('Asset data'!J75:CV75),0) -> 2 | G75: =IF(A75>0,'Asset data'!F75,0) -> 4267.16617 | H75: =IF(A75>0,SUM('Asset data'!CX75:GJ75),0) -> 8534.332341 | I75: 0.0002563986572 | J75: 54 | K75: 0.002791409795 | L75: 4267.16617 | M75: =IF($A75>0,SUMPRODUCT('Age profile (years)'!$CT75:$GF75,'Asset data'!$CX75:$GJ75)/H75-0.5,0) -> 32.5 | N75: 277365.8011 | O75: =IF($A75>0,'Asset data'!G75,0) -> 51.7 | P75: 441224.982 | Q75: 0.3713733075 | R75: 5.17 | S75: 10.34 | T75: 31.02 | U75: 41.36 | W75: =IF($A75>0,SUMIF('Age profile (years)'!$CT75:$GF75,"<" & R75+0.5,'Asset data'!$CX75:$GJ75),0) -> 0 | X75: =IF($A75>0,SUMIF('Age profile (years)'!$CT75:$GF75,"<" & S75+0.5,'Asset data'!$CX75:$GJ75)-W75,0) -> 0 | Y75: =IF($A75>0,SUMIF('Age profile (years)'!$CT75:$GF75,"<" & T75+0.5,'Asset data'!$CX75:$GJ75)-X75-W75,0) -> 0 | Z75: =IF($A75>0,SUMIF('Age profile (years)'!$CT75:$GF75,"<" & U75+0.5,'Asset data'!$CX75:$GJ75)-Y75-X75-W75,0) -> 8534.332341 | AA75: 0 | AB75: 0 | AC75: 0 | AD75: 0 | AE75: 1 | AF75: 0 | AI75: =IF($A75>0,'RRR hist-forc'!K75,0) -> 51.7 | AJ75: 441224.982
A76: ='Asset data'!A76 -> 6 | B76: ='Asset data'!B76 -> 0 | C76: ='Asset data'!C76 -> 0 | D76: ='Asset data'!E76 -> ˂ = 11 kV ; Fuse | E76: SWITCHGEAR | F76: =IF(A76>0,SUM('Asset data'!J76:CV76),0) -> 65174 | G76: =IF(A76>0,'Asset data'!F76,0) -> 0.1593536959 | H76: =IF(A76>0,SUM('Asset data'!CX76:GJ76),0) -> 10385.71777 | I76: 0.0003120202009 | J76: 53 | K76: 0.00733530237 | L76: 0.1593536959 | M76: =IF($A76>0,SUMPRODUCT('Age profile (years)'!$CT76:$GF76,'Asset data'!$CX76:$GJ76)/H76-0.5,0) -> 31.10067633 | N76: 323002.8469 | O76: =IF($A76>0,'Asset data'!G76,0) -> 49.425041 | P76: 513314.5269 | Q76: 0.3707506216 | R76: 4.9425041 | S76: 9.8850082 | T76: 29.6550246 | U76: 39.5400328 | W76: =IF($A76>0,SUMIF('Age profile (years)'!$CT76:$GF76,"<" & R76+0.5,'Asset data'!$CX76:$GJ76),0) -> 922.505946 | X76: =IF($A76>0,SUMIF('Age profile (years)'!$CT76:$GF76,"<" & S76+0.5,'Asset data'!$CX76:$GJ76)-W76,0) -> 451.5529467 | Y76: =IF($A76>0,SUMIF('Age profile (years)'!$CT76:$GF76,"<" & T76+0.5,'Asset data'!$CX76:$GJ76)-X76-W76,0) -> 2539.567221 | Z76: =IF($A76>0,SUMIF('Age profile (years)'!$CT76:$GF76,"<" & U76+0.5,'Asset data'!$CX76:$GJ76)-Y76-X76-W76,0) -> 1689.476988 | AA76: 4782.614673 | AB76: 0.08882447665 | AC76: 0.04347826087 | AD76: 0.2445249597 | AE76: 0.1626731079 | AF76: 0.4604991948 | AI76: =IF($A76>0,'RRR hist-forc'!K76,0) -> 49.425041 | AJ76: 513314.5269
A77: ='Asset data'!A77 -> 6 | B77: ='Asset data'!B77 -> 0 | C77: ='Asset data'!C77 -> 0 | D77: ='Asset data'!E77 -> ˂ = 11 kV ; Switch | E77: SWITCHGEAR | F77: =IF(A77>0,SUM('Asset data'!J77:CV77),0) -> 57317 | G77: =IF(A77>0,'Asset data'!F77,0) -> 10.21184916 | H77: =IF(A77>0,SUM('Asset data'!CX77:GJ77),0) -> 585312.5584 | I77: 0.01758466252 | J77: 12 | K77: 0.4133989282 | L77: 10.21184916 | M77: =IF($A77>0,SUMPRODUCT('Age profile (years)'!$CT77:$GF77,'Asset data'!$CX77:$GJ77)/H77-0.5,0) -> 39.78627522 | N77: 23287406.54 | O77: =IF($A77>0,'Asset data'!G77,0) -> 52.10879069 | P77: 30499929.6 | Q77: 0.2364767117 | R77: 5.210879069 | S77: 10.42175814 | T77: 31.26527442 | U77: 41.68703256 | W77: =IF($A77>0,SUMIF('Age profile (years)'!$CT77:$GF77,"<" & R77+0.5,'Asset data'!$CX77:$GJ77),0) -> 23770.0101 | X77: =IF($A77>0,SUMIF('Age profile (years)'!$CT77:$GF77,"<" & S77+0.5,'Asset data'!$CX77:$GJ77)-W77,0) -> 15066.39852 | Y77: =IF($A77>0,SUMIF('Age profile (years)'!$CT77:$GF77,"<" & T77+0.5,'Asset data'!$CX77:$GJ77)-X77-W77,0) -> 69575.69204 | Z77: =IF($A77>0,SUMIF('Age profile (years)'!$CT77:$GF77,"<" & U77+0.5,'Asset data'!$CX77:$GJ77)-Y77-X77-W77,0) -> 78811.30922 | AA77: 398089.1485 | AB77: 0.04061079804 | AC77: 0.0257407744 | AD77: 0.1188692965 | AE77: 0.1346482458 | AF77: 0.6801308853 | AI77: =IF($A77>0,'RRR hist-forc'!K77,0) -> 52.10879069 | AJ77: 30499929.6
A78: ='Asset data'!A78 -> 6 | B78: ='Asset data'!B78 -> 0 | C78: ='Asset data'!C78 -> 0 | D78: ='Asset data'!E78 -> ˂ = 11 kV ; Circuit Breaker | E78: SWITCHGEAR | F78: =IF(A78>0,SUM('Asset data'!J78:CV78),0) -> 2442 | G78: =IF(A78>0,'Asset data'!F78,0) -> 12.62363273 | H78: =IF(A78>0,SUM('Asset data'!CX78:GJ78),0) -> 30826.91113 | I78: 0.0009261390703 | J78: 45 | K78: 0.02177266118 | L78: 12.62363273 | M78: =IF($A78>0,SUMPRODUCT('Age profile (years)'!$CT78:$GF78,'Asset data'!$CX78:$GJ78)/H78-0.5,0) -> 34.96097456 | N78: 1077738.856 | O78: =IF($A78>0,'Asset data'!G78,0) -> 53.00571866 | P78: 1634002.578 | Q78: 0.3404301376 | R78: 5.300571866 | S78: 10.60114373 | T78: 31.80343119 | U78: 42.40457492 | W78: =IF($A78>0,SUMIF('Age profile (years)'!$CT78:$GF78,"<" & R78+0.5,'Asset data'!$CX78:$GJ78),0) -> 1528.717024 | X78: =IF($A78>0,SUMIF('Age profile (years)'!$CT78:$GF78,"<" & S78+0.5,'Asset data'!$CX78:$GJ78)-W78,0) -> 1581.889791 | Y78: =IF($A78>0,SUMIF('Age profile (years)'!$CT78:$GF78,"<" & T78+0.5,'Asset data'!$CX78:$GJ78)-X78-W78,0) -> 7351.134909 | Z78: =IF($A78>0,SUMIF('Age profile (years)'!$CT78:$GF78,"<" & U78+0.5,'Asset data'!$CX78:$GJ78)-Y78-X78-W78,0) -> 7098.56427 | AA78: 13266.60513 | AB78: 0.04959034066 | AC78: 0.05131522208 | AD78: 0.2384648555 | AE78: 0.2302716688 | AF78: 0.4303579129 | AI78: =IF($A78>0,'RRR hist-forc'!K78,0) -> 53.00571866 | AJ78: 1634002.578
A79: ='Asset data'!A79 -> 6 | B79: ='Asset data'!B79 -> 0 | C79: ='Asset data'!C79 -> 0 | D79: ='Asset data'!E79 -> > 11 kV & < = 22 kV ; Switch | E79: SWITCHGEAR | F79: =IF(A79>0,SUM('Asset data'!J79:CV79),0) -> 25077 | G79: =IF(A79>0,'Asset data'!F79,0) -> 3.533001223 | H79: =IF(A79>0,SUM('Asset data'!CX79:GJ79),0) -> 88597.07167 | I79: 0.002661739584 | J79: 31 | K79: 0.06257500194 | L79: 3.533001223 | M79: =IF($A79>0,SUMPRODUCT('Age profile (years)'!$CT79:$GF79,'Asset data'!$CX79:$GJ79)/H79-0.5,0) -> 31.83597994 | N79: 2820574.597 | O79: =IF($A79>0,'Asset data'!G79,0) -> 46.30822757 | P79: 4102773.357 | Q79: 0.3125200076 | R79: 4.630822757 | S79: 9.261645515 | T79: 27.78493654 | U79: 37.04658206 | W79: =IF($A79>0,SUMIF('Age profile (years)'!$CT79:$GF79,"<" & R79+0.5,'Asset data'!$CX79:$GJ79),0) -> 7338.044131 | X79: =IF($A79>0,SUMIF('Age profile (years)'!$CT79:$GF79,"<" & S79+0.5,'Asset data'!$CX79:$GJ79)-W79,0) -> 2243.619951 | Y79: =IF($A79>0,SUMIF('Age profile (years)'!$CT79:$GF79,"<" & T79+0.5,'Asset data'!$CX79:$GJ79)-X79-W79,0) -> 14598.33906 | Z79: =IF($A79>0,SUMIF('Age profile (years)'!$CT79:$GF79,"<" & U79+0.5,'Asset data'!$CX79:$GJ79)-Y79-X79-W79,0) -> 14087.4157 | AA79: 50329.65283 | AB79: 0.08282490598 | AC79: 0.02532386126 | AD79: 0.1647722524 | AE79: 0.1590054325 | AF79: 0.5680735478 | AI79: =IF($A79>0,'RRR hist-forc'!K79,0) -> 46.30822757 | AJ79: 4102773.357
A80: ='Asset data'!A80 -> 6 | B80: ='Asset data'!B80 -> 0 | C80: ='Asset data'!C80 -> 0 | D80: ='Asset data'!E80 -> > 11 kV & < = 22 kV ; Circuit Breaker | E80: SWITCHGEAR | F80: =IF(A80>0,SUM('Asset data'!J80:CV80),0) -> 1735 | G80: =IF(A80>0,'Asset data'!F80,0) -> 25.91546996 | H80: =IF(A80>0,SUM('Asset data'!CX80:GJ80),0) -> 44963.34038 | I80: 0.001350842648 | J80: 40 | K80: 0.03175704409 | L80: 25.91546996 | M80: =IF($A80>0,SUMPRODUCT('Age profile (years)'!$CT80:$GF80,'Asset data'!$CX80:$GJ80)/H80-0.5,0) -> 24.56544811 | N80: 1104544.605 | O80: =IF($A80>0,'Asset data'!G80,0) -> 41.30033048 | P80: 1857000.817 | Q80: 0.4051997205 | R80: 4.130033048 | S80: 8.260066097 | T80: 24.78019829 | U80: 33.04026439 | W80: =IF($A80>0,SUMIF('Age profile (years)'!$CT80:$GF80,"<" & R80+0.5,'Asset data'!$CX80:$GJ80),0) -> 3260.902634 | X80: =IF($A80>0,SUMIF('Age profile (years)'!$CT80:$GF80,"<" & S80+0.5,'Asset data'!$CX80:$GJ80)-W80,0) -> 1033.944737 | Y80: =IF($A80>0,SUMIF('Age profile (years)'!$CT80:$GF80,"<" & T80+0.5,'Asset data'!$CX80:$GJ80)-X80-W80,0) -> 13361.74738 | Z80: =IF($A80>0,SUMIF('Age profile (years)'!$CT80:$GF80,"<" & U80+0.5,'Asset data'!$CX80:$GJ80)-Y80-X80-W80,0) -> 13865.46404 | AA80: 13441.28159 | AB80: 0.07252358491 | AC80: 0.02299528302 | AD80: 0.2971698113 | AE80: 0.3083726415 | AF80: 0.2989386792 | AI80: =IF($A80>0,'RRR hist-forc'!K80,0) -> 41.30033048 | AJ80: 1857000.817
A81: ='Asset data'!A81 -> 6 | B81: ='Asset data'!B81 -> 0 | C81: ='Asset data'!C81 -> 0 | D81: ='Asset data'!E81 -> > 22 kV & < = 33 kV ; Switch | E81: SWITCHGEAR | F81: =IF(A81>0,SUM('Asset data'!J81:CV81),0) -> 2413 | G81: =IF(A81>0,'Asset data'!F81,0) -> 99.58760881 | H81: =IF(A81>0,SUM('Asset data'!CX81:GJ81),0) -> 240304.9001 | I81: 0.007219528282 | J81: 23 | K81: 0.1697243408 | L81: 99.58760881 | M81: =IF($A81>0,SUMPRODUCT('Age profile (years)'!$CT81:$GF81,'Asset data'!$CX81:$GJ81)/H81-0.5,0) -> 41.27249135 | N81: 9917981.909 | O81: =IF($A81>0,'Asset data'!G81,0) -> 56.64771878 | P81: 13612724.4 | Q81: 0.2714182983 | R81: 5.664771878 | S81: 11.32954376 | T81: 33.98863127 | U81: 45.31817503 | W81: =IF($A81>0,SUMIF('Age profile (years)'!$CT81:$GF81,"<" & R81+0.5,'Asset data'!$CX81:$GJ81),0) -> 6963.853073 | X81: =IF($A81>0,SUMIF('Age profile (years)'!$CT81:$GF81,"<" & S81+0.5,'Asset data'!$CX81:$GJ81)-W81,0) -> 13927.70615 | Y81: =IF($A81>0,SUMIF('Age profile (years)'!$CT81:$GF81,"<" & T81+0.5,'Asset data'!$CX81:$GJ81)-X81-W81,0) -> 48435.15719 | Z81: =IF($A81>0,SUMIF('Age profile (years)'!$CT81:$GF81,"<" & U81+0.5,'Asset data'!$CX81:$GJ81)-Y81-X81-W81,0) -> 26919.96934 | AA81: 144058.2143 | AB81: 0.02897923875 | AC81: 0.05795847751 | AD81: 0.2015570934 | AE81: 0.1120242215 | AF81: 0.5994809689 | AI81: =IF($A81>0,'RRR hist-forc'!K81,0) -> 56.64771878 | AJ81: 13612724.4
A82: ='Asset data'!A82 -> 6 | B82: ='Asset data'!B82 -> 0 | C82: ='Asset data'!C82 -> 0 | D82: ='Asset data'!E82 -> > 22 kV & < = 33 kV ; Circuit Breaker | E82: SWITCHGEAR | F82: =IF(A82>0,SUM('Asset data'!J82:CV82),0) -> 358 | G82: =IF(A82>0,'Asset data'!F82,0) -> 170.799514 | H82: =IF(A82>0,SUM('Asset data'!CX82:GJ82),0) -> 61146.226 | I82: 0.001837028324 | J82: 36 | K82: 0.04318681349 | L82: 170.799514 | M82: =IF($A82>0,SUMPRODUCT('Age profile (years)'!$CT82:$GF82,'Asset data'!$CX82:$GJ82)/H82-0.5,0) -> 34.92655367 | N82: 2135626.944 | O82: =IF($A82>0,'Asset data'!G82,0) -> 54.29424025 | P82: 3319887.885 | Q82: 0.3567171488 | R82: 5.429424025 | S82: 10.85884805 | T82: 32.57654415 | U82: 43.4353922 | W82: =IF($A82>0,SUMIF('Age profile (years)'!$CT82:$GF82,"<" & R82+0.5,'Asset data'!$CX82:$GJ82),0) -> 6218.260271 | X82: =IF($A82>0,SUMIF('Age profile (years)'!$CT82:$GF82,"<" & S82+0.5,'Asset data'!$CX82:$GJ82)-W82,0) -> 4663.695203 | Y82: =IF($A82>0,SUMIF('Age profile (years)'!$CT82:$GF82,"<" & T82+0.5,'Asset data'!$CX82:$GJ82)-X82-W82,0) -> 7600.095887 | Z82: =IF($A82>0,SUMIF('Age profile (years)'!$CT82:$GF82,"<" & U82+0.5,'Asset data'!$CX82:$GJ82)-Y82-X82-W82,0) -> 13818.35616 | AA82: 28845.81848 | AB82: 0.1016949153 | AC82: 0.07627118644 | AD82: 0.1242937853 | AE82: 0.2259887006 | AF82: 0.4717514124 | AI82: =IF($A82>0,'RRR hist-forc'!K82,0) -> 54.29424025 | AJ82: 3319887.885
A83: ='Asset data'!A83 -> 6 | B83: ='Asset data'!B83 -> 0 | C83: ='Asset data'!C83 -> 0 | D83: ='Asset data'!E83 -> > 33 kV & < = 66 kV ; Switch | E83: SWITCHGEAR | F83: =IF(A83>0,SUM('Asset data'!J83:CV83),0) -> 1963 | G83: =IF(A83>0,'Asset data'!F83,0) -> 93.00230719 | H83: =IF(A83>0,SUM('Asset data'!CX83:GJ83),0) -> 182563.529 | I83: 0.005484792697 | J83: 28 | K83: 0.1289423337 | L83: 93.00230719 | M83: =IF($A83>0,SUMPRODUCT('Age profile (years)'!$CT83:$GF83,'Asset data'!$CX83:$GJ83)/H83-0.5,0) -> 35.92984293 | N83: 6559478.923 | O83: =IF($A83>0,'Asset data'!G83,0) -> 60.48358669 | P83: 11042097.03 | Q83: 0.4059571381 | R83: 6.048358669 | S83: 12.09671734 | T83: 36.29015201 | U83: 48.38686935 | W83: =IF($A83>0,SUMIF('Age profile (years)'!$CT83:$GF83,"<" & R83+0.5,'Asset data'!$CX83:$GJ83),0) -> 3154.238983 | X83: =IF($A83>0,SUMIF('Age profile (years)'!$CT83:$GF83,"<" & S83+0.5,'Asset data'!$CX83:$GJ83)-W83,0) -> 10705.29594 | Y83: =IF($A83>0,SUMIF('Age profile (years)'!$CT83:$GF83,"<" & T83+0.5,'Asset data'!$CX83:$GJ83)-X83-W83,0) -> 78186.89358 | Z83: =IF($A83>0,SUMIF('Age profile (years)'!$CT83:$GF83,"<" & U83+0.5,'Asset data'!$CX83:$GJ83)-Y83-X83-W83,0) -> 36895.0378 | AA83: 53622.06271 | AB83: 0.01727748691 | AC83: 0.05863874346 | AD83: 0.4282722513 | AE83: 0.2020942408 | AF83: 0.2937172775 | AI83: =IF($A83>0,'RRR hist-forc'!K83,0) -> 60.48358669 | AJ83: 11042097.03
A84: ='Asset data'!A84 -> 6 | B84: ='Asset data'!B84 -> 0 | C84: ='Asset data'!C84 -> 0 | D84: ='Asset data'!E84 -> > 33 kV & < = 66 kV ; Circuit Breaker | E84: SWITCHGEAR | F84: =IF(A84>0,SUM('Asset data'!J84:CV84),0) -> 593 | G84: =IF(A84>0,'Asset data'!F84,0) -> 163.5550787 | H84: =IF(A84>0,SUM('Asset data'!CX84:GJ84),0) -> 96988.16168 | I84: 0.002913834783 | J84: 30 | K84: 0.0685015237 | L84: 163.5550787 | M84: =IF($A84>0,SUMPRODUCT('Age profile (years)'!$CT84:$GF84,'Asset data'!$CX84:$GJ84)/H84-0.5,0) -> 33.47278912 | N84: 3246464.283 | O84: =IF($A84>0,'Asset data'!G84,0) -> 56.72992648 | P84: 5502131.281 | Q84: 0.4099624097 | R84: 5.672992648 | S84: 11.3459853 | T84: 34.03795589 | U84: 45.38394118 | W84: =IF($A84>0,SUMIF('Age profile (years)'!$CT84:$GF84,"<" & R84+0.5,'Asset data'!$CX84:$GJ84),0) -> 3793.754623 | X84: =IF($A84>0,SUMIF('Age profile (years)'!$CT84:$GF84,"<" & S84+0.5,'Asset data'!$CX84:$GJ84)-W84,0) -> 2969.025357 | Y84: =IF($A84>0,SUMIF('Age profile (years)'!$CT84:$GF84,"<" & T84+0.5,'Asset data'!$CX84:$GJ84)-X84-W84,0) -> 43710.6511 | Z84: =IF($A84>0,SUMIF('Age profile (years)'!$CT84:$GF84,"<" & U84+0.5,'Asset data'!$CX84:$GJ84)-Y84-X84-W84,0) -> 16329.63947 | AA84: 30185.09113 | AB84: 0.03911564626 | AC84: 0.0306122449 | AD84: 0.4506802721 | AE84: 0.1683673469 | AF84: 0.3112244898 | AI84: =IF($A84>0,'RRR hist-forc'!K84,0) -> 56.72992648 | AJ84: 5502131.281
A85: ='Asset data'!A85 -> 6 | B85: ='Asset data'!B85 -> 0 | C85: ='Asset data'!C85 -> 0 | D85: ='Asset data'!E85 -> > 66 kV & < = 132 kV ; Switch | E85: SWITCHGEAR | F85: =IF(A85>0,SUM('Asset data'!J85:CV85),0) -> 288 | G85: =IF(A85>0,'Asset data'!F85,0) -> 174.0256474 | H85: =IF(A85>0,SUM('Asset data'!CX85:GJ85),0) -> 50119.38645 | I85: 0.001505746774 | J85: 37 | K85: 0.03539869485 | L85: 174.0256474 | M85: =IF($A85>0,SUMPRODUCT('Age profile (years)'!$CT85:$GF85,'Asset data'!$CX85:$GJ85)/H85-0.5,0) -> 26.71428571 | N85: 1338903.61 | O85: =IF($A85>0,'Asset data'!G85,0) -> 43.64615631 | P85: 2187518.575 | Q85: 0.3879349758 | R85: 4.364615631 | S85: 8.729231261 | T85: 26.18769378 | U85: 34.91692504 | W85: =IF($A85>0,SUMIF('Age profile (years)'!$CT85:$GF85,"<" & R85+0.5,'Asset data'!$CX85:$GJ85),0) -> 4653.943028 | X85: =IF($A85>0,SUMIF('Age profile (years)'!$CT85:$GF85,"<" & S85+0.5,'Asset data'!$CX85:$GJ85)-W85,0) -> 357.9956175 | Y85: =IF($A85>0,SUMIF('Age profile (years)'!$CT85:$GF85,"<" & T85+0.5,'Asset data'!$CX85:$GJ85)-X85-W85,0) -> 15751.80717 | Z85: =IF($A85>0,SUMIF('Age profile (years)'!$CT85:$GF85,"<" & U85+0.5,'Asset data'!$CX85:$GJ85)-Y85-X85-W85,0) -> 7159.912351 | AA85: 22195.72829 | AB85: 0.09285714286 | AC85: 0.007142857143 | AD85: 0.3142857143 | AE85: 0.1428571429 | AF85: 0.4428571429 | AI85: =IF($A85>0,'RRR hist-forc'!K85,0) -> 43.64615631 | AJ85: 2187518.575
A86: ='Asset data'!A86 -> 6 | B86: ='Asset data'!B86 -> 0 | C86: ='Asset data'!C86 -> 0 | D86: ='Asset data'!E86 -> > 66 kV & < = 132 kV ; Circuit Breaker | E86: SWITCHGEAR | F86: =IF(A86>0,SUM('Asset data'!J86:CV86),0) -> 108 | G86: =IF(A86>0,'Asset data'!F86,0) -> 181.616096 | H86: =IF(A86>0,SUM('Asset data'!CX86:GJ86),0) -> 19614.53837 | I86: 0.0005892835079 | J86: 47 | K86: 0.01385350275 | L86: 181.616096 | M86: =IF($A86>0,SUMPRODUCT('Age profile (years)'!$CT86:$GF86,'Asset data'!$CX86:$GJ86)/H86-0.5,0) -> 28.26851852 | N86: 554473.941 | O86: =IF($A86>0,'Asset data'!G86,0) -> 46.3657779 | P86: 909443.3295 | Q86: 0.3903150168 | R86: 4.63657779 | S86: 9.27315558 | T86: 27.81946674 | U86: 37.09262232 | W86: =IF($A86>0,SUMIF('Age profile (years)'!$CT86:$GF86,"<" & R86+0.5,'Asset data'!$CX86:$GJ86),0) -> 1452.928768 | X86: =IF($A86>0,SUMIF('Age profile (years)'!$CT86:$GF86,"<" & S86+0.5,'Asset data'!$CX86:$GJ86)-W86,0) -> 181.616096 | Y86: =IF($A86>0,SUMIF('Age profile (years)'!$CT86:$GF86,"<" & T86+0.5,'Asset data'!$CX86:$GJ86)-X86-W86,0) -> 6901.411647 | Z86: =IF($A86>0,SUMIF('Age profile (years)'!$CT86:$GF86,"<" & U86+0.5,'Asset data'!$CX86:$GJ86)-Y86-X86-W86,0) -> 5448.482879 | AA86: 5630.098975 | AB86: 0.07407407407 | AC86: 0.009259259259 | AD86: 0.3518518519 | AE86: 0.2777777778 | AF86: 0.287037037 | AI86: =IF($A86>0,'RRR hist-forc'!K86,0) -> 46.3657779 | AJ86: 909443.3295
A87: ='Asset data'!A87 -> 6 | B87: ='Asset data'!B87 -> 0 | C87: ='Asset data'!C87 -> 0 | D87: ='Asset data'!E87 -> > 132 kV ; Switch | E87: =IF(A87>0,VLOOKUP(A87,IDtable,2),0) -> SWITCHGEAR | F87: =IF(A87>0,SUM('Asset data'!J87:CV87),0) -> 33 | G87: =IF(A87>0,'Asset data'!F87,0) -> 93.00230719 | H87: =IF(A87>0,SUM('Asset data'!CX87:GJ87),0) -> 3069.076137 | I87: =H87/$H$18/1000 -> 9.220486959e-05 | J87: =IF(RANK(0,I$21:I$205)=RANK(I87,I$21:I$205),0,RANK(I87,I$21:I$205)) -> 56 | K87: =IF(A87>0,H87/(VLOOKUP(A87,$A$6:$H$17,8)*1000),0) -> 0.002167650032 | L87: =IF($A87>0,H87/F87,0) -> 93.00230719 | M87: =IF($A87>0,SUMPRODUCT('Age profile (years)'!$CT87:$GF87,'Asset data'!$CX87:$GJ87)/H87-0.5,0) -> 37.66129032 | N87: =IF($A87>0,M87*H87,0) -> 115585.3674 | O87: =IF($A87>0,'Asset data'!G87,0) -> 53.3 | P87: =IF($A87>0,H87*O87,0) -> 163581.7581 | Q87: =IF($A87>0,(O87-M87)/O87,0) -> 0.2934091872 | R87: 5.33 | S87: 10.66 | T87: 31.98 | U87: 42.64 | W87: =IF($A87>0,SUMIF('Age profile (years)'!$CT87:$GF87,"<" & R87+0.5,'Asset data'!$CX87:$GJ87),0) -> 0 | X87: =IF($A87>0,SUMIF('Age profile (years)'!$CT87:$GF87,"<" & S87+0.5,'Asset data'!$CX87:$GJ87)-W87,0) -> 0 | Y87: =IF($A87>0,SUMIF('Age profile (years)'!$CT87:$GF87,"<" & T87+0.5,'Asset data'!$CX87:$GJ87)-X87-W87,0) -> 0 | Z87: =IF($A87>0,SUMIF('Age profile (years)'!$CT87:$GF87,"<" & U87+0.5,'Asset data'!$CX87:$GJ87)-Y87-X87-W87,0) -> 2673.066313 | AA87: =IF($A87>0,H87-Z87-Y87-X87-W87,0) -> 396.0098242 | AB87: =IF($A87>0,W87/$H87,0) -> 0 | AC87: =IF($A87>0,X87/$H87,0) -> 0 | AD87: =IF($A87>0,Y87/$H87,0) -> 0 | AE87: =IF($A87>0,Z87/$H87,0) -> 0.8709677419 | AF87: =IF($A87>0,AA87/$H87,0) -> 0.1290322581 | AI87: =IF($A87>0,'RRR hist-forc'!K87,0) -> 53.3 | AJ87: =IF($A87>0,AI87*H87,0) -> 163581.7581
A88: ='Asset data'!A88 -> 6 | B88: ='Asset data'!B88 -> 0 | C88: ='Asset data'!C88 -> 0 | D88: ='Asset data'!E88 -> > 132 kV ; Circuit Breaker | E88: SWITCHGEAR | F88: =IF(A88>0,SUM('Asset data'!J88:CV88),0) -> 12 | G88: =IF(A88>0,'Asset data'!F88,0) -> 163.5550787 | H88: =IF(A88>0,SUM('Asset data'!CX88:GJ88),0) -> 1962.660945 | I88: 5.896461617e-05 | J88: 59 | K88: 0.00138620284 | L88: 163.5550787 | M88: =IF($A88>0,SUMPRODUCT('Age profile (years)'!$CT88:$GF88,'Asset data'!$CX88:$GJ88)/H88-0.5,0) -> 35.41666667 | N88: 69510.90845 | O88: =IF($A88>0,'Asset data'!G88,0) -> 53.3 | P88: 104609.8283 | Q88: 0.3355222014 | R88: 5.33 | S88: 10.66 | T88: 31.98 | U88: 42.64 | W88: =IF($A88>0,SUMIF('Age profile (years)'!$CT88:$GF88,"<" & R88+0.5,'Asset data'!$CX88:$GJ88),0) -> 0 | X88: =IF($A88>0,SUMIF('Age profile (years)'!$CT88:$GF88,"<" & S88+0.5,'Asset data'!$CX88:$GJ88)-W88,0) -> 0 | Y88: =IF($A88>0,SUMIF('Age profile (years)'!$CT88:$GF88,"<" & T88+0.5,'Asset data'!$CX88:$GJ88)-X88-W88,0) -> 163.5550787 | Z88: =IF($A88>0,SUMIF('Age profile (years)'!$CT88:$GF88,"<" & U88+0.5,'Asset data'!$CX88:$GJ88)-Y88-X88-W88,0) -> 1799.105866 | AA88: -2.842170943e-14 | AB88: 0 | AC88: 0 | AD88: 0.08333333333 | AE88: 0.9166666667 | AF88: -1.448121211e-17 | AI88: =IF($A88>0,'RRR hist-forc'!K88,0) -> 53.3 | AJ88: 104609.8283
A89: ='Asset data'!A89 -> 0 | B89: ='Asset data'!B89 -> 0 | C89: ='Asset data'!C89 -> 0 | D89: ='Asset data'!E89 -> 0 | E89: 0 | F89: =IF(A89>0,SUM('Asset data'!J89:CV89),0) -> 0 | G89: =IF(A89>0,'Asset data'!F89,0) -> 0 | H89: =IF(A89>0,SUM('Asset data'!CX89:GJ89),0) -> 0 | I89: 0 | J89: 0 | K89: 0 | L89: 0 | M89: =IF($A89>0,SUMPRODUCT('Age profile (years)'!$CT89:$GF89,'Asset data'!$CX89:$GJ89)/H89-0.5,0) -> 0 | N89: 0 | O89: =IF($A89>0,'Asset data'!G89,0) -> 0 | P89: 0 | Q89: 0 | R89: 0 | S89: 0 | T89: 0 | U89: 0 | W89: =IF($A89>0,SUMIF('Age profile (years)'!$CT89:$GF89,"<" & R89+0.5,'Asset data'!$CX89:$GJ89),0) -> 0 | X89: =IF($A89>0,SUMIF('Age profile (years)'!$CT89:$GF89,"<" & S89+0.5,'Asset data'!$CX89:$GJ89)-W89,0) -> 0 | Y89: =IF($A89>0,SUMIF('Age profile (years)'!$CT89:$GF89,"<" & T89+0.5,'Asset data'!$CX89:$GJ89)-X89-W89,0) -> 0 | Z89: =IF($A89>0,SUMIF('Age profile (years)'!$CT89:$GF89,"<" & U89+0.5,'Asset data'!$CX89:$GJ89)-Y89-X89-W89,0) -> 0 | AA89: 0 | AB89: 0 | AC89: 0 | AD89: 0 | AE89: 0 | AF89: 0 | AI89: =IF($A89>0,'RRR hist-forc'!K89,0) -> 0 | AJ89: 0
A90: ='Asset data'!A90 -> 0 | B90: ='Asset data'!B90 -> 0 | C90: ='Asset data'!C90 -> 0 | D90: ='Asset data'!E90 -> 0 | E90: 0 | F90: =IF(A90>0,SUM('Asset data'!J90:CV90),0) -> 0 | G90: =IF(A90>0,'Asset data'!F90,0) -> 0 | H90: =IF(A90>0,SUM('Asset data'!CX90:GJ90),0) -> 0 | I90: 0 | J90: 0 | K90: 0 | L90: 0 | M90: =IF($A90>0,SUMPRODUCT('Age profile (years)'!$CT90:$GF90,'Asset data'!$CX90:$GJ90)/H90-0.5,0) -> 0 | N90: 0 | O90: =IF($A90>0,'Asset data'!G90,0) -> 0 | P90: 0 | Q90: 0 | R90: 0 | S90: 0 | T90: 0 | U90: 0 | W90: =IF($A90>0,SUMIF('Age profile (years)'!$CT90:$GF90,"<" & R90+0.5,'Asset data'!$CX90:$GJ90),0) -> 0 | X90: =IF($A90>0,SUMIF('Age profile (years)'!$CT90:$GF90,"<" & S90+0.5,'Asset data'!$CX90:$GJ90)-W90,0) -> 0 | Y90: =IF($A90>0,SUMIF('Age profile (years)'!$CT90:$GF90,"<" & T90+0.5,'Asset data'!$CX90:$GJ90)-X90-W90,0) -> 0 | Z90: =IF($A90>0,SUMIF('Age profile (years)'!$CT90:$GF90,"<" & U90+0.5,'Asset data'!$CX90:$GJ90)-Y90-X90-W90,0) -> 0 | AA90: 0 | AB90: 0 | AC90: 0 | AD90: 0 | AE90: 0 | AF90: 0 | AI90: =IF($A90>0,'RRR hist-forc'!K90,0) -> 0 | AJ90: 0
A91: ='Asset data'!A91 -> 0 | B91: ='Asset data'!B91 -> 0 | C91: ='Asset data'!C91 -> 0 | D91: ='Asset data'!E91 -> 0 | E91: 0 | F91: =IF(A91>0,SUM('Asset data'!J91:CV91),0) -> 0 | G91: =IF(A91>0,'Asset data'!F91,0) -> 0 | H91: =IF(A91>0,SUM('Asset data'!CX91:GJ91),0) -> 0 | I91: 0 | J91: 0 | K91: 0 | L91: 0 | M91: =IF($A91>0,SUMPRODUCT('Age profile (years)'!$CT91:$GF91,'Asset data'!$CX91:$GJ91)/H91-0.5,0) -> 0 | N91: 0 | O91: =IF($A91>0,'Asset data'!G91,0) -> 0 | P91: 0 | Q91: 0 | R91: 0 | S91: 0 | T91: 0 | U91: 0 | W91: =IF($A91>0,SUMIF('Age profile (years)'!$CT91:$GF91,"<" & R91+0.5,'Asset data'!$CX91:$GJ91),0) -> 0 | X91: =IF($A91>0,SUMIF('Age profile (years)'!$CT91:$GF91,"<" & S91+0.5,'Asset data'!$CX91:$GJ91)-W91,0) -> 0 | Y91: =IF($A91>0,SUMIF('Age profile (years)'!$CT91:$GF91,"<" & T91+0.5,'Asset data'!$CX91:$GJ91)-X91-W91,0) -> 0 | Z91: =IF($A91>0,SUMIF('Age profile (years)'!$CT91:$GF91,"<" & U91+0.5,'Asset data'!$CX91:$GJ91)-Y91-X91-W91,0) -> 0 | AA91: 0 | AB91: 0 | AC91: 0 | AD91: 0 | AE91: 0 | AF91: 0 | AI91: =IF($A91>0,'RRR hist-forc'!K91,0) -> 0 | AJ91: 0
A92: ='Asset data'!A92 -> 0 | B92: ='Asset data'!B92 -> 0 | C92: ='Asset data'!C92 -> 0 | D92: ='Asset data'!E92 -> 0 | E92: 0 | F92: =IF(A92>0,SUM('Asset data'!J92:CV92),0) -> 0 | G92: =IF(A92>0,'Asset data'!F92,0) -> 0 | H92: =IF(A92>0,SUM('Asset data'!CX92:GJ92),0) -> 0 | I92: 0 | J92: 0 | K92: 0 | L92: 0 | M92: =IF($A92>0,SUMPRODUCT('Age profile (years)'!$CT92:$GF92,'Asset data'!$CX92:$GJ92)/H92-0.5,0) -> 0 | N92: 0 | O92: =IF($A92>0,'Asset data'!G92,0) -> 0 | P92: 0 | Q92: 0 | R92: 0 | S92: 0 | T92: 0 | U92: 0 | W92: =IF($A92>0,SUMIF('Age profile (years)'!$CT92:$GF92,"<" & R92+0.5,'Asset data'!$CX92:$GJ92),0) -> 0 | X92: =IF($A92>0,SUMIF('Age profile (years)'!$CT92:$GF92,"<" & S92+0.5,'Asset data'!$CX92:$GJ92)-W92,0) -> 0 | Y92: =IF($A92>0,SUMIF('Age profile (years)'!$CT92:$GF92,"<" & T92+0.5,'Asset data'!$CX92:$GJ92)-X92-W92,0) -> 0 | Z92: =IF($A92>0,SUMIF('Age profile (years)'!$CT92:$GF92,"<" & U92+0.5,'Asset data'!$CX92:$GJ92)-Y92-X92-W92,0) -> 0 | AA92: 0 | AB92: 0 | AC92: 0 | AD92: 0 | AE92: 0 | AF92: 0 | AI92: =IF($A92>0,'RRR hist-forc'!K92,0) -> 0 | AJ92: 0
A93: ='Asset data'!A93 -> 0 | B93: ='Asset data'!B93 -> 0 | C93: ='Asset data'!C93 -> 0 | D93: ='Asset data'!E93 -> 0 | E93: 0 | F93: =IF(A93>0,SUM('Asset data'!J93:CV93),0) -> 0 | G93: =IF(A93>0,'Asset data'!F93,0) -> 0 | H93: =IF(A93>0,SUM('Asset data'!CX93:GJ93),0) -> 0 | I93: 0 | J93: 0 | K93: 0 | L93: 0 | M93: =IF($A93>0,SUMPRODUCT('Age profile (years)'!$CT93:$GF93,'Asset data'!$CX93:$GJ93)/H93-0.5,0) -> 0 | N93: 0 | O93: =IF($A93>0,'Asset data'!G93,0) -> 0 | P93: 0 | Q93: 0 | R93: 0 | S93: 0 | T93: 0 | U93: 0 | W93: =IF($A93>0,SUMIF('Age profile (years)'!$CT93:$GF93,"<" & R93+0.5,'Asset data'!$CX93:$GJ93),0) -> 0 | X93: =IF($A93>0,SUMIF('Age profile (years)'!$CT93:$GF93,"<" & S93+0.5,'Asset data'!$CX93:$GJ93)-W93,0) -> 0 | Y93: =IF($A93>0,SUMIF('Age profile (years)'!$CT93:$GF93,"<" & T93+0.5,'Asset data'!$CX93:$GJ93)-X93-W93,0) -> 0 | Z93: =IF($A93>0,SUMIF('Age profile (years)'!$CT93:$GF93,"<" & U93+0.5,'Asset data'!$CX93:$GJ93)-Y93-X93-W93,0) -> 0 | AA93: 0 | AB93: 0 | AC93: 0 | AD93: 0 | AE93: 0 | AF93: 0 | AI93: =IF($A93>0,'RRR hist-forc'!K93,0) -> 0 | AJ93: 0
A94: ='Asset data'!A94 -> 0 | B94: ='Asset data'!B94 -> 0 | C94: ='Asset data'!C94 -> 0 | D94: ='Asset data'!E94 -> 0 | E94: 0 | F94: =IF(A94>0,SUM('Asset data'!J94:CV94),0) -> 0 | G94: =IF(A94>0,'Asset data'!F94,0) -> 0 | H94: =IF(A94>0,SUM('Asset data'!CX94:GJ94),0) -> 0 | I94: 0 | J94: 0 | K94: 0 | L94: 0 | M94: =IF($A94>0,SUMPRODUCT('Age profile (years)'!$CT94:$GF94,'Asset data'!$CX94:$GJ94)/H94-0.5,0) -> 0 | N94: 0 | O94: =IF($A94>0,'Asset data'!G94,0) -> 0 | P94: 0 | Q94: 0 | R94: 0 | S94: 0 | T94: 0 | U94: 0 | W94: =IF($A94>0,SUMIF('Age profile (years)'!$CT94:$GF94,"<" & R94+0.5,'Asset data'!$CX94:$GJ94),0) -> 0 | X94: =IF($A94>0,SUMIF('Age profile (years)'!$CT94:$GF94,"<" & S94+0.5,'Asset data'!$CX94:$GJ94)-W94,0) -> 0 | Y94: =IF($A94>0,SUMIF('Age profile (years)'!$CT94:$GF94,"<" & T94+0.5,'Asset data'!$CX94:$GJ94)-X94-W94,0) -> 0 | Z94: =IF($A94>0,SUMIF('Age profile (years)'!$CT94:$GF94,"<" & U94+0.5,'Asset data'!$CX94:$GJ94)-Y94-X94-W94,0) -> 0 | AA94: 0 | AB94: 0 | AC94: 0 | AD94: 0 | AE94: 0 | AF94: 0 | AI94: =IF($A94>0,'RRR hist-forc'!K94,0) -> 0 | AJ94: 0
A95: ='Asset data'!A95 -> 0 | B95: ='Asset data'!B95 -> 0 | C95: ='Asset data'!C95 -> 0 | D95: ='Asset data'!E95 -> 0 | E95: 0 | F95: =IF(A95>0,SUM('Asset data'!J95:CV95),0) -> 0 | G95: =IF(A95>0,'Asset data'!F95,0) -> 0 | H95: =IF(A95>0,SUM('Asset data'!CX95:GJ95),0) -> 0 | I95: 0 | J95: 0 | K95: 0 | L95: 0 | M95: =IF($A95>0,SUMPRODUCT('Age profile (years)'!$CT95:$GF95,'Asset data'!$CX95:$GJ95)/H95-0.5,0) -> 0 | N95: 0 | O95: =IF($A95>0,'Asset data'!G95,0) -> 0 | P95: 0 | Q95: 0 | R95: 0 | S95: 0 | T95: 0 | U95: 0 | W95: =IF($A95>0,SUMIF('Age profile (years)'!$CT95:$GF95,"<" & R95+0.5,'Asset data'!$CX95:$GJ95),0) -> 0 | X95: =IF($A95>0,SUMIF('Age profile (years)'!$CT95:$GF95,"<" & S95+0.5,'Asset data'!$CX95:$GJ95)-W95,0) -> 0 | Y95: =IF($A95>0,SUMIF('Age profile (years)'!$CT95:$GF95,"<" & T95+0.5,'Asset data'!$CX95:$GJ95)-X95-W95,0) -> 0 | Z95: =IF($A95>0,SUMIF('Age profile (years)'!$CT95:$GF95,"<" & U95+0.5,'Asset data'!$CX95:$GJ95)-Y95-X95-W95,0) -> 0 | AA95: 0 | AB95: 0 | AC95: 0 | AD95: 0 | AE95: 0 | AF95: 0 | AI95: =IF($A95>0,'RRR hist-forc'!K95,0) -> 0 | AJ95: 0
A96: ='Asset data'!A96 -> 0 | B96: ='Asset data'!B96 -> 0 | C96: ='Asset data'!C96 -> 0 | D96: ='Asset data'!E96 -> 0 | E96: 0 | F96: =IF(A96>0,SUM('Asset data'!J96:CV96),0) -> 0 | G96: =IF(A96>0,'Asset data'!F96,0) -> 0 | H96: =IF(A96>0,SUM('Asset data'!CX96:GJ96),0) -> 0 | I96: 0 | J96: 0 | K96: 0 | L96: 0 | M96: =IF($A96>0,SUMPRODUCT('Age profile (years)'!$CT96:$GF96,'Asset data'!$CX96:$GJ96)/H96-0.5,0) -> 0 | N96: 0 | O96: =IF($A96>0,'Asset data'!G96,0) -> 0 | P96: 0 | Q96: 0 | R96: 0 | S96: 0 | T96: 0 | U96: 0 | W96: =IF($A96>0,SUMIF('Age profile (years)'!$CT96:$GF96,"<" & R96+0.5,'Asset data'!$CX96:$GJ96),0) -> 0 | X96: =IF($A96>0,SUMIF('Age profile (years)'!$CT96:$GF96,"<" & S96+0.5,'Asset data'!$CX96:$GJ96)-W96,0) -> 0 | Y96: =IF($A96>0,SUMIF('Age profile (years)'!$CT96:$GF96,"<" & T96+0.5,'Asset data'!$CX96:$GJ96)-X96-W96,0) -> 0 | Z96: =IF($A96>0,SUMIF('Age profile (years)'!$CT96:$GF96,"<" & U96+0.5,'Asset data'!$CX96:$GJ96)-Y96-X96-W96,0) -> 0 | AA96: 0 | AB96: 0 | AC96: 0 | AD96: 0 | AE96: 0 | AF96: 0 | AI96: =IF($A96>0,'RRR hist-forc'!K96,0) -> 0 | AJ96: 0
A97: ='Asset data'!A97 -> 0 | B97: ='Asset data'!B97 -> 0 | C97: ='Asset data'!C97 -> 0 | D97: ='Asset data'!E97 -> 0 | E97: 0 | F97: =IF(A97>0,SUM('Asset data'!J97:CV97),0) -> 0 | G97: =IF(A97>0,'Asset data'!F97,0) -> 0 | H97: =IF(A97>0,SUM('Asset data'!CX97:GJ97),0) -> 0 | I97: 0 | J97: 0 | K97: 0 | L97: 0 | M97: =IF($A97>0,SUMPRODUCT('Age profile (years)'!$CT97:$GF97,'Asset data'!$CX97:$GJ97)/H97-0.5,0) -> 0 | N97: 0 | O97: =IF($A97>0,'Asset data'!G97,0) -> 0 | P97: 0 | Q97: 0 | R97: 0 | S97: 0 | T97: 0 | U97: 0 | W97: =IF($A97>0,SUMIF('Age profile (years)'!$CT97:$GF97,"<" & R97+0.5,'Asset data'!$CX97:$GJ97),0) -> 0 | X97: =IF($A97>0,SUMIF('Age profile (years)'!$CT97:$GF97,"<" & S97+0.5,'Asset data'!$CX97:$GJ97)-W97,0) -> 0 | Y97: =IF($A97>0,SUMIF('Age profile (years)'!$CT97:$GF97,"<" & T97+0.5,'Asset data'!$CX97:$GJ97)-X97-W97,0) -> 0 | Z97: =IF($A97>0,SUMIF('Age profile (years)'!$CT97:$GF97,"<" & U97+0.5,'Asset data'!$CX97:$GJ97)-Y97-X97-W97,0) -> 0 | AA97: 0 | AB97: 0 | AC97: 0 | AD97: 0 | AE97: 0 | AF97: 0 | AI97: =IF($A97>0,'RRR hist-forc'!K97,0) -> 0 | AJ97: 0
A98: ='Asset data'!A98 -> 0 | B98: ='Asset data'!B98 -> 0 | C98: ='Asset data'!C98 -> 0 | D98: ='Asset data'!E98 -> 0 | E98: 0 | F98: =IF(A98>0,SUM('Asset data'!J98:CV98),0) -> 0 | G98: =IF(A98>0,'Asset data'!F98,0) -> 0 | H98: =IF(A98>0,SUM('Asset data'!CX98:GJ98),0) -> 0 | I98: 0 | J98: 0 | K98: 0 | L98: 0 | M98: =IF($A98>0,SUMPRODUCT('Age profile (years)'!$CT98:$GF98,'Asset data'!$CX98:$GJ98)/H98-0.5,0) -> 0 | N98: 0 | O98: =IF($A98>0,'Asset data'!G98,0) -> 0 | P98: 0 | Q98: 0 | R98: 0 | S98: 0 | T98: 0 | U98: 0 | W98: =IF($A98>0,SUMIF('Age profile (years)'!$CT98:$GF98,"<" & R98+0.5,'Asset data'!$CX98:$GJ98),0) -> 0 | X98: =IF($A98>0,SUMIF('Age profile (years)'!$CT98:$GF98,"<" & S98+0.5,'Asset data'!$CX98:$GJ98)-W98,0) -> 0 | Y98: =IF($A98>0,SUMIF('Age profile (years)'!$CT98:$GF98,"<" & T98+0.5,'Asset data'!$CX98:$GJ98)-X98-W98,0) -> 0 | Z98: =IF($A98>0,SUMIF('Age profile (years)'!$CT98:$GF98,"<" & U98+0.5,'Asset data'!$CX98:$GJ98)-Y98-X98-W98,0) -> 0 | AA98: 0 | AB98: 0 | AC98: 0 | AD98: 0 | AE98: 0 | AF98: 0 | AI98: =IF($A98>0,'RRR hist-forc'!K98,0) -> 0 | AJ98: 0
A99: ='Asset data'!A99 -> 0 | B99: ='Asset data'!B99 -> 0 | C99: ='Asset data'!C99 -> 0 | D99: ='Asset data'!E99 -> 0 | E99: 0 | F99: =IF(A99>0,SUM('Asset data'!J99:CV99),0) -> 0 | G99: =IF(A99>0,'Asset data'!F99,0) -> 0 | H99: =IF(A99>0,SUM('Asset data'!CX99:GJ99),0) -> 0 | I99: 0 | J99: 0 | K99: 0 | L99: 0 | M99: =IF($A99>0,SUMPRODUCT('Age profile (years)'!$CT99:$GF99,'Asset data'!$CX99:$GJ99)/H99-0.5,0) -> 0 | N99: 0 | O99: =IF($A99>0,'Asset data'!G99,0) -> 0 | P99: 0 | Q99: 0 | R99: 0 | S99: 0 | T99: 0 | U99: 0 | W99: =IF($A99>0,SUMIF('Age profile (years)'!$CT99:$GF99,"<" & R99+0.5,'Asset data'!$CX99:$GJ99),0) -> 0 | X99: =IF($A99>0,SUMIF('Age profile (years)'!$CT99:$GF99,"<" & S99+0.5,'Asset data'!$CX99:$GJ99)-W99,0) -> 0 | Y99: =IF($A99>0,SUMIF('Age profile (years)'!$CT99:$GF99,"<" & T99+0.5,'Asset data'!$CX99:$GJ99)-X99-W99,0) -> 0 | Z99: =IF($A99>0,SUMIF('Age profile (years)'!$CT99:$GF99,"<" & U99+0.5,'Asset data'!$CX99:$GJ99)-Y99-X99-W99,0) -> 0 | AA99: 0 | AB99: 0 | AC99: 0 | AD99: 0 | AE99: 0 | AF99: 0 | AI99: =IF($A99>0,'RRR hist-forc'!K99,0) -> 0 | AJ99: 0
A100: ='Asset data'!A100 -> 0 | B100: ='Asset data'!B100 -> 0 | C100: ='Asset data'!C100 -> 0 | D100: ='Asset data'!E100 -> 0 | E100: 0 | F100: =IF(A100>0,SUM('Asset data'!J100:CV100),0) -> 0 | G100: =IF(A100>0,'Asset data'!F100,0) -> 0 | H100: =IF(A100>0,SUM('Asset data'!CX100:GJ100),0) -> 0 | I100: 0 | J100: 0 | K100: 0 | L100: 0 | M100: =IF($A100>0,SUMPRODUCT('Age profile (years)'!$CT100:$GF100,'Asset data'!$CX100:$GJ100)/H100-0.5,0) -> 0 | N100: 0 | O100: =IF($A100>0,'Asset data'!G100,0) -> 0 | P100: 0 | Q100: 0 | R100: 0 | S100: 0 | T100: 0 | U100: =IF($A100>0,$O100-U$4*$O100,0) -> 0 | W100: =IF($A100>0,SUMIF('Age profile (years)'!$CT100:$GF100,"<" & R100+0.5,'Asset data'!$CX100:$GJ100),0) -> 0 | X100: =IF($A100>0,SUMIF('Age profile (years)'!$CT100:$GF100,"<" & S100+0.5,'Asset data'!$CX100:$GJ100)-W100,0) -> 0 | Y100: =IF($A100>0,SUMIF('Age profile (years)'!$CT100:$GF100,"<" & T100+0.5,'Asset data'!$CX100:$GJ100)-X100-W100,0) -> 0 | Z100: =IF($A100>0,SUMIF('Age profile (years)'!$CT100:$GF100,"<" & U100+0.5,'Asset data'!$CX100:$GJ100)-Y100-X100-W100,0) -> 0 | AA100: 0 | AB100: 0 | AC100: 0 | AD100: 0 | AE100: 0 | AF100: 0 | AI100: =IF($A100>0,'RRR hist-forc'!K100,0) -> 0 | AJ100: 0
A101: ='Asset data'!A101 -> 0 | B101: ='Asset data'!B101 -> 0 | C101: ='Asset data'!C101 -> 0 | D101: ='Asset data'!E101 -> 0 | E101: 0 | F101: =IF(A101>0,SUM('Asset data'!J101:CV101),0) -> 0 | G101: =IF(A101>0,'Asset data'!F101,0) -> 0 | H101: =IF(A101>0,SUM('Asset data'!CX101:GJ101),0) -> 0 | I101: 0 | J101: 0 | K101: 0 | L101: 0 | M101: =IF($A101>0,SUMPRODUCT('Age profile (years)'!$CT101:$GF101,'Asset data'!$CX101:$GJ101)/H101-0.5,0) -> 0 | N101: 0 | O101: =IF($A101>0,'Asset data'!G101,0) -> 0 | P101: 0 | Q101: 0 | R101: 0 | S101: 0 | T101: 0 | U101: 0 | W101: =IF($A101>0,SUMIF('Age profile (years)'!$CT101:$GF101,"<" & R101+0.5,'Asset data'!$CX101:$GJ101),0) -> 0 | X101: =IF($A101>0,SUMIF('Age profile (years)'!$CT101:$GF101,"<" & S101+0.5,'Asset data'!$CX101:$GJ101)-W101,0) -> 0 | Y101: =IF($A101>0,SUMIF('Age profile (years)'!$CT101:$GF101,"<" & T101+0.5,'Asset data'!$CX101:$GJ101)-X101-W101,0) -> 0 | Z101: =IF($A101>0,SUMIF('Age profile (years)'!$CT101:$GF101,"<" & U101+0.5,'Asset data'!$CX101:$GJ101)-Y101-X101-W101,0) -> 0 | AA101: 0 | AB101: 0 | AC101: 0 | AD101: 0 | AE101: 0 | AF101: 0 | AI101: =IF($A101>0,'RRR hist-forc'!K101,0) -> 0 | AJ101: 0
A102: ='Asset data'!A102 -> 0 | B102: ='Asset data'!B102 -> 0 | C102: ='Asset data'!C102 -> 0 | D102: ='Asset data'!E102 -> 0 | E102: 0 | F102: =IF(A102>0,SUM('Asset data'!J102:CV102),0) -> 0 | G102: =IF(A102>0,'Asset data'!F102,0) -> 0 | H102: =IF(A102>0,SUM('Asset data'!CX102:GJ102),0) -> 0 | I102: 0 | J102: 0 | K102: 0 | L102: 0 | M102: =IF($A102>0,SUMPRODUCT('Age profile (years)'!$CT102:$GF102,'Asset data'!$CX102:$GJ102)/H102-0.5,0) -> 0 | N102: 0 | O102: =IF($A102>0,'Asset data'!G102,0) -> 0 | P102: 0 | Q102: 0 | R102: 0 | S102: 0 | T102: 0 | U102: 0 | W102: =IF($A102>0,SUMIF('Age profile (years)'!$CT102:$GF102,"<" & R102+0.5,'Asset data'!$CX102:$GJ102),0) -> 0 | X102: =IF($A102>0,SUMIF('Age profile (years)'!$CT102:$GF102,"<" & S102+0.5,'Asset data'!$CX102:$GJ102)-W102,0) -> 0 | Y102: =IF($A102>0,SUMIF('Age profile (years)'!$CT102:$GF102,"<" & T102+0.5,'Asset data'!$CX102:$GJ102)-X102-W102,0) -> 0 | Z102: =IF($A102>0,SUMIF('Age profile (years)'!$CT102:$GF102,"<" & U102+0.5,'Asset data'!$CX102:$GJ102)-Y102-X102-W102,0) -> 0 | AA102: 0 | AB102: 0 | AC102: 0 | AD102: 0 | AE102: 0 | AF102: 0 | AI102: =IF($A102>0,'RRR hist-forc'!K102,0) -> 0 | AJ102: 0
A103: ='Asset data'!A103 -> 0 | B103: ='Asset data'!B103 -> 0 | C103: ='Asset data'!C103 -> 0 | D103: ='Asset data'!E103 -> 0 | E103: 0 | F103: =IF(A103>0,SUM('Asset data'!J103:CV103),0) -> 0 | G103: =IF(A103>0,'Asset data'!F103,0) -> 0 | H103: =IF(A103>0,SUM('Asset data'!CX103:GJ103),0) -> 0 | I103: 0 | J103: 0 | K103: 0 | L103: 0 | M103: =IF($A103>0,SUMPRODUCT('Age profile (years)'!$CT103:$GF103,'Asset data'!$CX103:$GJ103)/H103-0.5,0) -> 0 | N103: 0 | O103: =IF($A103>0,'Asset data'!G103,0) -> 0 | P103: 0 | Q103: 0 | R103: 0 | S103: 0 | T103: 0 | U103: 0 | W103: =IF($A103>0,SUMIF('Age profile (years)'!$CT103:$GF103,"<" & R103+0.5,'Asset data'!$CX103:$GJ103),0) -> 0 | X103: =IF($A103>0,SUMIF('Age profile (years)'!$CT103:$GF103,"<" & S103+0.5,'Asset data'!$CX103:$GJ103)-W103,0) -> 0 | Y103: =IF($A103>0,SUMIF('Age profile (years)'!$CT103:$GF103,"<" & T103+0.5,'Asset data'!$CX103:$GJ103)-X103-W103,0) -> 0 | Z103: =IF($A103>0,SUMIF('Age profile (years)'!$CT103:$GF103,"<" & U103+0.5,'Asset data'!$CX103:$GJ103)-Y103-X103-W103,0) -> 0 | AA103: 0 | AB103: 0 | AC103: 0 | AD103: 0 | AE103: 0 | AF103: 0 | AI103: =IF($A103>0,'RRR hist-forc'!K103,0) -> 0 | AJ103: 0
A104: ='Asset data'!A104 -> 0 | B104: ='Asset data'!B104 -> 0 | C104: ='Asset data'!C104 -> 0 | D104: ='Asset data'!E104 -> 0 | E104: 0 | F104: =IF(A104>0,SUM('Asset data'!J104:CV104),0) -> 0 | G104: =IF(A104>0,'Asset data'!F104,0) -> 0 | H104: =IF(A104>0,SUM('Asset data'!CX104:GJ104),0) -> 0 | I104: 0 | J104: 0 | K104: 0 | L104: 0 | M104: =IF($A104>0,SUMPRODUCT('Age profile (years)'!$CT104:$GF104,'Asset data'!$CX104:$GJ104)/H104-0.5,0) -> 0 | N104: 0 | O104: =IF($A104>0,'Asset data'!G104,0) -> 0 | P104: 0 | Q104: 0 | R104: 0 | S104: 0 | T104: 0 | U104: 0 | W104: =IF($A104>0,SUMIF('Age profile (years)'!$CT104:$GF104,"<" & R104+0.5,'Asset data'!$CX104:$GJ104),0) -> 0 | X104: =IF($A104>0,SUMIF('Age profile (years)'!$CT104:$GF104,"<" & S104+0.5,'Asset data'!$CX104:$GJ104)-W104,0) -> 0 | Y104: =IF($A104>0,SUMIF('Age profile (years)'!$CT104:$GF104,"<" & T104+0.5,'Asset data'!$CX104:$GJ104)-X104-W104,0) -> 0 | Z104: =IF($A104>0,SUMIF('Age profile (years)'!$CT104:$GF104,"<" & U104+0.5,'Asset data'!$CX104:$GJ104)-Y104-X104-W104,0) -> 0 | AA104: 0 | AB104: 0 | AC104: 0 | AD104: 0 | AE104: 0 | AF104: 0 | AI104: =IF($A104>0,'RRR hist-forc'!K104,0) -> 0 | AJ104: 0
A105: ='Asset data'!A105 -> 0 | B105: ='Asset data'!B105 -> 0 | C105: ='Asset data'!C105 -> 0 | D105: ='Asset data'!E105 -> 0 | E105: 0 | F105: =IF(A105>0,SUM('Asset data'!J105:CV105),0) -> 0 | G105: =IF(A105>0,'Asset data'!F105,0) -> 0 | H105: =IF(A105>0,SUM('Asset data'!CX105:GJ105),0) -> 0 | I105: 0 | J105: 0 | K105: 0 | L105: 0 | M105: =IF($A105>0,SUMPRODUCT('Age profile (years)'!$CT105:$GF105,'Asset data'!$CX105:$GJ105)/H105-0.5,0) -> 0 | N105: 0 | O105: =IF($A105>0,'Asset data'!G105,0) -> 0 | P105: 0 | Q105: 0 | R105: 0 | S105: 0 | T105: 0 | U105: 0 | W105: =IF($A105>0,SUMIF('Age profile (years)'!$CT105:$GF105,"<" & R105+0.5,'Asset data'!$CX105:$GJ105),0) -> 0 | X105: =IF($A105>0,SUMIF('Age profile (years)'!$CT105:$GF105,"<" & S105+0.5,'Asset data'!$CX105:$GJ105)-W105,0) -> 0 | Y105: =IF($A105>0,SUMIF('Age profile (years)'!$CT105:$GF105,"<" & T105+0.5,'Asset data'!$CX105:$GJ105)-X105-W105,0) -> 0 | Z105: =IF($A105>0,SUMIF('Age profile (years)'!$CT105:$GF105,"<" & U105+0.5,'Asset data'!$CX105:$GJ105)-Y105-X105-W105,0) -> 0 | AA105: 0 | AB105: 0 | AC105: 0 | AD105: 0 | AE105: 0 | AF105: 0 | AI105: =IF($A105>0,'RRR hist-forc'!K105,0) -> 0 | AJ105: 0
A106: ='Asset data'!A106 -> 0 | B106: ='Asset data'!B106 -> 0 | C106: ='Asset data'!C106 -> 0 | D106: ='Asset data'!E106 -> 0 | E106: 0 | F106: =IF(A106>0,SUM('Asset data'!J106:CV106),0) -> 0 | G106: =IF(A106>0,'Asset data'!F106,0) -> 0 | H106: =IF(A106>0,SUM('Asset data'!CX106:GJ106),0) -> 0 | I106: 0 | J106: 0 | K106: 0 | L106: 0 | M106: =IF($A106>0,SUMPRODUCT('Age profile (years)'!$CT106:$GF106,'Asset data'!$CX106:$GJ106)/H106-0.5,0) -> 0 | N106: 0 | O106: =IF($A106>0,'Asset data'!G106,0) -> 0 | P106: 0 | Q106: 0 | R106: 0 | S106: 0 | T106: 0 | U106: 0 | W106: =IF($A106>0,SUMIF('Age profile (years)'!$CT106:$GF106,"<" & R106+0.5,'Asset data'!$CX106:$GJ106),0) -> 0 | X106: =IF($A106>0,SUMIF('Age profile (years)'!$CT106:$GF106,"<" & S106+0.5,'Asset data'!$CX106:$GJ106)-W106,0) -> 0 | Y106: =IF($A106>0,SUMIF('Age profile (years)'!$CT106:$GF106,"<" & T106+0.5,'Asset data'!$CX106:$GJ106)-X106-W106,0) -> 0 | Z106: =IF($A106>0,SUMIF('Age profile (years)'!$CT106:$GF106,"<" & U106+0.5,'Asset data'!$CX106:$GJ106)-Y106-X106-W106,0) -> 0 | AA106: 0 | AB106: 0 | AC106: 0 | AD106: 0 | AE106: 0 | AF106: 0 | AI106: =IF($A106>0,'RRR hist-forc'!K106,0) -> 0 | AJ106: 0
A107: ='Asset data'!A107 -> 0 | B107: ='Asset data'!B107 -> 0 | C107: ='Asset data'!C107 -> 0 | D107: ='Asset data'!E107 -> 0 | E107: 0 | F107: =IF(A107>0,SUM('Asset data'!J107:CV107),0) -> 0 | G107: =IF(A107>0,'Asset data'!F107,0) -> 0 | H107: =IF(A107>0,SUM('Asset data'!CX107:GJ107),0) -> 0 | I107: 0 | J107: 0 | K107: 0 | L107: 0 | M107: =IF($A107>0,SUMPRODUCT('Age profile (years)'!$CT107:$GF107,'Asset data'!$CX107:$GJ107)/H107-0.5,0) -> 0 | N107: 0 | O107: =IF($A107>0,'Asset data'!G107,0) -> 0 | P107: 0 | Q107: 0 | R107: 0 | S107: 0 | T107: 0 | U107: 0 | W107: =IF($A107>0,SUMIF('Age profile (years)'!$CT107:$GF107,"<" & R107+0.5,'Asset data'!$CX107:$GJ107),0) -> 0 | X107: =IF($A107>0,SUMIF('Age profile (years)'!$CT107:$GF107,"<" & S107+0.5,'Asset data'!$CX107:$GJ107)-W107,0) -> 0 | Y107: =IF($A107>0,SUMIF('Age profile (years)'!$CT107:$GF107,"<" & T107+0.5,'Asset data'!$CX107:$GJ107)-X107-W107,0) -> 0 | Z107: =IF($A107>0,SUMIF('Age profile (years)'!$CT107:$GF107,"<" & U107+0.5,'Asset data'!$CX107:$GJ107)-Y107-X107-W107,0) -> 0 | AA107: 0 | AB107: 0 | AC107: 0 | AD107: 0 | AE107: 0 | AF107: 0 | AI107: =IF($A107>0,'RRR hist-forc'!K107,0) -> 0 | AJ107: 0
A108: ='Asset data'!A108 -> 0 | B108: ='Asset data'!B108 -> 0 | C108: ='Asset data'!C108 -> 0 | D108: ='Asset data'!E108 -> 0 | E108: 0 | F108: =IF(A108>0,SUM('Asset data'!J108:CV108),0) -> 0 | G108: =IF(A108>0,'Asset data'!F108,0) -> 0 | H108: =IF(A108>0,SUM('Asset data'!CX108:GJ108),0) -> 0 | I108: 0 | J108: 0 | K108: 0 | L108: 0 | M108: =IF($A108>0,SUMPRODUCT('Age profile (years)'!$CT108:$GF108,'Asset data'!$CX108:$GJ108)/H108-0.5,0) -> 0 | N108: 0 | O108: =IF($A108>0,'Asset data'!G108,0) -> 0 | P108: 0 | Q108: 0 | R108: 0 | S108: 0 | T108: 0 | U108: 0 | W108: =IF($A108>0,SUMIF('Age profile (years)'!$CT108:$GF108,"<" & R108+0.5,'Asset data'!$CX108:$GJ108),0) -> 0 | X108: =IF($A108>0,SUMIF('Age profile (years)'!$CT108:$GF108,"<" & S108+0.5,'Asset data'!$CX108:$GJ108)-W108,0) -> 0 | Y108: =IF($A108>0,SUMIF('Age profile (years)'!$CT108:$GF108,"<" & T108+0.5,'Asset data'!$CX108:$GJ108)-X108-W108,0) -> 0 | Z108: =IF($A108>0,SUMIF('Age profile (years)'!$CT108:$GF108,"<" & U108+0.5,'Asset data'!$CX108:$GJ108)-Y108-X108-W108,0) -> 0 | AA108: 0 | AB108: 0 | AC108: 0 | AD108: 0 | AE108: 0 | AF108: 0 | AI108: =IF($A108>0,'RRR hist-forc'!K108,0) -> 0 | AJ108: 0
A109: ='Asset data'!A109 -> 0 | B109: ='Asset data'!B109 -> 0 | C109: ='Asset data'!C109 -> 0 | D109: ='Asset data'!E109 -> 0 | E109: 0 | F109: =IF(A109>0,SUM('Asset data'!J109:CV109),0) -> 0 | G109: =IF(A109>0,'Asset data'!F109,0) -> 0 | H109: =IF(A109>0,SUM('Asset data'!CX109:GJ109),0) -> 0 | I109: 0 | J109: 0 | K109: 0 | L109: 0 | M109: =IF($A109>0,SUMPRODUCT('Age profile (years)'!$CT109:$GF109,'Asset data'!$CX109:$GJ109)/H109-0.5,0) -> 0 | N109: 0 | O109: =IF($A109>0,'Asset data'!G109,0) -> 0 | P109: 0 | Q109: 0 | R109: 0 | S109: 0 | T109: 0 | U109: 0 | W109: =IF($A109>0,SUMIF('Age profile (years)'!$CT109:$GF109,"<" & R109+0.5,'Asset data'!$CX109:$GJ109),0) -> 0 | X109: =IF($A109>0,SUMIF('Age profile (years)'!$CT109:$GF109,"<" & S109+0.5,'Asset data'!$CX109:$GJ109)-W109,0) -> 0 | Y109: =IF($A109>0,SUMIF('Age profile (years)'!$CT109:$GF109,"<" & T109+0.5,'Asset data'!$CX109:$GJ109)-X109-W109,0) -> 0 | Z109: =IF($A109>0,SUMIF('Age profile (years)'!$CT109:$GF109,"<" & U109+0.5,'Asset data'!$CX109:$GJ109)-Y109-X109-W109,0) -> 0 | AA109: 0 | AB109: 0 | AC109: 0 | AD109: 0 | AE109: 0 | AF109: 0 | AI109: =IF($A109>0,'RRR hist-forc'!K109,0) -> 0 | AJ109: 0
A110: ='Asset data'!A110 -> 0 | B110: ='Asset data'!B110 -> 0 | C110: ='Asset data'!C110 -> 0 | D110: ='Asset data'!E110 -> 0 | E110: 0 | F110: =IF(A110>0,SUM('Asset data'!J110:CV110),0) -> 0 | G110: =IF(A110>0,'Asset data'!F110,0) -> 0 | H110: =IF(A110>0,SUM('Asset data'!CX110:GJ110),0) -> 0 | I110: 0 | J110: 0 | K110: 0 | L110: 0 | M110: =IF($A110>0,SUMPRODUCT('Age profile (years)'!$CT110:$GF110,'Asset data'!$CX110:$GJ110)/H110-0.5,0) -> 0 | N110: 0 | O110: =IF($A110>0,'Asset data'!G110,0) -> 0 | P110: 0 | Q110: 0 | R110: 0 | S110: 0 | T110: 0 | U110: 0 | W110: =IF($A110>0,SUMIF('Age profile (years)'!$CT110:$GF110,"<" & R110+0.5,'Asset data'!$CX110:$GJ110),0) -> 0 | X110: =IF($A110>0,SUMIF('Age profile (years)'!$CT110:$GF110,"<" & S110+0.5,'Asset data'!$CX110:$GJ110)-W110,0) -> 0 | Y110: =IF($A110>0,SUMIF('Age profile (years)'!$CT110:$GF110,"<" & T110+0.5,'Asset data'!$CX110:$GJ110)-X110-W110,0) -> 0 | Z110: =IF($A110>0,SUMIF('Age profile (years)'!$CT110:$GF110,"<" & U110+0.5,'Asset data'!$CX110:$GJ110)-Y110-X110-W110,0) -> 0 | AA110: 0 | AB110: 0 | AC110: 0 | AD110: 0 | AE110: 0 | AF110: 0 | AI110: =IF($A110>0,'RRR hist-forc'!K110,0) -> 0 | AJ110: 0
A111: ='Asset data'!A111 -> 0 | B111: ='Asset data'!B111 -> 0 | C111: ='Asset data'!C111 -> 0 | D111: ='Asset data'!E111 -> 0 | E111: 0 | F111: =IF(A111>0,SUM('Asset data'!J111:CV111),0) -> 0 | G111: =IF(A111>0,'Asset data'!F111,0) -> 0 | H111: =IF(A111>0,SUM('Asset data'!CX111:GJ111),0) -> 0 | I111: 0 | J111: 0 | K111: 0 | L111: 0 | M111: =IF($A111>0,SUMPRODUCT('Age profile (years)'!$CT111:$GF111,'Asset data'!$CX111:$GJ111)/H111-0.5,0) -> 0 | N111: 0 | O111: =IF($A111>0,'Asset data'!G111,0) -> 0 | P111: 0 | Q111: 0 | R111: 0 | S111: 0 | T111: 0 | U111: 0 | W111: =IF($A111>0,SUMIF('Age profile (years)'!$CT111:$GF111,"<" & R111+0.5,'Asset data'!$CX111:$GJ111),0) -> 0 | X111: =IF($A111>0,SUMIF('Age profile (years)'!$CT111:$GF111,"<" & S111+0.5,'Asset data'!$CX111:$GJ111)-W111,0) -> 0 | Y111: =IF($A111>0,SUMIF('Age profile (years)'!$CT111:$GF111,"<" & T111+0.5,'Asset data'!$CX111:$GJ111)-X111-W111,0) -> 0 | Z111: =IF($A111>0,SUMIF('Age profile (years)'!$CT111:$GF111,"<" & U111+0.5,'Asset data'!$CX111:$GJ111)-Y111-X111-W111,0) -> 0 | AA111: 0 | AB111: 0 | AC111: 0 | AD111: 0 | AE111: 0 | AF111: 0 | AI111: =IF($A111>0,'RRR hist-forc'!K111,0) -> 0 | AJ111: 0
A112: ='Asset data'!A112 -> 0 | B112: ='Asset data'!B112 -> 0 | C112: ='Asset data'!C112 -> 0 | D112: ='Asset data'!E112 -> 0 | E112: 0 | F112: =IF(A112>0,SUM('Asset data'!J112:CV112),0) -> 0 | G112: =IF(A112>0,'Asset data'!F112,0) -> 0 | H112: =IF(A112>0,SUM('Asset data'!CX112:GJ112),0) -> 0 | I112: 0 | J112: 0 | K112: 0 | L112: 0 | M112: =IF($A112>0,SUMPRODUCT('Age profile (years)'!$CT112:$GF112,'Asset data'!$CX112:$GJ112)/H112-0.5,0) -> 0 | N112: 0 | O112: =IF($A112>0,'Asset data'!G112,0) -> 0 | P112: 0 | Q112: 0 | R112: 0 | S112: 0 | T112: 0 | U112: 0 | W112: =IF($A112>0,SUMIF('Age profile (years)'!$CT112:$GF112,"<" & R112+0.5,'Asset data'!$CX112:$GJ112),0) -> 0 | X112: =IF($A112>0,SUMIF('Age profile (years)'!$CT112:$GF112,"<" & S112+0.5,'Asset data'!$CX112:$GJ112)-W112,0) -> 0 | Y112: =IF($A112>0,SUMIF('Age profile (years)'!$CT112:$GF112,"<" & T112+0.5,'Asset data'!$CX112:$GJ112)-X112-W112,0) -> 0 | Z112: =IF($A112>0,SUMIF('Age profile (years)'!$CT112:$GF112,"<" & U112+0.5,'Asset data'!$CX112:$GJ112)-Y112-X112-W112,0) -> 0 | AA112: 0 | AB112: 0 | AC112: 0 | AD112: 0 | AE112: 0 | AF112: 0 | AI112: =IF($A112>0,'RRR hist-forc'!K112,0) -> 0 | AJ112: 0
A113: ='Asset data'!A113 -> 0 | B113: ='Asset data'!B113 -> 0 | C113: ='Asset data'!C113 -> 0 | D113: ='Asset data'!E113 -> 0 | E113: 0 | F113: =IF(A113>0,SUM('Asset data'!J113:CV113),0) -> 0 | G113: =IF(A113>0,'Asset data'!F113,0) -> 0 | H113: =IF(A113>0,SUM('Asset data'!CX113:GJ113),0) -> 0 | I113: 0 | J113: 0 | K113: 0 | L113: 0 | M113: =IF($A113>0,SUMPRODUCT('Age profile (years)'!$CT113:$GF113,'Asset data'!$CX113:$GJ113)/H113-0.5,0) -> 0 | N113: 0 | O113: =IF($A113>0,'Asset data'!G113,0) -> 0 | P113: 0 | Q113: 0 | R113: 0 | S113: 0 | T113: 0 | U113: 0 | W113: =IF($A113>0,SUMIF('Age profile (years)'!$CT113:$GF113,"<" & R113+0.5,'Asset data'!$CX113:$GJ113),0) -> 0 | X113: =IF($A113>0,SUMIF('Age profile (years)'!$CT113:$GF113,"<" & S113+0.5,'Asset data'!$CX113:$GJ113)-W113,0) -> 0 | Y113: =IF($A113>0,SUMIF('Age profile (years)'!$CT113:$GF113,"<" & T113+0.5,'Asset data'!$CX113:$GJ113)-X113-W113,0) -> 0 | Z113: =IF($A113>0,SUMIF('Age profile (years)'!$CT113:$GF113,"<" & U113+0.5,'Asset data'!$CX113:$GJ113)-Y113-X113-W113,0) -> 0 | AA113: 0 | AB113: 0 | AC113: 0 | AD113: 0 | AE113: 0 | AF113: 0 | AI113: =IF($A113>0,'RRR hist-forc'!K113,0) -> 0 | AJ113: 0
A114: ='Asset data'!A114 -> 0 | B114: ='Asset data'!B114 -> 0 | C114: ='Asset data'!C114 -> 0 | D114: ='Asset data'!E114 -> 0 | E114: 0 | F114: =IF(A114>0,SUM('Asset data'!J114:CV114),0) -> 0 | G114: =IF(A114>0,'Asset data'!F114,0) -> 0 | H114: =IF(A114>0,SUM('Asset data'!CX114:GJ114),0) -> 0 | I114: 0 | J114: 0 | K114: 0 | L114: 0 | M114: =IF($A114>0,SUMPRODUCT('Age profile (years)'!$CT114:$GF114,'Asset data'!$CX114:$GJ114)/H114-0.5,0) -> 0 | N114: 0 | O114: =IF($A114>0,'Asset data'!G114,0) -> 0 | P114: 0 | Q114: 0 | R114: 0 | S114: 0 | T114: 0 | U114: 0 | W114: =IF($A114>0,SUMIF('Age profile (years)'!$CT114:$GF114,"<" & R114+0.5,'Asset data'!$CX114:$GJ114),0) -> 0 | X114: =IF($A114>0,SUMIF('Age profile (years)'!$CT114:$GF114,"<" & S114+0.5,'Asset data'!$CX114:$GJ114)-W114,0) -> 0 | Y114: =IF($A114>0,SUMIF('Age profile (years)'!$CT114:$GF114,"<" & T114+0.5,'Asset data'!$CX114:$GJ114)-X114-W114,0) -> 0 | Z114: =IF($A114>0,SUMIF('Age profile (years)'!$CT114:$GF114,"<" & U114+0.5,'Asset data'!$CX114:$GJ114)-Y114-X114-W114,0) -> 0 | AA114: 0 | AB114: 0 | AC114: 0 | AD114: 0 | AE114: 0 | AF114: 0 | AI114: =IF($A114>0,'RRR hist-forc'!K114,0) -> 0 | AJ114: 0
A115: ='Asset data'!A115 -> 0 | B115: ='Asset data'!B115 -> 0 | C115: ='Asset data'!C115 -> 0 | D115: ='Asset data'!E115 -> 0 | E115: 0 | F115: =IF(A115>0,SUM('Asset data'!J115:CV115),0) -> 0 | G115: =IF(A115>0,'Asset data'!F115,0) -> 0 | H115: =IF(A115>0,SUM('Asset data'!CX115:GJ115),0) -> 0 | I115: 0 | J115: 0 | K115: 0 | L115: 0 | M115: =IF($A115>0,SUMPRODUCT('Age profile (years)'!$CT115:$GF115,'Asset data'!$CX115:$GJ115)/H115-0.5,0) -> 0 | N115: 0 | O115: =IF($A115>0,'Asset data'!G115,0) -> 0 | P115: 0 | Q115: 0 | R115: 0 | S115: 0 | T115: 0 | U115: 0 | W115: =IF($A115>0,SUMIF('Age profile (years)'!$CT115:$GF115,"<" & R115+0.5,'Asset data'!$CX115:$GJ115),0) -> 0 | X115: =IF($A115>0,SUMIF('Age profile (years)'!$CT115:$GF115,"<" & S115+0.5,'Asset data'!$CX115:$GJ115)-W115,0) -> 0 | Y115: =IF($A115>0,SUMIF('Age profile (years)'!$CT115:$GF115,"<" & T115+0.5,'Asset data'!$CX115:$GJ115)-X115-W115,0) -> 0 | Z115: =IF($A115>0,SUMIF('Age profile (years)'!$CT115:$GF115,"<" & U115+0.5,'Asset data'!$CX115:$GJ115)-Y115-X115-W115,0) -> 0 | AA115: 0 | AB115: 0 | AC115: 0 | AD115: 0 | AE115: 0 | AF115: 0 | AI115: =IF($A115>0,'RRR hist-forc'!K115,0) -> 0 | AJ115: 0
A116: ='Asset data'!A116 -> 0 | B116: ='Asset data'!B116 -> 0 | C116: ='Asset data'!C116 -> 0 | D116: ='Asset data'!E116 -> 0 | E116: 0 | F116: =IF(A116>0,SUM('Asset data'!J116:CV116),0) -> 0 | G116: =IF(A116>0,'Asset data'!F116,0) -> 0 | H116: =IF(A116>0,SUM('Asset data'!CX116:GJ116),0) -> 0 | I116: 0 | J116: 0 | K116: 0 | L116: 0 | M116: =IF($A116>0,SUMPRODUCT('Age profile (years)'!$CT116:$GF116,'Asset data'!$CX116:$GJ116)/H116-0.5,0) -> 0 | N116: 0 | O116: =IF($A116>0,'Asset data'!G116,0) -> 0 | P116: 0 | Q116: 0 | R116: 0 | S116: 0 | T116: 0 | U116: 0 | W116: =IF($A116>0,SUMIF('Age profile (years)'!$CT116:$GF116,"<" & R116+0.5,'Asset data'!$CX116:$GJ116),0) -> 0 | X116: =IF($A116>0,SUMIF('Age profile (years)'!$CT116:$GF116,"<" & S116+0.5,'Asset data'!$CX116:$GJ116)-W116,0) -> 0 | Y116: =IF($A116>0,SUMIF('Age profile (years)'!$CT116:$GF116,"<" & T116+0.5,'Asset data'!$CX116:$GJ116)-X116-W116,0) -> 0 | Z116: =IF($A116>0,SUMIF('Age profile (years)'!$CT116:$GF116,"<" & U116+0.5,'Asset data'!$CX116:$GJ116)-Y116-X116-W116,0) -> 0 | AA116: 0 | AB116: 0 | AC116: 0 | AD116: 0 | AE116: 0 | AF116: 0 | AI116: =IF($A116>0,'RRR hist-forc'!K116,0) -> 0 | AJ116: 0
A117: ='Asset data'!A117 -> 0 | B117: ='Asset data'!B117 -> 0 | C117: ='Asset data'!C117 -> 0 | D117: ='Asset data'!E117 -> 0 | E117: 0 | F117: =IF(A117>0,SUM('Asset data'!J117:CV117),0) -> 0 | G117: =IF(A117>0,'Asset data'!F117,0) -> 0 | H117: =IF(A117>0,SUM('Asset data'!CX117:GJ117),0) -> 0 | I117: 0 | J117: 0 | K117: 0 | L117: 0 | M117: =IF($A117>0,SUMPRODUCT('Age profile (years)'!$CT117:$GF117,'Asset data'!$CX117:$GJ117)/H117-0.5,0) -> 0 | N117: 0 | O117: =IF($A117>0,'Asset data'!G117,0) -> 0 | P117: 0 | Q117: 0 | R117: 0 | S117: 0 | T117: 0 | U117: 0 | W117: =IF($A117>0,SUMIF('Age profile (years)'!$CT117:$GF117,"<" & R117+0.5,'Asset data'!$CX117:$GJ117),0) -> 0 | X117: =IF($A117>0,SUMIF('Age profile (years)'!$CT117:$GF117,"<" & S117+0.5,'Asset data'!$CX117:$GJ117)-W117,0) -> 0 | Y117: =IF($A117>0,SUMIF('Age profile (years)'!$CT117:$GF117,"<" & T117+0.5,'Asset data'!$CX117:$GJ117)-X117-W117,0) -> 0 | Z117: =IF($A117>0,SUMIF('Age profile (years)'!$CT117:$GF117,"<" & U117+0.5,'Asset data'!$CX117:$GJ117)-Y117-X117-W117,0) -> 0 | AA117: 0 | AB117: 0 | AC117: 0 | AD117: 0 | AE117: 0 | AF117: 0 | AI117: =IF($A117>0,'RRR hist-forc'!K117,0) -> 0 | AJ117: 0
A118: ='Asset data'!A118 -> 0 | B118: ='Asset data'!B118 -> 0 | C118: ='Asset data'!C118 -> 0 | D118: ='Asset data'!E118 -> 0 | E118: 0 | F118: =IF(A118>0,SUM('Asset data'!J118:CV118),0) -> 0 | G118: =IF(A118>0,'Asset data'!F118,0) -> 0 | H118: =IF(A118>0,SUM('Asset data'!CX118:GJ118),0) -> 0 | I118: 0 | J118: 0 | K118: 0 | L118: 0 | M118: =IF($A118>0,SUMPRODUCT('Age profile (years)'!$CT118:$GF118,'Asset data'!$CX118:$GJ118)/H118-0.5,0) -> 0 | N118: 0 | O118: =IF($A118>0,'Asset data'!G118,0) -> 0 | P118: 0 | Q118: 0 | R118: 0 | S118: 0 | T118: 0 | U118: 0 | W118: =IF($A118>0,SUMIF('Age profile (years)'!$CT118:$GF118,"<" & R118+0.5,'Asset data'!$CX118:$GJ118),0) -> 0 | X118: =IF($A118>0,SUMIF('Age profile (years)'!$CT118:$GF118,"<" & S118+0.5,'Asset data'!$CX118:$GJ118)-W118,0) -> 0 | Y118: =IF($A118>0,SUMIF('Age profile (years)'!$CT118:$GF118,"<" & T118+0.5,'Asset data'!$CX118:$GJ118)-X118-W118,0) -> 0 | Z118: =IF($A118>0,SUMIF('Age profile (years)'!$CT118:$GF118,"<" & U118+0.5,'Asset data'!$CX118:$GJ118)-Y118-X118-W118,0) -> 0 | AA118: 0 | AB118: 0 | AC118: 0 | AD118: 0 | AE118: 0 | AF118: 0 | AI118: =IF($A118>0,'RRR hist-forc'!K118,0) -> 0 | AJ118: 0
A119: ='Asset data'!A119 -> 0 | B119: ='Asset data'!B119 -> 0 | C119: ='Asset data'!C119 -> 0 | D119: ='Asset data'!E119 -> 0 | E119: 0 | F119: =IF(A119>0,SUM('Asset data'!J119:CV119),0) -> 0 | G119: =IF(A119>0,'Asset data'!F119,0) -> 0 | H119: =IF(A119>0,SUM('Asset data'!CX119:GJ119),0) -> 0 | I119: 0 | J119: 0 | K119: 0 | L119: 0 | M119: =IF($A119>0,SUMPRODUCT('Age profile (years)'!$CT119:$GF119,'Asset data'!$CX119:$GJ119)/H119-0.5,0) -> 0 | N119: 0 | O119: =IF($A119>0,'Asset data'!G119,0) -> 0 | P119: 0 | Q119: 0 | R119: 0 | S119: 0 | T119: 0 | U119: 0 | W119: =IF($A119>0,SUMIF('Age profile (years)'!$CT119:$GF119,"<" & R119+0.5,'Asset data'!$CX119:$GJ119),0) -> 0 | X119: =IF($A119>0,SUMIF('Age profile (years)'!$CT119:$GF119,"<" & S119+0.5,'Asset data'!$CX119:$GJ119)-W119,0) -> 0 | Y119: =IF($A119>0,SUMIF('Age profile (years)'!$CT119:$GF119,"<" & T119+0.5,'Asset data'!$CX119:$GJ119)-X119-W119,0) -> 0 | Z119: =IF($A119>0,SUMIF('Age profile (years)'!$CT119:$GF119,"<" & U119+0.5,'Asset data'!$CX119:$GJ119)-Y119-X119-W119,0) -> 0 | AA119: 0 | AB119: 0 | AC119: 0 | AD119: 0 | AE119: 0 | AF119: 0 | AI119: =IF($A119>0,'RRR hist-forc'!K119,0) -> 0 | AJ119: 0
A120: ='Asset data'!A120 -> 0 | B120: ='Asset data'!B120 -> 0 | C120: ='Asset data'!C120 -> 0 | D120: ='Asset data'!E120 -> 0 | E120: 0 | F120: =IF(A120>0,SUM('Asset data'!J120:CV120),0) -> 0 | G120: =IF(A120>0,'Asset data'!F120,0) -> 0 | H120: =IF(A120>0,SUM('Asset data'!CX120:GJ120),0) -> 0 | I120: 0 | J120: 0 | K120: 0 | L120: 0 | M120: =IF($A120>0,SUMPRODUCT('Age profile (years)'!$CT120:$GF120,'Asset data'!$CX120:$GJ120)/H120-0.5,0) -> 0 | N120: 0 | O120: =IF($A120>0,'Asset data'!G120,0) -> 0 | P120: 0 | Q120: 0 | R120: 0 | S120: 0 | T120: 0 | U120: 0 | W120: =IF($A120>0,SUMIF('Age profile (years)'!$CT120:$GF120,"<" & R120+0.5,'Asset data'!$CX120:$GJ120),0) -> 0 | X120: =IF($A120>0,SUMIF('Age profile (years)'!$CT120:$GF120,"<" & S120+0.5,'Asset data'!$CX120:$GJ120)-W120,0) -> 0 | Y120: =IF($A120>0,SUMIF('Age profile (years)'!$CT120:$GF120,"<" & T120+0.5,'Asset data'!$CX120:$GJ120)-X120-W120,0) -> 0 | Z120: =IF($A120>0,SUMIF('Age profile (years)'!$CT120:$GF120,"<" & U120+0.5,'Asset data'!$CX120:$GJ120)-Y120-X120-W120,0) -> 0 | AA120: 0 | AB120: 0 | AC120: 0 | AD120: 0 | AE120: 0 | AF120: 0 | AI120: =IF($A120>0,'RRR hist-forc'!K120,0) -> 0 | AJ120: 0
A121: ='Asset data'!A121 -> 0 | B121: ='Asset data'!B121 -> 0 | C121: ='Asset data'!C121 -> 0 | D121: ='Asset data'!E121 -> 0 | E121: 0 | F121: =IF(A121>0,SUM('Asset data'!J121:CV121),0) -> 0 | G121: =IF(A121>0,'Asset data'!F121,0) -> 0 | H121: =IF(A121>0,SUM('Asset data'!CX121:GJ121),0) -> 0 | I121: 0 | J121: 0 | K121: 0 | L121: 0 | M121: =IF($A121>0,SUMPRODUCT('Age profile (years)'!$CT121:$GF121,'Asset data'!$CX121:$GJ121)/H121-0.5,0) -> 0 | N121: 0 | O121: =IF($A121>0,'Asset data'!G121,0) -> 0 | P121: 0 | Q121: 0 | R121: 0 | S121: 0 | T121: 0 | U121: 0 | W121: =IF($A121>0,SUMIF('Age profile (years)'!$CT121:$GF121,"<" & R121+0.5,'Asset data'!$CX121:$GJ121),0) -> 0 | X121: =IF($A121>0,SUMIF('Age profile (years)'!$CT121:$GF121,"<" & S121+0.5,'Asset data'!$CX121:$GJ121)-W121,0) -> 0 | Y121: =IF($A121>0,SUMIF('Age profile (years)'!$CT121:$GF121,"<" & T121+0.5,'Asset data'!$CX121:$GJ121)-X121-W121,0) -> 0 | Z121: =IF($A121>0,SUMIF('Age profile (years)'!$CT121:$GF121,"<" & U121+0.5,'Asset data'!$CX121:$GJ121)-Y121-X121-W121,0) -> 0 | AA121: 0 | AB121: 0 | AC121: 0 | AD121: 0 | AE121: 0 | AF121: 0 | AI121: =IF($A121>0,'RRR hist-forc'!K121,0) -> 0 | AJ121: 0
A122: ='Asset data'!A122 -> 0 | B122: ='Asset data'!B122 -> 0 | C122: ='Asset data'!C122 -> 0 | D122: ='Asset data'!E122 -> 0 | E122: 0 | F122: =IF(A122>0,SUM('Asset data'!J122:CV122),0) -> 0 | G122: =IF(A122>0,'Asset data'!F122,0) -> 0 | H122: =IF(A122>0,SUM('Asset data'!CX122:GJ122),0) -> 0 | I122: 0 | J122: 0 | K122: 0 | L122: 0 | M122: =IF($A122>0,SUMPRODUCT('Age profile (years)'!$CT122:$GF122,'Asset data'!$CX122:$GJ122)/H122-0.5,0) -> 0 | N122: 0 | O122: =IF($A122>0,'Asset data'!G122,0) -> 0 | P122: 0 | Q122: 0 | R122: 0 | S122: 0 | T122: 0 | U122: 0 | W122: =IF($A122>0,SUMIF('Age profile (years)'!$CT122:$GF122,"<" & R122+0.5,'Asset data'!$CX122:$GJ122),0) -> 0 | X122: =IF($A122>0,SUMIF('Age profile (years)'!$CT122:$GF122,"<" & S122+0.5,'Asset data'!$CX122:$GJ122)-W122,0) -> 0 | Y122: =IF($A122>0,SUMIF('Age profile (years)'!$CT122:$GF122,"<" & T122+0.5,'Asset data'!$CX122:$GJ122)-X122-W122,0) -> 0 | Z122: =IF($A122>0,SUMIF('Age profile (years)'!$CT122:$GF122,"<" & U122+0.5,'Asset data'!$CX122:$GJ122)-Y122-X122-W122,0) -> 0 | AA122: 0 | AB122: 0 | AC122: 0 | AD122: 0 | AE122: 0 | AF122: 0 | AI122: =IF($A122>0,'RRR hist-forc'!K122,0) -> 0 | AJ122: 0
A123: ='Asset data'!A123 -> 0 | B123: ='Asset data'!B123 -> 0 | C123: ='Asset data'!C123 -> 0 | D123: ='Asset data'!E123 -> 0 | E123: 0 | F123: =IF(A123>0,SUM('Asset data'!J123:CV123),0) -> 0 | G123: =IF(A123>0,'Asset data'!F123,0) -> 0 | H123: =IF(A123>0,SUM('Asset data'!CX123:GJ123),0) -> 0 | I123: 0 | J123: 0 | K123: 0 | L123: 0 | M123: =IF($A123>0,SUMPRODUCT('Age profile (years)'!$CT123:$GF123,'Asset data'!$CX123:$GJ123)/H123-0.5,0) -> 0 | N123: 0 | O123: =IF($A123>0,'Asset data'!G123,0) -> 0 | P123: 0 | Q123: 0 | R123: 0 | S123: 0 | T123: 0 | U123: 0 | W123: =IF($A123>0,SUMIF('Age profile (years)'!$CT123:$GF123,"<" & R123+0.5,'Asset data'!$CX123:$GJ123),0) -> 0 | X123: =IF($A123>0,SUMIF('Age profile (years)'!$CT123:$GF123,"<" & S123+0.5,'Asset data'!$CX123:$GJ123)-W123,0) -> 0 | Y123: =IF($A123>0,SUMIF('Age profile (years)'!$CT123:$GF123,"<" & T123+0.5,'Asset data'!$CX123:$GJ123)-X123-W123,0) -> 0 | Z123: =IF($A123>0,SUMIF('Age profile (years)'!$CT123:$GF123,"<" & U123+0.5,'Asset data'!$CX123:$GJ123)-Y123-X123-W123,0) -> 0 | AA123: 0 | AB123: 0 | AC123: 0 | AD123: 0 | AE123: 0 | AF123: 0 | AI123: =IF($A123>0,'RRR hist-forc'!K123,0) -> 0 | AJ123: 0
A124: ='Asset data'!A124 -> 0 | B124: ='Asset data'!B124 -> 0 | C124: ='Asset data'!C124 -> 0 | D124: ='Asset data'!E124 -> 0 | E124: 0 | F124: =IF(A124>0,SUM('Asset data'!J124:CV124),0) -> 0 | G124: =IF(A124>0,'Asset data'!F124,0) -> 0 | H124: =IF(A124>0,SUM('Asset data'!CX124:GJ124),0) -> 0 | I124: 0 | J124: 0 | K124: 0 | L124: 0 | M124: =IF($A124>0,SUMPRODUCT('Age profile (years)'!$CT124:$GF124,'Asset data'!$CX124:$GJ124)/H124-0.5,0) -> 0 | N124: 0 | O124: =IF($A124>0,'Asset data'!G124,0) -> 0 | P124: 0 | Q124: 0 | R124: 0 | S124: 0 | T124: 0 | U124: 0 | W124: =IF($A124>0,SUMIF('Age profile (years)'!$CT124:$GF124,"<" & R124+0.5,'Asset data'!$CX124:$GJ124),0) -> 0 | X124: =IF($A124>0,SUMIF('Age profile (years)'!$CT124:$GF124,"<" & S124+0.5,'Asset data'!$CX124:$GJ124)-W124,0) -> 0 | Y124: =IF($A124>0,SUMIF('Age profile (years)'!$CT124:$GF124,"<" & T124+0.5,'Asset data'!$CX124:$GJ124)-X124-W124,0) -> 0 | Z124: =IF($A124>0,SUMIF('Age profile (years)'!$CT124:$GF124,"<" & U124+0.5,'Asset data'!$CX124:$GJ124)-Y124-X124-W124,0) -> 0 | AA124: 0 | AB124: 0 | AC124: 0 | AD124: 0 | AE124: 0 | AF124: 0 | AI124: =IF($A124>0,'RRR hist-forc'!K124,0) -> 0 | AJ124: 0
A125: ='Asset data'!A125 -> 0 | B125: ='Asset data'!B125 -> 0 | C125: ='Asset data'!C125 -> 0 | D125: ='Asset data'!E125 -> 0 | E125: 0 | F125: =IF(A125>0,SUM('Asset data'!J125:CV125),0) -> 0 | G125: =IF(A125>0,'Asset data'!F125,0) -> 0 | H125: =IF(A125>0,SUM('Asset data'!CX125:GJ125),0) -> 0 | I125: 0 | J125: 0 | K125: 0 | L125: 0 | M125: =IF($A125>0,SUMPRODUCT('Age profile (years)'!$CT125:$GF125,'Asset data'!$CX125:$GJ125)/H125-0.5,0) -> 0 | N125: 0 | O125: =IF($A125>0,'Asset data'!G125,0) -> 0 | P125: 0 | Q125: 0 | R125: 0 | S125: 0 | T125: 0 | U125: 0 | W125: =IF($A125>0,SUMIF('Age profile (years)'!$CT125:$GF125,"<" & R125+0.5,'Asset data'!$CX125:$GJ125),0) -> 0 | X125: =IF($A125>0,SUMIF('Age profile (years)'!$CT125:$GF125,"<" & S125+0.5,'Asset data'!$CX125:$GJ125)-W125,0) -> 0 | Y125: =IF($A125>0,SUMIF('Age profile (years)'!$CT125:$GF125,"<" & T125+0.5,'Asset data'!$CX125:$GJ125)-X125-W125,0) -> 0 | Z125: =IF($A125>0,SUMIF('Age profile (years)'!$CT125:$GF125,"<" & U125+0.5,'Asset data'!$CX125:$GJ125)-Y125-X125-W125,0) -> 0 | AA125: 0 | AB125: 0 | AC125: 0 | AD125: 0 | AE125: 0 | AF125: 0 | AI125: =IF($A125>0,'RRR hist-forc'!K125,0) -> 0 | AJ125: 0
A126: ='Asset data'!A126 -> 0 | B126: ='Asset data'!B126 -> 0 | C126: ='Asset data'!C126 -> 0 | D126: ='Asset data'!E126 -> 0 | E126: 0 | F126: =IF(A126>0,SUM('Asset data'!J126:CV126),0) -> 0 | G126: =IF(A126>0,'Asset data'!F126,0) -> 0 | H126: =IF(A126>0,SUM('Asset data'!CX126:GJ126),0) -> 0 | I126: 0 | J126: 0 | K126: 0 | L126: 0 | M126: =IF($A126>0,SUMPRODUCT('Age profile (years)'!$CT126:$GF126,'Asset data'!$CX126:$GJ126)/H126-0.5,0) -> 0 | N126: 0 | O126: =IF($A126>0,'Asset data'!G126,0) -> 0 | P126: 0 | Q126: 0 | R126: 0 | S126: 0 | T126: 0 | U126: 0 | W126: =IF($A126>0,SUMIF('Age profile (years)'!$CT126:$GF126,"<" & R126+0.5,'Asset data'!$CX126:$GJ126),0) -> 0 | X126: =IF($A126>0,SUMIF('Age profile (years)'!$CT126:$GF126,"<" & S126+0.5,'Asset data'!$CX126:$GJ126)-W126,0) -> 0 | Y126: =IF($A126>0,SUMIF('Age profile (years)'!$CT126:$GF126,"<" & T126+0.5,'Asset data'!$CX126:$GJ126)-X126-W126,0) -> 0 | Z126: =IF($A126>0,SUMIF('Age profile (years)'!$CT126:$GF126,"<" & U126+0.5,'Asset data'!$CX126:$GJ126)-Y126-X126-W126,0) -> 0 | AA126: 0 | AB126: 0 | AC126: 0 | AD126: 0 | AE126: 0 | AF126: 0 | AI126: =IF($A126>0,'RRR hist-forc'!K126,0) -> 0 | AJ126: 0
A127: ='Asset data'!A127 -> 0 | B127: ='Asset data'!B127 -> 0 | C127: ='Asset data'!C127 -> 0 | D127: ='Asset data'!E127 -> 0 | E127: 0 | F127: =IF(A127>0,SUM('Asset data'!J127:CV127),0) -> 0 | G127: =IF(A127>0,'Asset data'!F127,0) -> 0 | H127: =IF(A127>0,SUM('Asset data'!CX127:GJ127),0) -> 0 | I127: 0 | J127: 0 | K127: 0 | L127: 0 | M127: =IF($A127>0,SUMPRODUCT('Age profile (years)'!$CT127:$GF127,'Asset data'!$CX127:$GJ127)/H127-0.5,0) -> 0 | N127: 0 | O127: =IF($A127>0,'Asset data'!G127,0) -> 0 | P127: 0 | Q127: 0 | R127: 0 | S127: 0 | T127: 0 | U127: 0 | W127: =IF($A127>0,SUMIF('Age profile (years)'!$CT127:$GF127,"<" & R127+0.5,'Asset data'!$CX127:$GJ127),0) -> 0 | X127: =IF($A127>0,SUMIF('Age profile (years)'!$CT127:$GF127,"<" & S127+0.5,'Asset data'!$CX127:$GJ127)-W127,0) -> 0 | Y127: =IF($A127>0,SUMIF('Age profile (years)'!$CT127:$GF127,"<" & T127+0.5,'Asset data'!$CX127:$GJ127)-X127-W127,0) -> 0 | Z127: =IF($A127>0,SUMIF('Age profile (years)'!$CT127:$GF127,"<" & U127+0.5,'Asset data'!$CX127:$GJ127)-Y127-X127-W127,0) -> 0 | AA127: 0 | AB127: 0 | AC127: 0 | AD127: 0 | AE127: 0 | AF127: 0 | AI127: =IF($A127>0,'RRR hist-forc'!K127,0) -> 0 | AJ127: 0
A128: ='Asset data'!A128 -> 0 | B128: ='Asset data'!B128 -> 0 | C128: ='Asset data'!C128 -> 0 | D128: ='Asset data'!E128 -> 0 | E128: 0 | F128: =IF(A128>0,SUM('Asset data'!J128:CV128),0) -> 0 | G128: =IF(A128>0,'Asset data'!F128,0) -> 0 | H128: =IF(A128>0,SUM('Asset data'!CX128:GJ128),0) -> 0 | I128: 0 | J128: 0 | K128: 0 | L128: 0 | M128: =IF($A128>0,SUMPRODUCT('Age profile (years)'!$CT128:$GF128,'Asset data'!$CX128:$GJ128)/H128-0.5,0) -> 0 | N128: 0 | O128: =IF($A128>0,'Asset data'!G128,0) -> 0 | P128: 0 | Q128: 0 | R128: 0 | S128: 0 | T128: 0 | U128: 0 | W128: =IF($A128>0,SUMIF('Age profile (years)'!$CT128:$GF128,"<" & R128+0.5,'Asset data'!$CX128:$GJ128),0) -> 0 | X128: =IF($A128>0,SUMIF('Age profile (years)'!$CT128:$GF128,"<" & S128+0.5,'Asset data'!$CX128:$GJ128)-W128,0) -> 0 | Y128: =IF($A128>0,SUMIF('Age profile (years)'!$CT128:$GF128,"<" & T128+0.5,'Asset data'!$CX128:$GJ128)-X128-W128,0) -> 0 | Z128: =IF($A128>0,SUMIF('Age profile (years)'!$CT128:$GF128,"<" & U128+0.5,'Asset data'!$CX128:$GJ128)-Y128-X128-W128,0) -> 0 | AA128: 0 | AB128: 0 | AC128: 0 | AD128: 0 | AE128: 0 | AF128: 0 | AI128: =IF($A128>0,'RRR hist-forc'!K128,0) -> 0 | AJ128: 0
A129: ='Asset data'!A129 -> 0 | B129: ='Asset data'!B129 -> 0 | C129: ='Asset data'!C129 -> 0 | D129: ='Asset data'!E129 -> 0 | E129: 0 | F129: =IF(A129>0,SUM('Asset data'!J129:CV129),0) -> 0 | G129: =IF(A129>0,'Asset data'!F129,0) -> 0 | H129: =IF(A129>0,SUM('Asset data'!CX129:GJ129),0) -> 0 | I129: 0 | J129: 0 | K129: 0 | L129: 0 | M129: =IF($A129>0,SUMPRODUCT('Age profile (years)'!$CT129:$GF129,'Asset data'!$CX129:$GJ129)/H129-0.5,0) -> 0 | N129: 0 | O129: =IF($A129>0,'Asset data'!G129,0) -> 0 | P129: 0 | Q129: 0 | R129: 0 | S129: 0 | T129: 0 | U129: 0 | W129: =IF($A129>0,SUMIF('Age profile (years)'!$CT129:$GF129,"<" & R129+0.5,'Asset data'!$CX129:$GJ129),0) -> 0 | X129: =IF($A129>0,SUMIF('Age profile (years)'!$CT129:$GF129,"<" & S129+0.5,'Asset data'!$CX129:$GJ129)-W129,0) -> 0 | Y129: =IF($A129>0,SUMIF('Age profile (years)'!$CT129:$GF129,"<" & T129+0.5,'Asset data'!$CX129:$GJ129)-X129-W129,0) -> 0 | Z129: =IF($A129>0,SUMIF('Age profile (years)'!$CT129:$GF129,"<" & U129+0.5,'Asset data'!$CX129:$GJ129)-Y129-X129-W129,0) -> 0 | AA129: 0 | AB129: 0 | AC129: 0 | AD129: 0 | AE129: 0 | AF129: 0 | AI129: =IF($A129>0,'RRR hist-forc'!K129,0) -> 0 | AJ129: 0
A130: ='Asset data'!A130 -> 0 | B130: ='Asset data'!B130 -> 0 | C130: ='Asset data'!C130 -> 0 | D130: ='Asset data'!E130 -> 0 | E130: 0 | F130: =IF(A130>0,SUM('Asset data'!J130:CV130),0) -> 0 | G130: =IF(A130>0,'Asset data'!F130,0) -> 0 | H130: =IF(A130>0,SUM('Asset data'!CX130:GJ130),0) -> 0 | I130: 0 | J130: 0 | K130: 0 | L130: 0 | M130: =IF($A130>0,SUMPRODUCT('Age profile (years)'!$CT130:$GF130,'Asset data'!$CX130:$GJ130)/H130-0.5,0) -> 0 | N130: 0 | O130: =IF($A130>0,'Asset data'!G130,0) -> 0 | P130: 0 | Q130: 0 | R130: 0 | S130: 0 | T130: 0 | U130: 0 | W130: =IF($A130>0,SUMIF('Age profile (years)'!$CT130:$GF130,"<" & R130+0.5,'Asset data'!$CX130:$GJ130),0) -> 0 | X130: =IF($A130>0,SUMIF('Age profile (years)'!$CT130:$GF130,"<" & S130+0.5,'Asset data'!$CX130:$GJ130)-W130,0) -> 0 | Y130: =IF($A130>0,SUMIF('Age profile (years)'!$CT130:$GF130,"<" & T130+0.5,'Asset data'!$CX130:$GJ130)-X130-W130,0) -> 0 | Z130: =IF($A130>0,SUMIF('Age profile (years)'!$CT130:$GF130,"<" & U130+0.5,'Asset data'!$CX130:$GJ130)-Y130-X130-W130,0) -> 0 | AA130: 0 | AB130: 0 | AC130: 0 | AD130: 0 | AE130: 0 | AF130: 0 | AI130: =IF($A130>0,'RRR hist-forc'!K130,0) -> 0 | AJ130: 0
A131: ='Asset data'!A131 -> 0 | B131: ='Asset data'!B131 -> 0 | C131: ='Asset data'!C131 -> 0 | D131: ='Asset data'!E131 -> 0 | E131: 0 | F131: =IF(A131>0,SUM('Asset data'!J131:CV131),0) -> 0 | G131: =IF(A131>0,'Asset data'!F131,0) -> 0 | H131: =IF(A131>0,SUM('Asset data'!CX131:GJ131),0) -> 0 | I131: 0 | J131: 0 | K131: 0 | L131: 0 | M131: =IF($A131>0,SUMPRODUCT('Age profile (years)'!$CT131:$GF131,'Asset data'!$CX131:$GJ131)/H131-0.5,0) -> 0 | N131: 0 | O131: =IF($A131>0,'Asset data'!G131,0) -> 0 | P131: 0 | Q131: 0 | R131: 0 | S131: 0 | T131: 0 | U131: 0 | W131: =IF($A131>0,SUMIF('Age profile (years)'!$CT131:$GF131,"<" & R131+0.5,'Asset data'!$CX131:$GJ131),0) -> 0 | X131: =IF($A131>0,SUMIF('Age profile (years)'!$CT131:$GF131,"<" & S131+0.5,'Asset data'!$CX131:$GJ131)-W131,0) -> 0 | Y131: =IF($A131>0,SUMIF('Age profile (years)'!$CT131:$GF131,"<" & T131+0.5,'Asset data'!$CX131:$GJ131)-X131-W131,0) -> 0 | Z131: =IF($A131>0,SUMIF('Age profile (years)'!$CT131:$GF131,"<" & U131+0.5,'Asset data'!$CX131:$GJ131)-Y131-X131-W131,0) -> 0 | AA131: 0 | AB131: 0 | AC131: 0 | AD131: 0 | AE131: 0 | AF131: 0 | AI131: =IF($A131>0,'RRR hist-forc'!K131,0) -> 0 | AJ131: 0
A132: ='Asset data'!A132 -> 0 | B132: ='Asset data'!B132 -> 0 | C132: ='Asset data'!C132 -> 0 | D132: ='Asset data'!E132 -> 0 | E132: 0 | F132: =IF(A132>0,SUM('Asset data'!J132:CV132),0) -> 0 | G132: =IF(A132>0,'Asset data'!F132,0) -> 0 | H132: =IF(A132>0,SUM('Asset data'!CX132:GJ132),0) -> 0 | I132: 0 | J132: 0 | K132: 0 | L132: 0 | M132: =IF($A132>0,SUMPRODUCT('Age profile (years)'!$CT132:$GF132,'Asset data'!$CX132:$GJ132)/H132-0.5,0) -> 0 | N132: 0 | O132: =IF($A132>0,'Asset data'!G132,0) -> 0 | P132: 0 | Q132: 0 | R132: 0 | S132: 0 | T132: 0 | U132: 0 | W132: =IF($A132>0,SUMIF('Age profile (years)'!$CT132:$GF132,"<" & R132+0.5,'Asset data'!$CX132:$GJ132),0) -> 0 | X132: =IF($A132>0,SUMIF('Age profile (years)'!$CT132:$GF132,"<" & S132+0.5,'Asset data'!$CX132:$GJ132)-W132,0) -> 0 | Y132: =IF($A132>0,SUMIF('Age profile (years)'!$CT132:$GF132,"<" & T132+0.5,'Asset data'!$CX132:$GJ132)-X132-W132,0) -> 0 | Z132: =IF($A132>0,SUMIF('Age profile (years)'!$CT132:$GF132,"<" & U132+0.5,'Asset data'!$CX132:$GJ132)-Y132-X132-W132,0) -> 0 | AA132: 0 | AB132: 0 | AC132: 0 | AD132: 0 | AE132: 0 | AF132: 0 | AI132: =IF($A132>0,'RRR hist-forc'!K132,0) -> 0 | AJ132: 0
A133: ='Asset data'!A133 -> 0 | B133: ='Asset data'!B133 -> 0 | C133: ='Asset data'!C133 -> 0 | D133: ='Asset data'!E133 -> 0 | E133: 0 | F133: =IF(A133>0,SUM('Asset data'!J133:CV133),0) -> 0 | G133: =IF(A133>0,'Asset data'!F133,0) -> 0 | H133: =IF(A133>0,SUM('Asset data'!CX133:GJ133),0) -> 0 | I133: 0 | J133: 0 | K133: 0 | L133: 0 | M133: =IF($A133>0,SUMPRODUCT('Age profile (years)'!$CT133:$GF133,'Asset data'!$CX133:$GJ133)/H133-0.5,0) -> 0 | N133: 0 | O133: =IF($A133>0,'Asset data'!G133,0) -> 0 | P133: 0 | Q133: 0 | R133: 0 | S133: 0 | T133: 0 | U133: 0 | W133: =IF($A133>0,SUMIF('Age profile (years)'!$CT133:$GF133,"<" & R133+0.5,'Asset data'!$CX133:$GJ133),0) -> 0 | X133: =IF($A133>0,SUMIF('Age profile (years)'!$CT133:$GF133,"<" & S133+0.5,'Asset data'!$CX133:$GJ133)-W133,0) -> 0 | Y133: =IF($A133>0,SUMIF('Age profile (years)'!$CT133:$GF133,"<" & T133+0.5,'Asset data'!$CX133:$GJ133)-X133-W133,0) -> 0 | Z133: =IF($A133>0,SUMIF('Age profile (years)'!$CT133:$GF133,"<" & U133+0.5,'Asset data'!$CX133:$GJ133)-Y133-X133-W133,0) -> 0 | AA133: 0 | AB133: 0 | AC133: 0 | AD133: 0 | AE133: 0 | AF133: 0 | AI133: =IF($A133>0,'RRR hist-forc'!K133,0) -> 0 | AJ133: 0
A134: ='Asset data'!A134 -> 0 | B134: ='Asset data'!B134 -> 0 | C134: ='Asset data'!C134 -> 0 | D134: ='Asset data'!E134 -> 0 | E134: 0 | F134: =IF(A134>0,SUM('Asset data'!J134:CV134),0) -> 0 | G134: =IF(A134>0,'Asset data'!F134,0) -> 0 | H134: =IF(A134>0,SUM('Asset data'!CX134:GJ134),0) -> 0 | I134: 0 | J134: 0 | K134: 0 | L134: 0 | M134: =IF($A134>0,SUMPRODUCT('Age profile (years)'!$CT134:$GF134,'Asset data'!$CX134:$GJ134)/H134-0.5,0) -> 0 | N134: 0 | O134: =IF($A134>0,'Asset data'!G134,0) -> 0 | P134: 0 | Q134: 0 | R134: 0 | S134: 0 | T134: 0 | U134: 0 | W134: =IF($A134>0,SUMIF('Age profile (years)'!$CT134:$GF134,"<" & R134+0.5,'Asset data'!$CX134:$GJ134),0) -> 0 | X134: =IF($A134>0,SUMIF('Age profile (years)'!$CT134:$GF134,"<" & S134+0.5,'Asset data'!$CX134:$GJ134)-W134,0) -> 0 | Y134: =IF($A134>0,SUMIF('Age profile (years)'!$CT134:$GF134,"<" & T134+0.5,'Asset data'!$CX134:$GJ134)-X134-W134,0) -> 0 | Z134: =IF($A134>0,SUMIF('Age profile (years)'!$CT134:$GF134,"<" & U134+0.5,'Asset data'!$CX134:$GJ134)-Y134-X134-W134,0) -> 0 | AA134: 0 | AB134: 0 | AC134: 0 | AD134: 0 | AE134: 0 | AF134: 0 | AI134: =IF($A134>0,'RRR hist-forc'!K134,0) -> 0 | AJ134: 0
A135: ='Asset data'!A135 -> 0 | B135: ='Asset data'!B135 -> 0 | C135: ='Asset data'!C135 -> 0 | D135: ='Asset data'!E135 -> 0 | E135: 0 | F135: =IF(A135>0,SUM('Asset data'!J135:CV135),0) -> 0 | G135: =IF(A135>0,'Asset data'!F135,0) -> 0 | H135: =IF(A135>0,SUM('Asset data'!CX135:GJ135),0) -> 0 | I135: 0 | J135: 0 | K135: 0 | L135: 0 | M135: =IF($A135>0,SUMPRODUCT('Age profile (years)'!$CT135:$GF135,'Asset data'!$CX135:$GJ135)/H135-0.5,0) -> 0 | N135: 0 | O135: =IF($A135>0,'Asset data'!G135,0) -> 0 | P135: 0 | Q135: 0 | R135: 0 | S135: 0 | T135: 0 | U135: 0 | W135: =IF($A135>0,SUMIF('Age profile (years)'!$CT135:$GF135,"<" & R135+0.5,'Asset data'!$CX135:$GJ135),0) -> 0 | X135: =IF($A135>0,SUMIF('Age profile (years)'!$CT135:$GF135,"<" & S135+0.5,'Asset data'!$CX135:$GJ135)-W135,0) -> 0 | Y135: =IF($A135>0,SUMIF('Age profile (years)'!$CT135:$GF135,"<" & T135+0.5,'Asset data'!$CX135:$GJ135)-X135-W135,0) -> 0 | Z135: =IF($A135>0,SUMIF('Age profile (years)'!$CT135:$GF135,"<" & U135+0.5,'Asset data'!$CX135:$GJ135)-Y135-X135-W135,0) -> 0 | AA135: 0 | AB135: 0 | AC135: 0 | AD135: 0 | AE135: 0 | AF135: 0 | AI135: =IF($A135>0,'RRR hist-forc'!K135,0) -> 0 | AJ135: 0
A136: ='Asset data'!A136 -> 0 | B136: ='Asset data'!B136 -> 0 | C136: ='Asset data'!C136 -> 0 | D136: ='Asset data'!E136 -> 0 | E136: 0 | F136: =IF(A136>0,SUM('Asset data'!J136:CV136),0) -> 0 | G136: =IF(A136>0,'Asset data'!F136,0) -> 0 | H136: =IF(A136>0,SUM('Asset data'!CX136:GJ136),0) -> 0 | I136: 0 | J136: 0 | K136: 0 | L136: 0 | M136: =IF($A136>0,SUMPRODUCT('Age profile (years)'!$CT136:$GF136,'Asset data'!$CX136:$GJ136)/H136-0.5,0) -> 0 | N136: 0 | O136: =IF($A136>0,'Asset data'!G136,0) -> 0 | P136: 0 | Q136: 0 | R136: 0 | S136: 0 | T136: 0 | U136: 0 | W136: =IF($A136>0,SUMIF('Age profile (years)'!$CT136:$GF136,"<" & R136+0.5,'Asset data'!$CX136:$GJ136),0) -> 0 | X136: =IF($A136>0,SUMIF('Age profile (years)'!$CT136:$GF136,"<" & S136+0.5,'Asset data'!$CX136:$GJ136)-W136,0) -> 0 | Y136: =IF($A136>0,SUMIF('Age profile (years)'!$CT136:$GF136,"<" & T136+0.5,'Asset data'!$CX136:$GJ136)-X136-W136,0) -> 0 | Z136: =IF($A136>0,SUMIF('Age profile (years)'!$CT136:$GF136,"<" & U136+0.5,'Asset data'!$CX136:$GJ136)-Y136-X136-W136,0) -> 0 | AA136: 0 | AB136: 0 | AC136: 0 | AD136: 0 | AE136: 0 | AF136: 0 | AI136: =IF($A136>0,'RRR hist-forc'!K136,0) -> 0 | AJ136: 0
A137: ='Asset data'!A137 -> 0 | B137: ='Asset data'!B137 -> 0 | C137: ='Asset data'!C137 -> 0 | D137: ='Asset data'!E137 -> 0 | E137: 0 | F137: =IF(A137>0,SUM('Asset data'!J137:CV137),0) -> 0 | G137: =IF(A137>0,'Asset data'!F137,0) -> 0 | H137: =IF(A137>0,SUM('Asset data'!CX137:GJ137),0) -> 0 | I137: 0 | J137: 0 | K137: 0 | L137: 0 | M137: =IF($A137>0,SUMPRODUCT('Age profile (years)'!$CT137:$GF137,'Asset data'!$CX137:$GJ137)/H137-0.5,0) -> 0 | N137: 0 | O137: =IF($A137>0,'Asset data'!G137,0) -> 0 | P137: 0 | Q137: 0 | R137: 0 | S137: 0 | T137: 0 | U137: 0 | W137: =IF($A137>0,SUMIF('Age profile (years)'!$CT137:$GF137,"<" & R137+0.5,'Asset data'!$CX137:$GJ137),0) -> 0 | X137: =IF($A137>0,SUMIF('Age profile (years)'!$CT137:$GF137,"<" & S137+0.5,'Asset data'!$CX137:$GJ137)-W137,0) -> 0 | Y137: =IF($A137>0,SUMIF('Age profile (years)'!$CT137:$GF137,"<" & T137+0.5,'Asset data'!$CX137:$GJ137)-X137-W137,0) -> 0 | Z137: =IF($A137>0,SUMIF('Age profile (years)'!$CT137:$GF137,"<" & U137+0.5,'Asset data'!$CX137:$GJ137)-Y137-X137-W137,0) -> 0 | AA137: 0 | AB137: 0 | AC137: 0 | AD137: 0 | AE137: 0 | AF137: 0 | AI137: =IF($A137>0,'RRR hist-forc'!K137,0) -> 0 | AJ137: 0
A138: ='Asset data'!A138 -> 0 | B138: ='Asset data'!B138 -> 0 | C138: ='Asset data'!C138 -> 0 | D138: ='Asset data'!E138 -> 0 | E138: 0 | F138: =IF(A138>0,SUM('Asset data'!J138:CV138),0) -> 0 | G138: =IF(A138>0,'Asset data'!F138,0) -> 0 | H138: =IF(A138>0,SUM('Asset data'!CX138:GJ138),0) -> 0 | I138: 0 | J138: 0 | K138: 0 | L138: 0 | M138: =IF($A138>0,SUMPRODUCT('Age profile (years)'!$CT138:$GF138,'Asset data'!$CX138:$GJ138)/H138-0.5,0) -> 0 | N138: 0 | O138: =IF($A138>0,'Asset data'!G138,0) -> 0 | P138: 0 | Q138: 0 | R138: 0 | S138: 0 | T138: 0 | U138: 0 | W138: =IF($A138>0,SUMIF('Age profile (years)'!$CT138:$GF138,"<" & R138+0.5,'Asset data'!$CX138:$GJ138),0) -> 0 | X138: =IF($A138>0,SUMIF('Age profile (years)'!$CT138:$GF138,"<" & S138+0.5,'Asset data'!$CX138:$GJ138)-W138,0) -> 0 | Y138: =IF($A138>0,SUMIF('Age profile (years)'!$CT138:$GF138,"<" & T138+0.5,'Asset data'!$CX138:$GJ138)-X138-W138,0) -> 0 | Z138: =IF($A138>0,SUMIF('Age profile (years)'!$CT138:$GF138,"<" & U138+0.5,'Asset data'!$CX138:$GJ138)-Y138-X138-W138,0) -> 0 | AA138: 0 | AB138: 0 | AC138: 0 | AD138: 0 | AE138: 0 | AF138: 0 | AI138: =IF($A138>0,'RRR hist-forc'!K138,0) -> 0 | AJ138: 0
A139: ='Asset data'!A139 -> 0 | B139: ='Asset data'!B139 -> 0 | C139: ='Asset data'!C139 -> 0 | D139: ='Asset data'!E139 -> 0 | E139: 0 | F139: =IF(A139>0,SUM('Asset data'!J139:CV139),0) -> 0 | G139: =IF(A139>0,'Asset data'!F139,0) -> 0 | H139: =IF(A139>0,SUM('Asset data'!CX139:GJ139),0) -> 0 | I139: 0 | J139: 0 | K139: 0 | L139: 0 | M139: =IF($A139>0,SUMPRODUCT('Age profile (years)'!$CT139:$GF139,'Asset data'!$CX139:$GJ139)/H139-0.5,0) -> 0 | N139: 0 | O139: =IF($A139>0,'Asset data'!G139,0) -> 0 | P139: 0 | Q139: 0 | R139: 0 | S139: 0 | T139: 0 | U139: 0 | W139: =IF($A139>0,SUMIF('Age profile (years)'!$CT139:$GF139,"<" & R139+0.5,'Asset data'!$CX139:$GJ139),0) -> 0 | X139: =IF($A139>0,SUMIF('Age profile (years)'!$CT139:$GF139,"<" & S139+0.5,'Asset data'!$CX139:$GJ139)-W139,0) -> 0 | Y139: =IF($A139>0,SUMIF('Age profile (years)'!$CT139:$GF139,"<" & T139+0.5,'Asset data'!$CX139:$GJ139)-X139-W139,0) -> 0 | Z139: =IF($A139>0,SUMIF('Age profile (years)'!$CT139:$GF139,"<" & U139+0.5,'Asset data'!$CX139:$GJ139)-Y139-X139-W139,0) -> 0 | AA139: 0 | AB139: 0 | AC139: 0 | AD139: 0 | AE139: 0 | AF139: 0 | AI139: =IF($A139>0,'RRR hist-forc'!K139,0) -> 0 | AJ139: 0
A140: ='Asset data'!A140 -> 0 | B140: ='Asset data'!B140 -> 0 | C140: ='Asset data'!C140 -> 0 | D140: ='Asset data'!E140 -> 0 | E140: 0 | F140: =IF(A140>0,SUM('Asset data'!J140:CV140),0) -> 0 | G140: =IF(A140>0,'Asset data'!F140,0) -> 0 | H140: =IF(A140>0,SUM('Asset data'!CX140:GJ140),0) -> 0 | I140: 0 | J140: 0 | K140: 0 | L140: 0 | M140: =IF($A140>0,SUMPRODUCT('Age profile (years)'!$CT140:$GF140,'Asset data'!$CX140:$GJ140)/H140-0.5,0) -> 0 | N140: 0 | O140: =IF($A140>0,'Asset data'!G140,0) -> 0 | P140: 0 | Q140: 0 | R140: 0 | S140: 0 | T140: 0 | U140: 0 | W140: =IF($A140>0,SUMIF('Age profile (years)'!$CT140:$GF140,"<" & R140+0.5,'Asset data'!$CX140:$GJ140),0) -> 0 | X140: =IF($A140>0,SUMIF('Age profile (years)'!$CT140:$GF140,"<" & S140+0.5,'Asset data'!$CX140:$GJ140)-W140,0) -> 0 | Y140: =IF($A140>0,SUMIF('Age profile (years)'!$CT140:$GF140,"<" & T140+0.5,'Asset data'!$CX140:$GJ140)-X140-W140,0) -> 0 | Z140: =IF($A140>0,SUMIF('Age profile (years)'!$CT140:$GF140,"<" & U140+0.5,'Asset data'!$CX140:$GJ140)-Y140-X140-W140,0) -> 0 | AA140: 0 | AB140: 0 | AC140: 0 | AD140: 0 | AE140: 0 | AF140: 0 | AI140: =IF($A140>0,'RRR hist-forc'!K140,0) -> 0 | AJ140: 0
A141: ='Asset data'!A141 -> 0 | B141: ='Asset data'!B141 -> 0 | C141: ='Asset data'!C141 -> 0 | D141: ='Asset data'!E141 -> 0 | E141: 0 | F141: =IF(A141>0,SUM('Asset data'!J141:CV141),0) -> 0 | G141: =IF(A141>0,'Asset data'!F141,0) -> 0 | H141: =IF(A141>0,SUM('Asset data'!CX141:GJ141),0) -> 0 | I141: 0 | J141: 0 | K141: 0 | L141: 0 | M141: =IF($A141>0,SUMPRODUCT('Age profile (years)'!$CT141:$GF141,'Asset data'!$CX141:$GJ141)/H141-0.5,0) -> 0 | N141: 0 | O141: =IF($A141>0,'Asset data'!G141,0) -> 0 | P141: 0 | Q141: 0 | R141: 0 | S141: 0 | T141: 0 | U141: 0 | W141: =IF($A141>0,SUMIF('Age profile (years)'!$CT141:$GF141,"<" & R141+0.5,'Asset data'!$CX141:$GJ141),0) -> 0 | X141: =IF($A141>0,SUMIF('Age profile (years)'!$CT141:$GF141,"<" & S141+0.5,'Asset data'!$CX141:$GJ141)-W141,0) -> 0 | Y141: =IF($A141>0,SUMIF('Age profile (years)'!$CT141:$GF141,"<" & T141+0.5,'Asset data'!$CX141:$GJ141)-X141-W141,0) -> 0 | Z141: =IF($A141>0,SUMIF('Age profile (years)'!$CT141:$GF141,"<" & U141+0.5,'Asset data'!$CX141:$GJ141)-Y141-X141-W141,0) -> 0 | AA141: 0 | AB141: 0 | AC141: 0 | AD141: 0 | AE141: 0 | AF141: 0 | AI141: =IF($A141>0,'RRR hist-forc'!K141,0) -> 0 | AJ141: 0
A142: ='Asset data'!A142 -> 0 | B142: ='Asset data'!B142 -> 0 | C142: ='Asset data'!C142 -> 0 | D142: ='Asset data'!E142 -> 0 | E142: 0 | F142: =IF(A142>0,SUM('Asset data'!J142:CV142),0) -> 0 | G142: =IF(A142>0,'Asset data'!F142,0) -> 0 | H142: =IF(A142>0,SUM('Asset data'!CX142:GJ142),0) -> 0 | I142: 0 | J142: 0 | K142: 0 | L142: 0 | M142: =IF($A142>0,SUMPRODUCT('Age profile (years)'!$CT142:$GF142,'Asset data'!$CX142:$GJ142)/H142-0.5,0) -> 0 | N142: 0 | O142: =IF($A142>0,'Asset data'!G142,0) -> 0 | P142: 0 | Q142: 0 | R142: 0 | S142: 0 | T142: 0 | U142: 0 | W142: =IF($A142>0,SUMIF('Age profile (years)'!$CT142:$GF142,"<" & R142+0.5,'Asset data'!$CX142:$GJ142),0) -> 0 | X142: =IF($A142>0,SUMIF('Age profile (years)'!$CT142:$GF142,"<" & S142+0.5,'Asset data'!$CX142:$GJ142)-W142,0) -> 0 | Y142: =IF($A142>0,SUMIF('Age profile (years)'!$CT142:$GF142,"<" & T142+0.5,'Asset data'!$CX142:$GJ142)-X142-W142,0) -> 0 | Z142: =IF($A142>0,SUMIF('Age profile (years)'!$CT142:$GF142,"<" & U142+0.5,'Asset data'!$CX142:$GJ142)-Y142-X142-W142,0) -> 0 | AA142: 0 | AB142: 0 | AC142: 0 | AD142: 0 | AE142: 0 | AF142: 0 | AI142: =IF($A142>0,'RRR hist-forc'!K142,0) -> 0 | AJ142: 0
AI206: =IF($A206>0,'RRR hist-forc'!K206,0) -> 0 | AJ206: =IF($A206>0,AI206*H206,0) -> 0

Sheet Asset data
A1: Meth all | D1: 3 | E1: =IF(D1=2,"all normal",IF(D1=1,"all deterministic","individual")) -> individual | L1: Profile type: | M1: 3 | N1: =VLOOKUP(APtype,IDtable,4) -> Installation date
F3: Unit | J3: Quantities | CX3: Replacement Cost (NOT depreciated)
F4: Cost | G4: Replacement life | I4: Rep | J4: =VLOOKUP(APtype,IDtable,4) -> Installation date | CX4: =VLOOKUP(APtype,IDtable,4) -> Installation date
A5: ID | B5: ID | C5: ID | D5: Asset category | E5: Asset ID | F5: $ ('000) | G5: mean | H5: SD | I5: Meth | J5: =IF(OR(APtype=1,APtype=2),0,IF(APtype=3,Now,9999)) -> 2014 | K5: =IF(OR(APtype=1,APtype=2),J5+1,IF(APtype=3,J5-1,9999)) -> 2013 | L5: 2012 | M5: 2011 | N5: 2010 | O5: 2009 | P5: 2008 | Q5: 2007 | R5: 2006 | S5: 2005 | T5: 2004 | U5: 2003 | V5: 2002 | W5: 2001 | X5: 2000 | Y5: 1999 | Z5: 1998 | AA5: 1997 | AB5: 1996 | AC5: 1995 | AD5: 1994 | AE5: 1993 | AF5: 1992 | AG5: 1991 | AH5: 1990 | AI5: 1989 | AJ5: 1988 | AK5: 1987 | AL5: 1986 | AM5: 1985 | AN5: 1984 | AO5: 1983 | AP5: 1982 | AQ5: =IF(OR(APtype=1,APtype=2),AP5+1,IF(APtype=3,AP5-1,9999)) -> 1981 | AR5: 1980 | AS5: 1979 | AT5: 1978 | AU5: 1977 | AV5: 1976 | AW5: 1975 | AX5: 1974 | AY5: 1973 | AZ5: 1972 | BA5: 1971 | BB5: 1970 | BC5: 1969 | BD5: 1968 | BE5: 1967 | BF5: 1966 | BG5: 1965 | BH5: 1964 | BI5: 1963 | BJ5: 1962 | BK5: 1961 | BL5: 1960 | BM5: 1959 | BN5: 1958 | BO5: 1957 | BP5: 1956 | BQ5: 1955 | BR5: 1954 | BS5: 1953 | BT5: 1952 | BU5: 1951 | BV5: 1950 | BW5: =IF(OR(APtype=1,APtype=2),BV5+1,IF(APtype=3,BV5-1,9999)) -> 1949 | BX5: 1948 | BY5: 1947 | BZ5: 1946 | CA5: 1945 | CB5: 1944 | CC5: 1943 | CD5: 1942 | CE5: 1941 | CF5: 1940 | CG5: 1939 | CH5: 1938 | CI5: 1937 | CJ5: 1936 | CK5: 1935 | CL5: 1934 | CM5: 1933 | CN5: 1932 | CO5: 1931 | CP5: 1930 | CQ5: 1929 | CR5: 1928 | CS5: 1927 | CT5: 1926 | CU5: 1925 | CV5: 1924 | CX5: =J5 -> 2014 | CY5: =K5 -> 2013 | CZ5: 2012 | DA5: 2011 | DB5: 2010 | DC5: 2009 | DD5: 2008 | DE5: 2007 | DF5: 2006 | DG5: 2005 | DH5: 2004 | DI5: 2003 | DJ5: 2002 | DK5: 2001 | DL5: 2000 | DM5: 1999 | DN5: 1998 | DO5: 1997 | DP5: 1996 | DQ5: 1995 | DR5: 1994 | DS5: 1993 | DT5: 1992 | DU5: 1991 | DV5: 1990 | DW5: 1989 | DX5: 1988 | DY5: 1987 | DZ5: 1986 | EA5: 1985 | EB5: 1984 | EC5: 1983 | ED5: 1982 | EE5: 1981 | EF5: 1980 | EG5: 1979 | EH5: 1978 | EI5: 1977 | EJ5: 1976 | EK5: 1975 | EL5: 1974 | EM5: 1973 | EN5: 1972 | EO5: 1971 | EP5: 1970 | EQ5: 1969 | ER5: 1968 | ES5: 1967 | ET5: 1966 | EU5: 1965 | EV5: 1964 | EW5: 1963 | EX5: 1962 | EY5: 1961 | EZ5: 1960 | FA5: 1959 | FB5: 1958 | FC5: 1957 | FD5: 1956 | FE5: 1955 | FF5: 1954 | FG5: 1953 | FH5: 1952 | FI5: 1951 | FJ5: 1950 | FK5: =BW5 -> 1949 | FL5: 1948 | FM5: 1947 | FN5: 1946 | FO5: 1945 | FP5: 1944 | FQ5: 1943 | FR5: 1942 | FS5: 1941 | FT5: 1940 | FU5: 1939 | FV5: 1938 | FW5: 1937 | FX5: 1936 | FY5: 1935 | FZ5: 1934 | GA5: 1933 | GB5: 1932 | GC5: 1931 | GD5: 1930 | GE5: 1929 | GF5: 1928 | GG5: 1927 | GH5: 1926 | GI5: 1925 | GJ5: 1924
A21: 1 | D21: POLES | E21: Staking of a wooden pole | F21: 5.231996692 | G21: 21.36668972 | H21: 4.622411678 | I21: 2 | J21: 2546 | K21: 4061 | L21: 2958 | M21: 2699 | N21: 2794 | O21: 2774 | P21: 2616 | Q21: 2547 | R21: 4195 | S21: 2500 | T21: 2000 | U21: 1700 | V21: 1500 | W21: 1500 | X21: 1500 | Y21: 1500 | Z21: 800 | AA21: 800 | AB21: 800 | AC21: 800 | AD21: 800 | AE21: 800 | AF21: 400 | AG21: 400 | AH21: 400 | AI21: 200 | AJ21: 100 | AK21: 100 | AL21: 100 | AM21: 0 | AN21: 0 | AO21: 0 | AP21: 0 | AQ21: 0 | AR21: 0 | AS21: 0 | AT21: 0 | AU21: 0 | AV21: 0 | AW21: 0 | AX21: 0 | AY21: 0 | AZ21: 0 | BA21: 0 | BB21: 0 | BC21: 0 | BD21: 0 | BE21: 0 | BF21: 0 | BG21: 0 | BH21: 0 | BI21: 0 | BJ21: 0 | BK21: 0 | BL21: 0 | BM21: 0 | BN21: 0 | BO21: 0 | BP21: 0 | BQ21: 0 | BR21: 0 | BS21: 0 | BT21: 0 | BU21: 0 | BV21: 0 | BW21: 0 | BX21: 0 | BY21: 0 | BZ21: 0 | CA21: 0 | CB21: 0 | CC21: 0 | CD21: 0 | CE21: 0 | CF21: 0 | CG21: 0 | CH21: 0 | CI21: 0 | CJ21: 0 | CK21: 0 | CL21: 0 | CM21: 0 | CN21: 0 | CO21: 0 | CP21: 0 | CQ21: 0 | CR21: 0 | CS21: 0 | CT21: 0 | CU21: 0 | CV21: 0 | CX21: =$F21*J21 -> 13320.66358 | CY21: =$F21*K21 -> 21247.13857 | CZ21: 15476.24622 | DA21: 14121.15907 | DB21: 14618.19876 | DC21: 14513.55882 | DD21: 13686.90335 | DE21: 13325.89558 | DF21: 21948.22612 | DG21: 13079.99173 | DH21: 10463.99338 | DI21: 8894.394377 | DJ21: 7847.995039 | DK21: 7847.995039 | DL21: 7847.995039 | DM21: 7847.995039 | DN21: 4185.597354 | DO21: 4185.597354 | DP21: 4185.597354 | DQ21: 4185.597354 | DR21: 4185.597354 | DS21: 4185.597354 | DT21: 2092.798677 | DU21: 2092.798677 | DV21: 2092.798677 | DW21: 1046.399338 | DX21: 523.1996692 | DY21: 523.1996692 | DZ21: 523.1996692 | EA21: 0 | EB21: 0 | EC21: 0 | ED21: 0 | EE21: 0 | EF21: 0 | EG21: 0 | EH21: 0 | EI21: 0 | EJ21: 0 | EK21: 0 | EL21: 0 | EM21: 0 | EN21: 0 | EO21: 0 | EP21: 0 | EQ21: 0 | ER21: 0 | ES21: 0 | ET21: 0 | EU21: 0 | EV21: 0 | EW21: 0 | EX21: 0 | EY21: 0 | EZ21: 0 | FA21: 0 | FB21: 0 | FC21: 0 | FD21: 0 | FE21: 0 | FF21: 0 | FG21: 0 | FH21: 0 | FI21: 0 | FJ21: 0 | FK21: =$F21*BW21 -> 0 | FL21: 0 | FM21: 0 | FN21: 0 | FO21: 0 | FP21: 0 | FQ21: 0 | FR21: 0 | FS21: 0 | FT21: 0 | FU21: 0 | FV21: 0 | FW21: 0 | FX21: 0 | FY21: 0 | FZ21: 0 | GA21: 0 | GB21: 0 | GC21: 0 | GD21: 0 | GE21: 0 | GF21: 0 | GG21: 0 | GH21: 0 | GI21: 0 | GJ21: 0
A22: 1 | D22: POLES | E22: ˂ = 1 kV; Wood | F22: 2.500555929 | G22: 61.03244009 | H22: 7.812326164 | I22: 2 | J22: 130 | K22: 1102 | L22: 1960 | M22: 1605 | N22: 1969 | O22: 2029 | P22: 2244 | Q22: 4484 | R22: 4580 | S22: 5577 | T22: 5504 | U22: 4811 | V22: 4905 | W22: 4739 | X22: 4379 | Y22: 3987 | Z22: 4418 | AA22: 4449 | AB22: 4911 | AC22: 5786 | AD22: 5311 | AE22: 5176 | AF22: 5762 | AG22: 5351 | AH22: 5218 | AI22: 4993 | AJ22: 3854 | AK22: 3401 | AL22: 4779 | AM22: 4887.295312 | AN22: 4641.810634 | AO22: 4046.91346 | AP22: 5370.201301 | AQ22: 4499.357847 | AR22: 4120.379677 | AS22: 3142.024685 | AT22: 3846.225256 | AU22: 3873.103141 | AV22: 3903.564743 | AW22: 3685.853879 | AX22: 3870.415352 | AY22: 3100.811929 | AZ22: 3214.594973 | BA22: 3249.536223 | BB22: 3762.903815 | BC22: 3120.522378 | BD22: 2693.164016 | BE22: 2037.343637 | BF22: 2112.601713 | BG22: 2035.551778 | BH22: 1755.125851 | BI22: 2815.906355 | BJ22: 1594.754474 | BK22: 1628.799794 | BL22: 1674.492198 | BM22: 1587.587038 | BN22: 1598.338192 | BO22: 1532.93534 | BP22: 1506.057455 | BQ22: 1550.853929 | BR22: 1558.917295 | BS22: 1594.754474 | BT22: 1558.917295 | BU22: 1553.541718 | BV22: 1580.419602 | BW22: 0.8959294797 | BX22: 0 | BY22: 2.687788439 | BZ22: 0 | CA22: 0 | CB22: 0 | CC22: 0 | CD22: 0 | CE22: 0 | CF22: 0 | CG22: 0 | CH22: 0 | CI22: 0 | CJ22: 0 | CK22: 0 | CL22: 0 | CM22: 0 | CN22: 0 | CO22: 0 | CP22: 0 | CQ22: 0 | CR22: 0 | CS22: 0 | CT22: 0 | CU22: 0 | CV22: 0 | CX22: =$F22*J22 -> 325.0722708 | CY22: =$F22*K22 -> 2755.612634 | CZ22: =$F22*L22 -> 4901.089621 | DA22: =$F22*M22 -> 4013.392266 | DB22: =$F22*N22 -> 4923.594624 | DC22: =$F22*O22 -> 5073.62798 | DD22: =$F22*P22 -> 5611.247505 | DE22: =$F22*Q22 -> 11212.49279 | DF22: =$F22*R22 -> 11452.54615 | DG22: =$F22*S22 -> 13945.60042 | DH22: =$F22*T22 -> 13763.05983 | DI22: =$F22*U22 -> 12030.17457 | DJ22: =$F22*V22 -> 12265.22683 | DK22: =$F22*W22 -> 11850.13455 | DL22: =$F22*X22 -> 10949.93441 | DM22: =$F22*Y22 -> 9969.716489 | DN22: =$F22*Z22 -> 11047.45609 | DO22: =$F22*AA22 -> 11124.97333 | DP22: =$F22*AB22 -> 12280.23017 | DQ22: =$F22*AC22 -> 14468.21661 | DR22: =$F22*AD22 -> 13280.45254 | DS22: =$F22*AE22 -> 12942.87749 | DT22: =$F22*AF22 -> 14408.20326 | DU22: =$F22*AG22 -> 13380.47478 | DV22: =$F22*AH22 -> 13047.90084 | DW22: =$F22*AI22 -> 12485.27575 | DX22: =$F22*AJ22 -> 9637.14255 | DY22: =$F22*AK22 -> 8504.390715 | DZ22: =$F22*AL22 -> 11950.15678 | EA22: =$F22*AM22 -> 12220.95527 | EB22: =$F22*AN22 -> 11607.1071 | EC22: =$F22*AO22 -> 10119.53345 | ED22: =$F22*AP22 -> 13428.4887 | EE22: =$F22*AQ22 -> 11250.89594 | EF22: =$F22*AR22 -> 10303.23983 | EG22: =$F22*AS22 -> 7856.808456 | EH22: =$F22*AT22 -> 9617.701369 | EI22: =$F22*AU22 -> 9684.911022 | EJ22: =$F22*AV22 -> 9761.081962 | EK22: =$F22*AW22 -> 9216.683772 | EL22: =$F22*AX22 -> 9678.190057 | EM22: =$F22*AY22 -> 7753.753654 | EN22: =$F22*AZ22 -> 8038.274519 | EO22: =$F22*BA22 -> 8125.647069 | EP22: =$F22*BB22 -> 9409.351444 | EQ22: =$F22*BC22 -> 7803.040733 | ER22: =$F22*BD22 -> 6734.407248 | ES22: =$F22*BE22 -> 5094.49171 | ET22: =$F22*BF22 -> 5282.678739 | EU22: =$F22*BG22 -> 5090.011067 | EV22: =$F22*BH22 -> 4388.790352 | EW22: =$F22*BI22 -> 7041.331331 | EX22: =$F22*BJ22 -> 3987.772755 | EY22: =$F22*BK22 -> 4072.904982 | EZ22: =$F22*BL22 -> 4187.161393 | FA22: =$F22*BM22 -> 3969.850181 | FB22: =$F22*BN22 -> 3996.734042 | FC22: =$F22*BO22 -> 3833.190553 | FD22: =$F22*BP22 -> 3765.980899 | FE22: =$F22*BQ22 -> 3877.996988 | FF22: =$F22*BR22 -> 3898.159884 | FG22: =$F22*BS22 -> 3987.772755 | FH22: =$F22*BT22 -> 3898.159884 | FI22: =$F22*BU22 -> 3884.717953 | FJ22: =$F22*BV22 -> 3951.927607 | FK22: =$F22*BW22 -> 2.240321772 | FL22: =$F22*BX22 -> 0 | FM22: =$F22*BY22 -> 6.720965317 | FN22: =$F22*BZ22 -> 0 | FO22: =$F22*CA22 -> 0 | FP22: =$F22*CB22 -> 0 | FQ22: =$F22*CC22 -> 0 | FR22: =$F22*CD22 -> 0 | FS22: =$F22*CE22 -> 0 | FT22: =$F22*CF22 -> 0 | FU22: =$F22*CG22 -> 0 | FV22: =$F22*CH22 -> 0 | FW22: =$F22*CI22 -> 0 | FX22: =$F22*CJ22 -> 0 | FY22: =$F22*CK22 -> 0 | FZ22: =$F22*CL22 -> 0 | GA22: =$F22*CM22 -> 0 | GB22: =$F22*CN22 -> 0 | GC22: =$F22*CO22 -> 0 | GD22: =$F22*CP22 -> 0 | GE22: =$F22*CQ22 -> 0 | GF22: =$F22*CR22 -> 0 | GG22: =$F22*CS22 -> 0 | GH22: =$F22*CT22 -> 0 | GI22: =$F22*CU22 -> 0 | GJ22: =$F22*CV22 -> 0
A23: 1 | D23: POLES | E23: > 1 kV & < = 11 kV; Wood | F23: 3.071247212 | G23: 66.14904108 | H23: 8.133206077 | I23: 2 | J23: 125 | K23: 2101 | L23: 4054 | M23: 3366 | N23: 3270 | O23: 3843 | P23: 5315 | Q23: 7412 | R23: 6370 | S23: 5767 | T23: 5380 | U23: 4396 | V23: 4515 | W23: 4435 | X23: 4370 | Y23: 4002 | Z23: 4604 | AA23: 4913 | AB23: 5387 | AC23: 7017 | AD23: 5735 | AE23: 5245 | AF23: 5543 | AG23: 5169 | AH23: 4959 | AI23: 4346 | AJ23: 3131 | AK23: 4008 | AL23: 5078 | AM23: 5438.291942 | AN23: 5462.482038 | AO23: 4582.679289 | AP23: 6654.068246 | AQ23: 5306.590308 | AR23: 5338.843769 | AS23: 3422.450612 | AT23: 3995.845479 | AU23: 3838.161891 | AV23: 3622.242886 | AW23: 3186.821159 | AX23: 3641.057405 | AY23: 2246.095206 | AZ23: 2862.494688 | BA23: 3228.033915 | BB23: 3823.827019 | BC23: 3450.224426 | BD23: 3267.454812 | BE23: 2722.729689 | BF23: 2467.389787 | BG23: 3042.576513 | BH23: 3404.532023 | BI23: 3751.256731 | BJ23: 2150.230751 | BK23: 2087.515688 | BL23: 2109.017995 | BM23: 2093.787194 | BN23: 2023.904695 | BO23: 2099.162771 | BP23: 2099.162771 | BQ23: 2072.284887 | BR23: 2059.741874 | BS23: 2076.764534 | BT23: 2064.221521 | BU23: 2071.388957 | BV23: 2084.827899 | BW23: 0.8959294797 | BX23: 0 | BY23: 2.687788439 | BZ23: 0 | CA23: 0 | CB23: 0 | CC23: 0 | CD23: 0 | CE23: 0 | CF23: 0 | CG23: 0 | CH23: 0 | CI23: 0 | CJ23: 0 | CK23: 0 | CL23: 0 | CM23: 0 | CN23: 0 | CO23: 0 | CP23: 0 | CQ23: 0 | CR23: 0 | CS23: 0 | CT23: 0 | CU23: 0 | CV23: 0 | CX23: 383.9059015 | CY23: 6452.690393 | CZ23: 12450.8362 | DA23: 10337.81812 | DB23: 10042.97838 | DC23: 11802.80304 | DD23: 16323.67893 | DE23: 22764.08434 | DF23: 19563.84474 | DG23: 17711.88267 | DH23: 16523.31 | DI23: 13501.20274 | DJ23: 13866.68116 | DK23: 13620.98139 | DL23: 13421.35032 | DM23: 12291.13134 | DN23: 14140.02216 | DO23: 15089.03755 | DP23: 16544.80873 | DQ23: 21550.94169 | DR23: 17613.60276 | DS23: 16108.69163 | DT23: 17023.9233 | DU23: 15875.27684 | DV23: 15230.31493 | DW23: 13347.64038 | DX23: 9616.075021 | DY23: 12309.55883 | DZ23: 15595.79334 | EA23: 16702.33896 | EB23: 16776.63273 | EC23: 14074.54099 | ED23: 20436.28855 | EE23: 16297.85069 | EF23: 16396.90904 | EG23: 10511.1919 | EH23: 12272.22929 | EI23: 11787.94401 | EJ23: 11124.80337 | EK23: 9787.515601 | EL23: 11182.58741 | EM23: 6898.313638 | EN23: 8791.428829 | EO23: 9914.090163 | EP23: 11743.91807 | EQ23: 10596.49215 | ER23: 10035.16148 | ES23: 8362.175966 | ET23: 7577.964005 | EU23: 9344.504633 | EV23: 10456.15948 | EW23: 11521.03678 | EX23: 6603.8902 | EY23: 6411.276736 | EZ23: 6477.315638 | FA23: 6430.538083 | FB23: 6215.911651 | FC23: 6447.047808 | FD23: 6447.047808 | FE23: 6364.499181 | FF23: 6325.976488 | FG23: 6378.257285 | FH23: 6339.734592 | FI23: 6361.74756 | FJ23: 6403.021873 | FK23: 2.751620917 | FL23: 0 | FM23: 8.25486275 | FN23: 0 | FO23: 0 | FP23: 0 | FQ23: 0 | FR23: 0 | FS23: 0 | FT23: 0 | FU23: 0 | FV23: 0 | FW23: 0 | FX23: 0 | FY23: 0 | FZ23: 0 | GA23: 0 | GB23: 0 | GC23: 0 | GD23: 0 | GE23: 0 | GF23: 0 | GG23: 0 | GH23: 0 | GI23: 0 | GJ23: 0
A24: 1 | D24: POLES | E24: ˃ 11 kV & < = 22 kV; Wood | F24: 3.071176952 | G24: 56.80853947 | H24: 7.537143986 | I24: 2 | J24: 150 | K24: 1744 | L24: 3349 | M24: 2960 | N24: 2281 | O24: 3469 | P24: 3985 | Q24: 5254 | R24: 5172 | S24: 6306 | T24: 5757 | U24: 5312 | V24: 6263 | W24: 6245 | X24: 5893 | Y24: 5975 | Z24: 3842 | AA24: 3194 | AB24: 3408 | AC24: 4076 | AD24: 3916 | AE24: 4028 | AF24: 4197 | AG24: 5398 | AH24: 5995 | AI24: 8191 | AJ24: 7214 | AK24: 10218 | AL24: 13368 | AM24: 7844.758524 | AN24: 8514.913775 | AO24: 8031.111856 | AP24: 11906.00686 | AQ24: 12887.94557 | AR24: 7900.306152 | AS24: 3595.365002 | AT24: 2450.367127 | AU24: 4287.91849 | AV24: 4687.503038 | AW24: 8914.498323 | AX24: 8084.867625 | AY24: 3224.450197 | AZ24: 3577.446412 | BA24: 4899.838324 | BB24: 6418.438793 | BC24: 4549.529898 | BD24: 4240.434227 | BE24: 3539.817374 | BF24: 3779.030545 | BG24: 3938.505993 | BH24: 3248.640293 | BI24: 3019.282347 | BJ24: 1367.188386 | BK24: 1147.685663 | BL24: 991.793934 | BM24: 919.2236462 | BN24: 904.8887745 | BO24: 896.8254092 | BP24: 928.182941 | BQ24: 921.0155051 | BR24: 929.9747999 | BS24: 895.0335502 | BT24: 941.6218832 | BU24: 920.1195756 | BV24: 886.9701849 | BW24: 0 | BX24: 0 | BY24: 0 | BZ24: 0 | CA24: 0 | CB24: 0 | CC24: 0 | CD24: 0 | CE24: 0 | CF24: 0 | CG24: 0 | CH24: 0 | CI24: 0 | CJ24: 0 | CK24: 0 | CL24: 0 | CM24: 0 | CN24: 0 | CO24: 0 | CP24: 0 | CQ24: 0 | CR24: 0 | CS24: 0 | CT24: 0 | CU24: 0 | CV24: 0 | CX24: 460.6765429 | CY24: 5356.132605 | CZ24: 10285.37161 | DA24: 9090.683779 | DB24: 7005.354628 | DC24: 10653.91285 | DD24: 12238.64016 | DE24: 16135.96371 | DF24: 15884.1272 | DG24: 19366.84186 | DH24: 17680.76571 | DI24: 16314.09197 | DJ24: 19234.78125 | DK24: 19179.50007 | DL24: 18098.44578 | DM24: 18350.28229 | DN24: 11799.46185 | DO24: 9809.339186 | DP24: 10466.57105 | DQ24: 12518.11726 | DR24: 12026.72895 | DS24: 12370.70076 | DT24: 12889.72967 | DU24: 16578.21319 | DV24: 18411.70583 | DW24: 25156.01042 | DX24: 22155.47053 | DY24: 31381.2861 | DZ24: 41055.4935 | EA24: 24092.64158 | EB24: 26150.80694 | EC24: 24664.96563 | ED24: 36565.45385 | EE24: 39581.16138 | EF24: 24263.23817 | EG24: 11042.00213 | EH24: 7525.511045 | EI24: 13168.95644 | EJ24: 14396.15129 | EK24: 27378.00179 | EL24: 24830.05911 | EM24: 9902.85713 | EN24: 10986.97097 | EO24: 15048.27053 | EP24: 19712.16129 | EQ24: 13972.41137 | ER24: 13023.12387 | ES24: 10871.40554 | ET24: 11606.07151 | EU24: 12095.84883 | EV24: 9977.149196 | EW24: 9272.750355 | EX24: 4198.877461 | EY24: 3524.745758 | EZ24: 3045.974672 | FA24: 2823.098476 | FB24: 2779.073549 | FC24: 2754.309527 | FD24: 2850.614056 | FE24: 2828.601592 | FF24: 2856.117172 | FG24: 2748.806411 | FH24: 2891.887425 | FI24: 2825.850034 | FJ24: 2724.042389 | FK24: 0 | FL24: 0 | FM24: 0 | FN24: 0 | FO24: 0 | FP24: 0 | FQ24: 0 | FR24: 0 | FS24: 0 | FT24: 0 | FU24: 0 | FV24: 0 | FW24: 0 | FX24: 0 | FY24: 0 | FZ24: 0 | GA24: 0 | GB24: 0 | GC24: 0 | GD24: 0 | GE24: 0 | GF24: 0 | GG24: 0 | GH24: 0 | GI24: 0 | GJ24: 0
A25: 1 | D25: POLES | E25: > 22 kV & < = 66 kV; Wood | F25: 8.310233366 | G25: 63.05710976 | H25: 7.940850695 | I25: 2 | J25: 3 | K25: 282 | L25: 467 | M25: 432 | N25: 336 | O25: 417 | P25: 389 | Q25: 802 | R25: 779 | S25: 763 | T25: 783 | U25: 917 | V25: 1059 | W25: 1176 | X25: 1363 | Y25: 806 | Z25: 903 | AA25: 682 | AB25: 504 | AC25: 724 | AD25: 966 | AE25: 576 | AF25: 771 | AG25: 952 | AH25: 960 | AI25: 657 | AJ25: 653 | AK25: 929 | AL25: 980 | AM25: 855.6126531 | AN25: 1327.767489 | AO25: 996.2735814 | AP25: 1434.383097 | AQ25: 886.0742554 | AR25: 779.4586473 | AS25: 559.9559248 | AT25: 495.4490023 | AU25: 650.4448023 | AV25: 996.2735814 | AW25: 842.1737109 | AX25: 522.3268867 | AY25: 1243.550118 | AZ25: 1029.422972 | BA25: 484.6978485 | BB25: 1301.785534 | BC25: 1122.599638 | BD25: 1789.171171 | BE25: 2046.302932 | BF25: 545.6210531 | BG25: 1733.623543 | BH25: 946.1015306 | BI25: 1515.91268 | BJ25: 228.4620173 | BK25: 463.195541 | BL25: 260.7154786 | BM25: 345.8287792 | BN25: 789.3138716 | BO25: 227.5660878 | BP25: 257.1317607 | BQ25: 382.5618878 | BR25: 307.3038115 | BS25: 561.7477838 | BT25: 320.7427537 | BU25: 272.3625618 | BV25: 450.6525283 | BW25: 40.31682659 | BX25: 55.54762774 | BY25: 50.17205086 | BZ25: 0 | CA25: 0 | CB25: 0 | CC25: 0 | CD25: 0 | CE25: 0 | CF25: 0 | CG25: 0 | CH25: 0 | CI25: 0 | CJ25: 0 | CK25: 0 | CL25: 0 | CM25: 0 | CN25: 0 | CO25: 0 | CP25: 0 | CQ25: 0 | CR25: 0 | CS25: 0 | CT25: 0 | CU25: 0 | CV25: 0 | CX25: 24.9307001 | CY25: 2343.485809 | CZ25: 3880.878982 | DA25: 3590.020814 | DB25: 2792.238411 | DC25: 3465.367314 | DD25: 3232.680779 | DE25: 6664.80716 | DF25: 6473.671792 | DG25: 6340.708058 | DH25: 6506.912726 | DI25: 7620.483997 | DJ25: 8800.537135 | DK25: 9772.834439 | DL25: 11326.84808 | DM25: 6698.048093 | DN25: 7504.14073 | DO25: 5667.579156 | DP25: 4188.357617 | DQ25: 6016.608957 | DR25: 8027.685432 | DS25: 4786.694419 | DT25: 6407.189925 | DU25: 7911.342165 | DV25: 7977.824032 | DW25: 5459.823322 | DX25: 5426.582388 | DY25: 7720.206797 | DZ25: 8144.028699 | EA25: 7110.340818 | EB25: 11034.05769 | EC25: 8279.265958 | ED25: 11920.05827 | EE25: 7363.483842 | EF25: 6477.483259 | EG25: 4653.36441 | EH25: 4117.29683 | EI25: 5405.348099 | EJ25: 8279.265958 | EK25: 6998.660073 | EL25: 4340.658322 | EM25: 10334.19168 | EN25: 8554.745131 | EO25: 4027.952233 | EP25: 10818.14158 | EQ25: 9329.064969 | ER25: 14868.42996 | ES25: 17005.2549 | ET25: 4534.238281 | EU25: 14406.81621 | EV25: 7862.324507 | EW25: 12597.58813 | EX25: 1898.572679 | EY25: 3849.26304 | EZ25: 2166.606469 | FA25: 2873.91786 | FB25: 6559.382472 | FC25: 1891.127296 | FD25: 2136.824937 | FE25: 3179.178565 | FF25: 2553.766388 | FG25: 4668.255176 | FH25: 2665.447134 | FI25: 2263.396449 | FJ25: 3745.027677 | FK25: 335.0422375 | FL25: 461.6137495 | FM25: 416.9414511 | FN25: 0 | FO25: 0 | FP25: 0 | FQ25: 0 | FR25: 0 | FS25: 0 | FT25: 0 | FU25: 0 | FV25: 0 | FW25: 0 | FX25: 0 | FY25: 0 | FZ25: 0 | GA25: 0 | GB25: 0 | GC25: 0 | GD25: 0 | GE25: 0 | GF25: 0 | GG25: 0 | GH25: 0 | GI25: 0 | GJ25: 0
A26: 1 | D26: POLES | E26: > 66 kV & < = 132 kV; Wood | F26: 10.32864054 | G26: 56.6 | H26: 7.52329715 | I26: 2 | J26: 0 | K26: 4 | L26: 3 | M26: 3 | N26: 35 | O26: 18 | P26: 18 | Q26: 46 | R26: 28 | S26: 13 | T26: 10 | U26: 19 | V26: 104 | W26: 44 | X26: 10 | Y26: 11 | Z26: 8 | AA26: 11 | AB26: 7 | AC26: 8 | AD26: 7 | AE26: 143 | AF26: 14 | AG26: 12 | AH26: 5 | AI26: 4 | AJ26: 5 | AK26: 13 | AL26: 5 | AM26: 19 | AN26: 11 | AO26: 6 | AP26: 206 | AQ26: 22 | AR26: 6 | AS26: 148 | AT26: 39 | AU26: 277 | AV26: 93 | AW26: 271 | AX26: 79 | AY26: 10 | AZ26: 7 | BA26: 271 | BB26: 79 | BC26: 473 | BD26: 633 | BE26: 14 | BF26: 929 | BG26: 146 | BH26: 3 | BI26: 5 | BJ26: 1 | BK26: 1 | BL26: 0 | BM26: 1 | BN26: 236 | BO26: 4 | BP26: 2 | BQ26: 4 | BR26: 0 | BS26: 3 | BT26: 3 | BU26: 3 | BV26: 2 | BW26: 0 | BX26: 0 | BY26: 0 | BZ26: 0 | CA26: 0 | CB26: 0 | CC26: 0 | CD26: 0 | CE26: 0 | CF26: 0 | CG26: 0 | CH26: 0 | CI26: 0 | CJ26: 0 | CK26: 0 | CL26: 0 | CM26: 0 | CN26: 0 | CO26: 0 | CP26: 0 | CQ26: 0 | CR26: 0 | CS26: 0 | CT26: 0 | CU26: 0 | CV26: 0 | CX26: 0 | CY26: 41.31456217 | CZ26: 30.98592162 | DA26: 30.98592162 | DB26: 361.502419 | DC26: 185.9155297 | DD26: 185.9155297 | DE26: 475.1174649 | DF26: 289.2019352 | DG26: 134.272327 | DH26: 103.2864054 | DI26: 196.2441703 | DJ26: 1074.178616 | DK26: 454.4601838 | DL26: 103.2864054 | DM26: 113.615046 | DN26: 82.62912433 | DO26: 113.615046 | DP26: 72.30048379 | DQ26: 82.62912433 | DR26: 72.30048379 | DS26: 1476.995597 | DT26: 144.6009676 | DU26: 123.9436865 | DV26: 51.64320271 | DW26: 41.31456217 | DX26: 51.64320271 | DY26: 134.272327 | DZ26: 51.64320271 | EA26: 196.2441703 | EB26: 113.615046 | EC26: 61.97184325 | ED26: 2127.699952 | EE26: 227.2300919 | EF26: 61.97184325 | EG26: 1528.6388 | EH26: 402.8169811 | EI26: 2861.03343 | EJ26: 960.5635704 | EK26: 2799.061587 | EL26: 815.9626028 | EM26: 103.2864054 | EN26: 72.30048379 | EO26: 2799.061587 | EP26: 815.9626028 | EQ26: 4885.446976 | ER26: 6538.029463 | ES26: 144.6009676 | ET26: 9595.307063 | EU26: 1507.981519 | EV26: 30.98592162 | EW26: 51.64320271 | EX26: 10.32864054 | EY26: 10.32864054 | EZ26: 0 | FA26: 10.32864054 | FB26: 2437.559168 | FC26: 41.31456217 | FD26: 20.65728108 | FE26: 41.31456217 | FF26: 0 | FG26: 30.98592162 | FH26: 30.98592162 | FI26: 30.98592162 | FJ26: 20.65728108 | FK26: 0 | FL26: 0 | FM26: 0 | FN26: 0 | FO26: 0 | FP26: 0 | FQ26: 0 | FR26: 0 | FS26: 0 | FT26: 0 | FU26: 0 | FV26: 0 | FW26: 0 | FX26: 0 | FY26: 0 | FZ26: 0 | GA26: 0 | GB26: 0 | GC26: 0 | GD26: 0 | GE26: 0 | GF26: 0 | GG26: 0 | GH26: 0 | GI26: 0 | GJ26: 0
A27: 1 | D27: POLES | E27: ˂ = 1 kV; Concrete | F27: 10.21225459 | G27: 56.6 | H27: 7.52329715 | I27: 2 | J27: 0 | K27: 35 | L27: 34 | M27: 49 | N27: 69 | O27: 66 | P27: 68 | Q27: 54 | R27: 101 | S27: 68 | T27: 53 | U27: 72 | V27: 147 | W27: 99 | X27: 179 | Y27: 123 | Z27: 81 | AA27: 108 | AB27: 99 | AC27: 181 | AD27: 170 | AE27: 102 | AF27: 188 | AG27: 55 | AH27: 106 | AI27: 189 | AJ27: 219 | AK27: 49 | AL27: 69 | AM27: 48 | AN27: 40 | AO27: 36 | AP27: 39 | AQ27: 36 | AR27: 32 | AS27: 2 | AT27: 7 | AU27: 7 | AV27: 4 | AW27: 2 | AX27: 4 | AY27: 4 | AZ27: 7 | BA27: 12 | BB27: 20 | BC27: 14 | BD27: 5 | BE27: 8 | BF27: 4 | BG27: 1 | BH27: 0 | BI27: 0 | BJ27: 0 | BK27: 0 | BL27: 0 | BM27: 0 | BN27: 0 | BO27: 0 | BP27: 0 | BQ27: 0 | BR27: 0 | BS27: 0 | BT27: 0 | BU27: 0 | BV27: 0 | BW27: 0 | BX27: 0 | BY27: 0 | BZ27: 0 | CA27: 0 | CB27: 0 | CC27: 0 | CD27: 0 | CE27: 0 | CF27: 0 | CG27: 0 | CH27: 0 | CI27: 0 | CJ27: 0 | CK27: 0 | CL27: 0 | CM27: 0 | CN27: 0 | CO27: 0 | CP27: 0 | CQ27: 0 | CR27: 0 | CS27: 0 | CT27: 0 | CU27: 0 | CV27: 0 | CX27: 0 | CY27: 357.4289106 | CZ27: 347.2166561 | DA27: 500.4004749 | DB27: 704.6455667 | DC27: 674.0088029 | DD27: 694.4333121 | DE27: 551.4617478 | DF27: 1031.437714 | DG27: 694.4333121 | DH27: 541.2494933 | DI27: 735.2823305 | DJ27: 1501.201425 | DK27: 1011.013204 | DL27: 1827.993572 | DM27: 1256.107315 | DN27: 827.1926218 | DO27: 1102.923496 | DP27: 1011.013204 | DQ27: 1848.418081 | DR27: 1736.08328 | DS27: 1041.649968 | DT27: 1919.903863 | DU27: 561.6740024 | DV27: 1082.498987 | DW27: 1930.116117 | DX27: 2236.483755 | DY27: 500.4004749 | DZ27: 704.6455667 | EA27: 490.1882203 | EB27: 408.4901836 | EC27: 367.6411652 | ED27: 398.277929 | EE27: 367.6411652 | EF27: 326.7921469 | EG27: 20.42450918 | EH27: 71.48578213 | EI27: 71.48578213 | EJ27: 40.84901836 | EK27: 20.42450918 | EL27: 40.84901836 | EM27: 40.84901836 | EN27: 71.48578213 | EO27: 122.5470551 | EP27: 204.2450918 | EQ27: 142.9715643 | ER27: 51.06127295 | ES27: 81.69803672 | ET27: 40.84901836 | EU27: 10.21225459 | EV27: 0 | EW27: 0 | EX27: 0 | EY27: 0 | EZ27: 0 | FA27: 0 | FB27: 0 | FC27: 0 | FD27: 0 | FE27: 0 | FF27: 0 | FG27: 0 | FH27: 0 | FI27: 0 | FJ27: 0 | FK27: 0 | FL27: 0 | FM27: 0 | FN27: 0 | FO27: 0 | FP27: 0 | FQ27: 0 | FR27: 0 | FS27: 0 | FT27: 0 | FU27: 0 | FV27: 0 | FW27: 0 | FX27: 0 | FY27: 0 | FZ27: 0 | GA27: 0 | GB27: 0 | GC27: 0 | GD27: 0 | GE27: 0 | GF27: 0 | GG27: 0 | GH27: 0 | GI27: 0 | GJ27: 0
A28: 1 | D28: POLES | E28: > 1 kV & < = 11 kV; Concrete | F28: 12.23133165 | G28: 56.6 | H28: 7.52329715 | I28: 2 | J28: 1 | K28: 0 | L28: 2 | M28: 6 | N28: 9 | O28: 0 | P28: 6 | Q28: 47 | R28: 155 | S28: 2 | T28: 4 | U28: 2 | V28: 8 | W28: 5 | X28: 119 | Y28: 19 | Z28: 241 | AA28: 5 | AB28: 16 | AC28: 16 | AD28: 31 | AE28: 36 | AF28: 81 | AG28: 43 | AH28: 24 | AI28: 30 | AJ28: 45 | AK28: 47 | AL28: 97 | AM28: 135 | AN28: 19 | AO28: 16 | AP28: 2 | AQ28: 0 | AR28: 4 | AS28: 2 | AT28: 2 | AU28: 1 | AV28: 2 | AW28: 2 | AX28: 2 | AY28: 0 | AZ28: 1 | BA28: 3 | BB28: 0 | BC28: 4 | BD28: 2 | BE28: 1 | BF28: 1 | BG28: 1 | BH28: 1 | BI28: 0 | BJ28: 0 | BK28: 0 | BL28: 0 | BM28: 0 | BN28: 0 | BO28: 0 | BP28: 0 | BQ28: 0 | BR28: 0 | BS28: 0 | BT28: 0 | BU28: 0 | BV28: 0 | BW28: 0 | BX28: 0 | BY28: 0 | BZ28: 0 | CA28: 0 | CB28: 0 | CC28: 0 | CD28: 0 | CE28: 0 | CF28: 0 | CG28: 0 | CH28: 0 | CI28: 0 | CJ28: 0 | CK28: 0 | CL28: 0 | CM28: 0 | CN28: 0 | CO28: 0 | CP28: 0 | CQ28: 0 | CR28: 0 | CS28: 0 | CT28: 0 | CU28: 0 | CV28: 0 | CX28: 12.23133165 | CY28: 0 | CZ28: 24.4626633 | DA28: 73.38798991 | DB28: 110.0819849 | DC28: 0 | DD28: 73.38798991 | DE28: 574.8725876 | DF28: 1895.856406 | DG28: 24.4626633 | DH28: 48.92532661 | DI28: 24.4626633 | DJ28: 97.85065322 | DK28: 61.15665826 | DL28: 1455.528467 | DM28: 232.3953014 | DN28: 2947.750928 | DO28: 61.15665826 | DP28: 195.7013064 | DQ28: 195.7013064 | DR28: 379.1712812 | DS28: 440.3279395 | DT28: 990.7378638 | DU28: 525.947261 | DV28: 293.5519597 | DW28: 366.9399496 | DX28: 550.4099243 | DY28: 574.8725876 | DZ28: 1186.43917 | EA28: 1651.229773 | EB28: 232.3953014 | EC28: 195.7013064 | ED28: 24.4626633 | EE28: 0 | EF28: 48.92532661 | EG28: 24.4626633 | EH28: 24.4626633 | EI28: 12.23133165 | EJ28: 24.4626633 | EK28: 24.4626633 | EL28: 24.4626633 | EM28: 0 | EN28: 12.23133165 | EO28: 36.69399496 | EP28: 0 | EQ28: 48.92532661 | ER28: 24.4626633 | ES28: 12.23133165 | ET28: 12.23133165 | EU28: 12.23133165 | EV28: 12.23133165 | EW28: 0 | EX28: 0 | EY28: 0 | EZ28: 0 | FA28: 0 | FB28: 0 | FC28: 0 | FD28: 0 | FE28: 0 | FF28: 0 | FG28: 0 | FH28: 0 | FI28: 0 | FJ28: 0 | FK28: 0 | FL28: 0 | FM28: 0 | FN28: 0 | FO28: 0 | FP28: 0 | FQ28: 0 | FR28: 0 | FS28: 0 | FT28: 0 | FU28: 0 | FV28: 0 | FW28: 0 | FX28: 0 | FY28: 0 | FZ28: 0 | GA28: 0 | GB28: 0 | GC28: 0 | GD28: 0 | GE28: 0 | GF28: 0 | GG28: 0 | GH28: 0 | GI28: 0 | GJ28: 0
A29: 1 | D29: POLES | E29: ˃ 11 kV & < = 22 kV; Concrete | F29: 9.150274642 | G29: 50.14231294 | H29: 7.081123706 | I29: 2 | J29: 0 | K29: 1 | L29: 2 | M29: 17 | N29: 5 | O29: 9 | P29: 5 | Q29: 2 | R29: 14 | S29: 19 | T29: 0 | U29: 0 | V29: 16 | W29: 5 | X29: 3373 | Y29: 2409 | Z29: 22 | AA29: 13 | AB29: 56 | AC29: 205 | AD29: 154 | AE29: 123 | AF29: 188 | AG29: 217 | AH29: 279 | AI29: 742 | AJ29: 118 | AK29: 31 | AL29: 71 | AM29: 69 | AN29: 6 | AO29: 4 | AP29: 2 | AQ29: 4 | AR29: 3 | AS29: 1 | AT29: 2 | AU29: 1 | AV29: 1 | AW29: 2 | AX29: 1 | AY29: 1 | AZ29: 2 | BA29: 0 | BB29: 0 | BC29: 2 | BD29: 1 | BE29: 0 | BF29: 2 | BG29: 1 | BH29: 0 | BI29: 0 | BJ29: 0 | BK29: 0 | BL29: 0 | BM29: 0 | BN29: 0 | BO29: 0 | BP29: 0 | BQ29: 0 | BR29: 0 | BS29: 0 | BT29: 0 | BU29: 0 | BV29: 0 | BW29: 0 | BX29: 0 | BY29: 0 | BZ29: 0 | CA29: 0 | CB29: 0 | CC29: 0 | CD29: 0 | CE29: 0 | CF29: 0 | CG29: 0 | CH29: 0 | CI29: 0 | CJ29: 0 | CK29: 0 | CL29: 0 | CM29: 0 | CN29: 0 | CO29: 0 | CP29: 0 | CQ29: 0 | CR29: 0 | CS29: 0 | CT29: 0 | CU29: 0 | CV29: 0 | CX29: 0 | CY29: 9.150274642 | CZ29: 18.30054928 | DA29: 155.5546689 | DB29: 45.75137321 | DC29: 82.35247178 | DD29: 45.75137321 | DE29: 18.30054928 | DF29: 128.103845 | DG29: 173.8552182 | DH29: 0 | DI29: 0 | DJ29: 146.4043943 | DK29: 45.75137321 | DL29: 30863.87637 | DM29: 22043.01161 | DN29: 201.3060421 | DO29: 118.9535703 | DP29: 512.4153799 | DQ29: 1875.806302 | DR29: 1409.142295 | DS29: 1125.483781 | DT29: 1720.251633 | DU29: 1985.609597 | DV29: 2552.926625 | DW29: 6789.503784 | DX29: 1079.732408 | DY29: 283.6585139 | DZ29: 649.6694996 | EA29: 631.3689503 | EB29: 54.90164785 | EC29: 36.60109857 | ED29: 18.30054928 | EE29: 36.60109857 | EF29: 27.45082393 | EG29: 9.150274642 | EH29: 18.30054928 | EI29: 9.150274642 | EJ29: 9.150274642 | EK29: 18.30054928 | EL29: 9.150274642 | EM29: 9.150274642 | EN29: 18.30054928 | EO29: 0 | EP29: 0 | EQ29: 18.30054928 | ER29: 9.150274642 | ES29: 0 | ET29: 18.30054928 | EU29: 9.150274642 | EV29: 0 | EW29: 0 | EX29: 0 | EY29: 0 | EZ29: 0 | FA29: 0 | FB29: 0 | FC29: 0 | FD29: 0 | FE29: 0 | FF29: 0 | FG29: 0 | FH29: 0 | FI29: 0 | FJ29: 0 | FK29: 0 | FL29: 0 | FM29: 0 | FN29: 0 | FO29: 0 | FP29: 0 | FQ29: 0 | FR29: 0 | FS29: 0 | FT29: 0 | FU29: 0 | FV29: 0 | FW29: 0 | FX29: 0 | FY29: 0 | FZ29: 0 | GA29: 0 | GB29: 0 | GC29: 0 | GD29: 0 | GE29: 0 | GF29: 0 | GG29: 0 | GH29: 0 | GI29: 0 | GJ29: 0
A30: 1 | D30: POLES | E30: > 22 kV & < = 66 kV; Concrete | F30: 83.69078669 | G30: 45.91412114 | H30: 6.775995952 | I30: 2 | J30: 1 | K30: 6 | L30: 37 | M30: 35 | N30: 36 | O30: 95 | P30: 175 | Q30: 300 | R30: 252 | S30: 234 | T30: 366 | U30: 71 | V30: 327 | W30: 198 | X30: 444 | Y30: 878 | Z30: 319 | AA30: 945 | AB30: 253 | AC30: 437 | AD30: 130 | AE30: 106 | AF30: 50 | AG30: 149 | AH30: 1355 | AI30: 235 | AJ30: 478 | AK30: 1064 | AL30: 2239 | AM30: 1013 | AN30: 730 | AO30: 151 | AP30: 228 | AQ30: 6 | AR30: 8 | AS30: 0 | AT30: 4 | AU30: 2 | AV30: 3 | AW30: 0 | AX30: 1 | AY30: 0 | AZ30: 5 | BA30: 1 | BB30: 1 | BC30: 0 | BD30: 0 | BE30: 0 | BF30: 2 | BG30: 1 | BH30: 0 | BI30: 0 | BJ30: 0 | BK30: 0 | BL30: 0 | BM30: 0 | BN30: 0 | BO30: 0 | BP30: 0 | BQ30: 0 | BR30: 0 | BS30: 0 | BT30: 0 | BU30: 0 | BV30: 0 | BW30: 0 | BX30: 0 | BY30: 0 | BZ30: 0 | CA30: 0 | CB30: 0 | CC30: 0 | CD30: 0 | CE30: 0 | CF30: 0 | CG30: 0 | CH30: 0 | CI30: 0 | CJ30: 0 | CK30: 0 | CL30: 0 | CM30: 0 | CN30: 0 | CO30: 0 | CP30: 0 | CQ30: 0 | CR30: 0 | CS30: 0 | CT30: 0 | CU30: 0 | CV30: 0 | CX30: 83.69078669 | CY30: 502.1447201 | CZ30: 3096.559107 | DA30: 2929.177534 | DB30: 3012.868321 | DC30: 7950.624735 | DD30: 14645.88767 | DE30: 25107.23601 | DF30: 21090.07825 | DG30: 19583.64409 | DH30: 30630.82793 | DI30: 5942.045855 | DJ30: 27366.88725 | DK30: 16570.77576 | DL30: 37158.70929 | DM30: 73480.51071 | DN30: 26697.36095 | DO30: 79087.79342 | DP30: 21173.76903 | DQ30: 36572.87378 | DR30: 10879.80227 | DS30: 8871.223389 | DT30: 4184.539334 | DU30: 12469.92722 | DV30: 113401.016 | DW30: 19667.33487 | DX30: 40004.19604 | DY30: 89046.99704 | DZ30: 187383.6714 | EA30: 84778.76692 | EB30: 61094.27428 | EC30: 12637.30879 | ED30: 19081.49937 | EE30: 502.1447201 | EF30: 669.5262935 | EG30: 0 | EH30: 334.7631468 | EI30: 167.3815734 | EJ30: 251.0723601 | EK30: 0 | EL30: 83.69078669 | EM30: 0 | EN30: 418.4539334 | EO30: 83.69078669 | EP30: 83.69078669 | EQ30: 0 | ER30: 0 | ES30: 0 | ET30: 167.3815734 | EU30: 83.69078669 | EV30: 0 | EW30: 0 | EX30: 0 | EY30: 0 | EZ30: 0 | FA30: 0 | FB30: 0 | FC30: 0 | FD30: 0 | FE30: 0 | FF30: 0 | FG30: 0 | FH30: 0 | FI30: 0 | FJ30: 0 | FK30: 0 | FL30: 0 | FM30: 0 | FN30: 0 | FO30: 0 | FP30: 0 | FQ30: 0 | FR30: 0 | FS30: 0 | FT30: 0 | FU30: 0 | FV30: 0 | FW30: 0 | FX30: 0 | FY30: 0 | FZ30: 0 | GA30: 0 | GB30: 0 | GC30: 0 | GD30: 0 | GE30: 0 | GF30: 0 | GG30: 0 | GH30: 0 | GI30: 0 | GJ30: 0
A31: 1 | D31: POLES | E31: > 66 kV & < = 132 kV; Concrete | F31: 21.21201926 | G31: 56.6 | H31: 7.52329715 | I31: 2 | J31: 0 | K31: 9 | L31: 11 | M31: 12 | N31: 33 | O31: 55 | P31: 260 | Q31: 82 | R31: 142 | S31: 254 | T31: 475 | U31: 138 | V31: 448 | W31: 11 | X31: 15 | Y31: 14 | Z31: 13 | AA31: 11 | AB31: 37 | AC31: 81 | AD31: 42 | AE31: 12 | AF31: 23 | AG31: 13 | AH31: 297 | AI31: 16 | AJ31: 30 | AK31: 896 | AL31: 13 | AM31: 757 | AN31: 623 | AO31: 11 | AP31: 9 | AQ31: 10 | AR31: 9 | AS31: 0 | AT31: 0 | AU31: 0 | AV31: 0 | AW31: 0 | AX31: 0 | AY31: 0 | AZ31: 0 | BA31: 0 | BB31: 0 | BC31: 0 | BD31: 0 | BE31: 0 | BF31: 0 | BG31: 0 | BH31: 0 | BI31: 0 | BJ31: 0 | BK31: 0 | BL31: 0 | BM31: 0 | BN31: 0 | BO31: 0 | BP31: 0 | BQ31: 0 | BR31: 0 | BS31: 0 | BT31: 0 | BU31: 0 | BV31: 0 | BW31: 0 | BX31: 0 | BY31: 0 | BZ31: 0 | CA31: 0 | CB31: 0 | CC31: 0 | CD31: 0 | CE31: 0 | CF31: 0 | CG31: 0 | CH31: 0 | CI31: 0 | CJ31: 0 | CK31: 0 | CL31: 0 | CM31: 0 | CN31: 0 | CO31: 0 | CP31: 0 | CQ31: 0 | CR31: 0 | CS31: 0 | CT31: 0 | CU31: 0 | CV31: 0 | CX31: 0 | CY31: 190.9081733 | CZ31: 233.3322118 | DA31: 254.5442311 | DB31: 699.9966355 | DC31: 1166.661059 | DD31: 5515.125007 | DE31: 1739.385579 | DF31: 3012.106735 | DG31: 5387.852892 | DH31: 10075.70915 | DI31: 2927.258658 | DJ31: 9502.984628 | DK31: 233.3322118 | DL31: 318.1802889 | DM31: 296.9682696 | DN31: 275.7562504 | DO31: 233.3322118 | DP31: 784.8447125 | DQ31: 1718.17356 | DR31: 890.9048088 | DS31: 254.5442311 | DT31: 487.8764429 | DU31: 275.7562504 | DV31: 6299.96972 | DW31: 339.3923081 | DX31: 636.3605777 | DY31: 19005.96926 | DZ31: 275.7562504 | EA31: 16057.49858 | EB31: 13215.088 | EC31: 233.3322118 | ED31: 190.9081733 | EE31: 212.1201926 | EF31: 190.9081733 | EG31: 0 | EH31: 0 | EI31: 0 | EJ31: 0 | EK31: 0 | EL31: 0 | EM31: 0 | EN31: 0 | EO31: 0 | EP31: 0 | EQ31: 0 | ER31: 0 | ES31: 0 | ET31: 0 | EU31: 0 | EV31: 0 | EW31: 0 | EX31: 0 | EY31: 0 | EZ31: 0 | FA31: 0 | FB31: 0 | FC31: 0 | FD31: 0 | FE31: 0 | FF31: 0 | FG31: 0 | FH31: 0 | FI31: 0 | FJ31: 0 | FK31: 0 | FL31: 0 | FM31: 0 | FN31: 0 | FO31: 0 | FP31: 0 | FQ31: 0 | FR31: 0 | FS31: 0 | FT31: 0 | FU31: 0 | FV31: 0 | FW31: 0 | FX31: 0 | FY31: 0 | FZ31: 0 | GA31: 0 | GB31: 0 | GC31: 0 | GD31: 0 | GE31: 0 | GF31: 0 | GG31: 0 | GH31: 0 | GI31: 0 | GJ31: 0
A32: 1 | D32: POLES | E32: ˂ = 1 kV; Steel | F32: 9.233864229 | G32: 56.6 | H32: 7.52329715 | I32: 2 | J32: 183 | K32: 2157 | L32: 2618 | M32: 2669 | N32: 2568 | O32: 3276 | P32: 5391 | Q32: 4738 | R32: 5092 | S32: 3709 | T32: 3471 | U32: 2545 | V32: 2058 | W32: 2235 | X32: 1943 | Y32: 2026 | Z32: 2137 | AA32: 2040 | AB32: 2074 | AC32: 1804 | AD32: 1551 | AE32: 1518 | AF32: 1492 | AG32: 1426 | AH32: 1441 | AI32: 46 | AJ32: 48 | AK32: 27 | AL32: 60 | AM32: 50 | AN32: 56 | AO32: 39 | AP32: 41 | AQ32: 59 | AR32: 44 | AS32: 45 | AT32: 47 | AU32: 37 | AV32: 36 | AW32: 43 | AX32: 42 | AY32: 31 | AZ32: 40 | BA32: 42 | BB32: 59 | BC32: 48 | BD32: 47 | BE32: 18 | BF32: 21 | BG32: 19 | BH32: 21 | BI32: 13 | BJ32: 5 | BK32: 0 | BL32: 0 | BM32: 0 | BN32: 1 | BO32: 0 | BP32: 0 | BQ32: 0 | BR32: 0 | BS32: 0 | BT32: 0 | BU32: 0 | BV32: 0 | BW32: 0 | BX32: 0 | BY32: 0 | BZ32: 0 | CA32: 0 | CB32: 0 | CC32: 0 | CD32: 0 | CE32: 0 | CF32: 0 | CG32: 0 | CH32: 0 | CI32: 0 | CJ32: 0 | CK32: 0 | CL32: 0 | CM32: 0 | CN32: 0 | CO32: 0 | CP32: 0 | CQ32: 0 | CR32: 0 | CS32: 0 | CT32: 0 | CU32: 0 | CV32: 0 | CX32: 1689.797154 | CY32: 19917.44514 | CZ32: 24174.25655 | DA32: 24645.18363 | DB32: 23712.56334 | DC32: 30250.13922 | DD32: 49779.76206 | DE32: 43750.04872 | DF32: 47018.83666 | DG32: 34248.40243 | DH32: 32050.74274 | DI32: 23500.18446 | DJ32: 19003.29258 | DK32: 20637.68655 | DL32: 17941.3982 | DM32: 18707.80893 | DN32: 19732.76786 | DO32: 18837.08303 | DP32: 19151.03441 | DQ32: 16657.89107 | DR32: 14321.72342 | DS32: 14017.0059 | DT32: 13776.92543 | DU32: 13167.49039 | DV32: 13305.99835 | DW32: 424.7577546 | DX32: 443.225483 | DY32: 249.3143342 | DZ32: 554.0318538 | EA32: 461.6932115 | EB32: 517.0963968 | EC32: 360.1207049 | ED32: 378.5884334 | EE32: 544.7979895 | EF32: 406.2900261 | EG32: 415.5238903 | EH32: 433.9916188 | EI32: 341.6529765 | EJ32: 332.4191123 | EK32: 397.0561619 | EL32: 387.8222976 | EM32: 286.2497911 | EN32: 369.3545692 | EO32: 387.8222976 | EP32: 544.7979895 | EQ32: 443.225483 | ER32: 433.9916188 | ES32: 166.2095561 | ET32: 193.9111488 | EU32: 175.4434204 | EV32: 193.9111488 | EW32: 120.040235 | EX32: 46.16932115 | EY32: 0 | EZ32: 0 | FA32: 0 | FB32: 9.233864229 | FC32: 0 | FD32: 0 | FE32: 0 | FF32: 0 | FG32: 0 | FH32: 0 | FI32: 0 | FJ32: 0 | FK32: 0 | FL32: 0 | FM32: 0 | FN32: 0 | FO32: 0 | FP32: 0 | FQ32: 0 | FR32: 0 | FS32: 0 | FT32: 0 | FU32: 0 | FV32: 0 | FW32: 0 | FX32: 0 | FY32: 0 | FZ32: 0 | GA32: 0 | GB32: 0 | GC32: 0 | GD32: 0 | GE32: 0 | GF32: 0 | GG32: 0 | GH32: 0 | GI32: 0 | GJ32: 0
A33: 1 | D33: POLES | E33: > 1 kV & < = 11 kV; Steel | F33: 9.221057903 | G33: 56.6 | H33: 7.52329715 | I33: 2 | J33: 2 | K33: 25 | L33: 36 | M33: 32 | N33: 26 | O33: 36 | P33: 44 | Q33: 74 | R33: 86 | S33: 33 | T33: 59 | U33: 39 | V33: 24 | W33: 39 | X33: 58 | Y33: 47 | Z33: 51 | AA33: 35 | AB33: 48 | AC33: 53 | AD33: 38 | AE33: 49 | AF33: 36 | AG33: 31 | AH33: 23 | AI33: 30 | AJ33: 21 | AK33: 12 | AL33: 14 | AM33: 13 | AN33: 9 | AO33: 7 | AP33: 19 | AQ33: 14 | AR33: 16 | AS33: 7 | AT33: 7 | AU33: 4 | AV33: 8 | AW33: 11 | AX33: 23 | AY33: 13 | AZ33: 13 | BA33: 20 | BB33: 23 | BC33: 14 | BD33: 14 | BE33: 8 | BF33: 5 | BG33: 9 | BH33: 3 | BI33: 0 | BJ33: 0 | BK33: 0 | BL33: 0 | BM33: 0 | BN33: 0 | BO33: 0 | BP33: 0 | BQ33: 0 | BR33: 0 | BS33: 0 | BT33: 0 | BU33: 0 | BV33: 0 | BW33: 0 | BX33: 0 | BY33: 0 | BZ33: 0 | CA33: 0 | CB33: 0 | CC33: 0 | CD33: 0 | CE33: 0 | CF33: 0 | CG33: 0 | CH33: 0 | CI33: 0 | CJ33: 0 | CK33: 0 | CL33: 0 | CM33: 0 | CN33: 0 | CO33: 0 | CP33: 0 | CQ33: 0 | CR33: 0 | CS33: 0 | CT33: 0 | CU33: 0 | CV33: 0 | CX33: 18.44211581 | CY33: 230.5264476 | CZ33: 331.9580845 | DA33: 295.0738529 | DB33: 239.7475055 | DC33: 331.9580845 | DD33: 405.7265477 | DE33: 682.3582848 | DF33: 793.0109796 | DG33: 304.2949108 | DH33: 544.0424163 | DI33: 359.6212582 | DJ33: 221.3053897 | DK33: 359.6212582 | DL33: 534.8213584 | DM33: 433.3897214 | DN33: 470.273953 | DO33: 322.7370266 | DP33: 442.6107793 | DQ33: 488.7160689 | DR33: 350.4002003 | DS33: 451.8318372 | DT33: 331.9580845 | DU33: 285.852795 | DV33: 212.0843318 | DW33: 276.6317371 | DX33: 193.642216 | DY33: 110.6526948 | DZ33: 129.0948106 | EA33: 119.8737527 | EB33: 82.98952113 | EC33: 64.54740532 | ED33: 175.2001002 | EE33: 129.0948106 | EF33: 147.5369264 | EG33: 64.54740532 | EH33: 64.54740532 | EI33: 36.88423161 | EJ33: 73.76846322 | EK33: 101.4316369 | EL33: 212.0843318 | EM33: 119.8737527 | EN33: 119.8737527 | EO33: 184.4211581 | EP33: 212.0843318 | EQ33: 129.0948106 | ER33: 129.0948106 | ES33: 73.76846322 | ET33: 46.10528951 | EU33: 82.98952113 | EV33: 27.66317371 | EW33: 0 | EX33: 0 | EY33: 0 | EZ33: 0 | FA33: 0 | FB33: 0 | FC33: 0 | FD33: 0 | FE33: 0 | FF33: 0 | FG33: 0 | FH33: 0 | FI33: 0 | FJ33: 0 | FK33: 0 | FL33: 0 | FM33: 0 | FN33: 0 | FO33: 0 | FP33: 0 | FQ33: 0 | FR33: 0 | FS33: 0 | FT33: 0 | FU33: 0 | FV33: 0 | FW33: 0 | FX33: 0 | FY33: 0 | FZ33: 0 | GA33: 0 | GB33: 0 | GC33: 0 | GD33: 0 | GE33: 0 | GF33: 0 | GG33: 0 | GH33: 0 | GI33: 0 | GJ33: 0
A34: 1 | D34: POLES | E34: ˃ 11 kV & < = 22 kV; Steel | F34: 8.519680476 | G34: 45.2765 | H34: 6.728781465 | I34: 2 | J34: 0 | K34: 1 | L34: 12 | M34: 6 | N34: 3 | O34: 5 | P34: 47 | Q34: 4 | R34: 1 | S34: 2 | T34: 13 | U34: 4 | V34: 4 | W34: 2 | X34: 3 | Y34: 3 | Z34: 0 | AA34: 6 | AB34: 6 | AC34: 2 | AD34: 2 | AE34: 2 | AF34: 0 | AG34: 1 | AH34: 2 | AI34: 4 | AJ34: 6 | AK34: 2 | AL34: 1 | AM34: 1 | AN34: 1 | AO34: 0 | AP34: 2 | AQ34: 2 | AR34: 1 | AS34: 1 | AT34: 1 | AU34: 0 | AV34: 4 | AW34: 3 | AX34: 0 | AY34: 2 | AZ34: 4 | BA34: 0 | BB34: 2 | BC34: 0 | BD34: 1 | BE34: 0 | BF34: 0 | BG34: 1 | BH34: 0 | BI34: 0 | BJ34: 0 | BK34: 0 | BL34: 0 | BM34: 0 | BN34: 0 | BO34: 0 | BP34: 0 | BQ34: 0 | BR34: 0 | BS34: 0 | BT34: 0 | BU34: 0 | BV34: 0 | BW34: 0 | BX34: 0 | BY34: 0 | BZ34: 0 | CA34: 0 | CB34: 0 | CC34: 0 | CD34: 0 | CE34: 0 | CF34: 0 | CG34: 0 | CH34: 0 | CI34: 0 | CJ34: 0 | CK34: 0 | CL34: 0 | CM34: 0 | CN34: 0 | CO34: 0 | CP34: 0 | CQ34: 0 | CR34: 0 | CS34: 0 | CT34: 0 | CU34: 0 | CV34: 0 | CX34: 0 | CY34: 8.519680476 | CZ34: 102.2361657 | DA34: 51.11808285 | DB34: 25.55904143 | DC34: 42.59840238 | DD34: 400.4249824 | DE34: 34.0787219 | DF34: 8.519680476 | DG34: 17.03936095 | DH34: 110.7558462 | DI34: 34.0787219 | DJ34: 34.0787219 | DK34: 17.03936095 | DL34: 25.55904143 | DM34: 25.55904143 | DN34: 0 | DO34: 51.11808285 | DP34: 51.11808285 | DQ34: 17.03936095 | DR34: 17.03936095 | DS34: 17.03936095 | DT34: 0 | DU34: 8.519680476 | DV34: 17.03936095 | DW34: 34.0787219 | DX34: 51.11808285 | DY34: 17.03936095 | DZ34: 8.519680476 | EA34: 8.519680476 | EB34: 8.519680476 | EC34: 0 | ED34: 17.03936095 | EE34: 17.03936095 | EF34: 8.519680476 | EG34: 8.519680476 | EH34: 8.519680476 | EI34: 0 | EJ34: 34.0787219 | EK34: 25.55904143 | EL34: 0 | EM34: 17.03936095 | EN34: 34.0787219 | EO34: 0 | EP34: 17.03936095 | EQ34: 0 | ER34: 8.519680476 | ES34: 0 | ET34: 0 | EU34: 8.519680476 | EV34: 0 | EW34: 0 | EX34: 0 | EY34: 0 | EZ34: 0 | FA34: 0 | FB34: 0 | FC34: 0 | FD34: 0 | FE34: 0 | FF34: 0 | FG34: 0 | FH34: 0 | FI34: 0 | FJ34: 0 | FK34: 0 | FL34: 0 | FM34: 0 | FN34: 0 | FO34: 0 | FP34: 0 | FQ34: 0 | FR34: 0 | FS34: 0 | FT34: 0 | FU34: 0 | FV34: 0 | FW34: 0 | FX34: 0 | FY34: 0 | FZ34: 0 | GA34: 0 | GB34: 0 | GC34: 0 | GD34: 0 | GE34: 0 | GF34: 0 | GG34: 0 | GH34: 0 | GI34: 0 | GJ34: 0
A35: 1 | D35: POLES | E35: > 22 kV & < = 66 kV; Steel | F35: 20.83372953 | G35: 56.6 | H35: 7.52329715 | I35: 2 | J35: 1 | K35: 30 | L35: 29 | M35: 35 | N35: 32 | O35: 30 | P35: 34 | Q35: 36 | R35: 34 | S35: 35 | T35: 56 | U35: 35 | V35: 36 | W35: 31 | X35: 38 | Y35: 27 | Z35: 37 | AA35: 30 | AB35: 25 | AC35: 23 | AD35: 25 | AE35: 28 | AF35: 29 | AG35: 26 | AH35: 28 | AI35: 2 | AJ35: 0 | AK35: 0 | AL35: 4 | AM35: 5 | AN35: 2 | AO35: 1 | AP35: 2 | AQ35: 3 | AR35: 4 | AS35: 0 | AT35: 2 | AU35: 0 | AV35: 1 | AW35: 0 | AX35: 0 | AY35: 2 | AZ35: 52 | BA35: 0 | BB35: 1 | BC35: 72 | BD35: 2 | BE35: 0 | BF35: 0 | BG35: 0 | BH35: 2 | BI35: 0 | BJ35: 0 | BK35: 0 | BL35: 0 | BM35: 0 | BN35: 617 | BO35: 468 | BP35: 0 | BQ35: 0 | BR35: 0 | BS35: 0 | BT35: 0 | BU35: 0 | BV35: 49 | BW35: 0 | BX35: 0 | BY35: 0 | BZ35: 0 | CA35: 0 | CB35: 0 | CC35: 0 | CD35: 0 | CE35: 0 | CF35: 0 | CG35: 0 | CH35: 0 | CI35: 0 | CJ35: 0 | CK35: 0 | CL35: 0 | CM35: 0 | CN35: 0 | CO35: 0 | CP35: 0 | CQ35: 0 | CR35: 0 | CS35: 0 | CT35: 0 | CU35: 0 | CV35: 0 | CX35: 20.83372953 | CY35: 625.011886 | CZ35: 604.1781565 | DA35: 729.1805337 | DB35: 666.6793451 | DC35: 625.011886 | DD35: 708.3468042 | DE35: 750.0142632 | DF35: 708.3468042 | DG35: 729.1805337 | DH35: 1166.688854 | DI35: 729.1805337 | DJ35: 750.0142632 | DK35: 645.8456156 | DL35: 791.6817223 | DM35: 562.5106974 | DN35: 770.8479928 | DO35: 625.011886 | DP35: 520.8432384 | DQ35: 479.1757793 | DR35: 520.8432384 | DS35: 583.344427 | DT35: 604.1781565 | DU35: 541.6769679 | DV35: 583.344427 | DW35: 41.66745907 | DX35: 0 | DY35: 0 | DZ35: 83.33491814 | EA35: 104.1686477 | EB35: 41.66745907 | EC35: 20.83372953 | ED35: 41.66745907 | EE35: 62.5011886 | EF35: 83.33491814 | EG35: 0 | EH35: 41.66745907 | EI35: 0 | EJ35: 20.83372953 | EK35: 0 | EL35: 0 | EM35: 41.66745907 | EN35: 1083.353936 | EO35: 0 | EP35: 20.83372953 | EQ35: 1500.028526 | ER35: 41.66745907 | ES35: 0 | ET35: 0 | EU35: 0 | EV35: 41.66745907 | EW35: 0 | EX35: 0 | EY35: 0 | EZ35: 0 | FA35: 0 | FB35: 12854.41112 | FC35: 9750.185422 | FD35: 0 | FE35: 0 | FF35: 0 | FG35: 0 | FH35: 0 | FI35: 0 | FJ35: 1020.852747 | FK35: 0 | FL35: 0 | FM35: 0 | FN35: 0 | FO35: 0 | FP35: 0 | FQ35: 0 | FR35: 0 | FS35: 0 | FT35: 0 | FU35: 0 | FV35: 0 | FW35: 0 | FX35: 0 | FY35: 0 | FZ35: 0 | GA35: 0 | GB35: 0 | GC35: 0 | GD35: 0 | GE35: 0 | GF35: 0 | GG35: 0 | GH35: 0 | GI35: 0 | GJ35: 0
A36: 1 | D36: POLES | E36: > 66 kV & < = 132 kV; Steel | F36: 17.14329826 | G36: 56.6 | H36: 7.52329715 | I36: 2 | J36: 0 | K36: 4 | L36: 2 | M36: 1 | N36: 1 | O36: 3 | P36: 3 | Q36: 1 | R36: 1 | S36: 2 | T36: 3 | U36: 3 | V36: 1 | W36: 0 | X36: 1 | Y36: 1 | Z36: 2 | AA36: 1 | AB36: 155 | AC36: 17 | AD36: 4 | AE36: 4 | AF36: 5 | AG36: 6 | AH36: 3 | AI36: 6 | AJ36: 0 | AK36: 1 | AL36: 284 | AM36: 0 | AN36: 0 | AO36: 24 | AP36: 197 | AQ36: 0 | AR36: 2 | AS36: 1 | AT36: 0 | AU36: 0 | AV36: 0 | AW36: 0 | AX36: 0 | AY36: 0 | AZ36: 17 | BA36: 0 | BB36: 0 | BC36: 0 | BD36: 0 | BE36: 0 | BF36: 0 | BG36: 48 | BH36: 0 | BI36: 0 | BJ36: 0 | BK36: 0 | BL36: 0 | BM36: 0 | BN36: 0 | BO36: 0 | BP36: 0 | BQ36: 0 | BR36: 0 | BS36: 0 | BT36: 0 | BU36: 0 | BV36: 0 | BW36: 0 | BX36: 0 | BY36: 0 | BZ36: 0 | CA36: 0 | CB36: 0 | CC36: 0 | CD36: 0 | CE36: 0 | CF36: 0 | CG36: 0 | CH36: 0 | CI36: 0 | CJ36: 0 | CK36: 0 | CL36: 0 | CM36: 0 | CN36: 0 | CO36: 0 | CP36: 0 | CQ36: 0 | CR36: 0 | CS36: 0 | CT36: 0 | CU36: 0 | CV36: 0 | CX36: 0 | CY36: 68.57319305 | CZ36: 34.28659652 | DA36: 17.14329826 | DB36: 17.14329826 | DC36: 51.42989479 | DD36: 51.42989479 | DE36: 17.14329826 | DF36: 17.14329826 | DG36: 34.28659652 | DH36: 51.42989479 | DI36: 51.42989479 | DJ36: 17.14329826 | DK36: 0 | DL36: 17.14329826 | DM36: 17.14329826 | DN36: 34.28659652 | DO36: 17.14329826 | DP36: 2657.211231 | DQ36: 291.4360705 | DR36: 68.57319305 | DS36: 68.57319305 | DT36: 85.71649131 | DU36: 102.8597896 | DV36: 51.42989479 | DW36: 102.8597896 | DX36: 0 | DY36: 17.14329826 | DZ36: 4868.696706 | EA36: 0 | EB36: 0 | EC36: 411.4391583 | ED36: 3377.229758 | EE36: 0 | EF36: 34.28659652 | EG36: 17.14329826 | EH36: 0 | EI36: 0 | EJ36: 0 | EK36: 0 | EL36: 0 | EM36: 0 | EN36: 291.4360705 | EO36: 0 | EP36: 0 | EQ36: 0 | ER36: 0 | ES36: 0 | ET36: 0 | EU36: 822.8783166 | EV36: 0 | EW36: 0 | EX36: 0 | EY36: 0 | EZ36: 0 | FA36: 0 | FB36: 0 | FC36: 0 | FD36: 0 | FE36: 0 | FF36: 0 | FG36: 0 | FH36: 0 | FI36: 0 | FJ36: 0 | FK36: 0 | FL36: 0 | FM36: 0 | FN36: 0 | FO36: 0 | FP36: 0 | FQ36: 0 | FR36: 0 | FS36: 0 | FT36: 0 | FU36: 0 | FV36: 0 | FW36: 0 | FX36: 0 | FY36: 0 | FZ36: 0 | GA36: 0 | GB36: 0 | GC36: 0 | GD36: 0 | GE36: 0 | GF36: 0 | GG36: 0 | GH36: 0 | GI36: 0 | GJ36: 0
E37: ˂ = 1 kV | F37: 0.6569185298 | G37: 30 | H37: 5.477225575 | I37: 2
E38: > 1 kV & < = 11 kV | F38: 1.454344985 | G38: 30 | H38: 5.477225575 | I38: 2
E39: ˃ 11 kV & < = 22 kV | F39: 1.530595089 | G39: 30 | H39: 5.477225575 | I39: 2
E40: > 22 kV & < = 66 kV | F40: 2.235898691 | G40: 30 | H40: 5.477225575 | I40: 2
E41: > 66 kV & < = 132 kV | F41: 4.966692109 | G41: 30 | H41: 5.477225575 | I41: 2
A42: 2 | D42: OVERHEAD CONDUCTORS | E42: ˂ = 1 kV | F42: 83.0112849 | G42: 76.62577745 | H42: 8.753615107 | I42: 2 | J42: 98.04137437 | K42: 221.5394625 | L42: 267.5176101 | M42: 242.5170511 | N42: 257.0325675 | O42: 320.0915487 | P42: 303.1801746 | Q42: 369.8040078 | R42: 323.3101962 | S42: 277.4834681 | T42: 155.4503664 | U42: 144.3466019 | V42: 176.2924109 | W42: 178.8973315 | X42: 193.2778349 | Y42: 187.7539951 | Z42: 206.6159432 | AA42: 209.8736559 | AB42: 222.6060598 | AC42: 294.558375 | AD42: 287.5514044 | AE42: 278.6125255 | AF42: 340.4783459 | AG42: 326.0438751 | AH42: 373.3045503 | AI42: 381.3583625 | AJ42: 271.289932 | AK42: 269.5582261 | AL42: 375.5985941 | AM42: 474.7879707 | AN42: 465.3962456 | AO42: 405.3972541 | AP42: 532.9146413 | AQ42: 526.3996718 | AR42: 461.2587967 | AS42: 337.5260656 | AT42: 424.3010488 | AU42: 472.0221783 | AV42: 460.1756524 | AW42: 447.1804186 | AX42: 481.442583 | AY42: 422.0713673 | AZ42: 473.3895511 | BA42: 446.6512136 | BB42: 520.220113 | BC42: 457.9373621 | BD42: 444.8130154 | BE42: 352.6122815 | BF42: 346.3093971 | BG42: 379.1199213 | BH42: 323.3522772 | BI42: 418.780735 | BJ42: 243.5274297 | BK42: 257.4935615 | BL42: 270.3252376 | BM42: 291.4671879 | BN42: 283.3170851 | BO42: 303.9560129 | BP42: 329.5698888 | BQ42: 354.6624777 | BR42: 383.7896538 | BS42: 375.5934007 | BT42: 386.2497891 | BU42: 431.2427388 | BV42: 536.3965056 | BW42: 1.280513663 | BX42: 0.1299363433 | BY42: 13.20851964 | BZ42: 0 | CA42: 0 | CB42: 0 | CC42: 0 | CD42: 0 | CE42: 0 | CF42: 0 | CG42: 0 | CH42: 0 | CI42: 0 | CJ42: 0 | CK42: 0 | CL42: 0 | CM42: 0 | CN42: 0 | CO42: 0 | CP42: 0 | CQ42: 0 | CR42: 0 | CS42: 0 | CT42: 0 | CU42: 0 | CV42: 0 | CX42: 8138.54046 | CY42: 18390.27544 | CZ42: 22206.98055 | DA42: 20131.65202 | DB42: 21336.60369 | DC42: 26571.21075 | DD42: 25167.37585 | DE42: 30697.90585 | DF42: 26838.39481 | DG42: 23034.25923 | DH42: 12904.13465 | DI42: 11982.3969 | DJ42: 14634.25955 | DK42: 14850.49736 | DL42: 16044.24142 | DM42: 15585.70038 | DN42: 17151.45493 | DO42: 17421.88184 | DP42: 18478.81506 | DQ42: 24451.66919 | DR42: 23870.01156 | DS42: 23127.98373 | DT42: 28263.54497 | DU42: 27065.32101 | DV42: 30988.49038 | DW42: 31657.04768 | DX42: 22520.12584 | DY42: 22376.37471 | DZ42: 31178.92191 | EA42: 39412.75951 | EB42: 38633.14034 | EC42: 33652.54696 | ED42: 44237.92912 | EE42: 43697.11313 | EF42: 38289.68538 | EG42: 28018.4724 | EH42: 35221.77524 | EI42: 39183.16752 | EJ42: 38199.77219 | EK42: 37121.02114 | EL42: 39965.16743 | EM42: 35036.68652 | EN42: 39296.6749 | EO42: 37077.09115 | EP42: 43184.14001 | EQ42: 38013.96883 | ER42: 36924.49995 | ES42: 29270.79856 | ET42: 28747.58803 | EU42: 31471.2318 | EV42: 26841.88801 | EW42: 34763.52691 | EX42: 20215.52485 | EY42: 21374.87139 | EZ42: 22440.04532 | FA42: 24195.06578 | FB42: 23518.51527 | FC42: 25231.77919 | FD42: 27358.01994 | FE42: 29440.98798 | FF42: 31858.87229 | FG42: 31178.49079 | FH42: 32063.09129 | FI42: 35798.01385 | FJ42: 44526.96315 | FK42: 106.2970845 | FL42: 10.78618282 | FM42: 1096.456187 | FN42: 0 | FO42: 0 | FP42: 0 | FQ42: 0 | FR42: 0 | FS42: 0 | FT42: 0 | FU42: 0 | FV42: 0 | FW42: 0 | FX42: 0 | FY42: 0 | FZ42: 0 | GA42: 0 | GB42: 0 | GC42: 0 | GD42: 0 | GE42: 0 | GF42: 0 | GG42: 0 | GH42: 0 | GI42: 0 | GJ42: 0
A43: 2 | D43: OVERHEAD CONDUCTORS | E43: > 1 kV & < = 11 kV | F43: 127.6894551 | G43: 71.71194847 | H43: 8.468290765 | I43: 2 | J43: 185.8866451 | K43: 427.5389821 | L43: 508.4510799 | M43: 444.0781746 | N43: 432.0990899 | O43: 616.0421945 | P43: 520.6580465 | Q43: 652.8684233 | R43: 417.6048864 | S43: 284.0427746 | T43: 126.294369 | U43: 105.0708447 | V43: 147.6095412 | W43: 202.567158 | X43: 235.0458838 | Y43: 220.7574634 | Z43: 285.7092813 | AA43: 321.0620789 | AB43: 382.2575616 | AC43: 615.3637019 | AD43: 447.9304358 | AE43: 461.1428203 | AF43: 557.914117 | AG43: 518.5130369 | AH43: 500.39285 | AI43: 448.0224203 | AJ43: 265.8380227 | AK43: 348.1003444 | AL43: 497.9751833 | AM43: 621.5594977 | AN43: 635.7587715 | AO43: 563.6506727 | AP43: 908.9225301 | AQ43: 828.2642228 | AR43: 929.3409144 | AS43: 486.3515915 | AT43: 549.4235414 | AU43: 601.8392455 | AV43: 608.4417723 | AW43: 498.5029236 | AX43: 651.2196915 | AY43: 352.2158727 | AZ43: 519.3119895 | BA43: 628.518242 | BB43: 788.9168457 | BC43: 688.0118163 | BD43: 730.9620105 | BE43: 779.3741664 | BF43: 666.8274618 | BG43: 1029.342343 | BH43: 1097.001812 | BI43: 742.2150045 | BJ43: 314.9036825 | BK43: 340.4952448 | BL43: 402.8403741 | BM43: 461.4422131 | BN43: 475.3205347 | BO43: 522.8438244 | BP43: 574.4818978 | BQ43: 620.9076393 | BR43: 701.0175236 | BS43: 873.6090463 | BT43: 902.4149013 | BU43: 990.8913184 | BV43: 1950.252044 | BW43: 0.229978432 | BX43: 17.17363374 | BY43: 5.317153789 | BZ43: 0 | CA43: 0 | CB43: 0 | CC43: 0 | CD43: 0 | CE43: 0 | CF43: 0 | CG43: 0 | CH43: 0 | CI43: 0 | CJ43: 0 | CK43: 0 | CL43: 0 | CM43: 0 | CN43: 0 | CO43: 0 | CP43: 0 | CQ43: 0 | CR43: 0 | CS43: 0 | CT43: 0 | CU43: 0 | CV43: 0 | CX43: 23735.76443 | CY43: 54592.21967 | CZ43: 64923.84133 | DA43: 56704.10014 | DB43: 55174.49734 | DC43: 78662.09213 | DD43: 66482.54226 | DE43: 83364.41322 | DF43: 53323.7404 | DG43: 36269.26711 | DH43: 16126.45917 | DI43: 13416.43891 | DJ43: 18848.18189 | DK43: 25865.69002 | DL43: 30012.88083 | DM43: 28188.40021 | DN43: 36482.06244 | DO43: 40996.24191 | DP43: 48810.25975 | DQ43: 78575.45579 | DR43: 57195.99327 | DS43: 58883.07545 | DT43: 71239.7496 | DU43: 66208.64715 | DV43: 63894.89036 | DW43: 57207.73873 | DX43: 33944.71227 | DY43: 44448.7433 | DZ43: 63586.17981 | EA43: 79366.59358 | EB43: 81179.69111 | EC43: 71972.24726 | ED43: 116059.8226 | EE43: 105760.6073 | EF43: 118667.035 | EG43: 62101.96971 | EH43: 70155.59262 | EI43: 76848.52533 | EJ43: 77691.59837 | EK43: 63653.56669 | EL43: 83153.88756 | EM43: 44974.25286 | EN43: 66310.66496 | EO43: 80255.15185 | EP43: 100736.3621 | EQ43: 87851.85393 | ER43: 93336.14083 | ES43: 99517.86263 | ET43: 85146.83524 | EU43: 131436.1629 | EV43: 140075.5636 | EW43: 94773.02949 | EX43: 40209.87962 | EY43: 43477.65228 | EZ43: 51438.46786 | FA43: 58921.30476 | FB43: 60693.42007 | FC43: 66761.64305 | FD43: 73355.28049 | FE43: 79283.35813 | FF43: 89512.54561 | FG43: 111550.6631 | FH43: 115228.867 | FI43: 126526.3725 | FJ43: 249026.6208 | FK43: 29.36582067 | FL43: 2192.891934 | FM43: 678.94447 | FN43: 0 | FO43: 0 | FP43: 0 | FQ43: 0 | FR43: 0 | FS43: 0 | FT43: 0 | FU43: 0 | FV43: 0 | FW43: 0 | FX43: 0 | FY43: 0 | FZ43: 0 | GA43: 0 | GB43: 0 | GC43: 0 | GD43: 0 | GE43: 0 | GF43: 0 | GG43: 0 | GH43: 0 | GI43: 0 | GJ43: 0
A44: 2 | D44: OVERHEAD CONDUCTORS | E44: ˃ 11 kV & < = 22 kV ; SWER | F44: 63.83741915 | G44: 74.14030744 | H44: 8.610476609 | I44: 2 | J44: 82.49424035 | K44: 242.4607406 | L44: 231.0626911 | M44: 182.7316341 | N44: 168.3737377 | O44: 195.8692532 | P44: 199.2217058 | Q44: 276.0491976 | R44: 253.5611501 | S44: 231.7233739 | T44: 56.20792602 | U44: 132.6009842 | V44: 230.4372222 | W44: 192.4878302 | X44: 1065.965247 | Y44: 1887.310866 | Z44: 210.0797527 | AA44: 216.8454455 | AB44: 203.3894182 | AC44: 277.5899813 | AD44: 366.9712105 | AE44: 339.4784905 | AF44: 668.6697936 | AG44: 656.1366117 | AH44: 702.0779604 | AI44: 1395.985062 | AJ44: 1269.23641 | AK44: 1572.319092 | AL44: 3412.626337 | AM44: 2314.808234 | AN44: 1992.83107 | AO44: 2471.255119 | AP44: 3969.31706 | AQ44: 5013.425205 | AR44: 3040.706242 | AS44: 1056.765722 | AT44: 702.283345 | AU44: 803.3575425 | AV44: 1345.74541 | AW44: 2012.739577 | AX44: 2890.449415 | AY44: 1170.551786 | AZ44: 1091.294121 | BA44: 1777.615528 | BB44: 2161.211381 | BC44: 1611.019549 | BD44: 1212.569571 | BE44: 1610.806457 | BF44: 1266.734544 | BG44: 1551.100053 | BH44: 1447.330046 | BI44: 1665.912469 | BJ44: 297.2688743 | BK44: 184.1555192 | BL44: 207.1961186 | BM44: 173.7470938 | BN44: 230.1636362 | BO44: 263.9390336 | BP44: 263.2800744 | BQ44: 314.9823967 | BR44: 348.6330835 | BS44: 417.4427649 | BT44: 464.6380133 | BU44: 515.2310549 | BV44: 961.3189892 | BW44: 0 | BX44: 0 | BY44: 0 | BZ44: 0 | CA44: 0 | CB44: 0 | CC44: 0 | CD44: 0 | CE44: 0 | CF44: 0 | CG44: 0 | CH44: 0 | CI44: 0 | CJ44: 0 | CK44: 0 | CL44: 0 | CM44: 0 | CN44: 0 | CO44: 0 | CP44: 0 | CQ44: 0 | CR44: 0 | CS44: 0 | CT44: 0 | CU44: 0 | CV44: 0 | CX44: 5266.219398 | CY44: 15478.06793 | CZ44: 14750.44586 | DA44: 11665.11592 | DB44: 10748.54487 | DC44: 12503.78761 | DD44: 12717.79954 | DE44: 17622.26833 | DF44: 16186.68942 | DG44: 14792.62215 | DH44: 3588.168933 | DI44: 8464.904604 | DJ44: 14710.51754 | DK44: 12287.9263 | DL44: 68048.47027 | DM44: 120481.0548 | DN44: 13410.94923 | DO44: 13842.8536 | DP44: 12983.85554 | DQ44: 17720.62799 | DR44: 23426.49498 | DS44: 21671.43069 | DT44: 42686.15388 | DU44: 41886.0679 | DV44: 44818.84503 | DW44: 89116.08353 | DX44: 81024.77667 | DY44: 100372.7929 | DZ44: 217853.2579 | EA44: 147771.3835 | EB44: 127217.1923 | EC44: 157758.5488 | ED44: 253390.9569 | EE44: 320044.1262 | EF44: 194110.8389 | EG44: 67461.19632 | EH44: 44831.95625 | EI44: 51284.27216 | EJ44: 85908.91379 | EK44: 128488.1 | EL44: 184518.8308 | EM44: 74725.00501 | EN44: 69665.40024 | EO44: 113478.3876 | EP44: 137966.1568 | EQ44: 102843.3302 | ER44: 77407.31197 | ES44: 102829.727 | ET44: 80865.064 | EU44: 99018.22424 | EV44: 92393.81478 | EW44: 106347.5525 | EX44: 18976.87773 | EY44: 11756.01307 | EZ44: 13226.86547 | FA44: 11091.56605 | FB44: 14693.05252 | FC44: 16849.18672 | FD44: 16807.12046 | FE44: 20107.66328 | FF44: 22255.83628 | FG44: 26648.46875 | FH44: 29661.29161 | FI44: 32891.02081 | FJ44: 61368.12325 | FK44: 0 | FL44: 0 | FM44: 0 | FN44: 0 | FO44: 0 | FP44: 0 | FQ44: 0 | FR44: 0 | FS44: 0 | FT44: 0 | FU44: 0 | FV44: 0 | FW44: 0 | FX44: 0 | FY44: 0 | FZ44: 0 | GA44: 0 | GB44: 0 | GC44: 0 | GD44: 0 | GE44: 0 | GF44: 0 | GG44: 0 | GH44: 0 | GI44: 0 | GJ44: 0
A45: 2 | D45: OVERHEAD CONDUCTORS | E45: ˃ 11 kV & < = 22 kV ; Single-Phase | F45: 93.93375718 | G45: 61.36183761 | H45: 7.833379706 | I45: 2 | J45: 15.29364346 | K45: 41.47274023 | L45: 97.27371096 | M45: 48.68899327 | N45: 42.57606001 | O45: 30.7204311 | P45: 40.46958375 | Q45: 60.91281468 | R45: 56.73934837 | S45: 30.3903454 | T45: 17.06699761 | U45: 12.30672268 | V45: 15.71376835 | W45: 13.17221952 | X45: 20.31435746 | Y45: 19.99239809 | Z45: 45.2071872 | AA45: 21.94741086 | AB45: 22.7101513 | AC45: 59.2333284 | AD45: 52.86392913 | AE45: 32.19372327 | AF45: 36.83822835 | AG45: 38.896015 | AH45: 51.35937632 | AI45: 93.34961789 | AJ45: 46.40045517 | AK45: 38.7232924 | AL45: 92.76272772 | AM45: 69.91276093 | AN45: 67.990893 | AO45: 60.74937134 | AP45: 94.71518986 | AQ45: 116.3280274 | AR45: 89.89433038 | AS45: 57.69107234 | AT45: 51.34185293 | AU45: 40.44202342 | AV45: 34.77559256 | AW45: 49.21046585 | AX45: 53.98428297 | AY45: 76.58996105 | AZ45: 34.03071059 | BA45: 90.73723103 | BB45: 65.42634731 | BC45: 50.83472734 | BD45: 46.24698613 | BE45: 58.53427711 | BF45: 49.75610819 | BG45: 53.29382479 | BH45: 41.80937133 | BI45: 37.132039 | BJ45: 17.20761014 | BK45: 14.06721857 | BL45: 11.79733145 | BM45: 15.50469316 | BN45: 8.596503401 | BO45: 16.80799042 | BP45: 22.96228465 | BQ45: 15.77059322 | BR45: 24.63085522 | BS45: 16.76925469 | BT45: 20.00938205 | BU45: 12.22046693 | BV45: 41.32818791 | BW45: 0 | BX45: 0 | BY45: 0 | BZ45: 0 | CA45: 0 | CB45: 0 | CC45: 0 | CD45: 0 | CE45: 0 | CF45: 0 | CG45: 0 | CH45: 0 | CI45: 0 | CJ45: 0 | CK45: 0 | CL45: 0 | CM45: 0 | CN45: 0 | CO45: 0 | CP45: 0 | CQ45: 0 | CR45: 0 | CS45: 0 | CT45: 0 | CU45: 0 | CV45: 0 | CX45: 1436.589391 | CY45: 3895.690311 | CZ45: 9137.285146 | DA45: 4573.540071 | DB45: 3999.329283 | DC45: 2885.685515 | DD45: 3801.460053 | DE45: 5721.769543 | DF45: 5329.740173 | DG45: 2854.679326 | DH45: 1603.167209 | DI45: 1156.0167 | DJ45: 1476.053301 | DK45: 1237.31607 | DL45: 1908.203921 | DM45: 1877.961068 | DN45: 4246.480945 | DO45: 2061.602763 | DP45: 2133.249838 | DQ45: 5564.009087 | DR45: 4965.707483 | DS45: 3024.077385 | DT45: 3460.353197 | DU45: 3653.648828 | DV45: 4824.379184 | DW45: 8768.68034 | DX45: 4358.569089 | DY45: 3637.424346 | DZ45: 8713.551541 | EA45: 6567.168309 | EB45: 6386.640033 | EC45: 5706.416696 | ED45: 8896.953646 | EE45: 10927.12868 | EF45: 8444.112202 | EG45: 5419.139181 | EH45: 4822.733147 | EI45: 3798.871208 | EJ45: 3266.602068 | EK45: 4622.52395 | EL45: 5070.946528 | EM45: 7194.382804 | EN45: 3196.632506 | EO45: 8523.289027 | EP45: 6145.742622 | EQ45: 4775.096935 | ER45: 4344.153166 | ES45: 5498.344573 | ET45: 4673.778185 | EU45: 5006.089197 | EV45: 3927.311335 | EW45: 3487.951935 | EX45: 1616.375472 | EY45: 1321.386693 | EZ45: 1108.167668 | FA45: 1456.414082 | FB45: 807.5018631 | FC45: 1578.837691 | FD45: 2156.933671 | FE45: 1481.391075 | FF45: 2313.668774 | FG45: 1575.199098 | FH45: 1879.556435 | FI45: 1147.914373 | FJ45: 3882.111968 | FK45: 0 | FL45: 0 | FM45: 0 | FN45: 0 | FO45: 0 | FP45: 0 | FQ45: 0 | FR45: 0 | FS45: 0 | FT45: 0 | FU45: 0 | FV45: 0 | FW45: 0 | FX45: 0 | FY45: 0 | FZ45: 0 | GA45: 0 | GB45: 0 | GC45: 0 | GD45: 0 | GE45: 0 | GF45: 0 | GG45: 0 | GH45: 0 | GI45: 0 | GJ45: 0
A46: 2 | D46: OVERHEAD CONDUCTORS | E46: ˃ 11 kV & < = 22 kV ; Multiple-Phase | F46: 127.7161904 | G46: 69.31534221 | H46: 8.325583596 | I46: 2 | J46: 73.68689934 | K46: 122.421645 | L46: 207.4779452 | M46: 143.2667792 | N46: 147.3961556 | O46: 155.7778418 | P46: 136.0382844 | Q46: 129.1727534 | R46: 101.5086613 | S46: 83.88768717 | T46: 28.12062675 | U46: 67.23467477 | V46: 45.53781385 | W46: 78.58878981 | X46: 146.1970584 | Y46: 105.388292 | Z46: 70.07011385 | AA46: 80.8214927 | AB46: 45.42331136 | AC46: 157.1424324 | AD46: 130.1055375 | AE46: 136.5860383 | AF46: 119.1373071 | AG46: 233.7977798 | AH46: 192.1572803 | AI46: 399.159926 | AJ46: 273.6760067 | AK46: 230.5556305 | AL46: 326.6896475 | AM46: 250.1435417 | AN46: 228.6954735 | AO46: 186.4596763 | AP46: 286.0103207 | AQ46: 368.5662114 | AR46: 298.2412253 | AS46: 169.5588405 | AT46: 157.1590837 | AU46: 151.5728289 | AV46: 155.0443636 | AW46: 214.7295677 | AX46: 319.550638 | AY46: 184.3239414 | AZ46: 235.1613716 | BA46: 273.1751601 | BB46: 308.9957848 | BC46: 392.4687452 | BD46: 363.3118081 | BE46: 327.3597086 | BF46: 334.9308146 | BG46: 396.0009635 | BH46: 303.9902158 | BI46: 213.7943637 | BJ46: 119.2505575 | BK46: 82.86605954 | BL46: 89.45606813 | BM46: 85.50183096 | BN46: 115.2095365 | BO46: 92.32943965 | BP46: 132.3776669 | BQ46: 121.5472867 | BR46: 165.7860277 | BS46: 132.4135206 | BT46: 172.6518857 | BU46: 242.9185674 | BV46: 442.0599244 | BW46: 0 | BX46: 0 | BY46: 0 | BZ46: 0 | CA46: 0 | CB46: 0 | CC46: 0 | CD46: 0 | CE46: 0 | CF46: 0 | CG46: 0 | CH46: 0 | CI46: 0 | CJ46: 0 | CK46: 0 | CL46: 0 | CM46: 0 | CN46: 0 | CO46: 0 | CP46: 0 | CQ46: 0 | CR46: 0 | CS46: 0 | CT46: 0 | CU46: 0 | CV46: 0 | CX46: 9411.010066 | CY46: 15635.22612 | CZ46: 26498.29276 | DA46: 18297.48725 | DB46: 18824.87547 | DC46: 19895.35251 | DD46: 17374.29143 | DE46: 16497.45196 | DF46: 12964.29951 | DG46: 10713.81583 | DH46: 3591.45932 | DI46: 8586.956524 | DJ46: 5815.916104 | DK46: 10037.06084 | DL46: 18671.73135 | DM46: 13459.79117 | DN46: 8949.088002 | DO46: 10322.21315 | DP46: 5801.292282 | DQ46: 20069.63282 | DR46: 16616.5836 | DS46: 17444.24848 | DT46: 15215.763 | DU46: 29859.76176 | DV46: 24541.59579 | DW46: 50979.18511 | DX46: 34952.85698 | DY46: 29445.6868 | DZ46: 41723.55722 | EA46: 31947.38019 | EB46: 29208.11463 | EC46: 23813.91952 | ED46: 36528.14857 | EE46: 47071.87243 | EF46: 38090.23312 | EG46: 21655.40916 | EH46: 20071.75946 | EI46: 19358.30427 | EJ46: 19801.67546 | EK46: 27424.44236 | EL46: 40811.79012 | EM46: 23541.1516 | EN46: 30033.91451 | EO46: 34888.89076 | EP46: 39463.76448 | EQ46: 50124.61299 | ER46: 46400.80005 | ES46: 41809.13488 | ET46: 42776.08769 | EU46: 50575.73445 | EV46: 38824.47228 | EW46: 27305.00166 | EX46: 15230.22691 | EY46: 10583.33744 | EZ46: 11424.98823 | FA46: 10919.96812 | FB46: 14714.12311 | FC46: 11791.96429 | FD46: 16906.77132 | FE46: 15523.55641 | FF46: 21173.55988 | FG46: 16911.35041 | FH46: 22050.44111 | FI46: 31024.634 | FJ46: 56458.20948 | FK46: 0 | FL46: 0 | FM46: 0 | FN46: 0 | FO46: 0 | FP46: 0 | FQ46: 0 | FR46: 0 | FS46: 0 | FT46: 0 | FU46: 0 | FV46: 0 | FW46: 0 | FX46: 0 | FY46: 0 | FZ46: 0 | GA46: 0 | GB46: 0 | GC46: 0 | GD46: 0 | GE46: 0 | GF46: 0 | GG46: 0 | GH46: 0 | GI46: 0 | GJ46: 0
A47: 2 | D47: OVERHEAD CONDUCTORS | E47: > 22 kV & < = 66 kV | F47: 612.8392238 | G47: 79.46105827 | H47: 8.914093239 | I47: 2 | J47: 30.718694 | K47: 54.87621865 | L47: 85.15303059 | M47: 141.711693 | N47: 149.0500436 | O47: 114.26717 | P47: 64.9703407 | Q47: 179.0926143 | R47: 132.7538439 | S47: 44.75673328 | T47: 29.07257083 | U47: 39.65317663 | V47: 77.64018808 | W47: 79.8220037 | X47: 118.978747 | Y47: 403.1712519 | Z47: 66.59716976 | AA47: 371.6217444 | AB47: 43.39568629 | AC47: 170.7310026 | AD47: 101.1714474 | AE47: 36.00794791 | AF47: 220.3011612 | AG47: 70.69607687 | AH47: 539.0433541 | AI47: 195.2907639 | AJ47: 46.86066049 | AK47: 231.7063686 | AL47: 625.2498811 | AM47: 225.2334345 | AN47: 465.116844 | AO47: 114.4305458 | AP47: 309.3559575 | AQ47: 195.3796752 | AR47: 135.760453 | AS47: 142.2752161 | AT47: 94.57905858 | AU47: 164.5593985 | AV47: 76.97096351 | AW47: 100.2503283 | AX47: 81.64470299 | AY47: 155.2380495 | AZ47: 215.0680391 | BA47: 78.96935921 | BB47: 258.1393589 | BC47: 262.9195595 | BD47: 351.0612892 | BE47: 407.5094748 | BF47: 232.9772039 | BG47: 497.9802604 | BH47: 387.2844027 | BI47: 453.5736557 | BJ47: 73.79319791 | BK47: 83.13174928 | BL47: 40.57083595 | BM47: 87.81757412 | BN47: 347.1084348 | BO47: 146.2480874 | BP47: 61.61629081 | BQ47: 147.5280517 | BR47: 134.0184293 | BS47: 264.4988552 | BT47: 114.4102063 | BU47: 237.500279 | BV47: 823.3463808 | BW47: 19.07930654 | BX47: 26.6284361 | BY47: 6.466182439 | BZ47: 0 | CA47: 0 | CB47: 0 | CC47: 0 | CD47: 0 | CE47: 0 | CF47: 0 | CG47: 0 | CH47: 0 | CI47: 0 | CJ47: 0 | CK47: 0 | CL47: 0 | CM47: 0 | CN47: 0 | CO47: 0 | CP47: 0 | CQ47: 0 | CR47: 0 | CS47: 0 | CT47: 0 | CU47: 0 | CV47: 0 | CX47: 18825.62058 | CY47: 33630.29924 | CZ47: 52185.11717 | DA47: 86846.48393 | DB47: 91343.71301 | DC47: 70027.40376 | DD47: 39816.37316 | DE47: 109754.9787 | DF47: 81356.76265 | DG47: 27428.68168 | DH47: 17816.81174 | DI47: 24301.02198 | DJ47: 47580.9526 | DK47: 48918.05479 | DL47: 72914.84293 | DM47: 247079.1571 | DN47: 40813.35782 | DO47: 227744.3814 | DP47: 26594.5787 | DQ47: 104630.6551 | DR47: 62001.83131 | DS47: 22067.08285 | DT47: 135009.1926 | DU47: 43325.32887 | DV47: 330346.9107 | DW47: 119681.8402 | DX47: 28718.0508 | DY47: 141998.7511 | DZ47: 383177.6518 | EA47: 138031.8832 | EB47: 285041.8456 | EC47: 70127.52685 | ED47: 189585.4649 | EE47: 119736.3285 | EF47: 83199.33066 | EG47: 87191.83302 | EH47: 57961.75685 | EI47: 100848.4541 | EJ47: 47170.82553 | EK47: 61437.33337 | EL47: 50035.07641 | EM47: 95135.96579 | EN47: 131802.1301 | EO47: 48395.5208 | EP47: 158197.9243 | EQ47: 161127.4188 | ER47: 215144.128 | ES47: 249737.7902 | ET47: 142777.5688 | EU47: 305181.8362 | EV47: 237343.0727 | EW47: 277967.7271 | EX47: 45223.36613 | EY47: 50946.3967 | EZ47: 24863.39961 | FA47: 53818.05396 | FB47: 212721.6638 | FC47: 89626.56436 | FD47: 37760.87983 | FE47: 90410.9767 | FF47: 82131.75022 | FG47: 162095.2731 | FH47: 70115.06205 | FI47: 145549.4867 | FJ47: 504578.9569 | FK47: 11692.54741 | FL47: 16318.95011 | FM47: 3962.730227 | FN47: 0 | FO47: 0 | FP47: 0 | FQ47: 0 | FR47: 0 | FS47: 0 | FT47: 0 | FU47: 0 | FV47: 0 | FW47: 0 | FX47: 0 | FY47: 0 | FZ47: 0 | GA47: 0 | GB47: 0 | GC47: 0 | GD47: 0 | GE47: 0 | GF47: 0 | GG47: 0 | GH47: 0 | GI47: 0 | GJ47: 0
A48: 2 | D48: OVERHEAD CONDUCTORS | E48: > 66 kV & < = 132 kV | F48: 735.4070686 | G48: 74.69762473 | H48: 8.642778762 | I48: 2 | J48: 4.193056478 | K48: 4.266865007 | L48: 0.3977457 | M48: 87.51185855 | N48: 63.16177917 | O48: 5.74757156 | P48: 178.9702486 | Q48: 113.33623 | R48: 1.986944444 | S48: 0.1331454592 | T48: 0.01879305752 | U48: 10.19710087 | V48: 183.2311905 | W48: 3.441852071 | X48: 0 | Y48: 0 | Z48: 0 | AA48: 0 | AB48: 100.8991516 | AC48: 70.28726772 | AD48: 0.1066401755 | AE48: 28.39406437 | AF48: 6.10182721 | AG48: 0 | AH48: 99.65885324 | AI48: 5.83464227 | AJ48: 3.03190604 | AK48: 212.1588035 | AL48: 305.0096569 | AM48: 246.8262252 | AN48: 0 | AO48: 10.50443094 | AP48: 96.51430995 | AQ48: 5.089197534 | AR48: 337.2669507 | AS48: 28.25899582 | AT48: 4.957064139 | AU48: 4.952171075 | AV48: 56.69123043 | AW48: 8.528673505 | AX48: 6.657324525 | AY48: 28.18894192 | AZ48: 5.699300404 | BA48: 72.79376328 | BB48: 0.8630530978 | BC48: 3.970123443 | BD48: 52.4059309 | BE48: 0.0009682415436 | BF48: 80.49041566 | BG48: 236.4155816 | BH48: 43.27940215 | BI48: 0 | BJ48: 0 | BK48: 41.99430181 | BL48: 0 | BM48: 0 | BN48: 71.81636149 | BO48: 0 | BP48: 0 | BQ48: 0.002100609526 | BR48: 0 | BS48: 15.60096353 | BT48: 0.001193439375 | BU48: 70.72117378 | BV48: 35.65033845 | BW48: 0 | BX48: 0 | BY48: 0 | BZ48: 0 | CA48: 0 | CB48: 0 | CC48: 0 | CD48: 0 | CE48: 0 | CF48: 0 | CG48: 0 | CH48: 0 | CI48: 0 | CJ48: 0 | CK48: 0 | CL48: 0 | CM48: 0 | CN48: 0 | CO48: 0 | CP48: 0 | CQ48: 0 | CR48: 0 | CS48: 0 | CT48: 0 | CU48: 0 | CV48: 0 | CX48: 3083.603373 | CY48: 3137.882687 | CZ48: 292.5049993 | DA48: 64356.83936 | DB48: 46449.61886 | DC48: 4226.804752 | DD48: 131615.9859 | DE48: 83348.26465 | DF48: 1461.212989 | DG48: 97.91611186 | DH48: 13.82054734 | DI48: 7499.020059 | DJ48: 134749.5127 | DK48: 2531.162342 | DL48: 0 | DM48: 0 | DN48: 0 | DO48: 0 | DP48: 74201.94928 | DQ48: 51689.75351 | DR48: 78.42393884 | DS48: 20881.19564 | DT48: 4487.326861 | DU48: 0 | DV48: 73289.82512 | DW48: 4290.837168 | DX48: 2229.685133 | DY48: 156023.0837 | DZ48: 224306.2576 | EA48: 181517.7507 | EB48: 0 | EC48: 7725.032761 | ED48: 70977.30575 | EE48: 3742.631839 | EF48: 248028.4996 | EG48: 20781.86528 | EH48: 3645.460007 | EI48: 3641.861613 | EJ48: 41691.13159 | EK48: 6272.046781 | EL48: 4895.843513 | EM48: 20730.34714 | EN48: 4191.305803 | EO48: 53533.04806 | EP48: 634.6953487 | EQ48: 2919.656843 | ER48: 38539.69202 | ES48: 0.7120516752 | ET48: 59193.22063 | EU48: 173861.6898 | EV48: 31827.97827 | EW48: 0 | EX48: 0 | EY48: 30882.90639 | EZ48: 0 | FA48: 0 | FB48: 52814.25988 | FC48: 0 | FD48: 0 | FE48: 1.544803094 | FF48: 0 | FG48: 11473.05885 | FH48: 0.8776637519 | FI48: 52008.85109 | FJ48: 26217.5109 | FK48: 0 | FL48: 0 | FM48: 0 | FN48: 0 | FO48: 0 | FP48: 0 | FQ48: 0 | FR48: 0 | FS48: 0 | FT48: 0 | FU48: 0 | FV48: 0 | FW48: 0 | FX48: 0 | FY48: 0 | FZ48: 0 | GA48: 0 | GB48: 0 | GC48: 0 | GD48: 0 | GE48: 0 | GF48: 0 | GG48: 0 | GH48: 0 | GI48: 0 | GJ48: 0
A49: 3 | D49: UNDERGROUND CABLES | E49: ˂ = 1 kV | F49: 58.29882665 | G49: 28.1313608 | H49: 5.303900527 | I49: 2 | J49: 23.67082752 | K49: 338.5114126 | L49: 444.7481708 | M49: 406.5518299 | N49: 619.6847767 | O49: 1312.26092 | P49: 1462.506389 | Q49: 673.9696666 | R49: 267.2924391 | S49: 370.2758825 | T49: 94.38724728 | U49: 18.38900684 | V49: 13.89880962 | W49: 4.488837038 | X49: 6.456171204 | Y49: 3.192895443 | Z49: 2.22697455 | AA49: 3.722138132 | AB49: 0.06493790331 | AC49: 3.378755375 | AD49: 11.49742512 | AE49: 8.473815881 | AF49: 1.747124576 | AG49: 5.63465757 | AH49: 0 | AI49: 1.278110888 | AJ49: 0.575002097 | AK49: 0 | AL49: 0.7614784855 | AM49: 0 | AN49: 0.5350281176 | AO49: 0 | AP49: 0 | AQ49: 0.2707797643 | AR49: 0 | AS49: 0 | AT49: 0 | AU49: 0.04574148047 | AV49: 0 | AW49: 0 | AX49: 0 | AY49: 0 | AZ49: 0 | BA49: 0 | BB49: 0.4676496393 | BC49: 0 | BD49: 0 | BE49: 0 | BF49: 0 | BG49: 0 | BH49: 0 | BI49: 0 | BJ49: 0.5232641801 | BK49: 0 | BL49: 0 | BM49: 0 | BN49: 0 | BO49: 0 | BP49: 0 | BQ49: 0 | BR49: 0 | BS49: 0 | BT49: 0 | BU49: 0 | BV49: 0 | BW49: 0 | BX49: 0 | BY49: 0 | BZ49: 0 | CA49: 0 | CB49: 0 | CC49: 0 | CD49: 0 | CE49: 0 | CF49: 0 | CG49: 0 | CH49: 0 | CI49: 0 | CJ49: 0 | CK49: 0 | CL49: 0 | CM49: 0 | CN49: 0 | CO49: 0 | CP49: 0 | CQ49: 0 | CR49: 0 | CS49: 0 | CT49: 0 | CU49: 0 | CV49: 0 | CX49: 1379.98147 | CY49: 19734.81816 | CZ49: 25928.29651 | DA49: 23701.49465 | DB49: 36126.89537 | DC49: 76503.27186 | DD49: 85262.40646 | DE49: 39291.64076 | DF49: 15582.83557 | DG49: 21586.64948 | DH49: 5502.665767 | DI49: 1072.057522 | DJ49: 810.2842926 | DK49: 261.6939323 | DL49: 376.3872058 | DM49: 186.1420579 | DN49: 129.8300033 | DO49: 216.9962857 | DP49: 3.785803568 | DQ49: 196.9774739 | DR49: 670.2863942 | DS49: 494.0135231 | DT49: 101.8553128 | DU49: 328.4939249 | DV49: 0 | DW49: 74.51236509 | DX49: 33.52194757 | DY49: 0 | DZ49: 44.39330222 | EA49: 0 | EB49: 31.19151148 | EC49: 0 | ED49: 0 | EE49: 15.78614254 | EF49: 0 | EG49: 0 | EH49: 0 | EI49: 2.666674641 | EJ49: 0 | EK49: 0 | EL49: 0 | EM49: 0 | EN49: 0 | EO49: 0 | EP49: 27.26342525 | EQ49: 0 | ER49: 0 | ES49: 0 | ET49: 0 | EU49: 0 | EV49: 0 | EW49: 0 | EX49: 30.50568773 | EY49: 0 | EZ49: 0 | FA49: 0 | FB49: 0 | FC49: 0 | FD49: 0 | FE49: 0 | FF49: 0 | FG49: 0 | FH49: 0 | FI49: 0 | FJ49: 0 | FK49: 0 | FL49: 0 | FM49: 0 | FN49: 0 | FO49: 0 | FP49: 0 | FQ49: 0 | FR49: 0 | FS49: 0 | FT49: 0 | FU49: 0 | FV49: 0 | FW49: 0 | FX49: 0 | FY49: 0 | FZ49: 0 | GA49: 0 | GB49: 0 | GC49: 0 | GD49: 0 | GE49: 0 | GF49: 0 | GG49: 0 | GH49: 0 | GI49: 0 | GJ49: 0
A50: 3 | D50: UNDERGROUND CABLES | E50: > 1 kV & < = 11 kV | F50: 277.4190141 | G50: 49.52408792 | H50: 7.037335285 | I50: 2 | J50: 3.783653424 | K50: 88.40763272 | L50: 86.60508818 | M50: 109.7545498 | N50: 151.0577789 | O50: 189.076633 | P50: 174.6464283 | Q50: 91.79599147 | R50: 51.30112027 | S50: 62.38649787 | T50: 48.28036279 | U50: 63.15460112 | V50: 44.38916232 | W50: 17.55214807 | X50: 33.40689212 | Y50: 107.6645136 | Z50: 19.45081487 | AA50: 20.38877467 | AB50: 12.71462912 | AC50: 13.26406431 | AD50: 23.00056326 | AE50: 19.40047303 | AF50: 23.45921542 | AG50: 14.12000107 | AH50: 9.774337146 | AI50: 8.818177194 | AJ50: 3.932449127 | AK50: 5.098490403 | AL50: 22.40714152 | AM50: 19.59906817 | AN50: 10.91142486 | AO50: 6.81718296 | AP50: 9.899589574 | AQ50: 14.11524293 | AR50: 7.626889175 | AS50: 3.016215391 | AT50: 6.080800232 | AU50: 2.451907836 | AV50: 4.649031013 | AW50: 27.16877004 | AX50: 0.9280010563 | AY50: 0.9127722918 | AZ50: 2.65521024 | BA50: 2.453342449 | BB50: 2.362414323 | BC50: 2.272922732 | BD50: 0.3703911038 | BE50: 0.5349058366 | BF50: 0.7184375936 | BG50: 3.367745188 | BH50: 0.3498121188 | BI50: 0.4504076629 | BJ50: 0 | BK50: 0 | BL50: 0.3446231095 | BM50: 0.0470396578 | BN50: 0 | BO50: 0.3403539057 | BP50: 0 | BQ50: 1.575840539 | BR50: 0.1522661965 | BS50: 0 | BT50: 0 | BU50: 0 | BV50: 0 | BW50: 0 | BX50: 0 | BY50: 0 | BZ50: 0.01765071242 | CA50: 0 | CB50: 0 | CC50: 0 | CD50: 0 | CE50: 0 | CF50: 0 | CG50: 0 | CH50: 0 | CI50: 0 | CJ50: 0.3522514234 | CK50: 0 | CL50: 0 | CM50: 0 | CN50: 0 | CO50: 0 | CP50: 0 | CQ50: 0 | CR50: 0 | CS50: 0 | CT50: 0 | CU50: 0 | CV50: 0 | CX50: 1049.657403 | CY50: 24525.95831 | CZ50: 24025.89818 | DA50: 30447.99901 | DB50: 41906.3001 | DC50: 52453.45313 | DD50: 48450.23997 | DE50: 25465.95345 | DF50: 14231.90621 | DG50: 17307.20073 | DH50: 13393.89065 | DI50: 17520.28718 | DJ50: 12314.39765 | DK50: 4869.299612 | DL50: 9267.707077 | DM50: 29868.18321 | DN50: 5396.025884 | DO50: 5656.233769 | DP50: 3527.279875 | DQ50: 3679.703645 | DR50: 6380.793583 | DS50: 5382.0601 | DT50: 6508.032415 | DU50: 3917.156776 | DV50: 2711.586975 | DW50: 2446.330023 | DX50: 1090.93616 | DY50: 1414.418181 | DZ50: 6216.167111 | EA50: 5437.154169 | EB50: 3027.036728 | EC50: 1891.216176 | ED50: 2746.33438 | EE50: 3915.836777 | EF50: 2115.844076 | EG50: 836.7555002 | EH50: 1686.929605 | EI50: 680.2058546 | EJ50: 1289.7296 | EK50: 7537.133399 | EL50: 257.4451381 | EM50: 253.2203893 | EN50: 736.605807 | EO50: 680.6038434 | EP50: 655.3786523 | EQ50: 630.5519834 | ER50: 102.7535349 | ES50: 148.3930498 | ET50: 199.3082489 | EU50: 934.2765498 | EV50: 97.04453313 | EW50: 124.9516498 | EX50: 0 | EY50: 0 | EZ50: 95.60500329 | FA50: 13.04969549 | FB50: 0 | FC50: 94.42064498 | FD50: 0 | FE50: 437.1681288 | FF50: 42.24153813 | FG50: 0 | FH50: 0 | FI50: 0 | FJ50: 0 | FK50: 0 | FL50: 0 | FM50: 0 | FN50: 4.896643237 | FO50: 0 | FP50: 0 | FQ50: 0 | FR50: 0 | FS50: 0 | FT50: 0 | FU50: 0 | FV50: 0 | FW50: 0 | FX50: 97.7212426 | FY50: 0 | FZ50: 0 | GA50: 0 | GB50: 0 | GC50: 0 | GD50: 0 | GE50: 0 | GF50: 0 | GG50: 0 | GH50: 0 | GI50: 0 | GJ50: 0
A51: 3 | D51: UNDERGROUND CABLES | E51: > 11 kV & < = 22 kV | F51: 123.8597309 | G51: 53.17108608 | H51: 7.291850662 | I51: 2 | J51: 2.888256555 | K51: 12.74126209 | L51: 26.19562438 | M51: 23.3209196 | N51: 37.90730542 | O51: 78.85186642 | P51: 104.4383437 | Q51: 33.97247506 | R51: 16.89383537 | S51: 24.40239587 | T51: 14.31845727 | U51: 4.828496384 | V51: 9.657944714 | W51: 5.16270582 | X51: 20.21770239 | Y51: 9.358635086 | Z51: 14.76979216 | AA51: 13.83209953 | AB51: 10.927055 | AC51: 19.27082353 | AD51: 15.90076801 | AE51: 11.39573952 | AF51: 15.58343143 | AG51: 7.092441932 | AH51: 9.591395803 | AI51: 13.28324908 | AJ51: 2.213630671 | AK51: 12.85794165 | AL51: 3.777562982 | AM51: 49.13494165 | AN51: 4.871277286 | AO51: 3.604100132 | AP51: 5.938019468 | AQ51: 3.354356907 | AR51: 11.67683516 | AS51: 1.202782356 | AT51: 0.06486935709 | AU51: 0.2212913814 | AV51: 0.07284678167 | AW51: 4.867696181 | AX51: 0.0732955789 | AY51: 0 | AZ51: 0.3251164841 | BA51: 0.8632537053 | BB51: 1.78937887 | BC51: 1.665127707 | BD51: 0.3090634253 | BE51: 0.1404615501 | BF51: 0 | BG51: 2.27898123 | BH51: 0 | BI51: 0.1502240949 | BJ51: 0 | BK51: 0 | BL51: 0 | BM51: 0.237698607 | BN51: 0 | BO51: 0.6703659875 | BP51: 0 | BQ51: 1.296927275 | BR51: 0 | BS51: 0.1304040594 | BT51: 0.3424222239 | BU51: 0.1928232446 | BV51: 0.4007688996 | BW51: 0 | BX51: 0 | BY51: 0 | BZ51: 0 | CA51: 0 | CB51: 0 | CC51: 0 | CD51: 0 | CE51: 0 | CF51: 0 | CG51: 0 | CH51: 0 | CI51: 0 | CJ51: 0 | CK51: 0 | CL51: 0 | CM51: 0 | CN51: 0 | CO51: 0 | CP51: 0 | CQ51: 0 | CR51: 0 | CS51: 0 | CT51: 0 | CU51: 0 | CV51: 0 | CX51: 357.7386798 | CY51: 1578.129295 | CZ51: 3244.582988 | DA51: 2888.522827 | DB51: 4695.188651 | DC51: 9766.57096 | DD51: 12935.70515 | DE51: 4207.821621 | DF51: 2092.465903 | DG51: 3022.474187 | DH51: 1773.480265 | DI51: 598.056263 | DJ51: 1196.230434 | DK51: 639.4513538 | DL51: 2504.159178 | DM51: 1159.158024 | DN51: 1829.382483 | DO51: 1713.240126 | DP51: 1353.422092 | DQ51: 2386.879018 | DR51: 1969.464848 | DS51: 1411.473231 | DT51: 1930.159624 | DU51: 878.4679495 | DV51: 1187.987704 | DW51: 1645.259657 | DX51: 274.1796993 | DY51: 1592.581193 | DZ51: 467.8879345 | EA51: 6085.840653 | EB51: 603.3550941 | EC51: 446.4028727 | ED51: 735.4814936 | EE51: 415.4697441 | EF51: 1446.289662 | EG51: 148.976299 | EH51: 8.034701116 | EI51: 27.40909096 | EJ51: 9.022782778 | EK51: 602.9115393 | EL51: 9.078370683 | EM51: 0 | EN51: 40.26884025 | EO51: 106.9223717 | EP51: 221.6319854 | EQ51: 206.2422698 | ER51: 38.2805127 | ES51: 17.39752981 | ET51: 0 | EU51: 282.274002 | EV51: 0 | EW51: 18.60671598 | EX51: 0 | EY51: 0 | EZ51: 0 | FA51: 29.44128551 | FB51: 0 | FC51: 83.03135085 | FD51: 0 | FE51: 160.6370633 | FF51: 0 | FG51: 16.15181171 | FH51: 42.41232453 | FI51: 23.8830352 | FJ51: 49.63912808 | FK51: 0 | FL51: 0 | FM51: 0 | FN51: 0 | FO51: 0 | FP51: 0 | FQ51: 0 | FR51: 0 | FS51: 0 | FT51: 0 | FU51: 0 | FV51: 0 | FW51: 0 | FX51: 0 | FY51: 0 | FZ51: 0 | GA51: 0 | GB51: 0 | GC51: 0 | GD51: 0 | GE51: 0 | GF51: 0 | GG51: 0 | GH51: 0 | GI51: 0 | GJ51: 0
A52: 3 | D52: UNDERGROUND CABLES | E52: > 22 kV & < = 33 kV | F52: 894.2751723 | G52: 58.18632642 | H52: 7.627996226 | I52: 2 | J52: 0 | K52: 3.026197497 | L52: 2.453630956 | M52: 7.520523064 | N52: 6.192142039 | O52: 4.579159303 | P52: 0.7535213179 | Q52: 1.539094537 | R52: 0.4300340213 | S52: 6.255403401 | T52: 1.506331607 | U52: 0.2663204959 | V52: 2.471052181 | W52: 0 | X52: 0 | Y52: 0.3217322831 | Z52: 0.1955492811 | AA52: 0.3463630543 | AB52: 0 | AC52: 0.008249946209 | AD52: 1.306032502 | AE52: 0 | AF52: 0.06310676797 | AG52: 0.2624576509 | AH52: 0.06037912739 | AI52: 0.6794696694 | AJ52: 0 | AK52: 0.1312463924 | AL52: 0.08927738956 | AM52: 0.4112690914 | AN52: 0 | AO52: 0.3008433213 | AP52: 1.249774565 | AQ52: 0.25525995 | AR52: 0 | AS52: 0 | AT52: 0 | AU52: 0 | AV52: 0 | AW52: 6.53306778 | AX52: 0.07960908877 | AY52: 0.1743290915 | AZ52: 0 | BA52: 0.5134983609 | BB52: 0 | BC52: 0 | BD52: 0 | BE52: 0.3650694565 | BF52: 0 | BG52: 1.647671294 | BH52: 0 | BI52: 0 | BJ52: 0 | BK52: 0 | BL52: 0 | BM52: 0 | BN52: 0 | BO52: 0 | BP52: 0 | BQ52: 0 | BR52: 0 | BS52: 0 | BT52: 0 | BU52: 0 | BV52: 0.05109865229 | BW52: 0 | BX52: 0 | BY52: 0 | BZ52: 0 | CA52: 0 | CB52: 0 | CC52: 0 | CD52: 0 | CE52: 0 | CF52: 0 | CG52: 0 | CH52: 0 | CI52: 0 | CJ52: 0 | CK52: 0 | CL52: 0 | CM52: 0 | CN52: 0 | CO52: 0 | CP52: 0 | CQ52: 0 | CR52: 0 | CS52: 0 | CT52: 0 | CU52: 0 | CV52: 0 | CX52: 0 | CY52: 2706.253288 | CZ52: 2194.221246 | DA52: 6725.417059 | DB52: 5537.478888 | DC52: 4095.028475 | DD52: 673.8554064 | DE52: 1376.374033 | DF52: 384.5687485 | DG52: 5594.051954 | DH52: 1347.074958 | DI52: 238.1638073 | DJ52: 2209.800615 | DK52: 0 | DL52: 0 | DM52: 287.7171929 | DN52: 174.8748671 | DO52: 309.74388 | DP52: 0 | DQ52: 7.377722067 | DR52: 1167.952441 | DS52: 0 | DT52: 56.4348158 | DU52: 234.709361 | DV52: 53.99555455 | DW52: 607.6328556 | DX52: 0 | DY52: 117.3703902 | DZ52: 79.83855293 | EA52: 367.7877376 | EB52: 0 | EC52: 269.0367129 | ED52: 1117.642365 | EE52: 228.2726358 | EF52: 0 | EG52: 0 | EH52: 0 | EI52: 0 | EJ52: 0 | EK52: 5842.360314 | EL52: 71.19243157 | EM52: 155.8981784 | EN52: 0 | EO52: 459.2088352 | EP52: 0 | EQ52: 0 | ER52: 0 | ES52: 326.4725511 | ET52: 0 | EU52: 1473.47153 | EV52: 0 | EW52: 0 | EX52: 0 | EY52: 0 | EZ52: 0 | FA52: 0 | FB52: 0 | FC52: 0 | FD52: 0 | FE52: 0 | FF52: 0 | FG52: 0 | FH52: 0 | FI52: 0 | FJ52: 45.69625608 | FK52: 0 | FL52: 0 | FM52: 0 | FN52: 0 | FO52: 0 | FP52: 0 | FQ52: 0 | FR52: 0 | FS52: 0 | FT52: 0 | FU52: 0 | FV52: 0 | FW52: 0 | FX52: 0 | FY52: 0 | FZ52: 0 | GA52: 0 | GB52: 0 | GC52: 0 | GD52: 0 | GE52: 0 | GF52: 0 | GG52: 0 | GH52: 0 | GI52: 0 | GJ52: 0
A53: 3 | D53: UNDERGROUND CABLES | E53: > 33 kV & < = 66 kV | F53: 156.9692204 | G53: 42.2 | H53: 6.496152708 | I53: 2 | J53: 0 | K53: 0 | L53: 0 | M53: 0 | N53: 1.272887152 | O53: 7.281261711 | P53: 2.834740119 | Q53: 0.92689546 | R53: 0 | S53: 0 | T53: 0 | U53: 0 | V53: 0 | W53: 0 | X53: 0 | Y53: 2.746194761 | Z53: 0 | AA53: 0 | AB53: 0 | AC53: 0.1695466177 | AD53: 0 | AE53: 0 | AF53: 0.1749763561 | AG53: 0 | AH53: 0.3733918481 | AI53: 0 | AJ53: 0.3781770979 | AK53: 0.7754344245 | AL53: 0 | AM53: 0 | AN53: 0 | AO53: 0 | AP53: 0 | AQ53: 0 | AR53: 0 | AS53: 0 | AT53: 0 | AU53: 0 | AV53: 0 | AW53: 0 | AX53: 0 | AY53: 0 | AZ53: 0.7593665395 | BA53: 0 | BB53: 0 | BC53: 0 | BD53: 0 | BE53: 0 | BF53: 0 | BG53: 0 | BH53: 0 | BI53: 0 | BJ53: 0 | BK53: 0 | BL53: 0 | BM53: 0 | BN53: 0 | BO53: 0 | BP53: 0 | BQ53: 0 | BR53: 0 | BS53: 0 | BT53: 0 | BU53: 0 | BV53: 0 | BW53: 0 | BX53: 0 | BY53: 0 | BZ53: 0 | CA53: 0 | CB53: 0 | CC53: 0 | CD53: 0 | CE53: 0 | CF53: 0 | CG53: 0 | CH53: 0 | CI53: 0 | CJ53: 0 | CK53: 0 | CL53: 0 | CM53: 0 | CN53: 0 | CO53: 0 | CP53: 0 | CQ53: 0 | CR53: 0 | CS53: 0 | CT53: 0 | CU53: 0 | CV53: 0 | CX53: 0 | CY53: 0 | CZ53: 0 | DA53: 0 | DB53: 199.8041038 | DC53: 1142.933974 | DD53: 444.9669464 | DE53: 145.4940577 | DF53: 0 | DG53: 0 | DH53: 0 | DI53: 0 | DJ53: 0 | DK53: 0 | DL53: 0 | DM53: 431.0680506 | DN53: 0 | DO53: 0 | DP53: 0 | DQ53: 26.6136004 | DR53: 0 | DS53: 0 | DT53: 27.4659022 | DU53: 0 | DV53: 58.61102729 | DW53: 0 | DX53: 59.36216421 | DY53: 121.719337 | DZ53: 0 | EA53: 0 | EB53: 0 | EC53: 0 | ED53: 0 | EE53: 0 | EF53: 0 | EG53: 0 | EH53: 0 | EI53: 0 | EJ53: 0 | EK53: 0 | EL53: 0 | EM53: 0 | EN53: 119.1971737 | EO53: 0 | EP53: 0 | EQ53: 0 | ER53: 0 | ES53: 0 | ET53: 0 | EU53: 0 | EV53: 0 | EW53: 0 | EX53: 0 | EY53: 0 | EZ53: 0 | FA53: 0 | FB53: 0 | FC53: 0 | FD53: 0 | FE53: 0 | FF53: 0 | FG53: 0 | FH53: 0 | FI53: 0 | FJ53: 0 | FK53: 0 | FL53: 0 | FM53: 0 | FN53: 0 | FO53: 0 | FP53: 0 | FQ53: 0 | FR53: 0 | FS53: 0 | FT53: 0 | FU53: 0 | FV53: 0 | FW53: 0 | FX53: 0 | FY53: 0 | FZ53: 0 | GA53: 0 | GB53: 0 | GC53: 0 | GD53: 0 | GE53: 0 | GF53: 0 | GG53: 0 | GH53: 0 | GI53: 0 | GJ53: 0
A54: 3 | D54: UNDERGROUND CABLES | E54: > 66 kV & < = 132 kV | F54: 3019.570588 | G54: 42.2 | H54: 6.496152708 | I54: 2 | J54: 0 | K54: 0 | L54: 0 | M54: 0 | N54: 0 | O54: 9.126424274 | P54: 0.04459463665 | Q54: 0 | R54: 0 | S54: 0 | T54: 0 | U54: 0 | V54: 0 | W54: 0 | X54: 0 | Y54: 0 | Z54: 0 | AA54: 0 | AB54: 0 | AC54: 0 | AD54: 0 | AE54: 0 | AF54: 0 | AG54: 0 | AH54: 0 | AI54: 0 | AJ54: 0 | AK54: 0 | AL54: 0 | AM54: 0 | AN54: 0 | AO54: 0 | AP54: 0 | AQ54: 0 | AR54: 0 | AS54: 0 | AT54: 0 | AU54: 0 | AV54: 0 | AW54: 0 | AX54: 0 | AY54: 0 | AZ54: 0 | BA54: 0 | BB54: 0 | BC54: 0 | BD54: 0 | BE54: 0 | BF54: 0 | BG54: 0 | BH54: 0 | BI54: 0 | BJ54: 0 | BK54: 0 | BL54: 0 | BM54: 0 | BN54: 0 | BO54: 0 | BP54: 0 | BQ54: 0 | BR54: 0 | BS54: 0 | BT54: 0 | BU54: 0 | BV54: 0 | BW54: 0 | BX54: 0 | BY54: 0 | BZ54: 0 | CA54: 0 | CB54: 0 | CC54: 0 | CD54: 0 | CE54: 0 | CF54: 0 | CG54: 0 | CH54: 0 | CI54: 0 | CJ54: 0 | CK54: 0 | CL54: 0 | CM54: 0 | CN54: 0 | CO54: 0 | CP54: 0 | CQ54: 0 | CR54: 0 | CS54: 0 | CT54: 0 | CU54: 0 | CV54: 0 | CX54: 0 | CY54: 0 | CZ54: 0 | DA54: 0 | DB54: 0 | DC54: 27557.88231 | DD54: 134.6566532 | DE54: 0 | DF54: 0 | DG54: 0 | DH54: 0 | DI54: 0 | DJ54: 0 | DK54: 0 | DL54: 0 | DM54: 0 | DN54: 0 | DO54: 0 | DP54: 0 | DQ54: 0 | DR54: 0 | DS54: 0 | DT54: 0 | DU54: 0 | DV54: 0 | DW54: 0 | DX54: 0 | DY54: 0 | DZ54: 0 | EA54: 0 | EB54: 0 | EC54: 0 | ED54: 0 | EE54: 0 | EF54: 0 | EG54: 0 | EH54: 0 | EI54: 0 | EJ54: 0 | EK54: 0 | EL54: 0 | EM54: 0 | EN54: 0 | EO54: 0 | EP54: 0 | EQ54: 0 | ER54: 0 | ES54: 0 | ET54: 0 | EU54: 0 | EV54: 0 | EW54: 0 | EX54: 0 | EY54: 0 | EZ54: 0 | FA54: 0 | FB54: 0 | FC54: 0 | FD54: 0 | FE54: 0 | FF54: 0 | FG54: 0 | FH54: 0 | FI54: 0 | FJ54: 0 | FK54: 0 | FL54: 0 | FM54: 0 | FN54: 0 | FO54: 0 | FP54: 0 | FQ54: 0 | FR54: 0 | FS54: 0 | FT54: 0 | FU54: 0 | FV54: 0 | FW54: 0 | FX54: 0 | FY54: 0 | FZ54: 0 | GA54: 0 | GB54: 0 | GC54: 0 | GD54: 0 | GE54: 0 | GF54: 0 | GG54: 0 | GH54: 0 | GI54: 0 | GJ54: 0
A55: 4 | D55: SERVICE LINES | E55: ˂ = 11 kV ; Residential ; Simple Type | F55: 1.253442072 | G55: 57.79204421 | H55: 7.602107879 | I55: 2 | J55: 211.3671331 | K55: 1696.947505 | L55: 2852.955428 | M55: 2705.699652 | N55: 3117.414779 | O55: 3288.712313 | P55: 4132.177366 | Q55: 6405.125352 | R55: 7271.630424 | S55: 7860.653525 | T55: 8075.025878 | U55: 6577.424627 | V55: 6760.743041 | W55: 6251.859137 | X55: 5878.210129 | Y55: 5461.486303 | Z55: 5945.326707 | AA55: 5692.888235 | AB55: 6503.295869 | AC55: 7290.663484 | AD55: 6741.709981 | AE55: 6829.863099 | AF55: 8347.499149 | AG55: 7505.035837 | AH55: 7206.517326 | AI55: 6772.76392 | AJ55: 5586.703799 | AK55: 4897.506701 | AL55: 7379.818341 | AM55: 9608.689768 | AN55: 9092.793685 | AO55: 7551.115875 | AP55: 11040.17618 | AQ55: 9051.722347 | AR55: 7834.608286 | AS55: 5693.889975 | AT55: 7348.764402 | AU55: 8290.399971 | AV55: 8192.229454 | AW55: 8245.321673 | AX55: 9048.717127 | AY55: 7421.891419 | AZ55: 7343.755702 | BA55: 7478.990598 | BB55: 8082.038058 | BC55: 6930.037095 | BD55: 5808.088332 | BE55: 4321.50622 | BF55: 4377.603658 | BG55: 3837.665816 | BH55: 2869.985007 | BI55: 4589.972531 | BJ55: 2656.614394 | BK55: 2655.612654 | BL55: 2508.356879 | BM55: 2546.422997 | BN55: 2504.349919 | BO55: 2501.344699 | BP55: 2539.410818 | BQ55: 2435.229861 | BR55: 2452.25944 | BS55: 2473.29598 | BT55: 2581.483896 | BU55: 2452.25944 | BV55: 2411.188102 | BW55: 9.015659708 | BX55: 0 | BY55: 96.16703688 | BZ55: 0 | CA55: 0 | CB55: 0 | CC55: 0 | CD55: 0 | CE55: 0 | CF55: 0 | CG55: 0 | CH55: 0 | CI55: 0 | CJ55: 0 | CK55: 0 | CL55: 0 | CM55: 0 | CN55: 0 | CO55: 0 | CP55: 0 | CQ55: 0 | CR55: 0 | CS55: 0 | CT55: 0 | CU55: 0 | CV55: 0 | CX55: 264.9364573 | CY55: 2127.025397 | CZ55: 3576.014363 | DA55: 3391.437779 | DB55: 3907.49884 | DC55: 4122.210377 | DD55: 5179.44496 | DE55: 8028.453593 | DF55: 9114.567506 | DG55: 9852.873842 | DH55: 10121.57717 | DI55: 8244.420753 | DJ55: 8474.199766 | DK55: 7836.343271 | DL55: 7367.995885 | DM55: 6845.656708 | DN55: 7452.122627 | DO55: 7135.705626 | DP55: 8151.50465 | DQ55: 9138.424344 | DR55: 8450.342928 | DS55: 8560.837754 | DT55: 10463.10663 | DU55: 9407.12767 | DV55: 9032.95201 | DW55: 8489.267242 | DX55: 7002.609586 | DY55: 6138.740948 | DZ55: 9250.174793 | EA55: 12043.93601 | EB55: 11397.29016 | EC55: 9464.886329 | ED55: 13838.22131 | EE55: 11345.80961 | EF55: 9820.227644 | EG55: 7136.961249 | EH55: 9211.250479 | EI55: 10391.53612 | EJ55: 10268.48506 | EK55: 10335.03308 | EL55: 11342.04274 | EM55: 9302.910959 | EN55: 9204.972364 | EO55: 9374.481472 | EP55: 10130.36653 | EQ55: 8686.400056 | ER55: 7280.102273 | ES55: 5416.757711 | ET55: 5487.0726 | EU55: 4810.291792 | EV55: 3597.359954 | EW55: 5753.26468 | EX55: 3329.912251 | EY55: 3328.656628 | EZ55: 3144.080043 | FA55: 3191.793718 | FB55: 3139.057551 | FC55: 3135.290682 | FD55: 3183.004357 | FE55: 3052.419563 | FF55: 3073.765154 | FG55: 3100.133238 | FH55: 3235.740524 | FI55: 3073.765154 | FJ55: 3022.284611 | FK55: 11.30060719 | FL55: 0 | FM55: 120.53981 | FN55: 0 | FO55: 0 | FP55: 0 | FQ55: 0 | FR55: 0 | FS55: 0 | FT55: 0 | FU55: 0 | FV55: 0 | FW55: 0 | FX55: 0 | FY55: 0 | FZ55: 0 | GA55: 0 | GB55: 0 | GC55: 0 | GD55: 0 | GE55: 0 | GF55: 0 | GG55: 0 | GH55: 0 | GI55: 0 | GJ55: 0
A56: 4 | D56: SERVICE LINES | E56: ˂ = 11 kV ; Commercial & Industrial ; Simple Type | F56: 1.927240616 | G56: 58.91389824 | H56: 7.675538954 | I56: 2 | J56: 25.08458992 | K56: 225.7613093 | L56: 412.3906583 | M56: 341.1504229 | N56: 444.4989334 | O56: 536.8102243 | P56: 785.6493564 | Q56: 1181.985877 | R56: 937.1602795 | S56: 1000.373446 | T56: 912.0756896 | U56: 933.1467451 | V56: 964.2516366 | W56: 902.0418536 | X56: 882.9775653 | Y56: 783.6425892 | Z56: 892.0080177 | AA56: 834.8151526 | AB56: 1020.441118 | AC56: 1239.178742 | AD56: 871.9403457 | AE56: 808.7271791 | AF56: 873.9471129 | AG56: 826.7880839 | AH56: 876.9572637 | AI56: 859.8997426 | AJ56: 645.1756528 | AK56: 775.6155204 | AL56: 896.021552 | AM56: 1086.664435 | AN56: 947.1941155 | AO56: 740.4970945 | AP56: 941.1738139 | AQ56: 929.1332107 | AR56: 859.8997426 | AS56: 616.0775285 | AT56: 810.7339463 | AU56: 714.409121 | AV56: 661.2297904 | AW56: 586.9794042 | AX56: 582.9658698 | AY56: 584.972637 | AZ56: 584.972637 | BA56: 632.1316661 | BB56: 692.3346819 | BC56: 674.2737771 | BD56: 557.8812799 | BE56: 446.5057006 | BF56: 410.3838911 | BG56: 375.2654652 | BH56: 311.048915 | BI56: 387.3060684 | BJ56: 241.8154469 | BK56: 217.7342405 | BL56: 234.7917617 | BM56: 241.8154469 | BN56: 208.7037882 | BO56: 227.7680765 | BP56: 263.889886 | BQ56: 256.8662008 | BR56: 215.7274733 | BS56: 237.8019125 | BT56: 253.85605 | BU56: 251.8492828 | BV56: 240.8120633 | BW56: 2.006767194 | BX56: 0 | BY56: 3.010150791 | BZ56: 0 | CA56: 0 | CB56: 0 | CC56: 0 | CD56: 0 | CE56: 0 | CF56: 0 | CG56: 0 | CH56: 0 | CI56: 0 | CJ56: 0 | CK56: 0 | CL56: 0 | CM56: 0 | CN56: 0 | CO56: 0 | CP56: 0 | CQ56: 0 | CR56: 0 | CS56: 0 | CT56: 0 | CU56: 0 | CV56: 0 | CX56: 48.34404054 | CY56: 435.0963649 | CZ56: 794.7760265 | DA56: 657.4789514 | DB56: 856.6563984 | DC56: 1034.562468 | DD56: 1514.13535 | DE56: 2277.97119 | DF56: 1806.133355 | DG56: 1927.960337 | DH56: 1757.789314 | DI56: 1798.398308 | DJ56: 1858.344918 | DK56: 1738.451698 | DL56: 1701.710227 | DM56: 1510.267827 | DN56: 1719.114082 | DO56: 1608.889669 | DP56: 1966.635569 | DQ56: 2388.195603 | DR56: 1680.438849 | DS56: 1558.611867 | DT56: 1684.306373 | DU56: 1593.419576 | DV56: 1690.107657 | DW56: 1657.23371 | DX56: 1243.408723 | DY56: 1494.797734 | DZ56: 1726.849128 | EA56: 2094.263836 | EB56: 1825.470971 | EC56: 1427.116077 | ED56: 1813.868401 | EE56: 1790.663262 | EF56: 1657.23371 | EG56: 1187.329636 | EH56: 1562.47939 | EI56: 1376.838275 | EJ56: 1274.348909 | EK56: 1131.250549 | EL56: 1123.515502 | EM56: 1127.383025 | EN56: 1127.383025 | EO56: 1218.269822 | EP56: 1334.295519 | EQ56: 1299.48781 | ER56: 1075.171462 | ES56: 860.5239217 | ET56: 790.9085033 | EU56: 723.2268465 | EV56: 599.4661027 | EW56: 746.431986 | EX56: 466.0365508 | EY56: 419.6262719 | EZ56: 452.5002195 | FA56: 466.0365508 | FB56: 402.2224173 | FC56: 438.9638881 | FD56: 508.5793065 | FE56: 495.0429752 | FF56: 415.7587487 | FG56: 458.3015043 | FH56: 489.2416903 | FI56: 485.374167 | FJ56: 464.1027892 | FK56: 3.867523243 | FL56: 0 | FM56: 5.801284865 | FN56: 0 | FO56: 0 | FP56: 0 | FQ56: 0 | FR56: 0 | FS56: 0 | FT56: 0 | FU56: 0 | FV56: 0 | FW56: 0 | FX56: 0 | FY56: 0 | FZ56: 0 | GA56: 0 | GB56: 0 | GC56: 0 | GD56: 0 | GE56: 0 | GF56: 0 | GG56: 0 | GH56: 0 | GI56: 0 | GJ56: 0
A57: 5 | D57: TRANSFORMERS | E57: Pole Mounted ; < = 22kV ; < = 60 kVA ; Single Phase | F57: 7.782952483 | G57: 47.26484236 | H57: 6.874943081 | I57: 2 | J57: 365.7675526 | K57: 834.153224 | L57: 787.416259 | M57: 1089.17449 | N57: 1471.198378 | O57: 1964.984574 | P57: 1666.274406 | Q57: 1195.856693 | R57: 1154.199833 | S57: 1118.639098 | T57: 1088.158469 | U57: 838.2173079 | V57: 897.1465247 | W57: 923.5630702 | X57: 873.7780422 | Y57: 900.1945877 | Z57: 818.9129093 | AA57: 919.4989863 | AB57: 1085.110406 | AC57: 1188.744546 | AD57: 1091.206532 | AE57: 1042.437525 | AF57: 1082.062343 | AG57: 1061.741923 | AH57: 1091.206532 | AI57: 1080.030301 | AJ57: 889.0183569 | AK57: 1056.661819 | AL57: 1056.661819 | AM57: 1144.039623 | AN57: 1152.167791 | AO57: 981.476266 | AP57: 1265.96214 | AQ57: 1162.328 | AR57: 953.0276786 | AS57: 638.061175 | AT57: 544.5872449 | AU57: 594.3722729 | AV57: 501.9143638 | AW57: 572.0198114 | AX57: 719.3428534 | AY57: 463.3055666 | AZ57: 521.2187624 | BA57: 502.9303848 | BB57: 550.6833708 | BC57: 463.3055666 | BD57: 440.953105 | BE57: 395.232161 | BF57: 308.8703777 | BG57: 861.5857905 | BH57: 367.7995945 | BI57: 174.7556084 | BJ57: 51.81706995 | BK57: 27.43256644 | BL57: 26.41654546 | BM57: 21.33644057 | BN57: 17.27235665 | BO57: 5.080104897 | BP57: 5.080104897 | BQ57: 32.51267134 | BR57: 2.032041959 | BS57: 0 | BT57: 1.016020979 | BU57: 0 | BV57: 0 | BW57: 0 | BX57: 0 | BY57: 0 | BZ57: 3.048062938 | CA57: 0 | CB57: 0 | CC57: 0 | CD57: 0 | CE57: 0 | CF57: 0 | CG57: 0 | CH57: 0 | CI57: 0 | CJ57: 0 | CK57: 0 | CL57: 0 | CM57: 0 | CN57: 0 | CO57: 0 | CP57: 0 | CQ57: 0 | CR57: 0 | CS57: 0 | CT57: 0 | CU57: 0 | CV57: 0 | CX57: 2846.751481 | CY57: 6492.174906 | CZ57: 6128.423328 | DA57: 8476.9933 | DB57: 11450.26707 | DC57: 15293.38157 | DD57: 12968.53453 | DE57: 9307.295816 | DF57: 8983.082452 | DG57: 8706.314947 | DH57: 8469.085657 | DI57: 6523.805478 | DJ57: 6982.448772 | DK57: 7188.047491 | DL57: 6800.572983 | DM57: 7006.171701 | DN57: 6373.560261 | DO57: 7156.416918 | DP57: 8445.362728 | DQ57: 9251.942315 | DR57: 8492.808586 | DS57: 8113.241722 | DT57: 8421.639799 | DU57: 8263.486939 | DV57: 8492.808586 | DW57: 8405.824513 | DX57: 6919.187628 | DY57: 8223.948724 | DZ57: 8223.948724 | EA57: 8904.006022 | EB57: 8967.267166 | EC57: 7638.783142 | ED57: 9852.923183 | EE57: 9046.343596 | EF57: 7417.369138 | EG57: 4965.999806 | EH57: 4238.49665 | EI57: 4625.971157 | EJ57: 3906.375644 | EK57: 4452.003011 | EL57: 5598.611247 | EM57: 3605.88521 | EN57: 4056.620861 | EO57: 3914.283287 | EP57: 4285.942508 | EQ57: 3605.88521 | ER57: 3431.917064 | ES57: 3076.073129 | ET57: 2403.923473 | EU57: 6705.681267 | EV57: 2862.566767 | EW57: 1360.114597 | EX57: 403.2897932 | EY57: 213.5063611 | EZ57: 205.5987181 | FA57: 166.0605031 | FB57: 134.4299311 | FC57: 39.53821502 | FD57: 39.53821502 | FE57: 253.0445761 | FF57: 15.81528601 | FG57: 0 | FH57: 7.907643004 | FI57: 0 | FJ57: 0 | FK57: 0 | FL57: 0 | FM57: 0 | FN57: 23.72292901 | FO57: 0 | FP57: 0 | FQ57: 0 | FR57: 0 | FS57: 0 | FT57: 0 | FU57: 0 | FV57: 0 | FW57: 0 | FX57: 0 | FY57: 0 | FZ57: 0 | GA57: 0 | GB57: 0 | GC57: 0 | GD57: 0 | GE57: 0 | GF57: 0 | GG57: 0 | GH57: 0 | GI57: 0 | GJ57: 0
A58: 5 | D58: TRANSFORMERS | E58: Pole Mounted ; < = 22kV ; > 60 kVA and < = 600 kVA ; Single Phase | F58: 48.05741322 | G58: 37.49693173 | H58: 6.123473829 | I58: 2 | J58: 8.092753623 | K58: 23.26666667 | L58: 16.18550725 | M58: 16.18550725 | N58: 21.24347826 | O58: 71.82318841 | P58: 49.56811594 | Q58: 37.42898551 | R58: 18.20869565 | S58: 10.11594203 | T58: 8.092753623 | U58: 1.011594203 | V58: 5.057971014 | W58: 3.034782609 | X58: 4.046376812 | Y58: 2.023188406 | Z58: 5.057971014 | AA58: 2.023188406 | AB58: 0 | AC58: 3.034782609 | AD58: 2.023188406 | AE58: 1.011594203 | AF58: 4.046376812 | AG58: 1.011594203 | AH58: 1.011594203 | AI58: 0 | AJ58: 0 | AK58: 1.011594203 | AL58: 3.034782609 | AM58: 2.023188406 | AN58: 1.011594203 | AO58: 1.011594203 | AP58: 2.023188406 | AQ58: 3.034782609 | AR58: 2.023188406 | AS58: 0 | AT58: 9.104347826 | AU58: 1.011594203 | AV58: 0 | AW58: 3.034782609 | AX58: 0 | AY58: 1.011594203 | AZ58: 1.011594203 | BA58: 1.011594203 | BB58: 1.011594203 | BC58: 0 | BD58: 0 | BE58: 1.011594203 | BF58: 0 | BG58: 1.011594203 | BH58: 0 | BI58: 0 | BJ58: 0 | BK58: 0 | BL58: 0 | BM58: 0 | BN58: 0 | BO58: 0 | BP58: 0 | BQ58: 0 | BR58: 0 | BS58: 0 | BT58: 0 | BU58: 0 | BV58: 0 | BW58: 0 | BX58: 0 | BY58: 0 | BZ58: 0 | CA58: 0 | CB58: 0 | CC58: 0 | CD58: 0 | CE58: 0 | CF58: 0 | CG58: 0 | CH58: 0 | CI58: 0 | CJ58: 0 | CK58: 0 | CL58: 0 | CM58: 0 | CN58: 0 | CO58: 0 | CP58: 0 | CQ58: 0 | CR58: 0 | CS58: 0 | CT58: 0 | CU58: 0 | CV58: 0 | CX58: 388.916805 | CY58: 1118.135814 | CZ58: 777.8336099 | DA58: 777.8336099 | DB58: 1020.906613 | DC58: 3451.636644 | DD58: 2382.11543 | DE58: 1798.740223 | DF58: 875.0628112 | DG58: 486.1460062 | DH58: 388.916805 | DI58: 48.61460062 | DJ58: 243.0730031 | DK58: 145.8438019 | DL58: 194.4584025 | DM58: 97.22920124 | DN58: 243.0730031 | DO58: 97.22920124 | DP58: 0 | DQ58: 145.8438019 | DR58: 97.22920124 | DS58: 48.61460062 | DT58: 194.4584025 | DU58: 48.61460062 | DV58: 48.61460062 | DW58: 0 | DX58: 0 | DY58: 48.61460062 | DZ58: 145.8438019 | EA58: 97.22920124 | EB58: 48.61460062 | EC58: 48.61460062 | ED58: 97.22920124 | EE58: 145.8438019 | EF58: 97.22920124 | EG58: 0 | EH58: 437.5314056 | EI58: 48.61460062 | EJ58: 0 | EK58: 145.8438019 | EL58: 0 | EM58: 48.61460062 | EN58: 48.61460062 | EO58: 48.61460062 | EP58: 48.61460062 | EQ58: 0 | ER58: 0 | ES58: 48.61460062 | ET58: 0 | EU58: 48.61460062 | EV58: 0 | EW58: 0 | EX58: 0 | EY58: 0 | EZ58: 0 | FA58: 0 | FB58: 0 | FC58: 0 | FD58: 0 | FE58: 0 | FF58: 0 | FG58: 0 | FH58: 0 | FI58: 0 | FJ58: 0 | FK58: 0 | FL58: 0 | FM58: 0 | FN58: 0 | FO58: 0 | FP58: 0 | FQ58: 0 | FR58: 0 | FS58: 0 | FT58: 0 | FU58: 0 | FV58: 0 | FW58: 0 | FX58: 0 | FY58: 0 | FZ58: 0 | GA58: 0 | GB58: 0 | GC58: 0 | GD58: 0 | GE58: 0 | GF58: 0 | GG58: 0 | GH58: 0 | GI58: 0 | GJ58: 0
A59: 5 | D59: TRANSFORMERS | E59: Pole Mounted ; < = 22kV ; > 600 kVA ; Single Phase | F59: 48.05741322 | G59: 51.7 | H59: 7.190271205 | I59: 2 | J59: 0 | K59: 0 | L59: 0 | M59: 0 | N59: 0 | O59: 0 | P59: 0 | Q59: 2 | R59: 0 | S59: 0 | T59: 0 | U59: 0 | V59: 0 | W59: 0 | X59: 0 | Y59: 0 | Z59: 0 | AA59: 0 | AB59: 0 | AC59: 0 | AD59: 0 | AE59: 0 | AF59: 0 | AG59: 0 | AH59: 0 | AI59: 0 | AJ59: 0 | AK59: 0 | AL59: 0 | AM59: 0 | AN59: 0 | AO59: 0 | AP59: 0 | AQ59: 0 | AR59: 0 | AS59: 0 | AT59: 0 | AU59: 0 | AV59: 0 | AW59: 0 | AX59: 0 | AY59: 0 | AZ59: 0 | BA59: 0 | BB59: 0 | BC59: 0 | BD59: 0 | BE59: 0 | BF59: 0 | BG59: 0 | BH59: 0 | BI59: 0 | BJ59: 0 | BK59: 0 | BL59: 0 | BM59: 0 | BN59: 0 | BO59: 0 | BP59: 0 | BQ59: 0 | BR59: 0 | BS59: 0 | BT59: 0 | BU59: 0 | BV59: 0 | BW59: 0 | BX59: 0 | BY59: 0 | BZ59: 0 | CA59: 0 | CB59: 0 | CC59: 0 | CD59: 0 | CE59: 0 | CF59: 0 | CG59: 0 | CH59: 0 | CI59: 0 | CJ59: 0 | CK59: 0 | CL59: 0 | CM59: 0 | CN59: 0 | CO59: 0 | CP59: 0 | CQ59: 0 | CR59: 0 | CS59: 0 | CT59: 0 | CU59: 0 | CV59: 0 | CX59: 0 | CY59: 0 | CZ59: 0 | DA59: 0 | DB59: 0 | DC59: 0 | DD59: 0 | DE59: 96.11482644 | DF59: 0 | DG59: 0 | DH59: 0 | DI59: 0 | DJ59: 0 | DK59: 0 | DL59: 0 | DM59: 0 | DN59: 0 | DO59: 0 | DP59: 0 | DQ59: 0 | DR59: 0 | DS59: 0 | DT59: 0 | DU59: 0 | DV59: 0 | DW59: 0 | DX59: 0 | DY59: 0 | DZ59: 0 | EA59: 0 | EB59: 0 | EC59: 0 | ED59: 0 | EE59: 0 | EF59: 0 | EG59: 0 | EH59: 0 | EI59: 0 | EJ59: 0 | EK59: 0 | EL59: 0 | EM59: 0 | EN59: 0 | EO59: 0 | EP59: 0 | EQ59: 0 | ER59: 0 | ES59: 0 | ET59: 0 | EU59: 0 | EV59: 0 | EW59: 0 | EX59: 0 | EY59: 0 | EZ59: 0 | FA59: 0 | FB59: 0 | FC59: 0 | FD59: 0 | FE59: 0 | FF59: 0 | FG59: 0 | FH59: 0 | FI59: 0 | FJ59: 0 | FK59: 0 | FL59: 0 | FM59: 0 | FN59: 0 | FO59: 0 | FP59: 0 | FQ59: 0 | FR59: 0 | FS59: 0 | FT59: 0 | FU59: 0 | FV59: 0 | FW59: 0 | FX59: 0 | FY59: 0 | FZ59: 0 | GA59: 0 | GB59: 0 | GC59: 0 | GD59: 0 | GE59: 0 | GF59: 0 | GG59: 0 | GH59: 0 | GI59: 0 | GJ59: 0
A60: 5 | D60: TRANSFORMERS | E60: Pole Mounted ; < = 22kV ; < = 60 kVA ; Multiple Phase | F60: 11.31890206 | G60: 50.36054511 | H60: 7.096516406 | I60: 2 | J60: 108.9951637 | K60: 305.791987 | L60: 347.1697806 | M60: 454.1465153 | N60: 1477.489996 | O60: 598.4641857 | P60: 536.9021025 | Q60: 336.0684213 | R60: 313.8657028 | S60: 327.9947055 | T60: 272.4879092 | U60: 267.4418368 | V60: 380.4738584 | W60: 374.4185715 | X60: 318.9117752 | Y60: 291.6629843 | Z60: 481.3953062 | AA60: 409.7410782 | AB60: 536.9021025 | AC60: 621.6761187 | AD60: 629.7498345 | AE60: 480.3860917 | AF60: 450.1096574 | AG60: 534.8836736 | AH60: 606.5379015 | AI60: 499.5611668 | AJ60: 376.4370005 | AK60: 373.409357 | AL60: 425.8885099 | AM60: 392.5844321 | AN60: 458.1833732 | AO60: 422.8608665 | AP60: 561.12325 | AQ60: 532.8652446 | AR60: 496.5335234 | AS60: 301.7551291 | AT60: 354.2342819 | AU60: 293.6814132 | AV60: 221.0179708 | AW60: 211.9350405 | AX60: 186.7046785 | AY60: 164.50196 | AZ60: 235.1469735 | BA60: 167.5296034 | BB60: 211.9350405 | BC60: 190.7415364 | BD60: 168.5388179 | BE60: 177.6217482 | BF60: 226.0640432 | BG60: 305.791987 | BH60: 178.6309627 | BI60: 87.80165962 | BJ60: 17.15664613 | BK60: 18.16586061 | BL60: 7.064501349 | BM60: 17.15664613 | BN60: 9.082930306 | BO60: 4.036857914 | BP60: 1.009214478 | BQ60: 47.43308049 | BR60: 1.009214478 | BS60: 0 | BT60: 2.018428957 | BU60: 3.027643435 | BV60: 3.027643435 | BW60: 1.009214478 | BX60: 2.018428957 | BY60: 0 | BZ60: 2.018428957 | CA60: 0 | CB60: 0 | CC60: 0 | CD60: 2.018428957 | CE60: 0 | CF60: 0 | CG60: 0 | CH60: 0 | CI60: 0 | CJ60: 0 | CK60: 0 | CL60: 0 | CM60: 0 | CN60: 0 | CO60: 0 | CP60: 0 | CQ60: 0 | CR60: 0 | CS60: 0 | CT60: 0 | CU60: 0 | CV60: 0 | CX60: 1233.705583 | CY60: 3461.229552 | CZ60: 3929.580745 | DA60: 5140.439928 | DB60: 16723.56457 | DC60: 6773.957506 | DD60: 6077.142315 | DE60: 3803.925547 | DF60: 3552.615151 | DG60: 3712.539948 | DH60: 3084.263957 | DI60: 3027.147958 | DJ60: 4306.54634 | DK60: 4238.007141 | DL60: 3609.73115 | DM60: 3301.304754 | DN60: 5448.866324 | DO60: 4637.819135 | DP60: 6077.142315 | DQ60: 7036.691102 | DR60: 7128.076701 | DS60: 5437.443124 | DT60: 5094.747129 | DU60: 6054.295916 | DV60: 6865.343104 | DW60: 5654.483921 | DX60: 4260.853541 | DY60: 4226.583941 | DZ60: 4820.590333 | EA60: 4443.624738 | EB60: 5186.132728 | EC60: 4786.320733 | ED60: 6351.299112 | EE60: 6031.449516 | EF60: 5620.214322 | EG60: 3415.536752 | EH60: 4009.543144 | EI60: 3324.151154 | EJ60: 2501.680765 | EK60: 2398.871967 | EL60: 2113.291971 | EM60: 1861.981574 | EN60: 2661.605563 | EO60: 1896.251174 | EP60: 2398.871967 | EQ60: 2158.98477 | ER60: 1907.674373 | ES60: 2010.483172 | ET60: 2558.796764 | EU60: 3461.229552 | EV60: 2021.906372 | EW60: 993.8183862 | EX60: 194.1943973 | EY60: 205.6175971 | EZ60: 79.96239889 | FA60: 194.1943973 | FB60: 102.8087986 | FC60: 45.69279936 | FD60: 11.42319984 | FE60: 536.8903925 | FF60: 11.42319984 | FG60: 0 | FH60: 22.84639968 | FI60: 34.26959952 | FJ60: 34.26959952 | FK60: 11.42319984 | FL60: 22.84639968 | FM60: 0 | FN60: 22.84639968 | FO60: 0 | FP60: 0 | FQ60: 0 | FR60: 22.84639968 | FS60: 0 | FT60: 0 | FU60: 0 | FV60: 0 | FW60: 0 | FX60: 0 | FY60: 0 | FZ60: 0 | GA60: 0 | GB60: 0 | GC60: 0 | GD60: 0 | GE60: 0 | GF60: 0 | GG60: 0 | GH60: 0 | GI60: 0 | GJ60: 0
A61: 5 | D61: TRANSFORMERS | E61: Pole Mounted ; < = 22kV ; > 60 kVA and < = 600 kVA ; Multiple Phase | F61: 24.89337577 | G61: 45.51751334 | H61: 6.746666831 | I61: 2 | J61: 327.9777145 | K61: 945.7026124 | L61: 876.2840163 | M61: 914.5145475 | N61: 1516.14238 | O61: 1798.847097 | P61: 1589.585242 | Q61: 922.5630804 | R61: 817.932153 | S61: 716.3194255 | T61: 579.4943667 | U61: 493.978705 | V61: 507.0575709 | W61: 464.8027733 | X61: 490.9605051 | Y61: 445.6875077 | Z61: 514.1000371 | AA61: 515.1061038 | AB61: 515.1061038 | AC61: 574.4640337 | AD61: 509.0697041 | AE61: 352.1233131 | AF61: 381.2992448 | AG61: 378.2810449 | AH61: 417.5176427 | AI61: 323.9534481 | AJ61: 287.7350501 | AK61: 265.6015847 | AL61: 339.0444472 | AM61: 388.341711 | AN61: 335.0201808 | AO61: 304.8381825 | AP61: 434.620775 | AQ61: 453.7360406 | AR61: 377.2749783 | AS61: 220.3285873 | AT61: 237.4317197 | AU61: 269.6258512 | AV61: 222.3407206 | AW61: 223.3467872 | AX61: 221.334654 | AY61: 156.946391 | AZ61: 171.0313235 | BA61: 151.9160579 | BB61: 168.0131237 | BC61: 159.9645908 | BD61: 145.8796583 | BE61: 112.6794602 | BF61: 142.8614585 | BG61: 318.923115 | BH61: 80.48532871 | BI61: 51.30939705 | BJ61: 10.06066609 | BK61: 10.06066609 | BL61: 24.14559861 | BM61: 11.0667327 | BN61: 18.10919896 | BO61: 7.042466262 | BP61: 4.024266436 | BQ61: 126.7643927 | BR61: 2.012133218 | BS61: 4.024266436 | BT61: 5.030333044 | BU61: 3.018199827 | BV61: 1.006066609 | BW61: 4.024266436 | BX61: 1.006066609 | BY61: 2.012133218 | BZ61: 11.0667327 | CA61: 0 | CB61: 0 | CC61: 1.006066609 | CD61: 0 | CE61: 1.006066609 | CF61: 1.006066609 | CG61: 0 | CH61: 0 | CI61: 0 | CJ61: 0 | CK61: 1.006066609 | CL61: 0 | CM61: 0 | CN61: 0 | CO61: 0 | CP61: 0 | CQ61: 0 | CR61: 0 | CS61: 0 | CT61: 0 | CU61: 0 | CV61: 0 | CX61: 8164.472492 | CY61: 23541.7305 | CZ61: 21813.6673 | DA61: 22765.35428 | DB61: 37741.90198 | DC61: 44779.37674 | DD61: 39570.14275 | DE61: 22965.70943 | DF61: 20361.09244 | DG61: 17831.60863 | DH61: 14425.57103 | DI61: 12296.79753 | DJ61: 12622.37465 | DK61: 11570.5101 | DL61: 12221.66434 | DM61: 11094.66661 | DN61: 12797.68541 | DO61: 12822.7298 | DP61: 12822.7298 | DQ61: 14300.34906 | DR61: 12672.46344 | DS61: 8765.537952 | DT61: 9491.825382 | DU61: 9416.6922 | DV61: 10393.42357 | DW61: 8064.294916 | DX61: 7162.696726 | DY61: 6611.720055 | DZ61: 8439.960828 | EA61: 9667.136141 | EB61: 8339.783251 | EC61: 7588.451427 | ED61: 10819.17827 | EE61: 11295.02176 | EF61: 9391.647806 | EG61: 5484.722319 | EH61: 5910.477019 | EI61: 6711.897632 | EJ61: 5534.811107 | EK61: 5559.855501 | EL61: 5509.766713 | EM61: 3906.925487 | EN61: 4257.547005 | EO61: 3781.703516 | EP61: 4182.413823 | EQ61: 3982.05867 | ER61: 3631.437152 | ES61: 2804.972145 | ET61: 3556.303969 | EU61: 7939.072945 | EV61: 2003.551532 | EW61: 1277.264102 | EX61: 250.4439415 | EY61: 250.4439415 | EZ61: 601.0654596 | FA61: 275.4883356 | FB61: 450.7990947 | FC61: 175.310759 | FD61: 100.1775766 | FE61: 3155.593663 | FF61: 50.0887883 | FG61: 100.1775766 | FH61: 125.2219707 | FI61: 75.13318245 | FJ61: 25.04439415 | FK61: 100.1775766 | FL61: 25.04439415 | FM61: 50.0887883 | FN61: 275.4883356 | FO61: 0 | FP61: 0 | FQ61: 25.04439415 | FR61: 0 | FS61: 25.04439415 | FT61: 25.04439415 | FU61: 0 | FV61: 0 | FW61: 0 | FX61: 0 | FY61: 25.04439415 | FZ61: 0 | GA61: 0 | GB61: 0 | GC61: 0 | GD61: 0 | GE61: 0 | GF61: 0 | GG61: 0 | GH61: 0 | GI61: 0 | GJ61: 0
A62: 5 | D62: TRANSFORMERS | E62: Pole Mounted ; < = 22kV ; > 600 kVA ; Multiple Phase | F62: 58.52225014 | G62: 51.7 | H62: 7.190271205 | I62: 2 | J62: 0 | K62: 0 | L62: 1.02 | M62: 0 | N62: 0 | O62: 4.08 | P62: 0 | Q62: 2.04 | R62: 0 | S62: 0 | T62: 0 | U62: 4.08 | V62: 1.02 | W62: 1.02 | X62: 2.04 | Y62: 1.02 | Z62: 2.04 | AA62: 2.04 | AB62: 2.04 | AC62: 8.16 | AD62: 3.06 | AE62: 2.04 | AF62: 1.02 | AG62: 4.08 | AH62: 0 | AI62: 0 | AJ62: 0 | AK62: 2.04 | AL62: 1.02 | AM62: 0 | AN62: 1.02 | AO62: 0 | AP62: 1.02 | AQ62: 0 | AR62: 1.02 | AS62: 0 | AT62: 0 | AU62: 0 | AV62: 0 | AW62: 0 | AX62: 0 | AY62: 0 | AZ62: 1.02 | BA62: 1.02 | BB62: 0 | BC62: 0 | BD62: 1.02 | BE62: 1.02 | BF62: 0 | BG62: 0 | BH62: 0 | BI62: 0 | BJ62: 0 | BK62: 0 | BL62: 0 | BM62: 0 | BN62: 0 | BO62: 0 | BP62: 0 | BQ62: 0 | BR62: 0 | BS62: 0 | BT62: 0 | BU62: 0 | BV62: 0 | BW62: 0 | BX62: 0 | BY62: 0 | BZ62: 0 | CA62: 0 | CB62: 0 | CC62: 0 | CD62: 0 | CE62: 0 | CF62: 0 | CG62: 0 | CH62: 0 | CI62: 0 | CJ62: 0 | CK62: 0 | CL62: 0 | CM62: 0 | CN62: 0 | CO62: 0 | CP62: 0 | CQ62: 0 | CR62: 0 | CS62: 0 | CT62: 0 | CU62: 0 | CV62: 0 | CX62: 0 | CY62: 0 | CZ62: 59.69269514 | DA62: 0 | DB62: 0 | DC62: 238.7707806 | DD62: 0 | DE62: 119.3853903 | DF62: 0 | DG62: 0 | DH62: 0 | DI62: 238.7707806 | DJ62: 59.69269514 | DK62: 59.69269514 | DL62: 119.3853903 | DM62: 59.69269514 | DN62: 119.3853903 | DO62: 119.3853903 | DP62: 119.3853903 | DQ62: 477.5415611 | DR62: 179.0780854 | DS62: 119.3853903 | DT62: 59.69269514 | DU62: 238.7707806 | DV62: 0 | DW62: 0 | DX62: 0 | DY62: 119.3853903 | DZ62: 59.69269514 | EA62: 0 | EB62: 59.69269514 | EC62: 0 | ED62: 59.69269514 | EE62: 0 | EF62: 59.69269514 | EG62: 0 | EH62: 0 | EI62: 0 | EJ62: 0 | EK62: 0 | EL62: 0 | EM62: 0 | EN62: 59.69269514 | EO62: 59.69269514 | EP62: 0 | EQ62: 0 | ER62: 59.69269514 | ES62: 59.69269514 | ET62: 0 | EU62: 0 | EV62: 0 | EW62: 0 | EX62: 0 | EY62: 0 | EZ62: 0 | FA62: 0 | FB62: 0 | FC62: 0 | FD62: 0 | FE62: 0 | FF62: 0 | FG62: 0 | FH62: 0 | FI62: 0 | FJ62: 0 | FK62: 0 | FL62: 0 | FM62: 0 | FN62: 0 | FO62: 0 | FP62: 0 | FQ62: 0 | FR62: 0 | FS62: 0 | FT62: 0 | FU62: 0 | FV62: 0 | FW62: 0 | FX62: 0 | FY62: 0 | FZ62: 0 | GA62: 0 | GB62: 0 | GC62: 0 | GD62: 0 | GE62: 0 | GF62: 0 | GG62: 0 | GH62: 0 | GI62: 0 | GJ62: 0
A63: 5 | D63: TRANSFORMERS | E63: Kiosk Mounted ; < = 22kV ; < = 60 kVA ; Single Phase | F63: 30.08150727 | G63: 51.7 | H63: 7.190271205 | I63: 2 | J63: 0 | K63: 2.08988764 | L63: 0 | M63: 0 | N63: 64.78651685 | O63: 6.269662921 | P63: 0 | Q63: 8.359550562 | R63: 0 | S63: 2.08988764 | T63: 0 | U63: 2.08988764 | V63: 8.359550562 | W63: 12.53932584 | X63: 4.179775281 | Y63: 0 | Z63: 4.179775281 | AA63: 6.269662921 | AB63: 0 | AC63: 4.179775281 | AD63: 0 | AE63: 2.08988764 | AF63: 6.269662921 | AG63: 2.08988764 | AH63: 0 | AI63: 14.62921348 | AJ63: 0 | AK63: 2.08988764 | AL63: 2.08988764 | AM63: 2.08988764 | AN63: 2.08988764 | AO63: 0 | AP63: 2.08988764 | AQ63: 4.179775281 | AR63: 2.08988764 | AS63: 4.179775281 | AT63: 0 | AU63: 0 | AV63: 0 | AW63: 0 | AX63: 0 | AY63: 2.08988764 | AZ63: 0 | BA63: 2.08988764 | BB63: 0 | BC63: 0 | BD63: 2.08988764 | BE63: 2.08988764 | BF63: 0 | BG63: 2.08988764 | BH63: 0 | BI63: 0 | BJ63: 0 | BK63: 0 | BL63: 0 | BM63: 0 | BN63: 0 | BO63: 0 | BP63: 0 | BQ63: 0 | BR63: 0 | BS63: 0 | BT63: 0 | BU63: 0 | BV63: 0 | BW63: 0 | BX63: 0 | BY63: 0 | BZ63: 0 | CA63: 0 | CB63: 0 | CC63: 0 | CD63: 0 | CE63: 0 | CF63: 0 | CG63: 0 | CH63: 0 | CI63: 0 | CJ63: 4.179775281 | CK63: 0 | CL63: 0 | CM63: 0 | CN63: 0 | CO63: 0 | CP63: 0 | CQ63: 0 | CR63: 0 | CS63: 0 | CT63: 0 | CU63: 0 | CV63: 0 | CX63: 0 | CY63: 62.86697025 | CZ63: 0 | DA63: 0 | DB63: 1948.876078 | DC63: 188.6009107 | DD63: 0 | DE63: 251.467881 | DF63: 0 | DG63: 62.86697025 | DH63: 0 | DI63: 62.86697025 | DJ63: 251.467881 | DK63: 377.2018215 | DL63: 125.7339405 | DM63: 0 | DN63: 125.7339405 | DO63: 188.6009107 | DP63: 0 | DQ63: 125.7339405 | DR63: 0 | DS63: 62.86697025 | DT63: 188.6009107 | DU63: 62.86697025 | DV63: 0 | DW63: 440.0687917 | DX63: 0 | DY63: 62.86697025 | DZ63: 62.86697025 | EA63: 62.86697025 | EB63: 62.86697025 | EC63: 0 | ED63: 62.86697025 | EE63: 125.7339405 | EF63: 62.86697025 | EG63: 125.7339405 | EH63: 0 | EI63: 0 | EJ63: 0 | EK63: 0 | EL63: 0 | EM63: 62.86697025 | EN63: 0 | EO63: 62.86697025 | EP63: 0 | EQ63: 0 | ER63: 62.86697025 | ES63: 62.86697025 | ET63: 0 | EU63: 62.86697025 | EV63: 0 | EW63: 0 | EX63: 0 | EY63: 0 | EZ63: 0 | FA63: 0 | FB63: 0 | FC63: 0 | FD63: 0 | FE63: 0 | FF63: 0 | FG63: 0 | FH63: 0 | FI63: 0 | FJ63: 0 | FK63: 0 | FL63: 0 | FM63: 0 | FN63: 0 | FO63: 0 | FP63: 0 | FQ63: 0 | FR63: 0 | FS63: 0 | FT63: 0 | FU63: 0 | FV63: 0 | FW63: 0 | FX63: 125.7339405 | FY63: 0 | FZ63: 0 | GA63: 0 | GB63: 0 | GC63: 0 | GD63: 0 | GE63: 0 | GF63: 0 | GG63: 0 | GH63: 0 | GI63: 0 | GJ63: 0
A64: 5 | D64: TRANSFORMERS | E64: Kiosk Mounted ; < = 22kV ; < = 60 kVA ; Multiple Phase | F64: 61.27796189 | G64: 51.7 | H64: 7.190271205 | I64: 2 | J64: 14.5045045 | K64: 47.65765766 | L64: 16.57657658 | M64: 35.22522523 | N64: 66.30630631 | O64: 47.65765766 | P64: 33.15315315 | Q64: 51.8018018 | R64: 47.65765766 | S64: 6.216216216 | T64: 22.79279279 | U64: 0 | V64: 16.57657658 | W64: 12.43243243 | X64: 16.57657658 | Y64: 16.57657658 | Z64: 12.43243243 | AA64: 6.216216216 | AB64: 4.144144144 | AC64: 6.216216216 | AD64: 16.57657658 | AE64: 0 | AF64: 8.288288288 | AG64: 10.36036036 | AH64: 18.64864865 | AI64: 6.216216216 | AJ64: 8.288288288 | AK64: 8.288288288 | AL64: 8.288288288 | AM64: 8.288288288 | AN64: 6.216216216 | AO64: 14.5045045 | AP64: 4.144144144 | AQ64: 10.36036036 | AR64: 0 | AS64: 2.072072072 | AT64: 4.144144144 | AU64: 0 | AV64: 6.216216216 | AW64: 0 | AX64: 6.216216216 | AY64: 0 | AZ64: 10.36036036 | BA64: 8.288288288 | BB64: 2.072072072 | BC64: 0 | BD64: 2.072072072 | BE64: 0 | BF64: 2.072072072 | BG64: 0 | BH64: 6.216216216 | BI64: 4.144144144 | BJ64: 6.216216216 | BK64: 6.216216216 | BL64: 2.072072072 | BM64: 6.216216216 | BN64: 0 | BO64: 0 | BP64: 0 | BQ64: 0 | BR64: 0 | BS64: 2.072072072 | BT64: 0 | BU64: 0 | BV64: 2.072072072 | BW64: 0 | BX64: 0 | BY64: 0 | BZ64: 2.072072072 | CA64: 0 | CB64: 0 | CC64: 0 | CD64: 0 | CE64: 0 | CF64: 0 | CG64: 0 | CH64: 0 | CI64: 0 | CJ64: 0 | CK64: 0 | CL64: 0 | CM64: 0 | CN64: 0 | CO64: 0 | CP64: 0 | CQ64: 0 | CR64: 0 | CS64: 0 | CT64: 0 | CU64: 0 | CV64: 0 | CX64: 888.8064742 | CY64: 2920.36413 | CZ64: 1015.778828 | DA64: 2158.530009 | DB64: 4063.115311 | DC64: 2920.36413 | DD64: 2031.557655 | DE64: 3174.308837 | DF64: 2920.36413 | DG64: 380.9170604 | DH64: 1396.695888 | DI64: 0 | DJ64: 1015.778828 | DK64: 761.8341208 | DL64: 1015.778828 | DM64: 1015.778828 | DN64: 761.8341208 | DO64: 380.9170604 | DP64: 253.9447069 | DQ64: 380.9170604 | DR64: 1015.778828 | DS64: 0 | DT64: 507.8894139 | DU64: 634.8617673 | DV64: 1142.751181 | DW64: 380.9170604 | DX64: 507.8894139 | DY64: 507.8894139 | DZ64: 507.8894139 | EA64: 507.8894139 | EB64: 380.9170604 | EC64: 888.8064742 | ED64: 253.9447069 | EE64: 634.8617673 | EF64: 0 | EG64: 126.9723535 | EH64: 253.9447069 | EI64: 0 | EJ64: 380.9170604 | EK64: 0 | EL64: 380.9170604 | EM64: 0 | EN64: 634.8617673 | EO64: 507.8894139 | EP64: 126.9723535 | EQ64: 0 | ER64: 126.9723535 | ES64: 0 | ET64: 126.9723535 | EU64: 0 | EV64: 380.9170604 | EW64: 253.9447069 | EX64: 380.9170604 | EY64: 380.9170604 | EZ64: 126.9723535 | FA64: 380.9170604 | FB64: 0 | FC64: 0 | FD64: 0 | FE64: 0 | FF64: 0 | FG64: 126.9723535 | FH64: 0 | FI64: 0 | FJ64: 126.9723535 | FK64: 0 | FL64: 0 | FM64: 0 | FN64: 126.9723535 | FO64: 0 | FP64: 0 | FQ64: 0 | FR64: 0 | FS64: 0 | FT64: 0 | FU64: 0 | FV64: 0 | FW64: 0 | FX64: 0 | FY64: 0 | FZ64: 0 | GA64: 0 | GB64: 0 | GC64: 0 | GD64: 0 | GE64: 0 | GF64: 0 | GG64: 0 | GH64: 0 | GI64: 0 | GJ64: 0
A65: 5 | D65: TRANSFORMERS | E65: Kiosk Mounted ; < = 22kV ; > 60 kVA and < = 600 kVA ; Multiple Phase | F65: 143.1256354 | G65: 52.1709366 | H65: 7.222945147 | I65: 2 | J65: 35.33012242 | K65: 253.3674493 | L65: 200.8769817 | M65: 243.2731286 | N65: 276.5843869 | O65: 403.7728276 | P65: 389.6407786 | Q65: 328.0654224 | R65: 354.3106562 | S65: 375.5087297 | T65: 335.1314469 | U65: 207.9430062 | V65: 113.0563917 | W65: 87.82059001 | X65: 114.0658238 | Y65: 76.71683725 | Z65: 68.64138069 | AA65: 62.58478828 | AB65: 73.68854104 | AC65: 103.9715031 | AD65: 104.9809352 | AE65: 87.82059001 | AF65: 70.66024483 | AG65: 63.59422035 | AH65: 65.61308449 | AI65: 55.5187638 | AJ65: 33.31125828 | AK65: 26.24523379 | AL65: 31.29239414 | AM65: 20.18864138 | AN65: 37.34898655 | AO65: 30.28296207 | AP65: 48.45273931 | AQ65: 45.42444311 | AR65: 21.19807345 | AS65: 8.075456552 | AT65: 18.16977724 | AU65: 4.037728276 | AV65: 14.13204897 | AW65: 15.14148104 | AX65: 15.14148104 | AY65: 14.13204897 | AZ65: 1.009432069 | BA65: 10.09432069 | BB65: 10.09432069 | BC65: 9.084888621 | BD65: 2.018864138 | BE65: 9.084888621 | BF65: 5.047160345 | BG65: 11.10375276 | BH65: 3.028296207 | BI65: 11.10375276 | BJ65: 0 | BK65: 4.037728276 | BL65: 1.009432069 | BM65: 1.009432069 | BN65: 0 | BO65: 2.018864138 | BP65: 0 | BQ65: 2.018864138 | BR65: 0 | BS65: 0 | BT65: 0 | BU65: 0 | BV65: 0 | BW65: 0 | BX65: 1.009432069 | BY65: 0 | BZ65: 2.018864138 | CA65: 0 | CB65: 0 | CC65: 0 | CD65: 0 | CE65: 0 | CF65: 1.009432069 | CG65: 0 | CH65: 0 | CI65: 0 | CJ65: 8.075456552 | CK65: 0 | CL65: 0 | CM65: 0 | CN65: 0 | CO65: 0 | CP65: 0 | CQ65: 0 | CR65: 0 | CS65: 0 | CT65: 0 | CU65: 1.009432069 | CV65: 0 | CX65: 5056.646221 | CY65: 36263.37718 | CZ65: 28750.64566 | DA65: 34818.62112 | DB65: 39586.31613 | DC65: 57790.24252 | DD65: 55767.58404 | DE65: 46954.57205 | DF65: 50710.93782 | DG65: 53744.92555 | DH65: 47965.9013 | DI65: 29761.9749 | DJ65: 16181.26791 | DK65: 12569.37775 | DL65: 16325.74351 | DM65: 10980.14608 | DN65: 9824.341229 | DO65: 8957.487591 | DP65: 10546.71926 | DQ65: 14880.98745 | DR65: 15025.46306 | DS65: 12569.37775 | DT65: 10113.29244 | DU65: 9101.963198 | DV65: 9390.91441 | DW65: 7946.158347 | DX65: 4767.695008 | DY65: 3756.365764 | DZ65: 4478.743796 | EA65: 2889.512126 | EB65: 5345.597434 | EC65: 4334.268189 | ED65: 6934.829103 | EE65: 6501.402284 | EF65: 3033.987733 | EG65: 1155.80485 | EH65: 2600.560914 | EI65: 577.9024252 | EJ65: 2022.658488 | EK65: 2167.134095 | EL65: 2167.134095 | EM65: 2022.658488 | EN65: 144.4756063 | EO65: 1444.756063 | EP65: 1444.756063 | EQ65: 1300.280457 | ER65: 288.9512126 | ES65: 1300.280457 | ET65: 722.3780316 | EU65: 1589.231669 | EV65: 433.4268189 | EW65: 1589.231669 | EX65: 0 | EY65: 577.9024252 | EZ65: 144.4756063 | FA65: 144.4756063 | FB65: 0 | FC65: 288.9512126 | FD65: 0 | FE65: 288.9512126 | FF65: 0 | FG65: 0 | FH65: 0 | FI65: 0 | FJ65: 0 | FK65: 0 | FL65: 144.4756063 | FM65: 0 | FN65: 288.9512126 | FO65: 0 | FP65: 0 | FQ65: 0 | FR65: 0 | FS65: 0 | FT65: 144.4756063 | FU65: 0 | FV65: 0 | FW65: 0 | FX65: 1155.80485 | FY65: 0 | FZ65: 0 | GA65: 0 | GB65: 0 | GC65: 0 | GD65: 0 | GE65: 0 | GF65: 0 | GG65: 0 | GH65: 0 | GI65: 144.4756063 | GJ65: 0
A66: 5 | D66: TRANSFORMERS | E66: Kiosk Mounted ; < = 22kV ; > 600 kVA ; Multiple Phase | F66: 172.3904439 | G66: 46.94607589 | H66: 6.851720652 | I66: 2 | J66: 19.08328115 | K66: 71.31120852 | L66: 72.31559173 | M66: 86.37695679 | N66: 146.6399499 | O66: 176.7714465 | P66: 142.622417 | Q66: 87.38134001 | R66: 58.25422668 | S66: 84.36819036 | T66: 53.23231058 | U66: 59.25860989 | V66: 44.19286162 | W66: 41.17971196 | X66: 45.19724483 | Y66: 33.14464621 | Z66: 44.19286162 | AA66: 42.18409518 | AB66: 38.1665623 | AC66: 18.07889793 | AD66: 31.13587977 | AE66: 3.013149656 | AF66: 5.021916093 | AG66: 21.09204759 | AH66: 10.04383219 | AI66: 26.11396368 | AJ66: 3.013149656 | AK66: 13.05698184 | AL66: 13.05698184 | AM66: 12.05259862 | AN66: 13.05698184 | AO66: 6.026299311 | AP66: 3.013149656 | AQ66: 12.05259862 | AR66: 5.021916093 | AS66: 4.017532874 | AT66: 11.0482154 | AU66: 9.039448967 | AV66: 3.013149656 | AW66: 3.013149656 | AX66: 0 | AY66: 2.008766437 | AZ66: 1.004383219 | BA66: 3.013149656 | BB66: 2.008766437 | BC66: 3.013149656 | BD66: 9.039448967 | BE66: 4.017532874 | BF66: 1.004383219 | BG66: 1.004383219 | BH66: 0 | BI66: 2.008766437 | BJ66: 0 | BK66: 0 | BL66: 1.004383219 | BM66: 0 | BN66: 0 | BO66: 1.004383219 | BP66: 0 | BQ66: 1.004383219 | BR66: 0 | BS66: 0 | BT66: 0 | BU66: 0 | BV66: 0 | BW66: 0 | BX66: 0 | BY66: 0 | BZ66: 1.004383219 | CA66: 0 | CB66: 0 | CC66: 0 | CD66: 0 | CE66: 0 | CF66: 0 | CG66: 0 | CH66: 0 | CI66: 0 | CJ66: 1.004383219 | CK66: 0 | CL66: 0 | CM66: 0 | CN66: 0 | CO66: 0 | CP66: 0 | CQ66: 0 | CR66: 0 | CS66: 0 | CT66: 0 | CU66: 0 | CV66: 0 | CX66: 3289.775308 | CY66: 12293.37089 | CZ66: 12466.51696 | DA66: 14890.56192 | DB66: 25279.32605 | DC66: 30473.70812 | DD66: 24586.74178 | DE66: 15063.70799 | DF66: 10042.47199 | DG66: 14544.26978 | DH66: 9176.74165 | DI66: 10215.61806 | DJ66: 7618.42703 | DK66: 7098.988823 | DL66: 7791.573099 | DM66: 5713.820272 | DN66: 7618.42703 | DO66: 7272.134892 | DP66: 6579.550617 | DQ66: 3116.62924 | DR66: 5367.528135 | DS66: 519.4382066 | DT66: 865.7303443 | DU66: 3636.067446 | DV66: 1731.460689 | DW66: 4501.79779 | DX66: 519.4382066 | DY66: 2250.898895 | DZ66: 2250.898895 | EA66: 2077.752826 | EB66: 2250.898895 | EC66: 1038.876413 | ED66: 519.4382066 | EE66: 2077.752826 | EF66: 865.7303443 | EG66: 692.5842754 | EH66: 1904.606757 | EI66: 1558.31462 | EJ66: 519.4382066 | EK66: 519.4382066 | EL66: 0 | EM66: 346.2921377 | EN66: 173.1460689 | EO66: 519.4382066 | EP66: 346.2921377 | EQ66: 519.4382066 | ER66: 1558.31462 | ES66: 692.5842754 | ET66: 173.1460689 | EU66: 173.1460689 | EV66: 0 | EW66: 346.2921377 | EX66: 0 | EY66: 0 | EZ66: 173.1460689 | FA66: 0 | FB66: 0 | FC66: 173.1460689 | FD66: 0 | FE66: 173.1460689 | FF66: 0 | FG66: 0 | FH66: 0 | FI66: 0 | FJ66: 0 | FK66: 0 | FL66: 0 | FM66: 0 | FN66: 173.1460689 | FO66: 0 | FP66: 0 | FQ66: 0 | FR66: 0 | FS66: 0 | FT66: 0 | FU66: 0 | FV66: 0 | FW66: 0 | FX66: 173.1460689 | FY66: 0 | FZ66: 0 | GA66: 0 | GB66: 0 | GC66: 0 | GD66: 0 | GE66: 0 | GF66: 0 | GG66: 0 | GH66: 0 | GI66: 0 | GJ66: 0
A67: 5 | D67: TRANSFORMERS | E67: Ground Outdoor / Indoor Chamber Mounted; ˂ 22 kV ; > 60 kVA and < = 600 kVA ; Multiple Phase | F67: 92.91749803 | G67: 26.46552833 | H67: 5.144465797 | I67: 2 | J67: 0 | K67: 0 | L67: 0 | M67: 0 | N67: 0 | O67: 0 | P67: 0 | Q67: 1 | R67: 0 | S67: 0 | T67: 0 | U67: 0 | V67: 0 | W67: 0 | X67: 0 | Y67: 0 | Z67: 0 | AA67: 0 | AB67: 0 | AC67: 1 | AD67: 0 | AE67: 0 | AF67: 0 | AG67: 0 | AH67: 0 | AI67: 0 | AJ67: 1 | AK67: 1 | AL67: 0 | AM67: 0 | AN67: 0 | AO67: 0 | AP67: 0 | AQ67: 0 | AR67: 0 | AS67: 0 | AT67: 0 | AU67: 0 | AV67: 0 | AW67: 0 | AX67: 0 | AY67: 0 | AZ67: 0 | BA67: 0 | BB67: 0 | BC67: 0 | BD67: 0 | BE67: 0 | BF67: 0 | BG67: 0 | BH67: 0 | BI67: 0 | BJ67: 0 | BK67: 0 | BL67: 0 | BM67: 0 | BN67: 0 | BO67: 0 | BP67: 0 | BQ67: 0 | BR67: 0 | BS67: 0 | BT67: 0 | BU67: 0 | BV67: 0 | BW67: 0 | BX67: 0 | BY67: 0 | BZ67: 0 | CA67: 0 | CB67: 0 | CC67: 0 | CD67: 0 | CE67: 0 | CF67: 0 | CG67: 0 | CH67: 0 | CI67: 0 | CJ67: 0 | CK67: 0 | CL67: 0 | CM67: 0 | CN67: 0 | CO67: 0 | CP67: 0 | CQ67: 0 | CR67: 0 | CS67: 0 | CT67: 0 | CU67: 0 | CV67: 0 | CX67: 0 | CY67: 0 | CZ67: 0 | DA67: 0 | DB67: 0 | DC67: 0 | DD67: 0 | DE67: 92.91749803 | DF67: 0 | DG67: 0 | DH67: 0 | DI67: 0 | DJ67: 0 | DK67: 0 | DL67: 0 | DM67: 0 | DN67: 0 | DO67: 0 | DP67: 0 | DQ67: 92.91749803 | DR67: 0 | DS67: 0 | DT67: 0 | DU67: 0 | DV67: 0 | DW67: 0 | DX67: 92.91749803 | DY67: 92.91749803 | DZ67: 0 | EA67: 0 | EB67: 0 | EC67: 0 | ED67: 0 | EE67: 0 | EF67: 0 | EG67: 0 | EH67: 0 | EI67: 0 | EJ67: 0 | EK67: 0 | EL67: 0 | EM67: 0 | EN67: 0 | EO67: 0 | EP67: 0 | EQ67: 0 | ER67: 0 | ES67: 0 | ET67: 0 | EU67: 0 | EV67: 0 | EW67: 0 | EX67: 0 | EY67: 0 | EZ67: 0 | FA67: 0 | FB67: 0 | FC67: 0 | FD67: 0 | FE67: 0 | FF67: 0 | FG67: 0 | FH67: 0 | FI67: 0 | FJ67: 0 | FK67: 0 | FL67: 0 | FM67: 0 | FN67: 0 | FO67: 0 | FP67: 0 | FQ67: 0 | FR67: 0 | FS67: 0 | FT67: 0 | FU67: 0 | FV67: 0 | FW67: 0 | FX67: 0 | FY67: 0 | FZ67: 0 | GA67: 0 | GB67: 0 | GC67: 0 | GD67: 0 | GE67: 0 | GF67: 0 | GG67: 0 | GH67: 0 | GI67: 0 | GJ67: 0
A68: 5 | D68: TRANSFORMERS | E68: Ground Outdoor / Indoor Chamber Mounted; ˂ 22 kV ; > 600 kVA ; Multiple Phase | F68: 334.286789 | G68: 55.4493988 | H68: 7.446435308 | I68: 2 | J68: 0 | K68: 0 | L68: 2.181818182 | M68: 2.181818182 | N68: 0 | O68: 0 | P68: 0 | Q68: 0 | R68: 2.181818182 | S68: 0 | T68: 1.090909091 | U68: 0 | V68: 0 | W68: 0 | X68: 1.090909091 | Y68: 0 | Z68: 0 | AA68: 2.181818182 | AB68: 0 | AC68: 0 | AD68: 0 | AE68: 0 | AF68: 0 | AG68: 1.090909091 | AH68: 0 | AI68: 0 | AJ68: 0 | AK68: 1.090909091 | AL68: 0 | AM68: 1.090909091 | AN68: 2.181818182 | AO68: 0 | AP68: 3.272727273 | AQ68: 0 | AR68: 0 | AS68: 2.181818182 | AT68: 1.090909091 | AU68: 0 | AV68: 1.090909091 | AW68: 2.181818182 | AX68: 0 | AY68: 0 | AZ68: 0 | BA68: 2.181818182 | BB68: 0 | BC68: 0 | BD68: 0 | BE68: 1.090909091 | BF68: 0 | BG68: 1.090909091 | BH68: 2.181818182 | BI68: 0 | BJ68: 1.090909091 | BK68: 0 | BL68: 0 | BM68: 0 | BN68: 0 | BO68: 0 | BP68: 0 | BQ68: 0 | BR68: 0 | BS68: 0 | BT68: 0 | BU68: 0 | BV68: 0 | BW68: 0 | BX68: 0 | BY68: 0 | BZ68: 2.181818182 | CA68: 0 | CB68: 0 | CC68: 0 | CD68: 0 | CE68: 0 | CF68: 0 | CG68: 0 | CH68: 0 | CI68: 0 | CJ68: 0 | CK68: 0 | CL68: 0 | CM68: 0 | CN68: 0 | CO68: 0 | CP68: 0 | CQ68: 0 | CR68: 0 | CS68: 0 | CT68: 0 | CU68: 0 | CV68: 0 | CX68: 0 | CY68: 0 | CZ68: 729.3529941 | DA68: 729.3529941 | DB68: 0 | DC68: 0 | DD68: 0 | DE68: 0 | DF68: 729.3529941 | DG68: 0 | DH68: 364.676497 | DI68: 0 | DJ68: 0 | DK68: 0 | DL68: 364.676497 | DM68: 0 | DN68: 0 | DO68: 729.3529941 | DP68: 0 | DQ68: 0 | DR68: 0 | DS68: 0 | DT68: 0 | DU68: 364.676497 | DV68: 0 | DW68: 0 | DX68: 0 | DY68: 364.676497 | DZ68: 0 | EA68: 364.676497 | EB68: 729.3529941 | EC68: 0 | ED68: 1094.029491 | EE68: 0 | EF68: 0 | EG68: 729.3529941 | EH68: 364.676497 | EI68: 0 | EJ68: 364.676497 | EK68: 729.3529941 | EL68: 0 | EM68: 0 | EN68: 0 | EO68: 729.3529941 | EP68: 0 | EQ68: 0 | ER68: 0 | ES68: 364.676497 | ET68: 0 | EU68: 364.676497 | EV68: 729.3529941 | EW68: 0 | EX68: 364.676497 | EY68: 0 | EZ68: 0 | FA68: 0 | FB68: 0 | FC68: 0 | FD68: 0 | FE68: 0 | FF68: 0 | FG68: 0 | FH68: 0 | FI68: 0 | FJ68: 0 | FK68: 0 | FL68: 0 | FM68: 0 | FN68: 729.3529941 | FO68: 0 | FP68: 0 | FQ68: 0 | FR68: 0 | FS68: 0 | FT68: 0 | FU68: 0 | FV68: 0 | FW68: 0 | FX68: 0 | FY68: 0 | FZ68: 0 | GA68: 0 | GB68: 0 | GC68: 0 | GD68: 0 | GE68: 0 | GF68: 0 | GG68: 0 | GH68: 0 | GI68: 0 | GJ68: 0
A69: 5 | D69: TRANSFORMERS | E69: Ground Outdoor / Indoor Chamber Mounted; > = 22 kV & < = 33 kV ; < = 15 MVA | F69: 584.351626 | G69: 62.88410233 | H69: 7.929949706 | I69: 2 | J69: 1.201834862 | K69: 0 | L69: 2.403669725 | M69: 1.201834862 | N69: 0 | O69: 1.201834862 | P69: 2.403669725 | Q69: 0 | R69: 3.605504587 | S69: 1.201834862 | T69: 3.605504587 | U69: 0 | V69: 1.201834862 | W69: 0 | X69: 2.403669725 | Y69: 4.80733945 | Z69: 4.80733945 | AA69: 0 | AB69: 0 | AC69: 1.201834862 | AD69: 1.201834862 | AE69: 1.201834862 | AF69: 2.403669725 | AG69: 0 | AH69: 0 | AI69: 0 | AJ69: 4.80733945 | AK69: 3.605504587 | AL69: 1.201834862 | AM69: 2.403669725 | AN69: 2.403669725 | AO69: 2.403669725 | AP69: 1.201834862 | AQ69: 1.201834862 | AR69: 2.403669725 | AS69: 3.605504587 | AT69: 2.403669725 | AU69: 1.201834862 | AV69: 2.403669725 | AW69: 7.211009174 | AX69: 0 | AY69: 4.80733945 | AZ69: 0 | BA69: 8.412844037 | BB69: 0 | BC69: 1.201834862 | BD69: 1.201834862 | BE69: 8.412844037 | BF69: 2.403669725 | BG69: 3.605504587 | BH69: 2.403669725 | BI69: 2.403669725 | BJ69: 2.403669725 | BK69: 1.201834862 | BL69: 0 | BM69: 2.403669725 | BN69: 0 | BO69: 0 | BP69: 0 | BQ69: 0 | BR69: 0 | BS69: 1.201834862 | BT69: 2.403669725 | BU69: 0 | BV69: 1.201834862 | BW69: 3.605504587 | BX69: 0 | BY69: 0 | BZ69: 0 | CA69: 0 | CB69: 6.009174312 | CC69: 1.201834862 | CD69: 0 | CE69: 0 | CF69: 0 | CG69: 0 | CH69: 0 | CI69: 0 | CJ69: 0 | CK69: 0 | CL69: 0 | CM69: 0 | CN69: 0 | CO69: 0 | CP69: 0 | CQ69: 0 | CR69: 0 | CS69: 0 | CT69: 0 | CU69: 0 | CV69: 0 | CX69: 702.294156 | CY69: 0 | CZ69: 1404.588312 | DA69: 702.294156 | DB69: 0 | DC69: 702.294156 | DD69: 1404.588312 | DE69: 0 | DF69: 2106.882468 | DG69: 702.294156 | DH69: 2106.882468 | DI69: 0 | DJ69: 702.294156 | DK69: 0 | DL69: 1404.588312 | DM69: 2809.176624 | DN69: 2809.176624 | DO69: 0 | DP69: 0 | DQ69: 702.294156 | DR69: 702.294156 | DS69: 702.294156 | DT69: 1404.588312 | DU69: 0 | DV69: 0 | DW69: 0 | DX69: 2809.176624 | DY69: 2106.882468 | DZ69: 702.294156 | EA69: 1404.588312 | EB69: 1404.588312 | EC69: 1404.588312 | ED69: 702.294156 | EE69: 702.294156 | EF69: 1404.588312 | EG69: 2106.882468 | EH69: 1404.588312 | EI69: 702.294156 | EJ69: 1404.588312 | EK69: 4213.764936 | EL69: 0 | EM69: 2809.176624 | EN69: 0 | EO69: 4916.059092 | EP69: 0 | EQ69: 702.294156 | ER69: 702.294156 | ES69: 4916.059092 | ET69: 1404.588312 | EU69: 2106.882468 | EV69: 1404.588312 | EW69: 1404.588312 | EX69: 1404.588312 | EY69: 702.294156 | EZ69: 0 | FA69: 1404.588312 | FB69: 0 | FC69: 0 | FD69: 0 | FE69: 0 | FF69: 0 | FG69: 702.294156 | FH69: 1404.588312 | FI69: 0 | FJ69: 702.294156 | FK69: 2106.882468 | FL69: 0 | FM69: 0 | FN69: 0 | FO69: 0 | FP69: 3511.47078 | FQ69: 702.294156 | FR69: 0 | FS69: 0 | FT69: 0 | FU69: 0 | FV69: 0 | FW69: 0 | FX69: 0 | FY69: 0 | FZ69: 0 | GA69: 0 | GB69: 0 | GC69: 0 | GD69: 0 | GE69: 0 | GF69: 0 | GG69: 0 | GH69: 0 | GI69: 0 | GJ69: 0
A70: 5 | D70: TRANSFORMERS | E70: Ground Outdoor / Indoor Chamber Mounted; > = 22 kV & < = 33 kV ; > 15 MVA and < = 40 MVA | F70: 1844.005796 | G70: 51.7 | H70: 7.190271205 | I70: 2 | J70: 0 | K70: 2.315789474 | L70: 0 | M70: 0 | N70: 0 | O70: 0 | P70: 0 | Q70: 3.473684211 | R70: 1.157894737 | S70: 0 | T70: 3.473684211 | U70: 0 | V70: 0 | W70: 0 | X70: 0 | Y70: 1.157894737 | Z70: 2.315789474 | AA70: 0 | AB70: 0 | AC70: 0 | AD70: 0 | AE70: 0 | AF70: 0 | AG70: 0 | AH70: 0 | AI70: 0 | AJ70: 0 | AK70: 0 | AL70: 0 | AM70: 1.157894737 | AN70: 0 | AO70: 0 | AP70: 0 | AQ70: 0 | AR70: 0 | AS70: 0 | AT70: 0 | AU70: 2.315789474 | AV70: 0 | AW70: 0 | AX70: 0 | AY70: 0 | AZ70: 0 | BA70: 0 | BB70: 0 | BC70: 0 | BD70: 0 | BE70: 0 | BF70: 0 | BG70: 0 | BH70: 0 | BI70: 0 | BJ70: 2.315789474 | BK70: 0 | BL70: 0 | BM70: 0 | BN70: 0 | BO70: 0 | BP70: 0 | BQ70: 0 | BR70: 0 | BS70: 2.315789474 | BT70: 0 | BU70: 0 | BV70: 0 | BW70: 0 | BX70: 0 | BY70: 0 | BZ70: 0 | CA70: 0 | CB70: 0 | CC70: 0 | CD70: 0 | CE70: 0 | CF70: 0 | CG70: 0 | CH70: 0 | CI70: 0 | CJ70: 0 | CK70: 0 | CL70: 0 | CM70: 0 | CN70: 0 | CO70: 0 | CP70: 0 | CQ70: 0 | CR70: 0 | CS70: 0 | CT70: 0 | CU70: 0 | CV70: 0 | CX70: 0 | CY70: 4270.329213 | CZ70: 0 | DA70: 0 | DB70: 0 | DC70: 0 | DD70: 0 | DE70: 6405.493819 | DF70: 2135.164606 | DG70: 0 | DH70: 6405.493819 | DI70: 0 | DJ70: 0 | DK70: 0 | DL70: 0 | DM70: 2135.164606 | DN70: 4270.329213 | DO70: 0 | DP70: 0 | DQ70: 0 | DR70: 0 | DS70: 0 | DT70: 0 | DU70: 0 | DV70: 0 | DW70: 0 | DX70: 0 | DY70: 0 | DZ70: 0 | EA70: 2135.164606 | EB70: 0 | EC70: 0 | ED70: 0 | EE70: 0 | EF70: 0 | EG70: 0 | EH70: 0 | EI70: 4270.329213 | EJ70: 0 | EK70: 0 | EL70: 0 | EM70: 0 | EN70: 0 | EO70: 0 | EP70: 0 | EQ70: 0 | ER70: 0 | ES70: 0 | ET70: 0 | EU70: 0 | EV70: 0 | EW70: 0 | EX70: 4270.329213 | EY70: 0 | EZ70: 0 | FA70: 0 | FB70: 0 | FC70: 0 | FD70: 0 | FE70: 0 | FF70: 0 | FG70: 4270.329213 | FH70: 0 | FI70: 0 | FJ70: 0 | FK70: 0 | FL70: 0 | FM70: 0 | FN70: 0 | FO70: 0 | FP70: 0 | FQ70: 0 | FR70: 0 | FS70: 0 | FT70: 0 | FU70: 0 | FV70: 0 | FW70: 0 | FX70: 0 | FY70: 0 | FZ70: 0 | GA70: 0 | GB70: 0 | GC70: 0 | GD70: 0 | GE70: 0 | GF70: 0 | GG70: 0 | GH70: 0 | GI70: 0 | GJ70: 0
A71: 5 | D71: TRANSFORMERS | E71: Ground Outdoor / Indoor Chamber Mounted; > 33 kV & < = 66 kV ; < = 15 MVA | F71: 1203.446247 | G71: 68.72168771 | H71: 8.289854505 | I71: 2 | J71: 0 | K71: 2.427807487 | L71: 1.213903743 | M71: 1.213903743 | N71: 1.213903743 | O71: 6.069518717 | P71: 2.427807487 | Q71: 7.28342246 | R71: 1.213903743 | S71: 1.213903743 | T71: 2.427807487 | U71: 2.427807487 | V71: 2.427807487 | W71: 2.427807487 | X71: 10.92513369 | Y71: 4.855614973 | Z71: 4.855614973 | AA71: 6.069518717 | AB71: 2.427807487 | AC71: 2.427807487 | AD71: 1.213903743 | AE71: 1.213903743 | AF71: 6.069518717 | AG71: 12.13903743 | AH71: 4.855614973 | AI71: 2.427807487 | AJ71: 3.64171123 | AK71: 8.497326203 | AL71: 12.13903743 | AM71: 7.28342246 | AN71: 6.069518717 | AO71: 9.711229947 | AP71: 3.64171123 | AQ71: 7.28342246 | AR71: 12.13903743 | AS71: 2.427807487 | AT71: 0 | AU71: 4.855614973 | AV71: 7.28342246 | AW71: 3.64171123 | AX71: 1.213903743 | AY71: 1.213903743 | AZ71: 4.855614973 | BA71: 3.64171123 | BB71: 0 | BC71: 1.213903743 | BD71: 1.213903743 | BE71: 2.427807487 | BF71: 1.213903743 | BG71: 3.64171123 | BH71: 4.855614973 | BI71: 0 | BJ71: 1.213903743 | BK71: 2.427807487 | BL71: 0 | BM71: 0 | BN71: 1.213903743 | BO71: 2.427807487 | BP71: 1.213903743 | BQ71: 0 | BR71: 0 | BS71: 0 | BT71: 4.855614973 | BU71: 0 | BV71: 1.213903743 | BW71: 0 | BX71: 0 | BY71: 0 | BZ71: 3.64171123 | CA71: 0 | CB71: 0 | CC71: 0 | CD71: 0 | CE71: 0 | CF71: 0 | CG71: 0 | CH71: 0 | CI71: 0 | CJ71: 0 | CK71: 0 | CL71: 0 | CM71: 0 | CN71: 0 | CO71: 0 | CP71: 0 | CQ71: 1.213903743 | CR71: 0 | CS71: 0 | CT71: 0 | CU71: 0 | CV71: 0 | CX71: 0 | CY71: 2921.735808 | CZ71: 1460.867904 | DA71: 1460.867904 | DB71: 1460.867904 | DC71: 7304.339519 | DD71: 2921.735808 | DE71: 8765.207423 | DF71: 1460.867904 | DG71: 1460.867904 | DH71: 2921.735808 | DI71: 2921.735808 | DJ71: 2921.735808 | DK71: 2921.735808 | DL71: 13147.81113 | DM71: 5843.471615 | DN71: 5843.471615 | DO71: 7304.339519 | DP71: 2921.735808 | DQ71: 2921.735808 | DR71: 1460.867904 | DS71: 1460.867904 | DT71: 7304.339519 | DU71: 14608.67904 | DV71: 5843.471615 | DW71: 2921.735808 | DX71: 4382.603711 | DY71: 10226.07533 | DZ71: 14608.67904 | EA71: 8765.207423 | EB71: 7304.339519 | EC71: 11686.94323 | ED71: 4382.603711 | EE71: 8765.207423 | EF71: 14608.67904 | EG71: 2921.735808 | EH71: 0 | EI71: 5843.471615 | EJ71: 8765.207423 | EK71: 4382.603711 | EL71: 1460.867904 | EM71: 1460.867904 | EN71: 5843.471615 | EO71: 4382.603711 | EP71: 0 | EQ71: 1460.867904 | ER71: 1460.867904 | ES71: 2921.735808 | ET71: 1460.867904 | EU71: 4382.603711 | EV71: 5843.471615 | EW71: 0 | EX71: 1460.867904 | EY71: 2921.735808 | EZ71: 0 | FA71: 0 | FB71: 1460.867904 | FC71: 2921.735808 | FD71: 1460.867904 | FE71: 0 | FF71: 0 | FG71: 0 | FH71: 5843.471615 | FI71: 0 | FJ71: 1460.867904 | FK71: 0 | FL71: 0 | FM71: 0 | FN71: 4382.603711 | FO71: 0 | FP71: 0 | FQ71: 0 | FR71: 0 | FS71: 0 | FT71: 0 | FU71: 0 | FV71: 0 | FW71: 0 | FX71: 0 | FY71: 0 | FZ71: 0 | GA71: 0 | GB71: 0 | GC71: 0 | GD71: 0 | GE71: 1460.867904 | GF71: 0 | GG71: 0 | GH71: 0 | GI71: 0 | GJ71: 0
A72: 5 | D72: TRANSFORMERS | E72: Ground Outdoor / Indoor Chamber Mounted; > 33 kV & < = 66 kV ; > 15 MVA and < = 40 MVA | F72: 1837.039708 | G72: 48.93472998 | H72: 6.995336302 | I72: 2 | J72: 0 | K72: 1.166666667 | L72: 0 | M72: 0 | N72: 2.333333333 | O72: 2.333333333 | P72: 11.66666667 | Q72: 8.166666667 | R72: 3.5 | S72: 9.333333333 | T72: 2.333333333 | U72: 0 | V72: 3.5 | W72: 2.333333333 | X72: 3.5 | Y72: 0 | Z72: 1.166666667 | AA72: 1.166666667 | AB72: 5.833333333 | AC72: 0 | AD72: 1.166666667 | AE72: 1.166666667 | AF72: 2.333333333 | AG72: 1.166666667 | AH72: 1.166666667 | AI72: 0 | AJ72: 0 | AK72: 2.333333333 | AL72: 5.833333333 | AM72: 1.166666667 | AN72: 2.333333333 | AO72: 4.666666667 | AP72: 2.333333333 | AQ72: 4.666666667 | AR72: 1.166666667 | AS72: 4.666666667 | AT72: 2.333333333 | AU72: 2.333333333 | AV72: 0 | AW72: 2.333333333 | AX72: 0 | AY72: 0 | AZ72: 0 | BA72: 0 | BB72: 0 | BC72: 0 | BD72: 2.333333333 | BE72: 0 | BF72: 0 | BG72: 1.166666667 | BH72: 0 | BI72: 0 | BJ72: 0 | BK72: 0 | BL72: 0 | BM72: 0 | BN72: 0 | BO72: 0 | BP72: 0 | BQ72: 0 | BR72: 0 | BS72: 0 | BT72: 0 | BU72: 0 | BV72: 0 | BW72: 0 | BX72: 0 | BY72: 0 | BZ72: 0 | CA72: 0 | CB72: 0 | CC72: 0 | CD72: 0 | CE72: 0 | CF72: 0 | CG72: 0 | CH72: 0 | CI72: 0 | CJ72: 0 | CK72: 0 | CL72: 0 | CM72: 0 | CN72: 0 | CO72: 0 | CP72: 0 | CQ72: 0 | CR72: 0 | CS72: 0 | CT72: 0 | CU72: 0 | CV72: 0 | CX72: 0 | CY72: 2143.212993 | CZ72: 0 | DA72: 0 | DB72: 4286.425985 | DC72: 4286.425985 | DD72: 21432.12993 | DE72: 15002.49095 | DF72: 6429.638978 | DG72: 17145.70394 | DH72: 4286.425985 | DI72: 0 | DJ72: 6429.638978 | DK72: 4286.425985 | DL72: 6429.638978 | DM72: 0 | DN72: 2143.212993 | DO72: 2143.212993 | DP72: 10716.06496 | DQ72: 0 | DR72: 2143.212993 | DS72: 2143.212993 | DT72: 4286.425985 | DU72: 2143.212993 | DV72: 2143.212993 | DW72: 0 | DX72: 0 | DY72: 4286.425985 | DZ72: 10716.06496 | EA72: 2143.212993 | EB72: 4286.425985 | EC72: 8572.851971 | ED72: 4286.425985 | EE72: 8572.851971 | EF72: 2143.212993 | EG72: 8572.851971 | EH72: 4286.425985 | EI72: 4286.425985 | EJ72: 0 | EK72: 4286.425985 | EL72: 0 | EM72: 0 | EN72: 0 | EO72: 0 | EP72: 0 | EQ72: 0 | ER72: 4286.425985 | ES72: 0 | ET72: 0 | EU72: 2143.212993 | EV72: 0 | EW72: 0 | EX72: 0 | EY72: 0 | EZ72: 0 | FA72: 0 | FB72: 0 | FC72: 0 | FD72: 0 | FE72: 0 | FF72: 0 | FG72: 0 | FH72: 0 | FI72: 0 | FJ72: 0 | FK72: 0 | FL72: 0 | FM72: 0 | FN72: 0 | FO72: 0 | FP72: 0 | FQ72: 0 | FR72: 0 | FS72: 0 | FT72: 0 | FU72: 0 | FV72: 0 | FW72: 0 | FX72: 0 | FY72: 0 | FZ72: 0 | GA72: 0 | GB72: 0 | GC72: 0 | GD72: 0 | GE72: 0 | GF72: 0 | GG72: 0 | GH72: 0 | GI72: 0 | GJ72: 0
